{"text_format":"1","workbook":"xlsx","n_sheets":5,"sheets":["вопросы","Лист5","Лист3","СВОД","сссылки"],"not_rendered":{"charts":0,"images":0,"macros":1,"external_links":0,"defined_names":1,"comments":0,"pivot_tables":1},"unopened":[],"bounds":{"document_bytes":16777216,"sheet_cells":100000,"rows_first":2000,"rows_last":500,"rows_between":2000,"halvings":0,"cell_chars":16384,"cell_head_chars":4096},"cells_cut":0,"cells_raw":0,"read":"whole","date_system":"1900"}

{"sheet":"вопросы","index":0,"n_rows":788,"n_cols":7,"rows_kept":788,"cut":false,"hidden":false,"merged":[]}
["Артикул продавца","Артикул WB","Наименвоание","Дата","Текст вопроса","ID вопроса","Ссылка на товар"]
[4603739551117,159485555,"Салфетки для очищения кистей антибактериальные 100 шт","27/9/2023","Я уже это сделала, куда дальше? Товар отвезли в пункт где я брала? Уже столько дней прошло долго отвечаете написала сразу же а вы отвечаете спустя столько дней","2aJN1ooBHA76Ev-cvFsW","https://www.wildberries.ru/catalog/170034468/detail.aspx?targetUrl=GP"]
[4603739551117,159485555,"Салфетки для очищения кистей антибактериальные 100 шт","26/9/2023","Куда теперь делать возврат? Я писала но конкретного ответа нет, писала о возврате уже, куда мне отвезти товар?","iFch0ooBYpYA1RfTpL9K","https://www.wildberries.ru/catalog/150367969/detail.aspx?targetUrl=GP"]
[4603739551117,159485555,"Салфетки для очищения кистей антибактериальные 100 шт","22/9/2023","Почему мне никто не отвечает? Хочу сделать возврат, вообще другой товар отправили на жалобы не отвечаете","sFU7vIoB00yQAR3IoSJ4","https://www.wildberries.ru/catalog/150374019/detail.aspx?targetUrl=GP"]
[4631136904687,154541673,"Кисть для теней №11","11/11/2023","Здравствуйте, на фото кисть номер 11, что за тени, можно артикул?","UGi_v4sBseHJVfIh0-Ez","https://www.wildberries.ru/catalog/150367969/detail.aspx?targetUrl=GP"]
[4631136904687,154541673,"Кисть для теней №11","5/10/2023","Здравствуйте, мне нужна кисть для нанесения и растушовки сухих теней. Подскажите арт.","yFo1AYsBYpYA1RfT1m3_","https://www.wildberries.ru/catalog/150367969/detail.aspx?targetUrl=GP"]
[4631136904700,154541672,"Кисть-факел для растушевки теней №10","24/10/2023","Здравствуйте. Какая кисть лучше подходит для жидких и кремовых теней? Благодарю за ответ.","MmPIYYsBEfQyvY3WcpcA","https://www.wildberries.ru/catalog/183217053/detail.aspx?targetUrl=GP"]
[4631136904700,154541672,"Кисть-факел для растушевки теней №10","6/10/2023","Здравствуйте! Подскажите, кисть 10 ранее называлась 26к?","NlqAA4sBYpYA1RfTVIFe","https://www.wildberries.ru/catalog/152273218/detail.aspx?targetUrl=GP"]
[4631136904717,154541674,"Кисть для растушевки карандаша и теней №12","18/11/2023","foundation а этой кисти нет в Вашей карточке товара?","Y7aD44sBHA76Ev-cgj9f","https://www.wildberries.ru/catalog/149910037/detail.aspx?targetUrl=GP"]
[4631136904816,154541675,"Кисть скошенная для стрелок, карандаша и подводки №13","14/10/2023","Добрый день! А когда планируется поступление кисти 13? Очень жду","SVxxLYsBYpYA1RfTyPeX","https://www.wildberries.ru/catalog/182309290/detail.aspx?targetUrl=GP"]
[4631136904892,154541663,"Кисть для макияжа для тонального крема №03","23/9/2023","Добрый день. Можно узнать размеры кисти #3? Спасибо.","K3gkwYoBliAoiwUeGnTc","https://www.wildberries.ru/catalog/150367356/detail.aspx?targetUrl=GP"]
[4631136904946,154541669,"Кисть для растушевки теней и карандаша №7","8/10/2023","Добрый день! Подскажите, пожалуйста, для растушевки карандаша для глаз и проработки тенями ресничной зоны какие лучше кисти подойдут?","3lziDIsBseHJVfIhoHF9","https://www.wildberries.ru/catalog/150253399/detail.aspx?targetUrl=GP"]
[4631136904960,169865364,"Масло для роста и укрепления ресниц и бровей","8/11/2023","Почему печёт глаза это ср-во?","_019sIsBtm_3_oXdG88k","https://www.wildberries.ru/catalog/169879422/detail.aspx?targetUrl=GP"]
[4631137361052,170039822,"Краска для бровей и ресниц Графит Graphite","14/11/2023","Здравствуйте? Идет без оксиданта? Без него тоже можно окрашивать?","b2cD0IsB00yQAR3Iy7xn","https://www.wildberries.ru/catalog/170035745/detail.aspx?targetUrl=GP"]
[4631137361052,170039822,"Краска для бровей и ресниц Графит Graphite","14/11/2023","Добрый день ,подскажите номер лосьона которым смывать краску?","uk97zIsBtm_3_oXdW_Br","https://www.wildberries.ru/catalog/154505350/detail.aspx?targetUrl=GP"]
[4631137361052,170039822,"Краска для бровей и ресниц Графит Graphite","6/11/2023","Я думала придёт чёрный краситель,но пришёл белый что то ,я не понимаю для чего это?","QGhLpIsBEfQyvY3W64Gc","https://www.wildberries.ru/catalog/150367356/detail.aspx?targetUrl=GP"]
[4631137361052,170039822,"Краска для бровей и ресниц Графит Graphite","4/11/2023","здравствуйте! как покрасить брови в холодный оттенок, например, графит, так чтобы кожа тоже окрасилась максимально?","WWd9nIsBEfQyvY3WEPSX","https://www.wildberries.ru/catalog/149875692/detail.aspx?targetUrl=GP"]
[4631137361052,170039822,"Краска для бровей и ресниц Графит Graphite","30/10/2023","Здравствуйте! Какой цвет купить что осветлить черные брови до светло коричневого ?","qkoggosBtm_3_oXdeD_r","https://www.wildberries.ru/catalog/150378854/detail.aspx?targetUrl=GP"]
[4631137361052,170039822,"Краска для бровей и ресниц Графит Graphite","29/9/2023","Здравствуйте, подскажите пожалуйста, иссиня черная краска для ресниц ее с оксидом 1,8 % разбавлять в какой пропорции и какое время выдержки на ресницах?","o1rI4YoBseHJVfIh9RBa","https://www.wildberries.ru/catalog/152281086/detail.aspx?targetUrl=GP"]
[4631137361052,170039822,"Краска для бровей и ресниц Графит Graphite","25/9/2023","Подскажите подойдет ли оксид 1,8 от другой марки?","pVety4oBYpYA1RfTO0jp","https://www.wildberries.ru/catalog/150359774/detail.aspx?targetUrl=GP"]
[4631137361069,170034468,"Краска для бровей и ресниц в цвете Коричневый Brown","20/11/2023","доставка задерживается, а сейчас у меня в доставках появился новый заказ этой же краски и как это понять?","W4877osBliAoiwUedo7r","https://www.wildberries.ru/catalog/150359774/detail.aspx?targetUrl=GP"]
[4631137361069,170034468,"Краска для бровей и ресниц в цвете Коричневый Brown","19/11/2023","Здравствуйте! Срок годности проверите,а то сегодня пришлось сдать тк осталось 4 месяца.","OFMb54sBtm_3_oXdC_sS","https://www.wildberries.ru/catalog/150253407/detail.aspx?targetUrl=GP"]
[4631137361069,170034468,"Краска для бровей и ресниц в цвете Коричневый Brown","18/11/2023","А оксид можно применять другой фирмы. ?","O2664osBEfQyvY3WH8fl","https://www.wildberries.ru/catalog/170035745/detail.aspx?targetUrl=GP"]
[4631137361069,170034468,"Краска для бровей и ресниц в цвете Коричневый Brown","17/11/2023","Добрый день. Подскажите, сколько краска примерно держится на коже и на волосках?","qVJP34sBtm_3_oXdSl0f","https://www.wildberries.ru/catalog/170034468/detail.aspx?targetUrl=GP"]
[4631137361069,170034468,"Краска для бровей и ресниц в цвете Коричневый Brown","14/11/2023","Здравствуйте! На сколько процедур хватает красителя?","B4rrzIsBliAoiwUeglwF","https://www.wildberries.ru/catalog/154551575/detail.aspx?targetUrl=GP"]
[4631137361069,170034468,"Краска для бровей и ресниц в цвете Коричневый Brown","10/11/2023","Здравствуйте какой срок годности у краски после вскрытия?","aU5tuYsBtm_3_oXddHDr","https://www.wildberries.ru/catalog/149785556/detail.aspx?targetUrl=GP"]
[4631137361069,170034468,"Краска для бровей и ресниц в цвете Коричневый Brown","9/11/2023","Здравствуйте, какой купить окислитель для вашей краски ?","cGc4tIsBseHJVfIhq_Jb","https://www.wildberries.ru/catalog/150367356/detail.aspx?targetUrl=GP"]
[4631137361069,170034468,"Краска для бровей и ресниц в цвете Коричневый Brown","8/11/2023","В какой пропорции разводить графит и Окислительй 3%?","hLBmr4sBHA76Ev-cRZ6x","https://www.wildberries.ru/catalog/149753552/detail.aspx?targetUrl=GP"]
[4631137361069,170034468,"Краска для бровей и ресниц в цвете Коричневый Brown","5/11/2023","здравствуйте! как красить брови, чтобы кожа тоже окрасилась?","8mZpoIsBseHJVfIhoG4L","https://www.wildberries.ru/catalog/177634488/detail.aspx?targetUrl=GP"]
[4631137361069,170034468,"Краска для бровей и ресниц в цвете Коричневый Brown","5/11/2023","Добрый день! Какой оксид подойдёт к коричневой и темно-коричневой краске? Спасибо.","sq9XoIsBHA76Ev-cYnUR","https://www.wildberries.ru/catalog/170624107/detail.aspx?targetUrl=GP"]
[4631137361069,170034468,"Краска для бровей и ресниц в цвете Коричневый Brown","23/10/2023","Он затерялся на складе","cqpsWosBHA76Ev-cxT44","https://www.wildberries.ru/catalog/170624592/detail.aspx?targetUrl=GP"]
[4631137361069,170034468,"Краска для бровей и ресниц в цвете Коричневый Brown","23/10/2023","Мне так и не выдали его что делать","vl5rWosB00yQAR3IyacQ","https://www.wildberries.ru/catalog/176944508/detail.aspx?targetUrl=GP"]
[4631137361069,170034468,"Краска для бровей и ресниц в цвете Коричневый Brown","17/10/2023","Здравствуйте, подскажите пожалуйста под каким артикулом можно заказать оттенок Тауп","Cl_rO4sBseHJVfIhnDcr","https://www.wildberries.ru/catalog/154541674/detail.aspx?targetUrl=GP"]
[4631137361069,170034468,"Краска для бровей и ресниц в цвете Коричневый Brown","11/10/2023","Здравствуйте! Подскажите какой цвет подобрать, если я блондинка со светлой кожей? Хотелось бы получить русый оттенок.","_KbbHYsBHA76Ev-cCHJk","https://www.wildberries.ru/catalog/183217053/detail.aspx?targetUrl=GP"]
[4631137361069,170034468,"Краска для бровей и ресниц в цвете Коричневый Brown","9/10/2023","Здравствуйте какой срок годности после вскрытия?","UVsNFIsBYpYA1RfTGnwf","https://www.wildberries.ru/catalog/170034468/detail.aspx?targetUrl=GP"]
[4631137361069,170034468,"Краска для бровей и ресниц в цвете Коричневый Brown","4/10/2023","здравствуйте,можно состав почитать ?","_F3t-ooBEfQyvY3WKz70","https://www.wildberries.ru/catalog/170057513/detail.aspx?targetUrl=GP"]
[4631137361069,170034468,"Краска для бровей и ресниц в цвете Коричневый Brown","3/10/2023","Какая краска прокрашивает кожу? Я светлая, темно-русая","-lwB9YoBEfQyvY3WOuEQ","https://www.wildberries.ru/catalog/152467043/detail.aspx?targetUrl=GP"]
[4631137361069,170034468,"Краска для бровей и ресниц в цвете Коричневый Brown","26/9/2023","Здравствуйте, оксид входит в комплект?","VVp90YoBEfQyvY3WNOKJ","https://www.wildberries.ru/catalog/170032186/detail.aspx?targetUrl=GP"]
[4631137361076,170035745,"Краска для бровей и ресниц Светло-коричневый Light brown","19/11/2023","Подскажите, пожалуйста, какое время выдержки коричневой краски с оксидом %3 ? Я держу достаточно долго, но оттенок отдает в зелень!  Чтобы сразу стало коричневым нужно держать долго. Это может навредить волоскам?","XW5_6YsBseHJVfIhj0xW","https://www.wildberries.ru/catalog/170032186/detail.aspx?targetUrl=GP"]
[4631137361076,170035745,"Краска для бровей и ресниц Светло-коричневый Light brown","19/11/2023","Здравствуйте!срок годности проверите?","i44l54sBliAoiwUeZ15T","https://www.wildberries.ru/catalog/149881386/detail.aspx?targetUrl=GP"]
[4631137361076,170035745,"Краска для бровей и ресниц Светло-коричневый Light brown","17/11/2023","Здравствуйте. Как подобрать правильно тон краски и оксид?","YrUF3osBHA76Ev-cHAVl","https://www.wildberries.ru/catalog/177634182/detail.aspx?targetUrl=GP"]
[4631137361076,170035745,"Краска для бровей и ресниц Светло-коричневый Light brown","16/11/2023","Здравствуйте. Помоги пожалуйста подобрать краску и оксид. Свои брови достаточно тёмные,  волосы на голове окрашены в блонд ( аэр тач) кожа  с холодным поддтоном. Хочется чтобы брови были не светло коричневого цвета и не чёрные.","sVGE14sBtm_3_oXd9EFT","https://www.wildberries.ru/catalog/149753546/detail.aspx?targetUrl=GP"]
[4631137361076,170035745,"Краска для бровей и ресниц Светло-коричневый Light brown","13/11/2023","здравствуйте я хочу заказать вашем магазине разные товары с курерской доставкой вы будете все сложит вместе? или будете отправлять по отделности","Bmlvx4sBseHJVfIhjG04","https://www.wildberries.ru/catalog/170034468/detail.aspx?targetUrl=GP"]
[4631137361076,170035745,"Краска для бровей и ресниц Светло-коричневый Light brown","25/10/2023","Здравствуйте,  подскажите срок годности краски после вскрытия. Спасибо","jmLTaIsBseHJVfIh0FRD","https://www.wildberries.ru/catalog/150378854/detail.aspx?targetUrl=GP"]
[4631137361076,170035745,"Краска для бровей и ресниц Светло-коричневый Light brown","12/10/2023","Здравствуйте, нужен коричневый теплый , свои волосы рыжеватые .Какой тон взять ?","sl-4JYsBEfQyvY3WdsYr","https://www.wildberries.ru/catalog/149785552/detail.aspx?targetUrl=GP"]
[4631137361076,170035745,"Краска для бровей и ресниц Светло-коричневый Light brown","30/9/2023","Объясните пожалуйста почему по одному и тому же оттенку светло-коричневому тут рекомендуется оксид 0.9% или 1.8%, а по арт 142942855  с таким же оттенком оксид 3%?","FEDf5ooBtm_3_oXdjWPm","https://www.wildberries.ru/catalog/150367969/detail.aspx?targetUrl=GP"]
[4631137361076,170035745,"Краска для бровей и ресниц Светло-коричневый Light brown","28/9/2023","Здравствуйте. Купила светло-коричневую краску, делала несколько окрашиваний с разными оксидами шик (1,8% и 3%) и щиплет кожу - это нормальная реакция?","pqLi2ooBHA76Ev-cAKEd","https://www.wildberries.ru/catalog/170035133/detail.aspx?targetUrl=GP"]
[4631137361076,170035745,"Краска для бровей и ресниц Светло-коричневый Light brown","25/9/2023","Здравствуйте! Заказала светло коричневую краску, но на моих волосках после покраски она выглядит темно коричневой. Можно ли что-то сделать?например добавить ваш разбавитель?или нужно перезаказывать оттенок светлее?","xHkFy4oBliAoiwUepA8A","https://www.wildberries.ru/catalog/149875695/detail.aspx?targetUrl=GP"]
[4631137361083,170038304,"Краска для бровей и ресниц Иссиня-чёрный Blue black","17/11/2023","Здравствуйте. Второй раз заказываю данную краску и Вы отправляете старую пригодности краску. Срок использования 5 лет. Краску, которую Вы отправляете уже 3 года!","5Wnc3YsB00yQAR3I2Vu7","https://www.wildberries.ru/catalog/154505355/detail.aspx?targetUrl=GP"]
[4631137361083,170038304,"Краска для бровей и ресниц Иссиня-чёрный Blue black","16/11/2023","Здравствуйте. Для окрашивания ресниц взять иссиня-чёрный или чёрный цвет?","nW3i2YsBEfQyvY3W7ll8","https://www.wildberries.ru/catalog/170035745/detail.aspx?targetUrl=GP"]
[4631137361083,170038304,"Краска для бровей и ресниц Иссиня-чёрный Blue black","14/11/2023","Добрый день, в вашей линейке есть краситель для бровей и ресниц чисто черного цвета?","8WfJzosB00yQAR3I0pUe","https://www.wildberries.ru/catalog/170038304/detail.aspx?targetUrl=GP"]
[4631137361083,170038304,"Краска для бровей и ресниц Иссиня-чёрный Blue black","11/11/2023","Чтобы окрасить брови в чёрный цвет, но при этом не окрасить кожу, какой оксид  выбрать? Подскажите, пожалуйста","LWa8v4sB00yQAR3I_kvP","https://www.wildberries.ru/catalog/152235502/detail.aspx?targetUrl=GP"]
[4631137361083,170038304,"Краска для бровей и ресниц Иссиня-чёрный Blue black","11/11/2023","Здравствуйте. Какая дата изготовления краски иссиня-черный?","QmZBv4sB00yQAR3Ixj36","https://www.wildberries.ru/catalog/150367969/detail.aspx?targetUrl=GP"]
[4631137361083,170038304,"Краска для бровей и ресниц Иссиня-чёрный Blue black","11/11/2023","Здравствуйте, подскажите пожалуйста, оксидант 3%подойдет при окрашивании  темно - коричневым красителем?","FLGgvosBHA76Ev-cwcqA","https://www.wildberries.ru/catalog/171070905/detail.aspx?targetUrl=GP"]
[4631137361083,170038304,"Краска для бровей и ресниц Иссиня-чёрный Blue black","8/11/2023","Здравствуйте, какой срок изготовления придет если я захожу сегодня, мне нужно для домашнего использования а не салонного  а я дома использую не так часто?","PGkMr4sBEfQyvY3WaV1o","https://www.wildberries.ru/catalog/152235502/detail.aspx?targetUrl=GP"]
[4631137361083,170038304,"Краска для бровей и ресниц Иссиня-чёрный Blue black","5/11/2023","здравствуйте","O6_4nYsBHA76Ev-czzcr","https://www.wildberries.ru/catalog/170624592/detail.aspx?targetUrl=GP"]
[4631137361083,170038304,"Краска для бровей и ресниц Иссиня-чёрный Blue black","4/11/2023","щиплет ли краска в процессе окрашивания ресниц?","y4bmmosBliAoiwUedHuh","https://www.wildberries.ru/catalog/150359775/detail.aspx?targetUrl=GP"]
[4631137361083,170038304,"Краска для бровей и ресниц Иссиня-чёрный Blue black","2/11/2023","Добрый вечер.Оксидант прилагается? Если нет,где можно приобрести?","kGf7kIsBEfQyvY3WixkT","https://www.wildberries.ru/catalog/169845972/detail.aspx?targetUrl=GP"]
[4631137361083,170038304,"Краска для бровей и ресниц Иссиня-чёрный Blue black","25/10/2023","Можно красить ресницы? И на каком оксиде?","RGSLZ4sBEfQyvY3W3Qbs","https://www.wildberries.ru/catalog/184006229/detail.aspx?targetUrl=GP"]
[4631137361083,170038304,"Краска для бровей и ресниц Иссиня-чёрный Blue black","22/10/2023","Здравствуйте, краска не красит кожу и двшат ли волоски","GaooV4sBHA76Ev-cPwQL","https://www.wildberries.ru/catalog/170012407/detail.aspx?targetUrl=GP"]
[4631137361083,170038304,"Краска для бровей и ресниц Иссиня-чёрный Blue black","16/10/2023","Здравствуйте Скажите пожалуйста,это самостоятельное средство или ещё что-то нужно докупать? Что бы покрасить ресницы","L6fdNosBHA76Ev-c-eUp","https://www.wildberries.ru/catalog/170038304/detail.aspx?targetUrl=GP"]
[4631137361083,170038304,"Краска для бровей и ресниц Иссиня-чёрный Blue black","11/10/2023","Здравствуйте, где смотреть угт ?","4X2DHYsBliAoiwUeP-NY","https://www.wildberries.ru/catalog/169862257/detail.aspx?targetUrl=GP"]
[4631137361083,170038304,"Краска для бровей и ресниц Иссиня-чёрный Blue black","7/10/2023","Где на краске указана дата изготовления? На торце коробки и краски указано 29IE1220. Получается краска изготовлена в 20м году и ей 3 года?!","6aW4CosBHA76Ev-c805a","https://www.wildberries.ru/catalog/150227242/detail.aspx?targetUrl=GP"]
[4631137361083,170038304,"Краска для бровей и ресниц Иссиня-чёрный Blue black","5/10/2023","Какой срок после вскрытия у графита и иссиня-черного?","f1pmAIsBYpYA1RfTzF3O","https://www.wildberries.ru/catalog/149881390/detail.aspx?targetUrl=GP"]
[4631137361083,170038304,"Краска для бровей и ресниц Иссиня-чёрный Blue black","22/9/2023","Здравствуйте! Подскажите срок годности после вскрытия и дату изготовления партии на вб?","HFdsvooBseHJVfIh4-W5","https://www.wildberries.ru/catalog/150382776/detail.aspx?targetUrl=GP"]
[4631137444083,169845972,"Оксид для краски для бровей 1,8%","17/11/2023","Если для окрашивания ресниц взять 3% он не ярко окрасит?","EVGg3IsBtm_3_oXdRN2U","https://www.wildberries.ru/catalog/150227243/detail.aspx?targetUrl=GP"]
[4631137444083,169845972,"Оксид для краски для бровей 1,8%","16/11/2023","Здравствуйте! Срок годности хочу узнать!","_FH414sBtm_3_oXd_Fvx","https://www.wildberries.ru/catalog/169845972/detail.aspx?targetUrl=GP"]
[4631137444083,169845972,"Оксид для краски для бровей 1,8%","14/11/2023","подскажите пожалуйста, для осветления бровей на 1-2 тона подойдёт окислитель 1,8 или только 3% ?","o7Mmz4sBHA76Ev-cvEa_","https://www.wildberries.ru/catalog/149785556/detail.aspx?targetUrl=GP"]
[4631137444083,169845972,"Оксид для краски для бровей 1,8%","3/11/2023","Хочу заказать оксид 1.8Но у вас дата с 21 года,  нужен свежий товар,  так как начинающий мастер и расход будет маленький и товар будет просрочен Когда будет свежее поступление?","OWfak4sBEfQyvY3WRUGK","https://www.wildberries.ru/catalog/170035745/detail.aspx?targetUrl=GP"]
[4631137444083,169845972,"Оксид для краски для бровей 1,8%","4/10/2023","Здравствуйте, как получить сертификат соответствия и качества товара ?","L1g8_IoB00yQAR3IBvPt","https://www.wildberries.ru/catalog/158055823/detail.aspx?targetUrl=GP"]
[4631139749209,154502205,"Точилка для косметических карандашей с двумя отверстиями","8/11/2023","А как открыть вторую сторону ? Уже все испробовала.. может есть какой-то способ?","KrBRr4sBHA76Ev-cpJyy","https://www.wildberries.ru/catalog/170054370/detail.aspx?targetUrl=GP"]
[4631139749209,154502205,"Точилка для косметических карандашей с двумя отверстиями","31/10/2023","Добрый день! Невозможно открыть точилку с задней стороны. Судя по вопросам я не одна такая. Пожалуйста, загрузите видео как это сделать","JkrXhosBtm_3_oXd75qR","https://www.wildberries.ru/catalog/149881387/detail.aspx?targetUrl=GP"]
[4631139749209,154502205,"Точилка для косметических карандашей с двумя отверстиями","5/10/2023","Я так и не смогла открыть с двух сторон! Точно открывается вторая сторона, а то сломаю!","UHxKAIsBliAoiwUeDzNX","https://www.wildberries.ru/catalog/170033635/detail.aspx?targetUrl=GP"]
[4631139749209,154502205,"Точилка для косметических карандашей с двумя отверстиями","3/10/2023","Здравствуйте! А точилка открывается с обеих сторон?","T3uI9IoBliAoiwUejn-J","https://www.wildberries.ru/catalog/154519016/detail.aspx?targetUrl=GP"]
[4631139749209,154502205,"Точилка для косметических карандашей с двумя отверстиями","29/9/2023","Здравствуйте,  точилка  остро точит? А то многие точилки мягко точат. Нужны для ваших же карандашей для губ","-Vf134oB00yQAR3IXliC","https://www.wildberries.ru/catalog/150359774/detail.aspx?targetUrl=GP"]
[4631139765438,150368587,"Прозрачный гель-фиксатор для бровей для укладки и роста","27/10/2023","Здравствуйте. Есть ли отдушка?","pYN2cosBliAoiwUei3s0","https://www.wildberries.ru/catalog/150367356/detail.aspx?targetUrl=GP"]
[4631140037623,150234701,"Карандаш для бровей пудровый с щеточкой","13/11/2023","Какая долгая доставка, ужас","_2kpx4sBseHJVfIh0Wb_","https://www.wildberries.ru/catalog/173057611/detail.aspx?targetUrl=GP"]
[4631140037623,150234701,"Карандаш для бровей пудровый с щеточкой","6/10/2023","Добрый день! Подскажите какой цвет карандаша взять Браун или медиум  не могу определиться я теплая а брови черные, есть  старый татуаж ?","9l1IBIsBEfQyvY3WosAC","https://www.wildberries.ru/catalog/153506236/detail.aspx?targetUrl=GP"]
[4631140037630,150234702,"Карандаш для бровей пудровый с щеточкой","25/9/2023","Добрый день Подскажите пожалуйста,карандаш автоматический?","f1jny4oBseHJVfIhobIn","https://www.wildberries.ru/catalog/170032186/detail.aspx?targetUrl=GP"]
[4631140601794,170057513,"Краска осветляющая для окрашивания бровей Тауп Taupe","18/11/2023","Здравствуйте) Подскажите, пожалуйста, лучше окрасить брови и потом делать ламинирование бровей? Или же наоборот?","f2584osBEfQyvY3WtbQm","https://www.wildberries.ru/catalog/150382778/detail.aspx?targetUrl=GP"]
[4631140601794,170057513,"Краска осветляющая для окрашивания бровей Тауп Taupe","10/11/2023","Здравствуйте, а можно его использовать без окислителя ????","t7FWuIsBHA76Ev-cDUO9","https://www.wildberries.ru/catalog/150367356/detail.aspx?targetUrl=GP"]
[4631140601794,170057513,"Краска осветляющая для окрашивания бровей Тауп Taupe","7/11/2023","Здравствуйте. Нанесла осветлитель без оксида. Держала 15мин. Не работает! Взяла оксид 3% из набора вашего бренда Brow set for hom. Держала 10 мин. результата 0! В чем причина???","zLDtqosBHA76Ev-cEktY","https://www.wildberries.ru/catalog/183214415/detail.aspx?targetUrl=GP"]
[4631140601794,170057513,"Краска осветляющая для окрашивания бровей Тауп Taupe","7/11/2023","без оксида краска не будет работать?","vU1CqosBtm_3_oXd1Emv","https://www.wildberries.ru/catalog/169851850/detail.aspx?targetUrl=GP"]
[4631140601794,170057513,"Краска осветляющая для окрашивания бровей Тауп Taupe","26/10/2023","Добрый день!\nМожно использовать оксид другой фирмы?","OmAsbYsB00yQAR3I3w60","https://www.wildberries.ru/catalog/149881390/detail.aspx?targetUrl=GP"]
[4631140601794,170057513,"Краска осветляющая для окрашивания бровей Тауп Taupe","26/10/2023","Здравствуйте. Через сколько можно повторить осветление?","y6sYbIsBHA76Ev-cV4oA","https://www.wildberries.ru/catalog/170011402/detail.aspx?targetUrl=GP"]
[4631140601794,170057513,"Краска осветляющая для окрашивания бровей Тауп Taupe","25/10/2023","Здравствуйте, подскажите пожалуйста с любым оксидом работает? От бронсан подойдёт?","6mO2ZosBEfQyvY3WtPDD","https://www.wildberries.ru/catalog/170032186/detail.aspx?targetUrl=GP"]
[4631140601794,170057513,"Краска осветляющая для окрашивания бровей Тауп Taupe","22/10/2023","После осветление что нужно использовать? Стабилизатор цвета или ничего не нужно наносить","_qokWIsBHA76Ev-cnx5X","https://www.wildberries.ru/catalog/170039822/detail.aspx?targetUrl=GP"]
[4631140601794,170057513,"Краска осветляющая для окрашивания бровей Тауп Taupe","17/10/2023","Добрый день, после осветления бровей , нужно будет что то использовать после краски ?","7mG5PIsBEfQyvY3WZRTT","https://www.wildberries.ru/catalog/150224090/detail.aspx?targetUrl=GP"]
[4631140601794,170057513,"Краска осветляющая для окрашивания бровей Тауп Taupe","13/10/2023","Без оксида волоски не станут светлей?","hFwSKYsBYpYA1RfT78P-","https://www.wildberries.ru/catalog/169845972/detail.aspx?targetUrl=GP"]
[4631140601794,170057513,"Краска осветляющая для окрашивания бровей Тауп Taupe","12/10/2023","Здравствуйте,с оксидантом 1,8%работает?","I34PI4sBliAoiwUe1TxR","https://www.wildberries.ru/catalog/150224092/detail.aspx?targetUrl=GP"]
[4631140601794,170057513,"Краска осветляющая для окрашивания бровей Тауп Taupe","9/10/2023","Здравствуйте, подскажите пожалуйста, у меня брови чёрным цветом от природы , хочу осветлить ,какой лучше цвет брать краски? И номер океслителя ?","KaUpE4sBHA76Ev-co8YT","https://www.wildberries.ru/catalog/170038304/detail.aspx?targetUrl=GP"]
[4631140601794,170057513,"Краска осветляющая для окрашивания бровей Тауп Taupe","30/9/2023","здравствуйте, не скажите срок годности?","_1fw5ooB00yQAR3I5LuR","https://www.wildberries.ru/catalog/183214414/detail.aspx?targetUrl=GP"]
[4631140601794,170057513,"Краска осветляющая для окрашивания бровей Тауп Taupe","28/9/2023","Здравствуйте, можно смешивать с другим оксидом ?","FnrV3YoBliAoiwUefVCl","https://www.wildberries.ru/catalog/170012407/detail.aspx?targetUrl=GP"]
[4631140601794,170057513,"Краска осветляющая для окрашивания бровей Тауп Taupe","28/9/2023","Возвращала товар через обращение, после одобрения сдала по браку (21.09). На момент написания этого вопроса (28.09) деньги не вернули до сих пор. Платформа на вопросы по этому поводу не отвечает. Как получить свои деньги обратно?","CHob3YoBliAoiwUehUiS","https://www.wildberries.ru/catalog/150367969/detail.aspx?targetUrl=GP"]
[4631140601794,170057513,"Краска осветляющая для окрашивания бровей Тауп Taupe","28/9/2023","8 дней прошло с момента возврата брака, когда статус поменяют на «возврат» и отдадут деньги?!","xVgt24oBYpYA1RfTpEyh","https://www.wildberries.ru/catalog/170034468/detail.aspx?targetUrl=GP"]
[4631140601794,170057513,"Краска осветляющая для окрашивания бровей Тауп Taupe","26/9/2023","Здравствуйте! Скажите пожалуйста, с чем связано, что у этого артикула 170035133 указано до 50 применений и цена выше, если объем у данного осветлителя такой же, но цена ниже и написано до 25 применений?","EFkF0YoBseHJVfIhEAoa","https://www.wildberries.ru/catalog/152467043/detail.aspx?targetUrl=GP"]
[4631140601794,170057513,"Краска осветляющая для окрашивания бровей Тауп Taupe","26/9/2023","Пришел просроченный товар, отдала по браку, прошло больше 5 дней, а деньги так и не вернули. Вб на вопрос не отвечает, может, вы ответите? Товар обратно на склад не поступил до сих пор или что может быть?","3lrr0IoBEfQyvY3WJdQI","https://www.wildberries.ru/catalog/182309289/detail.aspx?targetUrl=GP"]
[4631140601794,170057513,"Краска осветляющая для окрашивания бровей Тауп Taupe","24/9/2023","подскажите пожалуйста, окислитель идёт в комплекте? не совсем понимаю как с ним работать","G1j4xooBseHJVfIhGmAp","https://www.wildberries.ru/catalog/170039822/detail.aspx?targetUrl=GP"]
[4631140601794,170057513,"Краска осветляющая для окрашивания бровей Тауп Taupe","23/9/2023","Подскажите пожалуйста, серо-коричневый цвет краки сможет осветлить черные брови ?","5z44wYoBtm_3_oXdPBEx","https://www.wildberries.ru/catalog/170011402/detail.aspx?targetUrl=GP"]
[4631140647174,153504118,"Спонж для макияжа тонального крема румян и консилера","10/11/2023","Здравствуйте,уже долгое время жду свой спонж,можете разобраться в чем проблема? Показывает что с распределительного центра товар уже несколько дней не двигается","_mVguosB00yQAR3IY9lY","https://www.wildberries.ru/catalog/149875696/detail.aspx?targetUrl=GP"]
[4631140647174,153504118,"Спонж для макияжа тонального крема румян и консилера","9/11/2023","Отказ от доставки где у Вас?","gGcBtIsBseHJVfIhGOyG","https://www.wildberries.ru/catalog/150367969/detail.aspx?targetUrl=GP"]
[4631140647174,153504118,"Спонж для макияжа тонального крема румян и консилера","9/11/2023","Отказ где?","1oj_s4sBliAoiwUeo2YB","https://www.wildberries.ru/catalog/150224091/detail.aspx?targetUrl=GP"]
[4631140647174,153504118,"Спонж для макияжа тонального крема румян и консилера","9/11/2023","Отказ от товара где писать?","m4j9s4sBliAoiwUePmYD","https://www.wildberries.ru/catalog/184006229/detail.aspx?targetUrl=GP"]
[4631140647174,153504118,"Спонж для макияжа тонального крема румян и консилера","9/11/2023","Отказ от товара где у Вас ?","GWX6s4sB00yQAR3IAVUR","https://www.wildberries.ru/catalog/152467037/detail.aspx?targetUrl=GP"]
[4631140647174,153504118,"Спонж для макияжа тонального крема румян и консилера","22/10/2023","Здравствуйте, почему нельзя сделать возврат? Спонж по размеру маленький пришел, думала побольше.","NmIGWIsBEfQyvY3WcOjf","https://www.wildberries.ru/catalog/149881387/detail.aspx?targetUrl=GP"]
[4631140901139,169851850,"Оксид для краски кремовый для бровей 3%","15/11/2023","для ресниц какой процент оксида подойт?","JWe_0YsB00yQAR3I3dfK","https://www.wildberries.ru/catalog/170033635/detail.aspx?targetUrl=GP"]
[4631140901139,169851850,"Оксид для краски кремовый для бровей 3%","5/11/2023","Какой месяц и год выпуска? Есть свежая партия?","0WjmoIsBEfQyvY3Wb0wb","https://www.wildberries.ru/catalog/150224092/detail.aspx?targetUrl=GP"]
[4631140901139,169851850,"Оксид для краски кремовый для бровей 3%","28/10/2023","Добрый день! Какой срок годности у оксида? И ещё по крышечкам. Ниже увидела нарекания клиентов по ним. Это действительно правда. На оксидах, гелях для бровей, крышки разваливаются на второй неделе использования. У других брендов, даже более дешевых, такой проблемы нет. Я бровист, знаю о чем говорю.","T4NCdYsBliAoiwUeO5pf","https://www.wildberries.ru/catalog/170033635/detail.aspx?targetUrl=GP"]
[4631140901139,169851850,"Оксид для краски кремовый для бровей 3%","26/10/2023","Какой оксид для покраски ресниц, подскажите","2WTlbIsBEfQyvY3W0WoL","https://www.wildberries.ru/catalog/154519014/detail.aspx?targetUrl=GP"]
[4631140901139,169851850,"Оксид для краски кремовый для бровей 3%","21/10/2023","Добрый день.У меня густые черные брови,Я хотела бы холодно-светло коричневый краской покрасить,чтоб добиться такого оттенка.Мне обязательно надо сперва обесцветить их и пото нанести краску ?или же смогу и так добиться светло-коричневого оттенка ??","Nl5wUYsB00yQAR3I5QJm","https://www.wildberries.ru/catalog/164536201/detail.aspx?targetUrl=GP"]
[4631140901139,169851850,"Оксид для краски кремовый для бровей 3%","13/10/2023","Здравствуйте, пользуюсь вашей линейкой достаточно давно, но все время расстраивают крышки, очень быстро ломаются. Вы как-то можете выслать кружечку или дополнительную класть при покупке?","mVvOJ4sB00yQAR3ISnK4","https://www.wildberries.ru/catalog/153319561/detail.aspx?targetUrl=GP"]
[4631140901139,169851850,"Оксид для краски кремовый для бровей 3%","30/9/2023","Почему не возможно вернуть товар?","IXp25ooBliAoiwUeor6d","https://www.wildberries.ru/catalog/150359774/detail.aspx?targetUrl=GP"]
[4631140901139,169851850,"Оксид для краски кремовый для бровей 3%","25/9/2023","Есть объем меньше? В наборах нет подходящего цвета краски , но там оксид в мини формате для домашнего использования. Он есть отдельно в продаже?","YKHAzIoBHA76Ev-csL5d","https://www.wildberries.ru/catalog/150382778/detail.aspx?targetUrl=GP"]
[4631140951820,169862257,"Пинцет для бровей профессиональный скошенный","16/11/2023","Здравствуйте! Для этого пинцета предусмотрен какой-то футляр  или коробочка для хранения? В какой упаковке его доставляют?","h21Z2YsBEfQyvY3W9Edk","https://www.wildberries.ru/catalog/188070253/detail.aspx?targetUrl=GP"]
[4631141139142,150224090,"Матовый карандаш для губ ягодный COMO","14/11/2023","здравствуйте, когда появиться карандаш оттенок come? скажите пожалуйста","74o4z4sBliAoiwUeFLoQ","https://www.wildberries.ru/catalog/149877368/detail.aspx?targetUrl=GP"]
[4631141139142,150224090,"Матовый карандаш для губ ягодный COMO","3/11/2023","Здравствуйте! Оттенок карандаша COMO снят с производства, тогда какой оттенок подойдет к блеску для губ BLACKBERRY арт 149881390 ?","mGLrlIsB00yQAR3I5vYd","https://www.wildberries.ru/catalog/156370631/detail.aspx?targetUrl=GP"]
[4631141139142,150224090,"Матовый карандаш для губ ягодный COMO","24/10/2023","Здравствуйте! Когда появится цвет Como?","e18KY4sB00yQAR3IUlX3","https://www.wildberries.ru/catalog/149875693/detail.aspx?targetUrl=GP"]
[4631141139142,150224090,"Матовый карандаш для губ ягодный COMO","11/10/2023","Здравствуйте! Когда ожидаются поставки карандаша в оттенке como?","el_THIsBEfQyvY3WZDKa","https://www.wildberries.ru/catalog/150382777/detail.aspx?targetUrl=GP"]
[4631141139142,150224090,"Матовый карандаш для губ ягодный COMO","29/9/2023","Пожалуйста, верните в производство Como🙏 роскошный оттенок","7lpx4ooBseHJVfIhmxv1","https://www.wildberries.ru/catalog/170012407/detail.aspx?targetUrl=GP"]
[4631141139142,150224090,"Матовый карандаш для губ ягодный COMO","25/9/2023","Добрый день!Когда будет цвет COMO в наличии?","MVh2zIoBseHJVfIh8MAZ","https://www.wildberries.ru/catalog/150227241/detail.aspx?targetUrl=GP"]
[4631141139159,150224089,"Матовый карандаш для губ персиковый BELLAGIO","2/10/2023","Какой номер карандаша подойдет для блеска под номером 03 этой же фирмы?","PFkc8ooBYpYA1RfTJJGG","https://www.wildberries.ru/catalog/170035745/detail.aspx?targetUrl=GP"]
[4631141139173,150224094,"Матовый карандаш для губ розовый MONZA","13/10/2023","Здравствуйте! Подскажите пожалуста, карандаш в оттенке монза правда имеет такой оттенок как на модели, кажеться красно- коричневый тёплый или же на самом деле он ягодный?","wV_YKYsBEfQyvY3WXP_C","https://www.wildberries.ru/catalog/150234701/detail.aspx?targetUrl=GP"]
[4631141139173,150224094,"Матовый карандаш для губ розовый MONZA","11/10/2023","Подскажите, какой оттенок ближе к цвету «пыльная Роза»?","pFwgHosBYpYA1RfTxRkv","https://www.wildberries.ru/catalog/152434737/detail.aspx?targetUrl=GP"]
[4631141935607,170012781,"Воск для коррекции бровей","5/11/2023","Здравствуйте! Можно использовать тальк вместо  масла перед депиляцией?","z2jmoYsBEfQyvY3WQVkp","https://www.wildberries.ru/catalog/170054370/detail.aspx?targetUrl=GP"]
[4631141935607,170012781,"Воск для коррекции бровей","30/10/2023","У меня минивоскоплав другой фирмы на 120 мл., могу ли я в нём использовать воск \"шик\"? Если да, то каким образом?","qK3VgIsBHA76Ev-cywZ2","https://www.wildberries.ru/catalog/169856314/detail.aspx?targetUrl=GP"]
[4631141935607,170012781,"Воск для коррекции бровей","28/10/2023","Объем 125г. Вес товара с упаковкой 120г. Вес товара без упаковки 2г. Это как понять? ( данные в карточке)","4WUHd4sBEfQyvY3WNx34","https://www.wildberries.ru/catalog/152239045/detail.aspx?targetUrl=GP"]
[4631141935607,170012781,"Воск для коррекции бровей","28/10/2023","Здравствуйте. Скажите, можно ли этот воск использовать в минивоскоплаве?","d2MAd4sBseHJVfIhek4c","https://www.wildberries.ru/catalog/170033635/detail.aspx?targetUrl=GP"]
[4631141935607,170012781,"Воск для коррекции бровей","25/10/2023","Здравствуйте, а можно расколоть воск, если воскоплав силиконовый?","4l_AZYsB00yQAR3I3nNc","https://www.wildberries.ru/catalog/152273218/detail.aspx?targetUrl=GP"]
[4631141935607,170012781,"Воск для коррекции бровей","9/10/2023","Здравствуйте, нужно ли перед применением обрабатывать кожу маслом или тальком для депиляции?","m0LSE4sBtm_3_oXdlO01","https://www.wildberries.ru/catalog/149875694/detail.aspx?targetUrl=GP"]
[4631141935607,170012781,"Воск для коррекции бровей","8/10/2023","Скажите пожалуйста, в карточке продукта показано как вся порция воска в упаковке плавится для использования, при этом можно будет использовать воск повторно ? Или лучше заранее расколоть и использовать по кусочно?","L6W0D4sBHA76Ev-cSZlr","https://www.wildberries.ru/catalog/150367969/detail.aspx?targetUrl=GP"]
[4631141935607,170012781,"Воск для коррекции бровей","2/10/2023","Скажите пожалуйста можно ли расплавлять воск микроволновке или на газу? У меня нет воскоплава(","M1jD8IoB00yQAR3IF0T-","https://www.wildberries.ru/catalog/170624107/detail.aspx?targetUrl=GP"]
[4631141935607,170012781,"Воск для коррекции бровей","30/9/2023","Здравствуйте. Подскажите, пожалуйста, как топить этот воск? Модно ли его ставить непосредственно в фольгированной стаканчике в воскоплав? На какую температуру выставлять таймер и сколько по времени ждать готовности воска?","Q1qM5YoBseHJVfIhATpH","https://www.wildberries.ru/catalog/170033635/detail.aspx?targetUrl=GP"]
[4631141935607,170012781,"Воск для коррекции бровей","26/9/2023","Добрый день! Подскажите, пожалуйста, подходит ли этот воск для удаления волос в носогубной зоне??","vKIe0ooBHA76Ev-cQRkm","https://www.wildberries.ru/catalog/149877367/detail.aspx?targetUrl=GP"]
[4631142040133,170018567,"Лосьон для бровей до окрашивания отшелушивающий","21/10/2023","Здравствуйте, нужно ли смывать №2 лосьон перед окрашиванием бровей или №1 лосьона достаточно?","O16JUosB00yQAR3Inx78","https://www.wildberries.ru/catalog/150367356/detail.aspx?targetUrl=GP"]
[4631142040140,170019079,"Масло перед оформлением коррекцией бровей воском для бровей","25/10/2023","Здравствуйте подскажите 3 состав перед депиляцией нанести на кожу а потом нужно ватным диском убирать масло?","WF-aZ4sB00yQAR3IwqNn","https://www.wildberries.ru/catalog/170123398/detail.aspx?targetUrl=GP"]
[4631142040140,170019079,"Масло перед оформлением коррекцией бровей воском для бровей","11/10/2023","Здравствуйте. Получила масло перед воском для бровей. Оно без распылителя. Просто крышка. Так должно быть?","81pRH4sB00yQAR3IV_sD","https://www.wildberries.ru/catalog/149785562/detail.aspx?targetUrl=GP"]
[4631142040140,170019079,"Масло перед оформлением коррекцией бровей воском для бровей","10/10/2023","Здравствуйте подскажите дату изготовления лосьона номер 3","tV1qG4sBseHJVfIhfGC5","https://www.wildberries.ru/catalog/154541673/detail.aspx?targetUrl=GP"]
[4631142040140,170019079,"Масло перед оформлением коррекцией бровей воском для бровей","9/10/2023","Здравствуйте. Масло для депиляции мы наносим на кожу, чтобы ее сберечь- тут понятно, ноо не будет ли жирная пленка не волосе препятствовать сцеплению с воском? Как убирается пушковый и более толстый волос? Беспроблемно? Или нужно дополнительно использовать тальк?","k1vJFIsBYpYA1RfTC400","https://www.wildberries.ru/catalog/170038304/detail.aspx?targetUrl=GP"]
[4631142040140,170019079,"Масло перед оформлением коррекцией бровей воском для бровей","5/10/2023","Здравствуйте! Подойдет при использовании мягкого воска GIGI?","flnI_ooB00yQAR3I4QiG","https://www.wildberries.ru/catalog/149875695/detail.aspx?targetUrl=GP"]
[4631142040157,169847082,"Успокаивающий крем после коррекции бровей ","23/10/2023","Здравствуйте. В креме #4 после эпиляции - есть SPF защита?","F4ENXYsBliAoiwUe7-7j","https://www.wildberries.ru/catalog/149753553/detail.aspx?targetUrl=GP"]
[4631142790830,170123398,"Воскоплав для депиляции","11/11/2023","Почему тут дороже чем на озоне ?","xGqHwIsBEfQyvY3Wc7z0","https://www.wildberries.ru/catalog/149881387/detail.aspx?targetUrl=GP"]
[4631142790830,170123398,"Воскоплав для депиляции","27/10/2023","Здравствуйте, хочу приобрести воскоплав в рамках соц контракта, скажите цена остаётся прежней, если мне нужны будут чеки о покупке?","4GJfcYsBseHJVfIhv-ik","https://www.wildberries.ru/catalog/170038304/detail.aspx?targetUrl=GP"]
[4631143190530,169879422,"Система для оформления бровей, шпатели и воск","20/11/2023","Добрый день,напишите пожалуйста алгоритм действий поэтапно по этой системе🙏.Не совсем понимаю ,когда использовать 1 и 2 этап.Если подряд ,то получается второй этап тут же сотрет первый…Все-таки когда можно использовать 1 и 2?","o1S564sBtm_3_oXduKtj","https://www.wildberries.ru/catalog/152467036/detail.aspx?targetUrl=GP"]
[4631143190530,169879422,"Система для оформления бровей, шпатели и воск","30/10/2023","Здравствуйте! Подскажите, какая упаковка данного товара?","F63ogYsBHA76Ev-cPSUh","https://www.wildberries.ru/catalog/152239045/detail.aspx?targetUrl=GP"]
[4631143190547,169875687,"Ножницы для бровей из нержавеющей стали","11/11/2023","Здравствуйте, а для чего вы продаете ножницы для стрижки бровей, если даже в обучении от Натальи Шик говориться о том, что брови стричь нельзя? Да в любом адекватном обучении скажут - что брови нельзя стричь. Так для чего же?","N2rHvIsBEfQyvY3W21vE","https://www.wildberries.ru/catalog/152238229/detail.aspx?targetUrl=GP"]
[4631143916086,170018021,"Лосьон для бровей перед окрашиванием очищающий охлаждающий ","31/10/2023","Здравствуйте, а перед ламинированием для очищения подходит средство?","0YTdhYsBliAoiwUeaN1J","https://www.wildberries.ru/catalog/170038304/detail.aspx?targetUrl=GP"]
[4631143916086,170018021,"Лосьон для бровей перед окрашиванием очищающий охлаждающий ","31/10/2023","Лосьон 1 применяется непосредственно перед окрашиванием краской как обезжириватель?","y4RQhIsBliAoiwUecLPm","https://www.wildberries.ru/catalog/149881388/detail.aspx?targetUrl=GP"]
[4631143916086,170018021,"Лосьон для бровей перед окрашиванием очищающий охлаждающий ","21/10/2023","Здравствуйте! Купила лосьон шик 1. Срок если я правильно понимаю написан внизу банки. Там 2011 год указан??? Это как?","K17iUYsB00yQAR3ISA38","https://www.wildberries.ru/catalog/169875687/detail.aspx?targetUrl=GP"]
[4631143916086,170018021,"Лосьон для бровей перед окрашиванием очищающий охлаждающий ","21/10/2023","Здравствуйте ! Где посмотреть срок годности лосьона? Внизу банки написано 2011","cIHYUYsBliAoiwUe4Bpg","https://www.wildberries.ru/catalog/158056797/detail.aspx?targetUrl=GP"]
[4631143916086,170018021,"Лосьон для бровей перед окрашиванием очищающий охлаждающий ","3/10/2023","Добрый вечер! Вы мне на вопрос полностью не ответили. В описании к красителю, как рекомендация идёт снятие краски, после окрашивания, составом номер 1. Не снизит ли это интенсивность цвета?","6FxW9ooBEfQyvY3W6f3i","https://www.wildberries.ru/catalog/153504118/detail.aspx?targetUrl=GP"]
[4631143916086,170018021,"Лосьон для бровей перед окрашиванием очищающий охлаждающий ","2/10/2023","Добрый вечер! В рекомендации к красителю у вас в описании идёт 1 состав для удаления краски, после окрашивания? Не снизит ли это интенсивность окрашивания? Необходимо ли затем состав 1 смывать водой?","G1lV8ooBYpYA1RfTxJNZ","https://www.wildberries.ru/catalog/169856314/detail.aspx?targetUrl=GP"]
[4631143916086,170018021,"Лосьон для бровей перед окрашиванием очищающий охлаждающий ","1/10/2023","Здравствуйте, когда появится в наличии 0 состав антисептик ?)","C1iA7IoB00yQAR3Iawzi","https://www.wildberries.ru/catalog/149785559/detail.aspx?targetUrl=GP"]
[4631143916086,170018021,"Лосьон для бровей перед окрашиванием очищающий охлаждающий ","29/9/2023","170018021 почему то вылез повторный заказ, можно отменить его? Мне пока нужен только один бутылек, почему он два раза оформился не знаю","SEDg4YoBtm_3_oXduyKc","https://www.wildberries.ru/catalog/150378847/detail.aspx?targetUrl=GP"]
[4631143916093,170011402,"Очищающий концентрат для обезжиривания бровей","15/11/2023","Какой срок годности у готового раствора?","P2pV0YsBseHJVfIhTmCG","https://www.wildberries.ru/catalog/149875692/detail.aspx?targetUrl=GP"]
[4631143916093,170011402,"Очищающий концентрат для обезжиривания бровей","14/11/2023","Добрый день, сколько хранится готовый раствор?","sE84zIsBtm_3_oXdN-vJ","https://www.wildberries.ru/catalog/152273218/detail.aspx?targetUrl=GP"]
[4631143916093,170011402,"Очищающий концентрат для обезжиривания бровей","20/10/2023","Можно ли использовать как ремувер после окрашивания, чтобы стереть краску с кожи?","b4BwTosBliAoiwUeRex_","https://www.wildberries.ru/catalog/170034468/detail.aspx?targetUrl=GP"]
[4631143916093,170011402,"Очищающий концентрат для обезжиривания бровей","19/10/2023","Здравствуйте! Действует ли средство как ремувер краски с кожи (после процедуры окрашивания и полного снятия красителя)?","uV_WR4sBseHJVfIhU_pm","https://www.wildberries.ru/catalog/170057513/detail.aspx?targetUrl=GP"]
[4631143916093,170011402,"Очищающий концентрат для обезжиривания бровей","26/9/2023","Можно состав, пожалуйста","iFYL0ooB00yQAR3INYpl","https://www.wildberries.ru/catalog/154519015/detail.aspx?targetUrl=GP"]
[4631143916093,170011402,"Очищающий концентрат для обезжиривания бровей","26/9/2023","Здравствуйте! Для ресниц подходит?","t3kNz4oBliAoiwUeyVtQ","https://www.wildberries.ru/catalog/156370631/detail.aspx?targetUrl=GP"]
[4631144646616,150253408,"Карандаш каял для глаз черный  для слизистой и стрелок 01","15/10/2023","Здравствуйте. А как он точится?","CacmMosBHA76Ev-ci5ds","https://www.wildberries.ru/catalog/170035133/detail.aspx?targetUrl=GP"]
[4631144646623,150253388,"Карандаш каял для глаз для слизистой и стрелок 02","11/10/2023","Здравствуйте,оттенок \"Твинкл\"с перламутром идёт?","Kl89HosBEfQyvY3WMkv9","https://www.wildberries.ru/catalog/182309289/detail.aspx?targetUrl=GP"]
[4631144646654,180860978,"Карандаш каял для глаз для слизистой и стрелок 05","15/10/2023","Здравствуйте, карандаши точатся?","uaeSNIsBHA76Ev-c0c4a","https://www.wildberries.ru/catalog/173057611/detail.aspx?targetUrl=GP"]
[4631144646654,180860978,"Карандаш каял для глаз для слизистой и стрелок 05","12/10/2023","Здравствуйте. Оттенок 05 матовый или перламутровый?","s1zJJIsBYpYA1RfTRYfy","https://www.wildberries.ru/catalog/149785562/detail.aspx?targetUrl=GP"]
[4631144646661,150253394,"Карандаш каял для глаз для слизистой и стрелок 06","30/9/2023","Здравствуйте,оттенок морокко будет в наличии?","ClfS5ooB00yQAR3IrrrQ","https://www.wildberries.ru/catalog/170034468/detail.aspx?targetUrl=GP"]
[4631144732500,150224091,"Матовый карандаш для губ розовый FLORENCE","14/11/2023","Какой артикул у цвета Флоренс?","r2tRy4sBEfQyvY3WlJax","https://www.wildberries.ru/catalog/150359775/detail.aspx?targetUrl=GP"]
[4631144732500,150224091,"Матовый карандаш для губ розовый FLORENCE","7/11/2023","Добрый вечер! Карандаш Гарда есть в наличии? Не могу найти в карточке товара.","Dk25qYsBtm_3_oXd1zuS","https://www.wildberries.ru/catalog/152466867/detail.aspx?targetUrl=GP"]
[4631144732500,150224091,"Матовый карандаш для губ розовый FLORENCE","24/10/2023","Здравствуйте!я не получила свой заказ,на пункт выдачи мне сказали продавец не отправил деньги тоже не вернули как это ?","ZmG7X4sBseHJVfIhbpuT","https://www.wildberries.ru/catalog/153504118/detail.aspx?targetUrl=GP"]
[4631144732500,150224091,"Матовый карандаш для губ розовый FLORENCE","9/10/2023","Здравствуйте! Есть ли оттенок карандаша с лилово-серым подтоном? И какой самый холодный тон у Shik?","KF6GFYsBEfQyvY3Wrc3H","https://www.wildberries.ru/catalog/153504118/detail.aspx?targetUrl=GP"]
[4631144732500,150224091,"Матовый карандаш для губ розовый FLORENCE","3/10/2023","Просто бомбой мне понравилось","5FsW9ooBseHJVfIhxisH","https://www.wildberries.ru/catalog/153504118/detail.aspx?targetUrl=GP"]
[4631144732500,150224091,"Матовый карандаш для губ розовый FLORENCE","28/9/2023","Здравствуйте, карандаш губы не сушит?","nz-B24oBtm_3_oXdPsUD","https://www.wildberries.ru/catalog/152281086/detail.aspx?targetUrl=GP"]
[4631144732500,150224091,"Матовый карандаш для губ розовый FLORENCE","24/9/2023","Скажите, пожалуйста, карандаш Como, когда будет в наличии?","UVXCyIoB00yQAR3IcPLc","https://www.wildberries.ru/catalog/153504118/detail.aspx?targetUrl=GP"]
[4631144732500,150224091,"Матовый карандаш для губ розовый FLORENCE","24/9/2023","Здравствуйте! Подскажите пожалуйста, у каких арт. карандашей для губ холодный подтон? А то, мне совершенно не идёт теплота, боюсь ошибиться.","_Xj4x4oBliAoiwUed-mu","https://www.wildberries.ru/catalog/152285903/detail.aspx?targetUrl=GP"]
[4631144732517,150224092,"Матовый карандаш для губ коричневый GARDA","14/11/2023","Здравствуйте. Будет ли поступление цвета Garda и если будет то когда? Заранее благодарна.","QVD-zosBtm_3_oXd3FFC","https://www.wildberries.ru/catalog/154519015/detail.aspx?targetUrl=GP"]
[4631144732517,150224092,"Матовый карандаш для губ коричневый GARDA","13/11/2023","03.11.2023 оформляла возрат, было одобрено, деньги не вернули, в чем дело?","fk9SyosBtm_3_oXdCNtX","https://www.wildberries.ru/catalog/152466867/detail.aspx?targetUrl=GP"]
[4631144732517,150224092,"Матовый карандаш для губ коричневый GARDA","7/11/2023","здравствуйте, когда появится оттенок garda?","QWTBq4sB00yQAR3Ik8BD","https://www.wildberries.ru/catalog/150378854/detail.aspx?targetUrl=GP"]
[4631144732517,150224092,"Матовый карандаш для губ коричневый GARDA","6/11/2023","Долго жду карандаш,уже наверное недели две почти,очень давно висит, что собран на складе,но что-то движения больше нет,можно как-то узнать его судьбу,как скоро будет он?","oGT1posB00yQAR3IlVz8","https://www.wildberries.ru/catalog/150378847/detail.aspx?targetUrl=GP"]
[4631144732517,150224092,"Матовый карандаш для губ коричневый GARDA","2/11/2023","Здравствуйте. Когда появится карандаш garden?","GUvUjosBtm_3_oXdyCfk","https://www.wildberries.ru/catalog/150359774/detail.aspx?targetUrl=GP"]
[4631144732517,150224092,"Матовый карандаш для губ коричневый GARDA","26/10/2023","Здравствуйте! Когда появится карандаш Garda??😊","rGINa4sBseHJVfIheG2h","https://www.wildberries.ru/catalog/169865364/detail.aspx?targetUrl=GP"]
[4631144732517,150224092,"Матовый карандаш для губ коричневый GARDA","25/10/2023","Здравствуйте, подскажите, оттенки Garda, Verona, Florence , каких цветов? Какой из них более нюдовый?","LUg3ZosBtm_3_oXdvC6S","https://www.wildberries.ru/catalog/149875697/detail.aspx?targetUrl=GP"]
[4631144732517,150224092,"Матовый карандаш для губ коричневый GARDA","22/10/2023","Скажите пожалуйста коричневый цвет карандаша не уходит в рыжий цвет?","SIGkWIsBliAoiwUer6Of","https://www.wildberries.ru/catalog/149785559/detail.aspx?targetUrl=GP"]
[4631144732517,150224092,"Матовый карандаш для губ коричневый GARDA","15/10/2023","Здравствуйте скажите пожалуйста до какого года карандаш годен","Tl2XMYsBYpYA1RfTrC94","https://www.wildberries.ru/catalog/170041072/detail.aspx?targetUrl=GP"]
[4631144732517,150224092,"Матовый карандаш для губ коричневый GARDA","25/9/2023","Почему сняли с производства como, если он пользуется спросом?","QD7UzIoBtm_3_oXdD9lw","https://www.wildberries.ru/catalog/170034468/detail.aspx?targetUrl=GP"]
[4631144732517,150224092,"Матовый карандаш для губ коричневый GARDA","24/9/2023","Здравствуйте? Куда пропал карандаш Urania?","TqFuyIoBHA76Ev-clHlD","https://www.wildberries.ru/catalog/154502205/detail.aspx?targetUrl=GP"]
[4631144732517,150224092,"Матовый карандаш для губ коричневый GARDA","22/9/2023","Добрый день. Мне пришла пустая коробочка., без карандаша для губ. Упаковка сбоку была аккуратно надрезана.","56BLu4oBHA76Ev-cy5xl","https://www.wildberries.ru/catalog/170035133/detail.aspx?targetUrl=GP"]
[4631145061982,154541667,"Кисть для тона, румян и скульптора любых текстур №05","6/11/2023","Какая кисть лучше всего подойдёт для тона, скульптора, румян,все для кремовой коррекции 2,3 или 5 ???","wWR9pYsB00yQAR3I6D--","https://www.wildberries.ru/catalog/170035133/detail.aspx?targetUrl=GP"]
[4631145061982,154541667,"Кисть для тона, румян и скульптора любых текстур №05","23/9/2023","Добрый вечер. Когда появится кисть #5? И появится ли вообще?","oVnNwooBEfQyvY3W0PJ3","https://www.wildberries.ru/catalog/170038304/detail.aspx?targetUrl=GP"]
[4631146855351,152239045,"Крем для лица корейский увлажняющий гиалуроновый","12/11/2023","Здравствуйте. Подскажите, пожалуйста,можно ли наносить на ночь ?","V0-IxYsBtm_3_oXdZ3aA","https://www.wildberries.ru/catalog/150382779/detail.aspx?targetUrl=GP"]
[4631146855351,152239045,"Крем для лица корейский увлажняющий гиалуроновый","11/11/2023","Добрый вечер, возникло сомнение насчет подлинности данного крема ваш пахнет травянисто, но сегодня зашла в золотое яблоко и попробовала там данный крем запах отсутствует ноль отдушки","9WqtvosBEfQyvY3WDo_o","https://www.wildberries.ru/catalog/150227243/detail.aspx?targetUrl=GP"]
[4631146855351,152239045,"Крем для лица корейский увлажняющий гиалуроновый","6/10/2023","Совсем что-ли кто покупает эту херню? Че по цене?","wlyaBYsBseHJVfIhhA6h","https://www.wildberries.ru/catalog/152241850/detail.aspx?targetUrl=GP"]
[4631146855351,152239045,"Крем для лица корейский увлажняющий гиалуроновый","27/9/2023","Добрый день, у вас был крем в баночке в сотрудничестве с Ксенией Вебер. Не смогла найти его карточку ни на сайте, ни здесь;( он больше не выпускается?","pXmV14oBliAoiwUeXfdK","https://www.wildberries.ru/catalog/150359775/detail.aspx?targetUrl=GP"]
[4631146855382,152273218,"Бальзам для губ увлажняющий питающий восстанавливающий","20/11/2023","Добрый день! Штрих код на упаковке не найден при  проверке на оригинальность . Вы продаёте подделку значит!!!","WnB07YsBEfQyvY3WJLNG","https://www.wildberries.ru/catalog/150224092/detail.aspx?targetUrl=GP"]
[4631146855382,152273218,"Бальзам для губ увлажняющий питающий восстанавливающий","12/11/2023","Подскажите пожалуйста, почему изменилась отдушка? Была такая ванильная и отличающая бальзам от всех других, а стала обычная фруктовая. Вы отвечали, что от партии отдушка отличается, разве такое может быть? У одного и того же продукта ведь всегда один аромат, я так расстроена что отдушка изменилась","-2s-xIsBEfQyvY3Wggid","https://www.wildberries.ru/catalog/150359774/detail.aspx?targetUrl=GP"]
[4631146855382,152273218,"Бальзам для губ увлажняющий питающий восстанавливающий","10/11/2023","здравствуйте! подскажите, когда появится в наличии?","u2qFuYsBEfQyvY3WJCei","https://www.wildberries.ru/catalog/150382776/detail.aspx?targetUrl=GP"]
[4631146855382,152273218,"Бальзам для губ увлажняющий питающий восстанавливающий","5/11/2023","извините , а можно ли узнать , куда обратится чтоб товар упаковали в фирменный пакет или коробку ?","RmMxoYsB00yQAR3IVu3M","https://www.wildberries.ru/catalog/170057513/detail.aspx?targetUrl=GP"]
[4631146855382,152273218,"Бальзам для губ увлажняющий питающий восстанавливающий","7/10/2023","Здравствуйте!Извините,не знаю куда писать..В общем, я очень хочу что бы ваш бренд создал косметички, очень жду этого!!!Но не знаю сколько ждать и есть ли это вообще у вас в планах?Но в любом случае ооочень прошу передайте мою просьбу к руководству .Очень люблю ваш бренд и с не терпением буду ждать ответа!🙏🙏🤍","JkLFB4sBtm_3_oXdGzdN","https://www.wildberries.ru/catalog/170032186/detail.aspx?targetUrl=GP"]
[4631146855382,152273218,"Бальзам для губ увлажняющий питающий восстанавливающий","24/9/2023","Здравствуйте! Почему так долго отправляете заказ?","HVh3xooBseHJVfIhZVSe","https://www.wildberries.ru/catalog/170054370/detail.aspx?targetUrl=GP"]
[4631147998248,152285903,"Крем для рук увлажняющий восстанавливающий для сухой кожи","9/11/2023","Здравствуйте. Отдушка с каким запахом?","A2n5s4sBEfQyvY3Wb7zJ","https://www.wildberries.ru/catalog/149875693/detail.aspx?targetUrl=GP"]
[4631147998248,152285903,"Крем для рук увлажняющий восстанавливающий для сухой кожи","28/9/2023","Здравствуйте,антисептика спрея»0»больше не будет ?","EXqi3IoBliAoiwUecj-g","https://www.wildberries.ru/catalog/170057513/detail.aspx?targetUrl=GP"]
[4631148599604,152466867,"Пилинг-диски пэды для лица очищающие корейские кислотные","9/11/2023","Здравствуйте.На дне банке указана дата изготовления или срок годности?","I2UEtIsB00yQAR3IBlZn","https://www.wildberries.ru/catalog/182309289/detail.aspx?targetUrl=GP"]
[4631148599604,152466867,"Пилинг-диски пэды для лица очищающие корейские кислотные","9/11/2023","Почему мой комментарий не был опубликован?  Или вы показываете только положительные отзывы???","bmlQs4sBEfQyvY3W8Kpm","https://www.wildberries.ru/catalog/150224370/detail.aspx?targetUrl=GP"]
[4631148599604,152466867,"Пилинг-диски пэды для лица очищающие корейские кислотные","6/11/2023","здравствуйте,  подскажите сколько штук","G2jvpIsBEfQyvY3WqZRG","https://www.wildberries.ru/catalog/150359775/detail.aspx?targetUrl=GP"]
[4631148599604,152466867,"Пилинг-диски пэды для лица очищающие корейские кислотные","27/10/2023","Какой ph средства?","aEgMcIsBtm_3_oXdO-GP","https://www.wildberries.ru/catalog/150224091/detail.aspx?targetUrl=GP"]
[4631148599604,152466867,"Пилинг-диски пэды для лица очищающие корейские кислотные","16/10/2023","Здравствуйте, можно ли применять диски при куперозе?","Dl5LN4sBseHJVfIhWOzx","https://www.wildberries.ru/catalog/149881386/detail.aspx?targetUrl=GP"]
[4631148599604,152466867,"Пилинг-диски пэды для лица очищающие корейские кислотные","13/10/2023","Здравствуйте. Была отмена магазином, но деньги не вернули","e0R3KIsBtm_3_oXdMy6N","https://www.wildberries.ru/catalog/152281086/detail.aspx?targetUrl=GP"]
[4631148599604,152466867,"Пилинг-диски пэды для лица очищающие корейские кислотные","6/10/2023","Здравствуйте. Скажите, пожалуйста, при беременности можно их использовать?","gKXpBYsBHA76Ev-cwAsW","https://www.wildberries.ru/catalog/149881388/detail.aspx?targetUrl=GP"]
[4631148599604,152466867,"Пилинг-диски пэды для лица очищающие корейские кислотные","3/10/2023","Здравствуйте, какое, примерное, количество дисков находится в данном продукте?","rlnc94oBYpYA1RfTouHq","https://www.wildberries.ru/catalog/150224092/detail.aspx?targetUrl=GP"]
[4631148599604,152466867,"Пилинг-диски пэды для лица очищающие корейские кислотные","3/10/2023","Здравствуйте! Нужно ли смывать после нанесения?","Lnsk94oBliAoiwUeILQd","https://www.wildberries.ru/catalog/150378852/detail.aspx?targetUrl=GP"]
[4631148599604,152466867,"Пилинг-диски пэды для лица очищающие корейские кислотные","21/9/2023","Добрый день! А какой объем баночки, подскажите, пожалуйста)нужно в самолет в ручную кладь не более 100 мл объем","B1SSuIoB00yQAR3IV_LS","https://www.wildberries.ru/catalog/170624107/detail.aspx?targetUrl=GP"]
[4631149716024,170023318,"Краска для бровей и ресниц Теплый коричневый Soft brown","2/11/2023","Добрый день, какой срок годности у партии ? У коричневого, светло-коричневого, графита?","AK70j4sBHA76Ev-c_jSf","https://www.wildberries.ru/catalog/149881386/detail.aspx?targetUrl=GP"]
[4631149716024,170023318,"Краска для бровей и ресниц Теплый коричневый Soft brown","24/10/2023","Скажите, пожалуйста, седые брови коричневый цвет закрасит? Спасибо!","EkcwYYsBtm_3_oXdEdJn","https://www.wildberries.ru/catalog/152238229/detail.aspx?targetUrl=GP"]
[4631149716024,170023318,"Краска для бровей и ресниц Теплый коричневый Soft brown","28/9/2023","Здравствуйте.Подскажите срок годности после вскрытия","ZFcC2ooB00yQAR3IigQT","https://www.wildberries.ru/catalog/154541667/detail.aspx?targetUrl=GP"]
[4631149768825,170033635,"Краска осветляющая для окрашивания бровей Медовый блонд ","15/11/2023","Купила оксид 3% и светло-коричневый тон,после окрашивания(1:1),получилось темновато для меня. Подскажите, если добавить медовый блонд, можно ли получить посветлее оттенок? Если да, то в каких пропорциях? спасибо.","Jmjv1IsB00yQAR3Iwlvu","https://www.wildberries.ru/catalog/150378847/detail.aspx?targetUrl=GP"]
[4631149768825,170033635,"Краска осветляющая для окрашивания бровей Медовый блонд ","13/11/2023","здравствуйте. можно им ресницы осветлить? (для цветного окрашивания нужно)","SWuPyosBEfQyvY3WEpIG","https://www.wildberries.ru/catalog/152466867/detail.aspx?targetUrl=GP"]
[4631149768825,170033635,"Краска осветляющая для окрашивания бровей Медовый блонд ","13/11/2023","Для меня светло-коричневый тон оказался тёмным, купила медовый блонд. Оксид купила 3%.Подскажите в каких пропорциях их смешать, чтобы получился цвет на тон светлее светло-коричневого. Спасибо.","ZWlNyosBseHJVfIhv7-N","https://www.wildberries.ru/catalog/154519016/detail.aspx?targetUrl=GP"]
[4631149768825,170033635,"Краска осветляющая для окрашивания бровей Медовый блонд ","12/11/2023","Здравствуйте, подскажите, пожалуйста, будет ли работать осветлитель медовый блонд с оксидом 1,8% или результат будет слабоватым?","A2Z9xYsB00yQAR3Io8WZ","https://www.wildberries.ru/catalog/170624107/detail.aspx?targetUrl=GP"]
[4631149768825,170033635,"Краска осветляющая для окрашивания бровей Медовый блонд ","12/11/2023","Здравствуйте! Как часто можно осветлять брови осветлителем \"медовый блонд\", чтобы не навредить бровкам?","QomnwosBliAoiwUeYIWL","https://www.wildberries.ru/catalog/170039822/detail.aspx?targetUrl=GP"]
[4631149768825,170033635,"Краска осветляющая для окрашивания бровей Медовый блонд ","4/11/2023","Здравствуйте, сколько нужно держать краску чтобы брови стали прям белые?","oWU4mosBseHJVfIhv_GR","https://www.wildberries.ru/catalog/154551575/detail.aspx?targetUrl=GP"]
[4631149768825,170033635,"Краска осветляющая для окрашивания бровей Медовый блонд ","30/10/2023","Здравствуйте.Где указан срок годности ?","KWUZgYsBEfQyvY3WA9m_","https://www.wildberries.ru/catalog/150359775/detail.aspx?targetUrl=GP"]
[4631149768825,170033635,"Краска осветляющая для окрашивания бровей Медовый блонд ","26/10/2023","Здравствуйте,  подскажите на сколько именно задерживается товар, может имеет смысл заказать заново?","c2KZbIsBseHJVfIh3ZW9","https://www.wildberries.ru/catalog/183217053/detail.aspx?targetUrl=GP"]
[4631149768825,170033635,"Краска осветляющая для окрашивания бровей Медовый блонд ","26/10/2023","Здравствуйте. Брови черные,хочу приобрести оксид 3% и Краситель Медовый блонд,чтобы осветлить на 2 тона.Скажите,пожалуйста, с каждым последующим применением волоски будут светлее или будет тот же тон,как в первый раз после применения??","F2IybIsBseHJVfIhtott","https://www.wildberries.ru/catalog/153319561/detail.aspx?targetUrl=GP"]
[4631149768825,170033635,"Краска осветляющая для окрашивания бровей Медовый блонд ","25/10/2023","здравствуйте! будет ли понижение цены?","QauSZ4sBHA76Ev-cNjsx","https://www.wildberries.ru/catalog/149881386/detail.aspx?targetUrl=GP"]
[4631149768825,170033635,"Краска осветляющая для окрашивания бровей Медовый блонд ","23/10/2023","Здравствуйте, осветлила брови. Теперь не знаю что делать, получились сликшом светлые ещё и рыжие какие-то. Скажите пожалуйста как мне теперь исправить эту ситуацию, я не знаю что делать. Мой цвет волос холодный блонд, хотела просто более светлые брови((как вернуться в холодный оттенок и при этом слегка  затемнить?","fV7pXYsB00yQAR3IGvd-","https://www.wildberries.ru/catalog/149875692/detail.aspx?targetUrl=GP"]
[4631149768825,170033635,"Краска осветляющая для окрашивания бровей Медовый блонд ","21/10/2023","Здравствуйте, крашенные брови в темный цвет осветлил он?","CYHsU4sBliAoiwUenk1Z","https://www.wildberries.ru/catalog/170012781/detail.aspx?targetUrl=GP"]
[4631149768825,170033635,"Краска осветляющая для окрашивания бровей Медовый блонд ","19/10/2023","Скажите пожалуйста, будет ли какая то скидка? А то дороговато","36mxSYsBHA76Ev-c6iOt","https://www.wildberries.ru/catalog/152467036/detail.aspx?targetUrl=GP"]
[4631149768825,170033635,"Краска осветляющая для окрашивания бровей Медовый блонд ","18/10/2023","Оксид идет в комплекте?","Il3jQ4sB00yQAR3ITisk","https://www.wildberries.ru/catalog/170041072/detail.aspx?targetUrl=GP"]
[4631149768825,170033635,"Краска осветляющая для окрашивания бровей Медовый блонд ","9/10/2023","Здравствуйте, мне нужно осветлить брови на 2-3 тона, брови сами тёмные. Подскажите какой Осветлитель выбрать, и какую к нему ещё краску надо из это серий?","rUJLFIsBtm_3_oXdRfg3","https://www.wildberries.ru/catalog/170053220/detail.aspx?targetUrl=GP"]
[4631149768825,170033635,"Краска осветляющая для окрашивания бровей Медовый блонд ","8/10/2023","Здравствуйте, если цвет волос темный русый,а брови черные,то лучше taupe осветлять? И каким окислителем?","IqWoDosBHA76Ev-cWoLF","https://www.wildberries.ru/catalog/152273218/detail.aspx?targetUrl=GP"]
[4631149768825,170033635,"Краска осветляющая для окрашивания бровей Медовый блонд ","30/9/2023","На блон нужно 5% краски и 1 % окислителя?","inq_5YoBliAoiwUeH7AI","https://www.wildberries.ru/catalog/150367969/detail.aspx?targetUrl=GP"]
[4631149768825,170033635,"Краска осветляющая для окрашивания бровей Медовый блонд ","26/9/2023","Здравствуйте! Подскажите, пожалуйста, а если у меня оксид для бровей 6% можно с ним осветлить брови вашим товаром?","H1c104oBYpYA1RfTu9eF","https://www.wildberries.ru/catalog/169851850/detail.aspx?targetUrl=GP"]
[4631149768825,170033635,"Краска осветляющая для окрашивания бровей Медовый блонд ","21/9/2023","Добрый день! После осветления нужно ли наносить шампунь-нейтрализатор для избавления от нежелательного оттенка?","UFmSt4oBEfQyvY3W40KQ","https://www.wildberries.ru/catalog/170034468/detail.aspx?targetUrl=GP"]
[4631149768832,170035133,"Краска для окрашивания бровей Холодный светло-коричневый ","17/11/2023","У вас есть на складе иссиня черный со свежем годом изготовления ? Не 2020","x1I53osBtm_3_oXdAyON","https://www.wildberries.ru/catalog/170034468/detail.aspx?targetUrl=GP"]
[4631149768832,170035133,"Краска для окрашивания бровей Холодный светло-коричневый ","9/11/2023","Здравствуйте. С чем связано снижение цены? Почему на других онлайн-площадках и официальном сайте товар дороже?","VbFttosBHA76Ev-c1Ss7","https://www.wildberries.ru/catalog/170624107/detail.aspx?targetUrl=GP"]
[4631149768832,170035133,"Краска для окрашивания бровей Холодный светло-коричневый ","8/11/2023","Здравствуйте! какой краситель подождёт к светло рыжим волосам при использовании 3% оксида: холодный светло-коричневый или просто светло коричневый?","kWc-r4sBseHJVfIhpZHZ","https://www.wildberries.ru/catalog/170041072/detail.aspx?targetUrl=GP"]
[4631149768832,170035133,"Краска для окрашивания бровей Холодный светло-коричневый ","8/11/2023","Здравствуйте!Чем отличается эффект от использования 3%, 1,8%, 0,9% оксидов?","cmQ9r4sB00yQAR3Ia_xD","https://www.wildberries.ru/catalog/150382778/detail.aspx?targetUrl=GP"]
[4631149768832,170035133,"Краска для окрашивания бровей Холодный светло-коричневый ","27/10/2023","Здравствуйте,можно ли сделать отказ от товара не оплатив его?Заказала набор,поэтому краска не понадобится","u2L-b4sBseHJVfIhecZa","https://www.wildberries.ru/catalog/150227241/detail.aspx?targetUrl=GP"]
[4631149768832,170035133,"Краска для окрашивания бровей Холодный светло-коричневый ","24/10/2023","Добрый день! У меня светлые брови, отдают в рыжину(после осветления медовым блондом)темнее брови не хочу, нужен тот же тон примерно. Скажите пожалуйста, если я возьму краску холодный светло-коричневый какая будет разница в эффекте оксидов 0,9% и 1,8% с ней? И не станут ли они сильно темнее с ней? Уберет ли краска рыжину?","lWFBYYsBseHJVfIhZLpN","https://www.wildberries.ru/catalog/170049335/detail.aspx?targetUrl=GP"]
[4631149768832,170035133,"Краска для окрашивания бровей Холодный светло-коричневый ","5/10/2023","Здравствуйте! В наборе только краска ? Или комплект краска и оксид","4nzQAIsBliAoiwUeYz2Z","https://www.wildberries.ru/catalog/170624107/detail.aspx?targetUrl=GP"]
[4631149768832,170035133,"Краска для окрашивания бровей Холодный светло-коричневый ","30/9/2023","Здравствуйте, заказала краску светло-коричневого цвета повторно, но к сожалению снова пришла темная, при смешении с другими цветами, графит.. совсем не проявляется (((что можно сделать, как обменять или вернуть товар, если он не соответствует качеству?","pVfI5YoB00yQAR3ICKbn","https://www.wildberries.ru/catalog/152238229/detail.aspx?targetUrl=GP"]
[4631149768832,170035133,"Краска для окрашивания бровей Холодный светло-коричневый ","28/9/2023","Здравствуйте! Решена проблема с краской ? Я брала последний раз, она комками собирается, не входит в реакцию с окислителем, при нанесении быстро затемняется волос а на коже почти не оставляет отпечаток. Я работаю на данной краске давно, и такого не было !","_1cb24oB00yQAR3IhRez","https://www.wildberries.ru/catalog/154519015/detail.aspx?targetUrl=GP"]
[4631149768832,170035133,"Краска для окрашивания бровей Холодный светло-коричневый ","27/9/2023","Скажите пожалуйста, в чем отличие этих 170057513 красок?","aFa81IoB00yQAR3I0qwo","https://www.wildberries.ru/catalog/170038304/detail.aspx?targetUrl=GP"]
[4631149768849,170032186,"Краска для бровей и ресниц Холодный темно-коричневый","18/11/2023","Где брать оксид?","jWzj4YsBseHJVfIhg5rT","https://www.wildberries.ru/catalog/170039822/detail.aspx?targetUrl=GP"]
[4631149768849,170032186,"Краска для бровей и ресниц Холодный темно-коричневый","18/11/2023","На упаковке написано смешать краску с оксидантом....в упаковке только тюбик с краской","bmzi4YsBseHJVfIhg5qJ","https://www.wildberries.ru/catalog/149785553/detail.aspx?targetUrl=GP"]
[4631149768849,170032186,"Краска для бровей и ресниц Холодный темно-коричневый","15/11/2023","Что  входит в комплекте","aVDU0osBtm_3_oXdubaa","https://www.wildberries.ru/catalog/149877369/detail.aspx?targetUrl=GP"]
[4631149768849,170032186,"Краска для бровей и ресниц Холодный темно-коричневый","15/11/2023","Здравствуйте. У красок есть номера? Как отличить один от другого? Постоянно обращаться к упаковке?","zGxT0YsBEfQyvY3WZC2a","https://www.wildberries.ru/catalog/170032186/detail.aspx?targetUrl=GP"]
[4631149768849,170032186,"Краска для бровей и ресниц Холодный темно-коричневый","7/11/2023","Здравствуйте. Какого цвет красит не только волоски, но и кожу? И сколько будет держаться на коже? Я брюнетка, а брови холодные практически серого оттенка","12fDqosBseHJVfIh2T49","https://www.wildberries.ru/catalog/170038304/detail.aspx?targetUrl=GP"]
[4631149768849,170032186,"Краска для бровей и ресниц Холодный темно-коричневый","4/11/2023","Добрый вечер. У меня 2 вопросы, буду признательна за ваш ответ. 1. Для осветления 3 % оксид + taupe пропорции 1:1 ? || 2. Можно ли сделать окрашивание с краской темно-коричневой и оксидом 3%? Если нет другого оксида для темных волос? Спасибо за ответ !)","IWY6m4sBseHJVfIhOAz9","https://www.wildberries.ru/catalog/150224093/detail.aspx?targetUrl=GP"]
[4631149768849,170032186,"Краска для бровей и ресниц Холодный темно-коричневый","27/10/2023","Здравствуйте, краска не красит кожу и двшат ли в нем волоски, омоаение проходит?","bEl2cosBtm_3_oXdhRyQ","https://www.wildberries.ru/catalog/170033635/detail.aspx?targetUrl=GP"]
[4631149768849,170032186,"Краска для бровей и ресниц Холодный темно-коричневый","24/10/2023","Здравствуйте, краска красит кожу и можно ли делать омоаение","NmP4YosBEfQyvY3WurcH","https://www.wildberries.ru/catalog/177634488/detail.aspx?targetUrl=GP"]
[4631149768849,170032186,"Краска для бровей и ресниц Холодный темно-коричневый","16/10/2023","Здравствуйте, если после окрашивания наносить масла оно будет действовать , и какой оксидан можно купить халяльный","UH90OYsBliAoiwUeUJM1","https://www.wildberries.ru/catalog/150359774/detail.aspx?targetUrl=GP"]
[4631149768849,170032186,"Краска для бровей и ресниц Холодный темно-коричневый","15/10/2023","Здравствуйте, краска красить кожу?","1F6GMYsBseHJVfIhJY1b","https://www.wildberries.ru/catalog/149785561/detail.aspx?targetUrl=GP"]
[4631149768849,170032186,"Краска для бровей и ресниц Холодный темно-коричневый","9/10/2023","Здравствуйте, где я могу посмотреть сертификат соответствия","zlzbFIsBseHJVfIhw_S2","https://www.wildberries.ru/catalog/150382778/detail.aspx?targetUrl=GP"]
[4631149768849,170032186,"Краска для бровей и ресниц Холодный темно-коричневый","8/10/2023","Можете принять возврат заказа до его поступления? Я заказала набор, поэтому эта краска не понадобится","ZlzEDosBseHJVfIh7Yyg","https://www.wildberries.ru/catalog/152438767/detail.aspx?targetUrl=GP"]
[4631149768849,170032186,"Краска для бровей и ресниц Холодный темно-коричневый","8/10/2023","Здравствуйте краска водонепроницаемая, напишите пожалуйста состав краски","SVlYDosB00yQAR3I--le","https://www.wildberries.ru/catalog/173584008/detail.aspx?targetUrl=GP"]
[4631149768849,170032186,"Краска для бровей и ресниц Холодный темно-коричневый","5/10/2023","Здравствуйте! Какой срок годности на  краске холодный темно-коричневый?","2ForAIsBYpYA1RfTblhl","https://www.wildberries.ru/catalog/150382777/detail.aspx?targetUrl=GP"]
[4631149768849,170032186,"Краска для бровей и ресниц Холодный темно-коричневый","25/9/2023","Добрый день! Подскажите каким образом работает цвет Taup?  Что именно он осветляет? По представленным свотчам получается, что он темнее, чем «холодный светло-коричневый»?","yFYdzYoB00yQAR3Iajmy","https://www.wildberries.ru/catalog/150227243/detail.aspx?targetUrl=GP"]
[4631149927413,150374021,"Коричневый карандаш для глаз и слизистой PALERMO","30/10/2023","Добрый день! Подскажите, карандаш легко смывается?","doRDgYsBliAoiwUezoYb","https://www.wildberries.ru/catalog/170054370/detail.aspx?targetUrl=GP"]
[4631149927413,150374021,"Коричневый карандаш для глаз и слизистой PALERMO","6/10/2023","Карандаш стоит 771 рубль а сняли у меня 991 рубль можно узнать причину?","7F2FA4sBEfQyvY3WFbFg","https://www.wildberries.ru/catalog/149753536/detail.aspx?targetUrl=GP"]
[4631150553519,150253399,"Карандаш каял для глаз для слизистой и стрелок 07","20/11/2023","Здравствуйте, пришел карандаш до 02.2024( за 1198 руб.!). как вернуть? и ошибочно забрала бальзам для губ, тоже хочу вернуть. На пункте выдачи сказали косметику вернуть можно только через личный кабинет.","TI9d7IsBliAoiwUeOyr8","https://www.wildberries.ru/catalog/150227242/detail.aspx?targetUrl=GP"]
[4631150553533,150253407,"Карандаш каял для глаз для слизистой и стрелок 15","19/11/2023","подходит ли этот карандаш для слизистой глаза, как он держится?","brY354sBHA76Ev-ctvFT","https://www.wildberries.ru/catalog/149893901/detail.aspx?targetUrl=GP"]
[4631151795994,149753546,"Тени для век жидкие №05 блестящие темно-коричневые","18/11/2023","Добрый день! Оттенок 5 сатиновый, шиммерный или глиттерный? Спасибо!","c27W4IsBEfQyvY3WrDsJ","https://www.wildberries.ru/catalog/150224090/detail.aspx?targetUrl=GP"]
[4631151795994,149753546,"Тени для век жидкие №05 блестящие темно-коричневые","5/10/2023","Добрый день, это оригинальная продукция? Цены дешевле чем на сайте","J10n_4oBEfQyvY3WO3Ui","https://www.wildberries.ru/catalog/169845972/detail.aspx?targetUrl=GP"]
[4631152123246,154541664,"Кисть для пудры, румян и скульптора №04","29/9/2023","Добрый день ! Уже больше 15 дней прошло со дня возврата по браку товара , деньги до сих пор не вернулись на карту, неоднократно писала в поддержку вб, толку 0, сейчас уже перестали даже отвечать . Вы можете как то повлиять на этот вопрос в возвращении моих денег?  Один из ответов был, что пока товар не вернется на склад деньги не придут , но с 14 сентября уже явно оно бы успело дойти ! Пожалуйста помогите !","vKIK34oBHA76Ev-csdhF","https://www.wildberries.ru/catalog/149877367/detail.aspx?targetUrl=GP"]
[4631152123253,154541670,"Кисть для растушевки кайала и теней любых текстур №08","25/9/2023","Добрый день, подскажите Арт:  154541670- на главной фотографии кисть чуть вытянутая на кончике, на видео та же кисть с округлым кончиком. Какая кисть на самом деле?","TnlpzIoBliAoiwUeNTLP","https://www.wildberries.ru/catalog/150224370/detail.aspx?targetUrl=GP"]
[4631152454531,149753536,"Тени для век жидкие №02 блестящие коричневые","4/11/2023","Здравствуйте,до какого срок годности теней в оттенке 02?","V0uml4sBtm_3_oXdZN6L","https://www.wildberries.ru/catalog/170038304/detail.aspx?targetUrl=GP"]
[4631153570780,170041072,"Прозрачный разбавитель краски для бровей и ресниц","8/11/2023","Здравствуйте! подскажите пожалуйста , можно ли использовать разбавитель с красками других производителей?","102hr4sBtm_3_oXdYLfc","https://www.wildberries.ru/catalog/150382779/detail.aspx?targetUrl=GP"]
[4631153570780,170041072,"Прозрачный разбавитель краски для бровей и ресниц","5/11/2023","Здравствуйте. У меня больше половины бровей и ресниц седые , цвет кожи очень белый . Можете подсказать как окрасить и в какой цвет будет лучше ,пожалуйста","FWNPoYsB00yQAR3Io-8c","https://www.wildberries.ru/catalog/170023318/detail.aspx?targetUrl=GP"]
[4631153570780,170041072,"Прозрачный разбавитель краски для бровей и ресниц","5/11/2023","Здравствуйте, для чего разбавитель?","n4bUn4sBliAoiwUeodeb","https://www.wildberries.ru/catalog/184006229/detail.aspx?targetUrl=GP"]
[4631153570797,169856314,"Оксид для краски для бровей 0,9%","12/11/2023","Здравствуйте, я заказала оксид 1,8 а мне оформили как 0.9 ладно.\n\nНо Он стоит 346 рублей , а меня сейчас списали деньги 546 рублей что это такое ?","50-axYsBtm_3_oXd13Z_","https://www.wildberries.ru/catalog/150224092/detail.aspx?targetUrl=GP"]
[4631153570797,169856314,"Оксид для краски для бровей 0,9%","10/11/2023","Заказывала два раза и пришел оксид 1.8, есть 0,9????","oWVBuosB00yQAR3I39Yr","https://www.wildberries.ru/catalog/150382779/detail.aspx?targetUrl=GP"]
[4631153570797,169856314,"Оксид для краски для бровей 0,9%","27/10/2023","Здравствуйте, оксидан халяльный?","IWN1cosBseHJVfIhKQN5","https://www.wildberries.ru/catalog/150378854/detail.aspx?targetUrl=GP"]
[4631153570797,169856314,"Оксид для краски для бровей 0,9%","23/10/2023","Здравствуйте, какой оксидан подойдёт к холодно темно коричневому чтоб не красилась кожа","IGOCXYsBEfQyvY3Wv1Bn","https://www.wildberries.ru/catalog/150227241/detail.aspx?targetUrl=GP"]
[4631153570797,169856314,"Оксид для краски для бровей 0,9%","11/10/2023","Здравствуйте, какой процент окислителя нужен для оттенка графит","s19mHosBEfQyvY3WyE7-","https://www.wildberries.ru/catalog/152281086/detail.aspx?targetUrl=GP"]
[4631154060563,152241850,"Очищающий гель для лица с увлажняющим эффектом","8/11/2023","Здравствуйте. У вас этот товар есть в наличии? Мне в листе ожидания пишут что есть, а когда хочу оформить заказ пишут и добавляю в корзину пишут что нет в наличии","umlLrosBEfQyvY3W6UhW","https://www.wildberries.ru/catalog/152281086/detail.aspx?targetUrl=GP"]
[4631154965752,150227241,"Пудра для лица компактная сияющая для светлой кожи","13/11/2023","Какая пудра подойдёт на тональный крем 1,5?","uGuNx4sBEfQyvY3W9T4d","https://www.wildberries.ru/catalog/150378852/detail.aspx?targetUrl=GP"]
[4631154965752,150227241,"Пудра для лица компактная сияющая для светлой кожи","5/11/2023","Здравствуйте, подойдет пудра для сухой кожи?","iobcnosBliAoiwUefLyS","https://www.wildberries.ru/catalog/149881384/detail.aspx?targetUrl=GP"]
[4631154965752,150227241,"Пудра для лица компактная сияющая для светлой кожи","1/11/2023","Здравствуйте! А у вас есть отдельные рефилы пудры или нужно целую заново покупать? Если есть, то пришлите артикул, пожалуйста.","WK1Wi4sBHA76Ev-cVdvC","https://www.wildberries.ru/catalog/170054370/detail.aspx?targetUrl=GP"]
[4631154965752,150227241,"Пудра для лица компактная сияющая для светлой кожи","27/10/2023","Здравствуйте, это самый светлый оттенок?","aUkYc4sBtm_3_oXdiya8","https://www.wildberries.ru/catalog/154519015/detail.aspx?targetUrl=GP"]
[4631154965752,150227241,"Пудра для лица компактная сияющая для светлой кожи","26/10/2023","Здравствуйте. Подскажите пожалуйста подойдёт ли данная пудра возрастной, жирной коже с расширенными порами? Пудра оригинал?","kmTOa4sBEfQyvY3Wlk5e","https://www.wildberries.ru/catalog/154502205/detail.aspx?targetUrl=GP"]
[4631154965752,150227241,"Пудра для лица компактная сияющая для светлой кожи","26/9/2023","Добрый день. Пудру заказывала 3 раза. Приходила разбитая. Вопрос, почему такое отношение к  товару?","tqJq0ooBHA76Ev-c2CDY","https://www.wildberries.ru/catalog/170052788/detail.aspx?targetUrl=GP"]
[4631154965769,150227242,"Пудра для лица компактная сияющая для смуглой кожи","16/11/2023","Добрый вечер! Подскажите, пудру Медиум (она же самая темная сейчас?) можно использовать для светлой кожи как легкий скульптор? Или в этом нет смысла и она нанесется вуально?","trQQ2YsBHA76Ev-cgHeP","https://www.wildberries.ru/catalog/149875696/detail.aspx?targetUrl=GP"]
[4631154965769,150227242,"Пудра для лица компактная сияющая для смуглой кожи","3/11/2023","Доброй ночи! А на загорелую кожу есть темный оттенок?","U2Uil4sBseHJVfIhMcL3","https://www.wildberries.ru/catalog/149881387/detail.aspx?targetUrl=GP"]
[4631154965776,150228142,"Румяна для лица персиковые сияющие с шиммером ","30/9/2023","Румяна пришли разбитые, ужас полный, как вернуть деньги и товар????","oqN35YoBHA76Ev-csDDa","https://www.wildberries.ru/catalog/150378847/detail.aspx?targetUrl=GP"]
[4631154965783,149877367,"Консилер для лица и под глаза для светлой кожи 01","12/11/2023","Здравствуйте, заказала повторно консилер в оттенке 01, пришел и на тюбике написано 1, почему у вас на картинке 01 (в моем предыдущем 01), а мне пришел 1? это подделка?","QU-EwosBtm_3_oXdeCDf","https://www.wildberries.ru/catalog/170018021/detail.aspx?targetUrl=GP"]
[4631154965783,149877367,"Консилер для лица и под глаза для светлой кожи 01","3/11/2023","Здравствуйте, какой самый светлый оттенок?","cGXkkosBseHJVfIhWGUA","https://www.wildberries.ru/catalog/149785562/detail.aspx?targetUrl=GP"]
[4631154965783,149877367,"Консилер для лица и под глаза для светлой кожи 01","31/10/2023","Здравствуйте! Продукт уже более дня в позиции «собрано продавцом». Почему так долго ?","3Ep9hIsBtm_3_oXdjFhT","https://www.wildberries.ru/catalog/184006229/detail.aspx?targetUrl=GP"]
[4631154965783,149877367,"Консилер для лица и под глаза для светлой кожи 01","29/9/2023","Для какой кожи ? Сухой или дирной?","qVs74ooBEfQyvY3W-uQ-","https://www.wildberries.ru/catalog/149875696/detail.aspx?targetUrl=GP"]
[4631154965790,149877368,"Консилер для лица и под глаза для смуглой кожи 02","13/11/2023","Здравствуйте, подскажите пожалуйста, если брать ваш тональный крем оттенок 2.5(зеленовато бежевый) какого оттенка взять лучше консилер?","S2eNyYsB00yQAR3IQxSC","https://www.wildberries.ru/catalog/149877367/detail.aspx?targetUrl=GP"]
[4631154965790,149877368,"Консилер для лица и под глаза для смуглой кожи 02","26/10/2023","Чо так дорого?","94Ksa4sBliAoiwUe7_XM","https://www.wildberries.ru/catalog/170018021/detail.aspx?targetUrl=GP"]
[4631155148758,153504119,"Черный спонж для тонального крема и консилера","29/10/2023","Такой спонж за эту высокую цену стрёмно покупать потому что наборы из четырёх спонжиков стоит 150 руб","6ISufIsBliAoiwUemDL2","https://www.wildberries.ru/catalog/154551575/detail.aspx?targetUrl=GP"]
[4631155148758,153504119,"Черный спонж для тонального крема и консилера","16/10/2023","Здравствуйте!Как долго будет доставка товара?заказ был оформлен 6 сентября","Q0UYOIsBtm_3_oXdrhK_","https://www.wildberries.ru/catalog/150382778/detail.aspx?targetUrl=GP"]
[4631155148758,153504119,"Черный спонж для тонального крема и консилера","4/10/2023","Здравствуйте, пользуюсь черным спонжиком меньше месяца, мою хоз мыла +- после каждого нанесения, он стал ближе к кончику светлее и как будто жестче чем «попка». Скажите почему так? И немного хуже стал наносить тональный крем, не так как был новый((","_XsQ-4oBliAoiwUeMujh","https://www.wildberries.ru/catalog/170039822/detail.aspx?targetUrl=GP"]
[4631157019322,150224096,"Матовый карандаш для губ темно-бежевый VERONA","28/10/2023","Здравствуйте.Какой оттенок матовой помады подойдет под карандаш Верона?","NElVdIsBtm_3_oXdaCwN","https://www.wildberries.ru/catalog/152281086/detail.aspx?targetUrl=GP"]
[4631157019339,150257806,"Многофункциональный карандаш-корректор бежевый для лица","30/9/2023","Здравствуйте,карандаш деревянный или в пластике?) Точить любой косметической или только точилкой одноименного бренда?","_liy5YoBYpYA1RfTOdgF","https://www.wildberries.ru/catalog/169879422/detail.aspx?targetUrl=GP"]
[4631157221152,154519014,"Кисть для жидких текстур FOUNDATION","13/11/2023","Скажите она подойдет для нанесения бб? Она из искусственного ворса?","WLJFyosBHA76Ev-cFcjU","https://www.wildberries.ru/catalog/150382777/detail.aspx?targetUrl=GP"]
[4631157221152,154519014,"Кисть для жидких текстур FOUNDATION","11/10/2023","Добрый день! Подскажите, когда появится в продаже кисть Foundation?","TV2uHIsBseHJVfIhkGcc","https://www.wildberries.ru/catalog/150382776/detail.aspx?targetUrl=GP"]
[4631157221169,154519013,"Кисть для кремовых текстур CONCEALER","4/10/2023","Добрый день. Скажите пожалуйста сколько стоит 3 кисти вместе, и отдельно кисть консилер?","xXso-4oBliAoiwUegOpI","https://www.wildberries.ru/catalog/150382779/detail.aspx?targetUrl=GP"]
[4631157221176,154519015,"Кисть для макияжа лица MODELING","10/11/2023","добрый день! появится ли кисть для консилера?","tGgguIsBseHJVfIhkzU2","https://www.wildberries.ru/catalog/150374021/detail.aspx?targetUrl=GP"]
[4631157221176,154519015,"Кисть для макияжа лица MODELING","9/11/2023","Добрый день! Когда кисть Foundation появится в продаже?","6U7Fs4sBtm_3_oXdBgA9","https://www.wildberries.ru/catalog/150382778/detail.aspx?targetUrl=GP"]
[4631157221176,154519015,"Кисть для макияжа лица MODELING","5/11/2023","Добрый день! Уже ноябрь, скажите, когда кисти поступят в продажу или можно не ждать?","rGNunosB00yQAR3IyqOg","https://www.wildberries.ru/catalog/149875692/detail.aspx?targetUrl=GP"]
[4631157221176,154519015,"Кисть для макияжа лица MODELING","31/10/2023","Здравствуйте . Скажите , а как так оказалось , что мне пришла кисть вместо Shik , пришла кисть Nikk molle??","SoTphosBliAoiwUehvuE","https://www.wildberries.ru/catalog/170033635/detail.aspx?targetUrl=GP"]
[4631157248500,154519016,"Набор кистей для макияжа","15/11/2023","Здравствуйте когда появиться в наличии набор","Dmq41IsBseHJVfIhOedz","https://www.wildberries.ru/catalog/150382777/detail.aspx?targetUrl=GP"]
[4631157248500,154519016,"Набор кистей для макияжа","6/11/2023","Здравствуйте! Набор из 3 кистей когда будет в наличии? Хотелось бы заказать в качестве подарка","HWa7pIsBseHJVfIh_r7o","https://www.wildberries.ru/catalog/170012781/detail.aspx?targetUrl=GP"]
[4631157248500,154519016,"Набор кистей для макияжа","1/10/2023","Здравствуйте? Будут ли в наличии 3 кисти 😻?","ukBO64oBtm_3_oXdS5vV","https://www.wildberries.ru/catalog/182309290/detail.aspx?targetUrl=GP"]
[4631158692203,150367356,"Скульптор для лица сухой запеченный матовый ","20/11/2023","Этот скульптор тон 01?","JnBp7IsBEfQyvY3WGXyE","https://www.wildberries.ru/catalog/149881387/detail.aspx?targetUrl=GP"]
[4631158692203,150367356,"Скульптор для лица сухой запеченный матовый ","19/11/2023","Здравствуйте! заказывала запечённый скульптор два раза и  раза приходила пудра!!! в чем дело??? только не надо говорить, что сотрудники маркетплейса допустили ошибку оба раза!!!","GVTP6IsBtm_3_oXdEFAI","https://www.wildberries.ru/catalog/150367969/detail.aspx?targetUrl=GP"]
[4631158692203,150367356,"Скульптор для лица сухой запеченный матовый ","19/11/2023","Здравствуйте, коричневый оттенок какой # оттенка? Нигде не нашла.","5m_d5YsBEfQyvY3WhHX3","https://www.wildberries.ru/catalog/150382777/detail.aspx?targetUrl=GP"]
[4631158692203,150367356,"Скульптор для лица сухой запеченный матовый ","15/11/2023","Добрый день, получила скульптор и там очень мало коричневого цвета, в основном светлый... ниже слой будет таким же или может быть темнее? а то получается не скульптор, а хайлайтер...(","g2gc1IsB00yQAR3I_TmY","https://www.wildberries.ru/catalog/170056466/detail.aspx?targetUrl=GP"]
[4631158692203,150367356,"Скульптор для лица сухой запеченный матовый ","15/11/2023","Здравствуйте, зачем вы мне отправили пудру вместо скульптора? Почему я теперь за отказ платить должна? Я перезаказала пусть положат СКУЛЬПТОР!!!!","t2xg0osBEfQyvY3W2VUs","https://www.wildberries.ru/catalog/150382776/detail.aspx?targetUrl=GP"]
[4631158692203,150367356,"Скульптор для лица сухой запеченный матовый ","12/11/2023","Добрый день!!! Подскажите, к новогодним праздникам скидка ожидается?!","CYm6wYsBliAoiwUeYXG_","https://www.wildberries.ru/catalog/170054370/detail.aspx?targetUrl=GP"]
[4631158692203,150367356,"Скульптор для лица сухой запеченный матовый ","24/10/2023","Здравствуйте! Напишите, пожалуйста, полный состав","XUc-YYsBtm_3_oXdBtNT","https://www.wildberries.ru/catalog/149910037/detail.aspx?targetUrl=GP"]
[4631158692203,150367356,"Скульптор для лица сухой запеченный матовый ","23/10/2023","Здравствуйте, подскажите какой срок годности после вскрытия?","TaogXIsBHA76Ev-cjV-9","https://www.wildberries.ru/catalog/149881386/detail.aspx?targetUrl=GP"]
[4631158692203,150367356,"Скульптор для лица сухой запеченный матовый ","20/10/2023","Пишу второй раз!!! Валдберис не публикует. Я приобрела зареченнвй скульптор и румяна. Продукты очень плохо набираются на кисть и плохо переносятся. Кисти у меня Annbeauty s22 и A3. Это премиального качества японские  кисти из натурального ворса. Подскажите пожалуйста может есть какой-то верхний слой у продуктов,который затрудняет передачу пигмента или это такая слабая пигментация?Очень ждала их и очень разочарована!","UKm8TosBHA76Ev-cu3un","https://www.wildberries.ru/catalog/150382778/detail.aspx?targetUrl=GP"]
[4631158692203,150367356,"Скульптор для лица сухой запеченный матовый ","18/10/2023","Добрый день. Купила сухой запеченный скульптор и румяна. Кисти у меня Annbeauty s22 для скульптора и A3 для румян. Кисти премиальные ,японские. Ворс натуральный. Продукты набираются очень плохо. Не могу понять в чем дело. Подскажите пожалуйста это такая скудная пигментация или есть какой-то верхний слой у этих продуктов,какая-то особенность в начале использования?Очень их ждала и очень расстроена.","gl2kQosB00yQAR3IeQ4i","https://www.wildberries.ru/catalog/150382778/detail.aspx?targetUrl=GP"]
[4631158692203,150367356,"Скульптор для лица сухой запеченный матовый ","17/10/2023","Здравствуйте, подскажите пожалуйста,это оригинал?","7ajfPYsBHA76Ev-c0F_o","https://www.wildberries.ru/catalog/153504119/detail.aspx?targetUrl=GP"]
[4631158692203,150367356,"Скульптор для лица сухой запеченный матовый ","1/10/2023","Добрый день! Какой это тон 01 или 02?","V1c_64oB00yQAR3IMvIA","https://www.wildberries.ru/catalog/154551575/detail.aspx?targetUrl=GP"]
[4631159369784,150378852,"Кремовые румяна 01","6/11/2023","В отзывах есть цвет оранжевый. Это какой номер?","AYduposBliAoiwUeOmd5","https://www.wildberries.ru/catalog/176944508/detail.aspx?targetUrl=GP"]
[4631159369784,150378852,"Кремовые румяна 01","1/11/2023","Здравствуйте. Почему вчера у вас была другая цена, сегодня другая?. Аж на 1000 тенге больше.","AGIViosB00yQAR3IUhxC","https://www.wildberries.ru/catalog/149881387/detail.aspx?targetUrl=GP"]
[4631159369791,150378854,"Кремовые румяна 02","19/11/2023","Оригинал?","A2-I6IsBEfQyvY3WZvNt","https://www.wildberries.ru/catalog/182309289/detail.aspx?targetUrl=GP"]
[4631159369791,150378854,"Кремовые румяна 02","17/11/2023","150378854 имеет холодный или тёплый подтон?","P7W-3osBHA76Ev-c1jGu","https://www.wildberries.ru/catalog/149785559/detail.aspx?targetUrl=GP"]
[4631159369791,150378854,"Кремовые румяна 02","9/11/2023","здравствуйте скажите пожалуйста коралловый цвет какой в живую?","QGdKs4sBseHJVfIhRdnR","https://www.wildberries.ru/catalog/150367969/detail.aspx?targetUrl=GP"]
[4631159369791,150378854,"Кремовые румяна 02","1/11/2023","здравствуйте. заказала у вас румяна, а доставили бальзам для губ. прошу вернуть мне деньги! ужасно разочарована сервисом и  магазином","za1ji4sBHA76Ev-c59zb","https://www.wildberries.ru/catalog/153506236/detail.aspx?targetUrl=GP"]
[4631159369807,150378847,"Кремовые румяна 04","10/11/2023","пошли румяна с запаянным, загнутым в сторону носиком.Из-за этого очень плохо закручивается крышка.Как решить вопрос?","Cmi8uYsBseHJVfIhK18Q","https://www.wildberries.ru/catalog/176944508/detail.aspx?targetUrl=GP"]
[4631159369807,150378847,"Кремовые румяна 04","9/11/2023","Здравствуйте. Уже два дня статус-со рано продавцом. Отправьте мой заказ, пожалуйста!","tWWOsosB00yQAR3ImzH9","https://www.wildberries.ru/catalog/170050928/detail.aspx?targetUrl=GP"]
[4631159369807,150378847,"Кремовые румяна 04","6/11/2023","Здравствуйте. Почему доставка задерживается ?","-69ppYsBHA76Ev-cVtrn","https://www.wildberries.ru/catalog/149785556/detail.aspx?targetUrl=GP"]
[4631159369807,150378847,"Кремовые румяна 04","31/10/2023","а какой объем??","W0oAhosBtm_3_oXdrYK0","https://www.wildberries.ru/catalog/149875693/detail.aspx?targetUrl=GP"]
[4631159369807,150378847,"Кремовые румяна 04","14/10/2023","Почему при использовании какие то катышки появляются. Как песок. Разминала перед использованием","F1t-LosB00yQAR3IrdON","https://www.wildberries.ru/catalog/170057041/detail.aspx?targetUrl=GP"]
[4631159369807,150378847,"Кремовые румяна 04","8/10/2023","Здраствуйте,а какой запах у продукта?(отдушка)","7l7FD4sBEfQyvY3WBm3h","https://www.wildberries.ru/catalog/170012781/detail.aspx?targetUrl=GP"]
[4631159369807,150378847,"Кремовые румяна 04","27/9/2023","Они оригиналы","Wj9k14oBtm_3_oXdQ4-I","https://www.wildberries.ru/catalog/170012781/detail.aspx?targetUrl=GP"]
[4631159369807,150378847,"Кремовые румяна 04","25/9/2023","Что делать если посылка должна идти 3 дня а идёт уже  5","NVptzYoBEfQyvY3WqaUc","https://www.wildberries.ru/catalog/171349477/detail.aspx?targetUrl=GP"]
[4631159369807,150378847,"Кремовые румяна 04","21/9/2023","Какой цвет подойдет на светлую кожу?","61XvtooBYpYA1RfT8f6x","https://www.wildberries.ru/catalog/170010057/detail.aspx?targetUrl=GP"]
[4631159949269,150359774,"Жидкий кремовый скульптор 01","19/11/2023","Посмотрите он пришёл пустой, верните деньги, не заказывайте у них, запакован был, значит это магазин мне такой отправили, деньги верните, ужас","P21S54sBseHJVfIhzOh3","https://www.wildberries.ru/catalog/150382776/detail.aspx?targetUrl=GP"]
[4631159949269,150359774,"Жидкий кремовый скульптор 01","19/11/2023","Посмотрите он пришёл пустой, верните деньги, не заказывайте у них, запакован был, значит это магазин мне такой отправили, деньги верните, ужас","87ZP54sBHA76Ev-c1vVa","https://www.wildberries.ru/catalog/169851850/detail.aspx?targetUrl=GP"]
[4631159949269,150359774,"Жидкий кремовый скульптор 01","15/11/2023","Это ужас, мало того что он просроченный, так ещё и полупустой.... Верните деньги товар пришлю обратно.","3bOQ1IsBHA76Ev-cJuzB","https://www.wildberries.ru/catalog/182309290/detail.aspx?targetUrl=GP"]
[4631159949269,150359774,"Жидкий кремовый скульптор 01","13/11/2023","Пришел совсем пустой,как Вам не стыдно!","qorPyYsBliAoiwUeniy7","https://www.wildberries.ru/catalog/182309290/detail.aspx?targetUrl=GP"]
[4631159949269,150359774,"Жидкий кремовый скульптор 01","8/11/2023","Какой оттенок подходит для не очень светлой и не смуглой кожи лица?","5U2gsIsBtm_3_oXdb9IA","https://www.wildberries.ru/catalog/150224096/detail.aspx?targetUrl=GP"]
[4631159949269,150359774,"Жидкий кремовый скульптор 01","7/11/2023","товар оригинал?","5U2Gq4sBtm_3_oXd8Wwu","https://www.wildberries.ru/catalog/150227241/detail.aspx?targetUrl=GP"]
[4631159949269,150359774,"Жидкий кремовый скульптор 01","4/11/2023","а есть ли у вас тон 02?","w0wLmosBtm_3_oXdewVo","https://www.wildberries.ru/catalog/150368587/detail.aspx?targetUrl=GP"]
[4631159949269,150359774,"Жидкий кремовый скульптор 01","15/10/2023","Здравствуйте, какой оттенок подойдёт для светлой кожи с тёплым, оливковым подтоном?","TV3sMYsBYpYA1RfT0zN0","https://www.wildberries.ru/catalog/170032186/detail.aspx?targetUrl=GP"]
[4631159949269,150359774,"Жидкий кремовый скульптор 01","5/10/2023","Почему задерживают заказ?  Должен был прийти ещё 2 недели назад","wqRU_ooBHA76Ev-cSJEc","https://www.wildberries.ru/catalog/169856314/detail.aspx?targetUrl=GP"]
[4631159949269,150359774,"Жидкий кремовый скульптор 01","2/10/2023","Здравствуйте. Почему не возвращаете деньги за возврат? Оформляла возврат 28.09 до сих пор не вернули деньги","c3uI7ooBliAoiwUeBSUD","https://www.wildberries.ru/catalog/150382776/detail.aspx?targetUrl=GP"]
[4631159949269,150359774,"Жидкий кремовый скульптор 01","25/9/2023","Здравствуйте! Я хотела уточнить когда будет мой заказ? С 6 сентября я жду!","J1a-y4oB00yQAR3IDxio","https://www.wildberries.ru/catalog/150382777/detail.aspx?targetUrl=GP"]
[4631159949269,150359774,"Жидкий кремовый скульптор 01","25/9/2023","Девочки !!!! Крайне не советую ,в принципе брать этот товар !!! Почитала отзывы у девчонок ,пишут ,что приходит полупустой !!! Я купила в золотом яблоке!!! Тоже ПОЛУПУСТОЙ! РУМЯНА ЖИДКИЕ - прекрасные ,а скульптор нет!!!! Такое ощущение ,что это заводской брак ,а производитель его не решает ! Точно, не к продавцу вопросы!!!!!!!","Klofy4oBEfQyvY3WIW25","https://www.wildberries.ru/catalog/170123398/detail.aspx?targetUrl=GP"]
[4631159949269,150359774,"Жидкий кремовый скульптор 01","25/9/2023","Добрый день! Почему товар приходит пустой? Это правда?","Ylj9yooBseHJVfIhnJxS","https://www.wildberries.ru/catalog/152236971/detail.aspx?targetUrl=GP"]
[4631159949269,150359774,"Жидкий кремовый скульптор 01","24/9/2023","Добрый день! На сколько применений примерно хватает?","nD4PxooBtm_3_oXdB1rc","https://www.wildberries.ru/catalog/149875695/detail.aspx?targetUrl=GP"]
[4631159949276,150359775,"Жидкий кремовый скульптор 02","17/11/2023","Здравствуйте. Можно ли вернуть товар, если упаковка не вскрывалась? Он так и есть в пупырчатой пленке.","z2un3IsBseHJVfIhBsFJ","https://www.wildberries.ru/catalog/150367969/detail.aspx?targetUrl=GP"]
[4631159949276,150359775,"Жидкий кремовый скульптор 02","9/11/2023","ПОЧЕМУ ПРИХОДИТ ПОЛУПУСТОЙ???","QGUPtIsB00yQAR3IPlec","https://www.wildberries.ru/catalog/152466867/detail.aspx?targetUrl=GP"]
[4631159949276,150359775,"Жидкий кремовый скульптор 02","8/11/2023","подскажите что за помада на модели?","noeIrYsBliAoiwUefN5_","https://www.wildberries.ru/catalog/150367969/detail.aspx?targetUrl=GP"]
[4631159949276,150359775,"Жидкий кремовый скульптор 02","7/11/2023","товар задерживается на 2 месяца, когда прийдет?","cGfuqYsBseHJVfIhsSZi","https://www.wildberries.ru/catalog/150224370/detail.aspx?targetUrl=GP"]
[4631159949276,150359775,"Жидкий кремовый скульптор 02","6/11/2023","Почему товар пустой ?","1kwGpIsBtm_3_oXd2sKv","https://www.wildberries.ru/catalog/170035133/detail.aspx?targetUrl=GP"]
[4631159949276,150359775,"Жидкий кремовый скульптор 02","16/10/2023","Здравствуйте, какой оттенок выбрать для светлой кожи?","LF15OIsBYpYA1RfT8qZ4","https://www.wildberries.ru/catalog/182309289/detail.aspx?targetUrl=GP"]
[4631159949276,150359775,"Жидкий кремовый скульптор 02","15/10/2023","Сделала возврат,через сколько поступят деньги ?","FWDUM4sBEfQyvY3WiYs6","https://www.wildberries.ru/catalog/150382776/detail.aspx?targetUrl=GP"]
[4631159949276,150359775,"Жидкий кремовый скульптор 02","15/10/2023","Хочу попробовать данный контуринг, но не могу определиться с цветом... Я довольно таки бледная 🤣 какой лучше?","_H_nMYsBliAoiwUeSAmt","https://www.wildberries.ru/catalog/176944509/detail.aspx?targetUrl=GP"]
[4631159949276,150359775,"Жидкий кремовый скульптор 02","9/10/2023","Здравствуйте, какой оттенок холодный?","x30aFosBliAoiwUe5oDD","https://www.wildberries.ru/catalog/154551573/detail.aspx?targetUrl=GP"]
[4631159949276,150359775,"Жидкий кремовый скульптор 02","27/9/2023","Здравствуйте. Подскажите оттенок 02 жидкого скульптора и 02 кремового скульптора совпадают??они одинаковые или разные???","Gz-b1IoBtm_3_oXdj1IE","https://www.wildberries.ru/catalog/170057513/detail.aspx?targetUrl=GP"]
[4631160166198,150359473,"Стойкие матовые тени-карандаш для глаз в стике CHAMOISEE","11/10/2023","Здравствуйте,если на слизистую в качестве кайала нанести,то дадут они держатся?","EaY7HosBHA76Ev-coHvk","https://www.wildberries.ru/catalog/169851850/detail.aspx?targetUrl=GP"]
[4631160166204,150359474,"Стойкие матовые тени-карандаш для глаз в стике RUST","22/9/2023","Теплый коричневый уходит в рыжеватый? На картинке уходит уточните пожалуйста","TVkQvYoBEfQyvY3W5pp5","https://www.wildberries.ru/catalog/170033635/detail.aspx?targetUrl=GP"]
[4631160503733,149893904,"Скульптор для лица кремовый контуринг для светлой кожи","8/10/2023","Здравствуйте. Для кожи с холодным тоном, какой оттенок подойдёт","7ltFDosBYpYA1RfTZByD","https://www.wildberries.ru/catalog/150367969/detail.aspx?targetUrl=GP"]
[4631160503733,149893904,"Скульптор для лица кремовый контуринг для светлой кожи","3/10/2023","Как оформить возврат если прислали не тот заказ??? Прислали рефил за 600 рублей вместо нормального за 1200","QFvD9YoBseHJVfIh_yUi","https://www.wildberries.ru/catalog/149910037/detail.aspx?targetUrl=GP"]
[4631160503740,149893901,"Скульптор для лица кремовый контуринг для смуглой кожи","3/11/2023","Сколько грамм продукта?","a2UNlYsBseHJVfIhXpAJ","https://www.wildberries.ru/catalog/150224093/detail.aspx?targetUrl=GP"]
[4631160503740,149893901,"Скульптор для лица кремовый контуринг для смуглой кожи","16/10/2023","Здравствуйте! Какой самый тёмный оттенок скульптора в рефиле( для тёмной кожи)?","wmB4OosBEfQyvY3WB_tJ","https://www.wildberries.ru/catalog/170033635/detail.aspx?targetUrl=GP"]
[4631160503771,154505355,"Кисть для растушевки теней N.SHIK №8","17/11/2023","Скажите, а будет ещё выпускаться такая серия??? Очень красивые, но нужные номера уже раскупили(","yG0S3osBEfQyvY3WU8vS","https://www.wildberries.ru/catalog/170057513/detail.aspx?targetUrl=GP"]
[4631160503771,154505355,"Кисть для растушевки теней N.SHIK №8","28/9/2023","Добрый вечер. Интересует кисть к23 аналог мас 217. Не могу найти у Вас?","lz8i3YoBtm_3_oXdhOSP","https://www.wildberries.ru/catalog/150227241/detail.aspx?targetUrl=GP"]
[4631160726330,150374019,"Серо-коричневый карандаш для глаз и слизистой GENOVA","20/11/2023","Здравствуйте, а есть ли просто в черном цвете?","HI_g7YsBliAoiwUeaHxf","https://www.wildberries.ru/catalog/149877368/detail.aspx?targetUrl=GP"]
[4631160726347,150224093,"Матовый карандаш для губ красный MILANO","4/11/2023","Подскажите,пожалуйста, какой оттенок карандаша лучше подойдёт к помаде Cherry?","u2OUmosB00yQAR3IDGWI","https://www.wildberries.ru/catalog/150224092/detail.aspx?targetUrl=GP"]
[4631160726347,150224093,"Матовый карандаш для губ красный MILANO","26/10/2023","Добрый день, вы убрали помаду из каталога? Исчезла из корзины. Или подскажите код. Там, где был новый оттенок \"трюфель\"","D2RCbIsBEfQyvY3WZlrz","https://www.wildberries.ru/catalog/182309289/detail.aspx?targetUrl=GP"]
[4631161115508,170055381,"Система для окрашивания бровей","21/10/2023","Добрый день, скажите пожалуйста, больше суток уже заказ собран продавцом, а продавец планирует вообще отправку товара? Должен прийти завтра,но он ещё даже не отгружен, соответственно доставка задержится на неизвестное количество времени","cGCpUIsBseHJVfIh14bV","https://www.wildberries.ru/catalog/182309289/detail.aspx?targetUrl=GP"]
[4631161115508,170055381,"Система для окрашивания бровей","17/10/2023","Где у краски и оксидов срок годности или производств стоит вообще ?","CmFOPosBEfQyvY3W_DdL","https://www.wildberries.ru/catalog/170035745/detail.aspx?targetUrl=GP"]
[4631161115508,170055381,"Система для окрашивания бровей","17/10/2023","Добрый день,срок годности открыто тюбиков какой ?краски оксидов осветлителей","0EVMPosBtm_3_oXdZ33l","https://www.wildberries.ru/catalog/170019079/detail.aspx?targetUrl=GP"]
[4631161461285,149875692,"Тональный крем с матовым финишем 01","19/11/2023","Здравствуйте новое поступление тонального крема будет в новой упаковке?","bWuR6IsB00yQAR3IyZFh","https://www.wildberries.ru/catalog/170033635/detail.aspx?targetUrl=GP"]
[4631161461285,149875692,"Тональный крем с матовым финишем 01","10/11/2023","скажите пожалуйста для светлой кожи подойдёт 01 тон ? у меня светлая кожа , на холоде щеки розовеют","W06ouYsBtm_3_oXdH3bU","https://www.wildberries.ru/catalog/170038304/detail.aspx?targetUrl=GP"]
[4631161461285,149875692,"Тональный крем с матовым финишем 01","6/11/2023","когда будет оттенок 0.5?","TEzLoosBtm_3_oXdDqeR","https://www.wildberries.ru/catalog/171670601/detail.aspx?targetUrl=GP"]
[4631161461285,149875692,"Тональный крем с матовым финишем 01","30/10/2023","Здравствуйте, это оригинал?","ZGUkgYsBEfQyvY3WPNoH","https://www.wildberries.ru/catalog/182309290/detail.aspx?targetUrl=GP"]
[4631161461285,149875692,"Тональный крем с матовым финишем 01","27/9/2023","Скажите пожалуйста, тональный крем придёт запечатанный ? Очень не хотелось бы получить полупустой тюбик после кого-либо","4lnb2IoBseHJVfIhh5Xz","https://www.wildberries.ru/catalog/171670601/detail.aspx?targetUrl=GP"]
[4631161461292,149875693,"Тональный крем с матовым финишем 02","13/11/2023","Очень ждём  оттенок 1,5","xmkpyYsBseHJVfIhPZ1b","https://www.wildberries.ru/catalog/170057513/detail.aspx?targetUrl=GP"]
[4631161461292,149875693,"Тональный крем с матовым финишем 02","7/11/2023","Здравствуйте 1,5 будет оттенок в ноябре???","gbB8qosBHA76Ev-cnz65","https://www.wildberries.ru/catalog/150382779/detail.aspx?targetUrl=GP"]
[4631161461292,149875693,"Тональный крем с матовым финишем 02","28/10/2023","К сожалению тональный крем не герметичен. Был вскрыт покупателем до меня. Я не стала выкупать. И не смогла оценить сам продукт.","Xaxud4sBHA76Ev-cplw9","https://www.wildberries.ru/catalog/150224092/detail.aspx?targetUrl=GP"]
[4631161461292,149875693,"Тональный крем с матовым финишем 02","22/10/2023","Здравствуйте, когда будет тоналка шик в оттенке 1","oWF7WIsBseHJVfIhXiZk","https://www.wildberries.ru/catalog/170012781/detail.aspx?targetUrl=GP"]
[4631161461292,149875693,"Тональный крем с матовым финишем 02","21/10/2023","Здравствуйте. Для сухой кожи подходит? Не Подчеркнет шелушения? Даже если мега супер увлажнить есть тоны которые могут забиться в мелкие морщинки. Насколько он пластичен для сухой кожи?","oalIVIsBHA76Ev-cK9qV","https://www.wildberries.ru/catalog/184006229/detail.aspx?targetUrl=GP"]
[4631161461292,149875693,"Тональный крем с матовым финишем 02","20/10/2023","Как менять адрес?","Il2zTIsB00yQAR3IArMQ","https://www.wildberries.ru/catalog/150224090/detail.aspx?targetUrl=GP"]
[4631161461292,149875693,"Тональный крем с матовым финишем 02","18/10/2023","Добрый день. Очень долгая доставка! Зачем из Новосибирска в Омск отправлять через Екатеринбург?🙈","5EVCQ4sBtm_3_oXdNMuw","https://www.wildberries.ru/catalog/170032186/detail.aspx?targetUrl=GP"]
[4631161461292,149875693,"Тональный крем с матовым финишем 02","10/10/2023","Добрый день ! Какой подтон  у 1.5 оттенка и оттенка 02? Спасибо","hFt0GYsBYpYA1RfTGdTS","https://www.wildberries.ru/catalog/170624592/detail.aspx?targetUrl=GP"]
[4631161461292,149875693,"Тональный крем с матовым финишем 02","9/10/2023","Здравствуйте! Я люблю легкое сияющее покрытие, подскажите подойдет ли мне этот тон?","jlu5FYsBYpYA1RfTHKK5","https://www.wildberries.ru/catalog/171348914/detail.aspx?targetUrl=GP"]
[4631161461292,149875693,"Тональный крем с матовым финишем 02","2/10/2023","Добрый день!Для сухой кожи подойдет?","tHth8YoBliAoiwUeolw6","https://www.wildberries.ru/catalog/176944508/detail.aspx?targetUrl=GP"]
[4631161461292,149875693,"Тональный крем с матовым финишем 02","26/9/2023","Добрый день! Оттенок 02 с каким подтоном?","sqKq0YoBHA76Ev-cig-f","https://www.wildberries.ru/catalog/149785552/detail.aspx?targetUrl=GP"]
[4631161461292,149875693,"Тональный крем с матовым финишем 02","25/9/2023","Здравствуйте,скажите пожалуйста,для жирной кожи подойдёт?","dHk5zYoBliAoiwUepkU_","https://www.wildberries.ru/catalog/154541672/detail.aspx?targetUrl=GP"]
[4631161461308,149875694,"Тональный крем с матовым финишем 03","12/11/2023","Добрый вечер!Подскажите пожалуйста какой тон будет похож на Velvet cover 102 milk?","_k_mw4sBtm_3_oXdRkrD","https://www.wildberries.ru/catalog/170035133/detail.aspx?targetUrl=GP"]
[4631161461308,149875694,"Тональный крем с матовым финишем 03","22/10/2023","Здравствуйте,будет ли поступление  0.5 и 3.0","0mKeWIsBEfQyvY3Wy_hv","https://www.wildberries.ru/catalog/150367356/detail.aspx?targetUrl=GP"]
[4631161461308,149875694,"Тональный крем с матовым финишем 03","21/9/2023","Здравствуйте,подскажите,какой лучше взять оттенок для умерено загорелой кожи,не для светлой","_lcwuYoBseHJVfIhn5P0","https://www.wildberries.ru/catalog/170049335/detail.aspx?targetUrl=GP"]
[4631161519849,149785552,"Жидкая матовая помада для губ 01 Sand Pink","17/11/2023","Почему фото и видео отличаются по цвету??? Не понимаю на что ориентироваться?! На фото холодный оттенок, а на видео совсем другой","q1K83osBtm_3_oXdiEHf","https://www.wildberries.ru/catalog/170023318/detail.aspx?targetUrl=GP"]
[4631161519849,149785552,"Жидкая матовая помада для губ 01 Sand Pink","24/10/2023","Здравствуйте! Подскажите пожалуйста, 13 оттенок холодный красный или теплый красный и подойдет ли к ней карандаш в оттенке Milano?","yWPOYYsBEfQyvY3WAJcQ","https://www.wildberries.ru/catalog/150382779/detail.aspx?targetUrl=GP"]
[4631161519856,149785554,"Жидкая матовая помада для губ 02 Petal","23/10/2023","Мне прислали гель для ногтей вместо помады,возможен возврат ?знала бы лучше в магазине купила бы","Sl7BXYsB00yQAR3IM_PL","https://www.wildberries.ru/catalog/182309291/detail.aspx?targetUrl=GP"]
[4631161519856,149785554,"Жидкая матовая помада для губ 02 Petal","23/10/2023","Здравствуйте!мне пришла в пакете помада,пришла домой,открыла,там гель для ногтей-возможно поменять?","mqqoXYsBHA76Ev-cjoe8","https://www.wildberries.ru/catalog/149753555/detail.aspx?targetUrl=GP"]
[4631161519856,149785554,"Жидкая матовая помада для губ 02 Petal","23/10/2023","Здравствуйте! 02 Petal холодный оттенок?","PmMFXIsBEfQyvY3WGCnp","https://www.wildberries.ru/catalog/167277331/detail.aspx?targetUrl=GP"]
[4631161519870,149785556,"Жидкая матовая помада для губ 04 Caramel","19/11/2023","Здравствуйте! Мне как то не понятно???? Это что я получила? Вообще-то я заказала себе жидкую помаду ! Коробочка очень хорошо запакована , а внутри как то что то не понятно ! Бальзам , да еще открытый и просроченный ! Это что за поставки ????? Как мне быть ?","SWuB5osB00yQAR3IBit6","https://www.wildberries.ru/catalog/158056797/detail.aspx?targetUrl=GP"]
[4631161519870,149785556,"Жидкая матовая помада для губ 04 Caramel","16/11/2023","12 номер сняли с производства? почему его нигде нет в наличии?","CmvI14sBseHJVfIhFTip","https://www.wildberries.ru/catalog/150224091/detail.aspx?targetUrl=GP"]
[4631161519870,149785556,"Жидкая матовая помада для губ 04 Caramel","28/10/2023","Здравствуйте, у вас оригинальная продукция Shik?","SGXgd4sBEfQyvY3W2zIq","https://www.wildberries.ru/catalog/170033635/detail.aspx?targetUrl=GP"]
[4631161519887,149785558,"Жидкая матовая помада для губ 05 Rosewood","19/10/2023","Цвет не понравился. Можно вернуть помаду?","1WEBSYsBEfQyvY3WVeMF","https://www.wildberries.ru/catalog/149785554/detail.aspx?targetUrl=GP"]
[4631161519894,149785559,"Жидкая матовая помада для губ 06 Berry","10/11/2023","Добрый день . Когда будет 12 оттенок","eU43uosBtm_3_oXdLIZb","https://www.wildberries.ru/catalog/149785554/detail.aspx?targetUrl=GP"]
[4631161519894,149785559,"Жидкая матовая помада для губ 06 Berry","8/11/2023","был 07 тон, который нравился, а сейчас это под каким названием?","8GUqsIsB00yQAR3IwRaL","https://www.wildberries.ru/catalog/169856314/detail.aspx?targetUrl=GP"]
[4631161519894,149785559,"Жидкая матовая помада для губ 06 Berry","29/10/2023","Здравствуйте, 6 оттенок berry холодный или теплый","6awAe4sBHA76Ev-ce4_4","https://www.wildberries.ru/catalog/182309290/detail.aspx?targetUrl=GP"]
[4631161519917,149877369,"Консилер для лица и под глаза для белоснежной кожи 0.5","4/11/2023","Консилер в стекле или пластике?","QIZTm4sBliAoiwUe5YeZ","https://www.wildberries.ru/catalog/182309289/detail.aspx?targetUrl=GP"]
[4631161519917,149877369,"Консилер для лица и под глаза для белоснежной кожи 0.5","9/10/2023","Добрый день! По ошибке заказала оттенок 0,5. Возможно ли совершить возврат, заказ забирала не сама. Заказываю у вас уже 3 раз оттенок 2.  Упаковка не вскрыта.","p31rE4sBliAoiwUeokYz","https://www.wildberries.ru/catalog/169847082/detail.aspx?targetUrl=GP"]
[4631161519924,150227243,"Пудра для лица компактная сияющая для средней кожи","16/11/2023","Здравствуйте! Пудра приходит в коробочке?","o20u2IsBEfQyvY3WoxZB","https://www.wildberries.ru/catalog/149881386/detail.aspx?targetUrl=GP"]
[4631161519924,150227243,"Пудра для лица компактная сияющая для средней кожи","8/11/2023","здравствуйте! у пудры есть spf?","PGl2rosBEfQyvY3Wgk0D","https://www.wildberries.ru/catalog/149881386/detail.aspx?targetUrl=GP"]
[4631161519924,150227243,"Пудра для лица компактная сияющая для средней кожи","4/11/2023","здравствуйте , комедогенная пудра?","9UtfmYsBtm_3_oXd5_Po","https://www.wildberries.ru/catalog/178065430/detail.aspx?targetUrl=GP"]
[4631161519924,150227243,"Пудра для лица компактная сияющая для средней кожи","19/10/2023","Добрый день, прилагается ли к пудре спонж для ее нанесения на лицо?","7l5nSYsBYpYA1RfT2rwy","https://www.wildberries.ru/catalog/150367356/detail.aspx?targetUrl=GP"]
[4631161519924,150227243,"Пудра для лица компактная сияющая для средней кожи","21/9/2023","Добрый вечер! Заказала пудру, дома уже обнаружила что не тот оттенок, пудра целая, не трогала, защитная пленка целая. возможно ли сдать заказ?","Y1ZWuYoBYpYA1RfT3zMF","https://www.wildberries.ru/catalog/149785554/detail.aspx?targetUrl=GP"]
[4631161668554,149881384,"Блеск для губ нежно-розовый увлажняющий","1/11/2023","почему цена так взлетела, были же по 500","fK30iYsBHA76Ev-cxrRV","https://www.wildberries.ru/catalog/170034468/detail.aspx?targetUrl=GP"]
[4631161668554,149881384,"Блеск для губ нежно-розовый увлажняющий","25/9/2023","Здравствуйте, тон 2 для меня холодный, тон 1 будет теплее?","clZvzYoB00yQAR3IH0Hb","https://www.wildberries.ru/catalog/170034468/detail.aspx?targetUrl=GP"]
[4631161668561,149881386,"Блеск для губ розовый увлажняющий","18/11/2023","Добрый день. Скажите пожалуйста когда будет оттенок 02?","SlJj4YsBtm_3_oXdVKKz","https://www.wildberries.ru/catalog/171348914/detail.aspx?targetUrl=GP"]
[4631161668561,149881386,"Блеск для губ розовый увлажняющий","7/11/2023","Здравствуйте!03 ожидается?","8Yc0qYsBliAoiwUeDouK","https://www.wildberries.ru/catalog/150224092/detail.aspx?targetUrl=GP"]
[4631161668561,149881386,"Блеск для губ розовый увлажняющий","6/11/2023","когда в наличие 02 будет подскажите прошу вас ^^","hmhUposBEfQyvY3Wp7vk","https://www.wildberries.ru/catalog/149875694/detail.aspx?targetUrl=GP"]
[4631161668561,149881386,"Блеск для губ розовый увлажняющий","6/11/2023","здравствуйте, подскажите пожалуйста когда блеск в оттенке 02 появится?","N2M-o4sB00yQAR3I8v8u","https://www.wildberries.ru/catalog/149875693/detail.aspx?targetUrl=GP"]
[4631161668561,149881386,"Блеск для губ розовый увлажняющий","29/10/2023","Здравствуйте оригинал","6awCfYsBHA76Ev-cRMVe","https://www.wildberries.ru/catalog/170057513/detail.aspx?targetUrl=GP"]
[4631161668561,149881386,"Блеск для губ розовый увлажняющий","23/10/2023","Как будем решать вопрос пришел тухлый блеск","ZmNvXIsBEfQyvY3WizRh","https://www.wildberries.ru/catalog/170054370/detail.aspx?targetUrl=GP"]
[4631161668561,149881386,"Блеск для губ розовый увлажняющий","23/10/2023","Для чего торговать тухлой продукцией","Wl5rXIsB00yQAR3I_9D6","https://www.wildberries.ru/catalog/153504118/detail.aspx?targetUrl=GP"]
[4631161668561,149881386,"Блеск для губ розовый увлажняющий","10/10/2023","Здравствуйте! Посоветуйте подходящий карандаш  для блеска в 02 оттенке.","hFrTGYsB00yQAR3IVqW7","https://www.wildberries.ru/catalog/170038304/detail.aspx?targetUrl=GP"]
[4631161668561,149881386,"Блеск для губ розовый увлажняющий","22/9/2023","Здравствуйте. Испытывается ли косметика на животных?","7lXrvIoB00yQAR3IlTHu","https://www.wildberries.ru/catalog/149875696/detail.aspx?targetUrl=GP"]
[4631161668578,149881387,"Блеск для губ бежевый увлажняющий","16/11/2023","Когда будет в наличии блеск 03","w2rh1YsBseHJVfIht_jS","https://www.wildberries.ru/catalog/182309291/detail.aspx?targetUrl=GP"]
[4631161668578,149881387,"Блеск для губ бежевый увлажняющий","13/11/2023","Здравствуйте. Будет ли еще поступление 02 оттенка?","ammcyosBseHJVfIh4MTE","https://www.wildberries.ru/catalog/149875693/detail.aspx?targetUrl=GP"]
[4631161668578,149881387,"Блеск для губ бежевый увлажняющий","11/11/2023","03 это какой цвет? непонятно только нащвания указаны","ZImYv4sBliAoiwUeMFcP","https://www.wildberries.ru/catalog/170033635/detail.aspx?targetUrl=GP"]
[4631161668578,149881387,"Блеск для губ бежевый увлажняющий","31/10/2023","Подскажите пожалуйста, когда будет 03 оттенок ?","2WYMhosBEfQyvY3Wxjlu","https://www.wildberries.ru/catalog/150382776/detail.aspx?targetUrl=GP"]
[4631161668578,149881387,"Блеск для губ бежевый увлажняющий","30/10/2023","Здравствуйте, подскажите когда появиться блеск в оттенке 03","nGVhgIsBEfQyvY3WWsUi","https://www.wildberries.ru/catalog/182309289/detail.aspx?targetUrl=GP"]
[4631161668578,149881387,"Блеск для губ бежевый увлажняющий","29/10/2023","Арт. 149881387 когда в наличии будет? Никак не могу заказать. Которую неделю жду поставку","Laxge4sBHA76Ev-chpra","https://www.wildberries.ru/catalog/153506236/detail.aspx?targetUrl=GP"]
[4631161668578,149881387,"Блеск для губ бежевый увлажняющий","21/10/2023","Здравствуйте, подскажите какой срок годности после вскрытия?","Rqn9UosBHA76Ev-cw8FU","https://www.wildberries.ru/catalog/150382776/detail.aspx?targetUrl=GP"]
[4631161668578,149881387,"Блеск для губ бежевый увлажняющий","13/10/2023","Здравствуйте, когда появился оттенок 03?","MqdPKYsBHA76Ev-cxyds","https://www.wildberries.ru/catalog/149910037/detail.aspx?targetUrl=GP"]
[4631161668578,149881387,"Блеск для губ бежевый увлажняющий","13/10/2023","Здравствуйте, когда в наличии будет оттенок 03?","k1y8J4sBYpYA1RfTLKnF","https://www.wildberries.ru/catalog/149881387/detail.aspx?targetUrl=GP"]
[4631161668578,149881387,"Блеск для губ бежевый увлажняющий","13/10/2023","Здравствуйте, когда в наличии будет оттенок 03?","pKe8J4sBHA76Ev-cKQgS","https://www.wildberries.ru/catalog/170018567/detail.aspx?targetUrl=GP"]
[4631161668578,149881387,"Блеск для губ бежевый увлажняющий","5/10/2023","Добрый день!  Заказывала блеск тон 03,пришел 02. Возврат, прошу не снимать 100 руб","NVk7_4oB00yQAR3IGBHc","https://www.wildberries.ru/catalog/153319561/detail.aspx?targetUrl=GP"]
[4631161668585,149881388,"Блеск для губ персиковый увлажняющий","11/11/2023","Здравствуйте ! Подскажите , пожалуйста, какие оттенки являются холодными ?","wokkvosBliAoiwUePSyZ","https://www.wildberries.ru/catalog/170018021/detail.aspx?targetUrl=GP"]
[4631161668585,149881388,"Блеск для губ персиковый увлажняющий","7/11/2023","Здравствуйте! Когда появится защитка на продукции? Для продажи на маркетплейсах она необходима. Не все же покупатели добросовестные. Не хочется пользоваться блеском после кого-то.","dYdqqIsBliAoiwUefXh8","https://www.wildberries.ru/catalog/170018021/detail.aspx?targetUrl=GP"]
[4631161668608,149881390,"Блеск для губ винный увлажняющий","16/11/2023","Здравствуйте! Приобрела блеск в оттенке 06. Цвет очень нравится. Актуален для наступающего сезона. Является ли блеск \"плампером\", т.к. при нанесении ощущается покалывание на губах. Благодарю за ответ.","YbT32IsBHA76Ev-cK3Oa","https://www.wildberries.ru/catalog/150367969/detail.aspx?targetUrl=GP"]
[4631161668608,149881390,"Блеск для губ винный увлажняющий","15/11/2023","какой объем у блеска?","iWyP0YsBEfQyvY3WnDRr","https://www.wildberries.ru/catalog/170054370/detail.aspx?targetUrl=GP"]
[4631161668608,149881390,"Блеск для губ винный увлажняющий","20/10/2023","Добрый вечер . Сколько срок годности блесков для губ?","HF2HTYsB00yQAR3Ivcf7","https://www.wildberries.ru/catalog/169851850/detail.aspx?targetUrl=GP"]
[4631161668608,149881390,"Блеск для губ винный увлажняющий","23/9/2023","Желтит ли зубы винный оттенок?","uFaOwYoBYpYA1RfTZaVD","https://www.wildberries.ru/catalog/156370631/detail.aspx?targetUrl=GP"]
[4631161939432,152238229,"Эмульсия для лица корейская увлажняющая гиалуроновая","11/11/2023","мне пришла коробка пустая без самого флакона ,как быть ?","pGqqvosBEfQyvY3WX4-W","https://www.wildberries.ru/catalog/170051454/detail.aspx?targetUrl=GP"]
[4631161939432,152238229,"Эмульсия для лица корейская увлажняющая гиалуроновая","6/11/2023","надо ли смывать ? или можно просто протереть ватным диском?","4kwVposBtm_3_oXdQv9M","https://www.wildberries.ru/catalog/170055381/detail.aspx?targetUrl=GP"]
[4631161939432,152238229,"Эмульсия для лица корейская увлажняющая гиалуроновая","5/11/2023","Здравствуйте,подскажите пожалуйста нужно ли смывать?","h0zJnosBtm_3_oXdL1oZ","https://www.wildberries.ru/catalog/152438768/detail.aspx?targetUrl=GP"]
[4631161939432,152238229,"Эмульсия для лица корейская увлажняющая гиалуроновая","22/9/2023","Здравствуйте. Подскажите  пожалуйста, можно ли использовать эмульсию на ночь?Тестировала в магазине, эмульсия очень понравилась, но довольно силиконстая, не будет ли забивать поры при использовании в вечернем уходе?","BFfCvooBseHJVfIhH-mH","https://www.wildberries.ru/catalog/150367356/detail.aspx?targetUrl=GP"]
[4631161939449,150224370,"Мицеллярная вода для снятия макияжа","7/11/2023","Когда появится в наличии","r7AAqosBHA76Ev-cZTBg","https://www.wildberries.ru/catalog/182309289/detail.aspx?targetUrl=GP"]
[4631161939449,150224370,"Мицеллярная вода для снятия макияжа","2/11/2023","Хотела узнать состав товара ,нигде ничего не написано","4GV2kYsBseHJVfIhNFfE","https://www.wildberries.ru/catalog/170011402/detail.aspx?targetUrl=GP"]
[4631161939449,150224370,"Мицеллярная вода для снятия макияжа","27/10/2023","Здравствуйте, подскажите пожалуйста, подходит ли данный продукт для нарощенных ресничек?","b6sGcIsBHA76Ev-cosoy","https://www.wildberries.ru/catalog/152281086/detail.aspx?targetUrl=GP"]
[4631161939456,152438767,"Пенка для умывания очищающая","4/11/2023","Здравствуйте. Как часто можно использовать пенку? Утром и вечером ежедневно?","tWPImYsB00yQAR3IIVCf","https://www.wildberries.ru/catalog/182309289/detail.aspx?targetUrl=GP"]
[4631161939456,152438767,"Пенка для умывания очищающая","25/9/2023","Заказала пенку 100 мл от шик, но отдушка совсем другая пришла недели в оригинале , что я брала до этого  (была  с легким цветочным ароматом)и сушит кожу. У меня вопрос :была изменена отдушка или мне пришла подделка?","6FrGzYoBEfQyvY3WA6zv","https://www.wildberries.ru/catalog/150382778/detail.aspx?targetUrl=GP"]
[4631161971463,156370631,"Увлажняющая база под макияж с SPF15 и сияющим финишем","13/11/2023","вот вы повесили фотку с табличкой sale, а в чем этот sale заключается? уже давно жду скидок на базу, а цена всегда одна +/-, о чем говорит график изменения цены. так что по скидке, уважаемые?","Lk88yYsBtm_3_oXdhbwG","https://www.wildberries.ru/catalog/149881390/detail.aspx?targetUrl=GP"]
[4631161971463,156370631,"Увлажняющая база под макияж с SPF15 и сияющим финишем","10/11/2023","здравствуйте, подскажите пожалуйста, какой номер?","104QuIsBtm_3_oXdm00g","https://www.wildberries.ru/catalog/149875693/detail.aspx?targetUrl=GP"]
[4631161971463,156370631,"Увлажняющая база под макияж с SPF15 и сияющим финишем","21/10/2023","Здравствуйте)помешает ли использование дневного крема нежирного перед нанесением базы?","G11PUYsB00yQAR3IL_9F","https://www.wildberries.ru/catalog/178065430/detail.aspx?targetUrl=GP"]
[4631161971463,156370631,"Увлажняющая база под макияж с SPF15 и сияющим финишем","3/10/2023","Здравствуйте! Подскажите пожалуйста, в течении какого (примерно) времени держит макияж? У меня проблема с тем, что кожа жирная и уже через пару часов, любой тон потихоньку скатывается.","E1yo9IoBEfQyvY3WJ9vv","https://www.wildberries.ru/catalog/182309289/detail.aspx?targetUrl=GP"]
[4631161971463,156370631,"Увлажняющая база под макияж с SPF15 и сияющим финишем","27/9/2023","Здравствуйте ! Это 01 номер ? Вижу что есть на сайте номер 2 , подскажите это номер 1? Или можно артикул на номер 01","cKKg14oBHA76Ev-cO3vW","https://www.wildberries.ru/catalog/178065430/detail.aspx?targetUrl=GP"]
[4631161971463,156370631,"Увлажняющая база под макияж с SPF15 и сияющим финишем","23/9/2023","Данный товар отличается упаковкой от 50 мл,на колпачке не выпуско а наклейка наклейка","A1X7wIoB00yQAR3I1GfD","https://www.wildberries.ru/catalog/170052788/detail.aspx?targetUrl=GP"]
[4631161987259,152236971,"Антисептик спрей санитайзер для рук дезинфицирующий 2 шт","27/10/2023","Жду поступления антисептиков , на когда ждать ? В городах снова сезон простуд и вирусов )","-av2cIsBHA76Ev-cWuGj","https://www.wildberries.ru/catalog/170033635/detail.aspx?targetUrl=GP"]
[4631161987266,152235502,"Антисептик-гель для рук дезинфицирующий санитайзер 2 шт","17/11/2023","Когда будет в наличии?","Y21c3YsBEfQyvY3Wb6ye","https://www.wildberries.ru/catalog/153319561/detail.aspx?targetUrl=GP"]
[4631161987266,152235502,"Антисептик-гель для рук дезинфицирующий санитайзер 2 шт","17/11/2023","Здравствуйте!Скоро ли будет антисептик в наличии?","LlEH3YsBtm_3_oXd9-2y","https://www.wildberries.ru/catalog/150227243/detail.aspx?targetUrl=GP"]
[4631161987266,152235502,"Антисептик-гель для рук дезинфицирующий санитайзер 2 шт","19/10/2023","Здравствуйте! когда появится в наличии?","iYCXSIsBliAoiwUei4Qj","https://www.wildberries.ru/catalog/170010057/detail.aspx?targetUrl=GP"]
[4631161987273,170012407,"Шпатели для воска узкие для бровей деревянные 300 штук","17/11/2023","Где мой товар!? Жду уже 2 недели !","FWuX24sBseHJVfIhOJ9x","https://www.wildberries.ru/catalog/149785558/detail.aspx?targetUrl=GP"]
[4631161987273,170012407,"Шпатели для воска узкие для бровей деревянные 300 штук","14/11/2023","Заказала шпатели, вместо 300 штук пришло 100штук, к сожалению онаружила только в студии при вскрытии, тк на пупырке написано 300шт","4YrUzYsBliAoiwUeDXtI","https://www.wildberries.ru/catalog/152235502/detail.aspx?targetUrl=GP"]
[4631161987273,170012407,"Шпатели для воска узкие для бровей деревянные 300 штук","13/11/2023","Вместо 300 шт, пришло 100 шт, из-за этого отказ! Просьба разобраться! Сейчас сделаю повторный заказ, надеюсь придёт полностью все.","9U_QyIsBtm_3_oXdKK_u","https://www.wildberries.ru/catalog/182309289/detail.aspx?targetUrl=GP"]
[4631161987334,149753553,"Тени для век жидкие №08 блестящие бежевые","11/11/2023","Вместо теней пришел Хайлайтер другой фирмы!!!! отказ от вашего товара платный 100 руб. хотя от остальных товаров бесплатно. сотрудник пункта выдачи сделала отмену и ее оштрафуют. как мне заказать тени? чтобы пришел товар тот что заказывала? кто отвечает за отправку и кто несет ответвенность в случае если пришел не тот товар!?","DbGcv4sBHA76Ev-cMOed","https://www.wildberries.ru/catalog/182309290/detail.aspx?targetUrl=GP"]
[4631161987341,149753555,"Тени для век жидкие №09 блестящие золотые","24/10/2023","Здравствуйте! Как сопоставить названия оттенков в описании и нумерацию с фото #5? Мне нужен оттенок #8 с фото, но как узнать его название?","WGNMYIsBEfQyvY3WeHLC","https://www.wildberries.ru/catalog/171093063/detail.aspx?targetUrl=GP"]
[4631162062047,149910037,"Скульптор для лица кремовый  рефил","20/11/2023","Здравствуйте, подскажите какой оттенок румян подойдёт с скульптору в оттенке 01","5Ldm7YsBHA76Ev-cru6H","https://www.wildberries.ru/catalog/170011402/detail.aspx?targetUrl=GP"]
[4631162062047,149910037,"Скульптор для лица кремовый  рефил","29/10/2023","Здравствуйте, а чем отличается от 150359774? Только упаковкой?","BoQjfYsBliAoiwUeJT2S","https://www.wildberries.ru/catalog/170010057/detail.aspx?targetUrl=GP"]
[4631162062047,149910037,"Скульптор для лица кремовый  рефил","26/10/2023","Чем закреплять его?Выпадает","AGJtbIsBseHJVfIhfpEI","https://www.wildberries.ru/catalog/182309289/detail.aspx?targetUrl=GP"]
[4631162062047,149910037,"Скульптор для лица кремовый  рефил","21/10/2023","Здравствуйте, подскажите какой срок годности после вскрытия?","fmICU4sBEfQyvY3WQY_2","https://www.wildberries.ru/catalog/170033635/detail.aspx?targetUrl=GP"]
[4631162062047,149910037,"Скульптор для лица кремовый  рефил","5/10/2023","Здравствуйте.Подскажите срок годности партии.","l1slAYsBseHJVfIhJdAs","https://www.wildberries.ru/catalog/149875695/detail.aspx?targetUrl=GP"]
[4631162062054,149910040,"Скульптор для лица кремовый  рефил","2/10/2023","Здравствуйте ! Сменный рефил можно приобрести отдельно ?","5FiK74oB00yQAR3IFCrP","https://www.wildberries.ru/catalog/149875693/detail.aspx?targetUrl=GP"]
[4631162062054,149910040,"Скульптор для лица кремовый  рефил","24/9/2023","Здравствуйте, какой вес товара без упаковки?","5VoKyIoBEfQyvY3WoUaM","https://www.wildberries.ru/catalog/150367356/detail.aspx?targetUrl=GP"]
[4631162151734,149753547,"Тени для век жидкие №12 блестящие голубые","27/9/2023","Здравствуйте. Планируются поставки 12 оттенка? Очень давно его нет в наличии.","4Xnm14oBliAoiwUeNP5U","https://www.wildberries.ru/catalog/150407907/detail.aspx?targetUrl=GP"]
[4631162151741,154665882,"Набор - кисти для макияжа, спонж и косметичка","5/10/2023","Добрый день! Почему у вас такие цены? На сайте esse.store такой набор стоит 6825","tl0F_4oBEfQyvY3WUHKO","https://www.wildberries.ru/catalog/182309290/detail.aspx?targetUrl=GP"]
[4631162210677,152281086,"Крем для рук увлажняющий питательный набор 2 шт","19/11/2023","Этот лохатрон где мой второй крем? Верните мне деньги","Omt954sB00yQAR3Ijl17","https://www.wildberries.ru/catalog/150367969/detail.aspx?targetUrl=GP"]
[4631162210677,152281086,"Крем для рук увлажняющий питательный набор 2 шт","9/11/2023","Здравствуйте. Отдушка с каким запахом?","PLD6s4sBHA76Ev-cuvRJ","https://www.wildberries.ru/catalog/150367969/detail.aspx?targetUrl=GP"]
[4631162210677,152281086,"Крем для рук увлажняющий питательный набор 2 шт","7/11/2023","Добрый день, пришел один крем вместо двух !","uWTfqIsB00yQAR3IDXQQ","https://www.wildberries.ru/catalog/150382776/detail.aspx?targetUrl=GP"]
[4631162210677,152281086,"Крем для рук увлажняющий питательный набор 2 шт","1/11/2023","Здравствуйте! Заказывала набор с кремом (2 шт). Из двух пришёл один тюбик крема! Как возможно получить второй тюбик? Либо осуществить возврат и вернуть деньги?","c2KiiosB00yQAR3InysX","https://www.wildberries.ru/catalog/182309289/detail.aspx?targetUrl=GP"]
[4631162210677,152281086,"Крем для рук увлажняющий питательный набор 2 шт","1/11/2023","скажите пожалуйста вы что издеваетесь над людьми, почему всё время вместо двух кремов приходит один, я вот люблю косметику  Shik, но после такого отношения желание что либо заказывать пропадает, уже как-то ничего от вас не нужно","qWRqiosBseHJVfIhK7sj","https://www.wildberries.ru/catalog/171348914/detail.aspx?targetUrl=GP"]
[4631162210677,152281086,"Крем для рук увлажняющий питательный набор 2 шт","30/10/2023","Здравствуйте! Пришёл один тюбик с кремом, вместо двух, как написано в описании!!! Как мне получить второй тюбик крема из набора?","xq0DgosBHA76Ev-cRCel","https://www.wildberries.ru/catalog/149785553/detail.aspx?targetUrl=GP"]
[4631162210677,152281086,"Крем для рук увлажняющий питательный набор 2 шт","20/10/2023","Время шло а крем так и приходил 1 шт вместо 2-х!!!! Думаю легко валить все на маркетплейс, а у меня на упаковке продавца  было написано 2 шт а запаковали один, просто на дурака, люди заказывают за 250 р 2 шт а по факту приходит один крем за 250 р. По-моему попахивает просто мошенничеством , мало кто будет обратно отправлять товар как брак что бы вернуть 250 р когда за его возврат возьмут 100!!!! А у продавца один ответ на этот вопрос, как робот, моя хата с краю называется! Магазин данный не рекомендую , просто пролистывайте …","DmJiTosBEfQyvY3WrkJq","https://www.wildberries.ru/catalog/170055381/detail.aspx?targetUrl=GP"]
[4631162328808,167722752,"Набор - тонер, эмульсия, крем","10/10/2023","Здравствуйте, подойдёт ли ваш уход комбинированной коже склонной к покраснениям? Покраснения после ухода не возобновятся?","QX3bGIsBliAoiwUeDJ9-","https://www.wildberries.ru/catalog/170055381/detail.aspx?targetUrl=GP"]
[4631162991590,153319561,"Солнцезащитный крем для лица и тела SPF30+","13/11/2023","Здравствуйте,этот крем можно использовать как ежедневный увлажняющий солнцезащитный зимой?","gGnyyYsBseHJVfIhbrbI","https://www.wildberries.ru/catalog/150382776/detail.aspx?targetUrl=GP"]
[4631162991590,153319561,"Солнцезащитный крем для лица и тела SPF30+","6/11/2023","Здравствуйте, когда будет в наличии?","rkyvo4sBtm_3_oXdmrjC","https://www.wildberries.ru/catalog/150367356/detail.aspx?targetUrl=GP"]
[4631162991590,153319561,"Солнцезащитный крем для лица и тела SPF30+","21/10/2023","Здравствуйте, когда будет в наличии?","xF5VUosB00yQAR3I5Bj_","https://www.wildberries.ru/catalog/182309289/detail.aspx?targetUrl=GP"]
[4631162991590,153319561,"Солнцезащитный крем для лица и тела SPF30+","19/10/2023","Здравствуйте. Возрастные ограничения какие?","3V1xSYsB00yQAR3IFYZe","https://www.wildberries.ru/catalog/170057513/detail.aspx?targetUrl=GP"]
[4631162991590,153319561,"Солнцезащитный крем для лица и тела SPF30+","7/10/2023","Можно использовать крем круглогодично, не только летом в солнечный день?","dVynB4sBseHJVfIhyCa0","https://www.wildberries.ru/catalog/170034468/detail.aspx?targetUrl=GP"]
[4631162991590,153319561,"Солнцезащитный крем для лица и тела SPF30+","28/9/2023","Здравствуйте, когда будет поступление?","4z9P24oBtm_3_oXdisFs","https://www.wildberries.ru/catalog/149893901/detail.aspx?targetUrl=GP"]
[4631163849104,170054370,"Профессиональный набор для ламинирования и укладки бровей","16/11/2023","Люблю косметику декоративную вашего бренда. Захотелось, как бровисту, попробовать ваши продукты и для бровей. Исправьте описание товара. На карточке товара написано до 30 процедур, в описании до 45 процедур, а в ответах на вопросы к товару до 20 процедур. Стоит найти общий знаменатель","vGwr14sBEfQyvY3W4-Yv","https://www.wildberries.ru/catalog/170032186/detail.aspx?targetUrl=GP"]
[4631163849104,170054370,"Профессиональный набор для ламинирования и укладки бровей","12/11/2023","Здравствуйте, на каком этапе ламинирования можно окрашивать брови?","sE_qxYsBtm_3_oXdOXiw","https://www.wildberries.ru/catalog/165488045/detail.aspx?targetUrl=GP"]
[4631163849104,170054370,"Профессиональный набор для ламинирования и укладки бровей","7/11/2023","Я дико извиняюсь. Доставка затянула нереально… просто никакой информации больше по доставке. Последний раз 4 числа была.","JWSuqosB00yQAR3IjKf9","https://www.wildberries.ru/catalog/150359775/detail.aspx?targetUrl=GP"]
[4631163849104,170054370,"Профессиональный набор для ламинирования и укладки бровей","4/11/2023","Здравствуйте. Когда будет в наличии?","62cLmIsBEfQyvY3WSpaG","https://www.wildberries.ru/catalog/153504119/detail.aspx?targetUrl=GP"]
[4631163849104,170054370,"Профессиональный набор для ламинирования и укладки бровей","31/10/2023","Цена в прикол? С какого перепугу так задрали ценник, золотые составы что ли","wGaZh4sBEfQyvY3WJmGH","https://www.wildberries.ru/catalog/152466867/detail.aspx?targetUrl=GP"]
[4631163849104,170054370,"Профессиональный набор для ламинирования и укладки бровей","29/10/2023","Здравствуйте, возможно ли заказать отдельно 1 состав ?","OWVXfYsBEfQyvY3WV5dc","https://www.wildberries.ru/catalog/170038304/detail.aspx?targetUrl=GP"]
[4631163849104,170054370,"Профессиональный набор для ламинирования и укладки бровей","22/10/2023","Можно ли после составов ламинирования SHIK окрашивать брови краской другого бренда?","nmEPWIsBseHJVfIhFBqq","https://www.wildberries.ru/catalog/180860978/detail.aspx?targetUrl=GP"]
[4631163849104,170054370,"Профессиональный набор для ламинирования и укладки бровей","21/10/2023","Здравствуйте, подскажите объём (мл) каждого тюбика?","il6eUYsB00yQAR3IoAaU","https://www.wildberries.ru/catalog/150359775/detail.aspx?targetUrl=GP"]
[4631163849104,170054370,"Профессиональный набор для ламинирования и укладки бровей","13/10/2023","Здравствуйте , составы халяль? Девочки мусульманки спрашивают","daeqJ4sBHA76Ev-cHgcA","https://www.wildberries.ru/catalog/150382777/detail.aspx?targetUrl=GP"]
[4631163849104,170054370,"Профессиональный набор для ламинирования и укладки бровей","12/10/2023","Здравствуйте, какой срок годности после вскрытия тюбика ?","BV_rIosBEfQyvY3Wy5G2","https://www.wildberries.ru/catalog/150253408/detail.aspx?targetUrl=GP"]
[4631163849104,170054370,"Профессиональный набор для ламинирования и укладки бровей","27/9/2023","Здравствуйте, возникают шелушения по всей брови после использования данных составов, выдержка 5-6 мин на волос средней жесткости. Как избежать этих шелушений ?","71Zt2IoB00yQAR3IivwV","https://www.wildberries.ru/catalog/150359774/detail.aspx?targetUrl=GP"]
[4631163849104,170054370,"Профессиональный набор для ламинирования и укладки бровей","24/9/2023","Здравствуйте! Подходят ли краски других фирм для окрашивания после ламинирования?","f1gHyYoBseHJVfIhGIyw","https://www.wildberries.ru/catalog/150359775/detail.aspx?targetUrl=GP"]
[4631163849104,170054370,"Профессиональный набор для ламинирования и укладки бровей","22/9/2023","Здраствуйте, как часто можно делать себе ламинирование бровей? 1 раз в месяц? На сколько процедур рассчитан набор? Сколько срок годности после вскрытия?","CFbEu4oBYpYA1RfTNUoe","https://www.wildberries.ru/catalog/150224092/detail.aspx?targetUrl=GP"]
[4631163960625,152434737,"Гель для душа увлажняющий парфюмированный без парабенов","13/11/2023","здравствуйте, зачем вы удалили мой отзыв?","6U_9xosBtm_3_oXd4H9G","https://www.wildberries.ru/catalog/170032186/detail.aspx?targetUrl=GP"]
[4631163960632,152435007,"Крем для тела увлажняющий парфюмированнный с пребиотиками","11/10/2023","В составе ниациномид. Сколько раз в день можно пользоваться? Можно использовать для ухода на постоянной основе? Спасибо)","5H4kH4sBliAoiwUe4wWr","https://www.wildberries.ru/catalog/150378847/detail.aspx?targetUrl=GP"]
[4631163960632,152435007,"Крем для тела увлажняющий парфюмированнный с пребиотиками","3/10/2023","Здравствуйте. Почему этот товар у вас есть в наличии, а когда кладёшь в корзину пишут что его нет в наличии","YFx484oBEfQyvY3Wd8mZ","https://www.wildberries.ru/catalog/150382779/detail.aspx?targetUrl=GP"]
[4631164178944,152467036,"Маска для лица тканевая корейская увлажняющая 3 шт","11/11/2023","Почему товар так долго задерживается ?","27Ejv4sBHA76Ev-ccNhX","https://www.wildberries.ru/catalog/154541675/detail.aspx?targetUrl=GP"]
[4631164178944,152467036,"Маска для лица тканевая корейская увлажняющая 3 шт","5/11/2023","здравствуйте! shik это российская косметика, производится  в том числе и в Корее?","pGhxoYsBEfQyvY3WnlaJ","https://www.wildberries.ru/catalog/153506236/detail.aspx?targetUrl=GP"]
[4631164178951,152467037,"Маска для лица тканевая корейская омолаживающая 3 шт","13/11/2023","здравствуйте, какая кислота входит в состав омолаживающей маски?","j2vVyosBEfQyvY3WppRY","https://www.wildberries.ru/catalog/150382779/detail.aspx?targetUrl=GP"]
[4631164178951,152467037,"Маска для лица тканевая корейская омолаживающая 3 шт","4/10/2023","Здравствуйте ! А можно ли тканевые омолаживающие маски для беременных?","VVt7-ooBseHJVfIhn2l6","https://www.wildberries.ru/catalog/150382776/detail.aspx?targetUrl=GP"]
[4631164178982,152467043,"Корейская тканевая маска для лица омолаживающая набор 3 шт","18/11/2023","Добрый день, скажите как ей пользоваться, нужно ли смывать","x41u4osBliAoiwUeL1_c","https://www.wildberries.ru/catalog/150224094/detail.aspx?targetUrl=GP"]
[4631164178982,152467043,"Корейская тканевая маска для лица омолаживающая набор 3 шт","14/11/2023","здравствуйте, состав омолаживающей маски в персиковой упаковке?","VWeXzIsB00yQAR3I9UJj","https://www.wildberries.ru/catalog/149753550/detail.aspx?targetUrl=GP"]
[4631164195187,170056466,"Карандаш для бровей с щеточкой","30/10/2023","Здравствуйте. Мне нужен карандаш medium. Какой это цвет из представленных по названию","RaxBfosBHA76Ev-cOc8p","https://www.wildberries.ru/catalog/150367969/detail.aspx?targetUrl=GP"]
[4631164195194,170057041,"Карандаш для бровей с щеточкой","28/10/2023","здравствуйте, какая граммовка у грифеля?","8axMd4sBHA76Ev-cv1i5","https://www.wildberries.ru/catalog/149881387/detail.aspx?targetUrl=GP"]
[4631164195224,149753550,"Тени для век жидкие №15 блестящие серебряные","13/10/2023","Добрый, когда будут тени серебро?","EKegKYsBHA76Ev-cvC2b","https://www.wildberries.ru/catalog/150382779/detail.aspx?targetUrl=GP"]
[4631164195224,149753550,"Тени для век жидкие №15 блестящие серебряные","5/10/2023","Здравствуйте, планируется ли поставка теней 15 оттенка в ближайшее время?","-Xyp_ooBliAoiwUe0xKT","https://www.wildberries.ru/catalog/170057513/detail.aspx?targetUrl=GP"]
[4631164195231,149753552,"Тени для век жидкие №16 блестящие зеленые","19/11/2023","Здравствуйте, а когда в наличии появятся тени в 16 оттенке?","820S5YsBseHJVfIh746G","https://www.wildberries.ru/catalog/152466867/detail.aspx?targetUrl=GP"]
[4631164196689,149785561,"Жидкая матовая помада для губ 08 Purple Haze","4/11/2023","Sand Pink оттенок.  скажите пожалуйста этот оттенок можно считать универсальным? подойдёт ли он женщине с рыжими волосами карими глазами?","voYImosBliAoiwUeFWTZ","https://www.wildberries.ru/catalog/149785563/detail.aspx?targetUrl=GP"]
[4631164196689,149785561,"Жидкая матовая помада для губ 08 Purple Haze","24/9/2023","Здравствуйте. Сегодня написано на товаре что не оплачено! Хотя я оплатила! Есть все чеки. Что за беспредел? Т всегда статус был оплачен!!!!!!","pVWGxYoB00yQAR3I26oG","https://www.wildberries.ru/catalog/169851850/detail.aspx?targetUrl=GP"]
[4631164196689,149785561,"Жидкая матовая помада для губ 08 Purple Haze","23/9/2023","Я выписала помаду жидкую пришла другая просто помада а деньги взяли как за житную 08","PlXFwYoB00yQAR3IdHhX","https://www.wildberries.ru/catalog/149881387/detail.aspx?targetUrl=GP"]
[4631164196696,149785553,"Жидкая матовая помада для губ 11 Cremant","4/11/2023","Доброго вечера ! 11 номер Cremant на фото с девушкой какой карандаш оттенок нанесён???? Скажитееее","T2dhm4sBEfQyvY3WFeAD","https://www.wildberries.ru/catalog/149881387/detail.aspx?targetUrl=GP"]
[4631164196696,149785553,"Жидкая матовая помада для губ 11 Cremant","17/10/2023","Добрый вечер)) Подскажите пожалуйста, оттенок помады 11, по цвету нюдовый или розовый, на каждом фото отзыве, этот цвет смотрится поразному.","WWFRPosBEfQyvY3W8jeK","https://www.wildberries.ru/catalog/170054370/detail.aspx?targetUrl=GP"]
[4631164196696,149785553,"Жидкая матовая помада для губ 11 Cremant","27/9/2023","Здравствуйте, под карандаш garda какую взять помаду? Смуглая кожа с зелёными глазами","-FlX1YoBseHJVfIhL02R","https://www.wildberries.ru/catalog/170035745/detail.aspx?targetUrl=GP"]
[4631164196702,149785563,"Жидкая матовая помада для губ 10 French Rose","13/10/2023","Здравствуйте. Почему оттенок трюфель самый дорогой???","kEQ4KIsBtm_3_oXd8SkG","https://www.wildberries.ru/catalog/180860978/detail.aspx?targetUrl=GP"]
[4631164196702,149785563,"Жидкая матовая помада для губ 10 French Rose","28/9/2023","Здравствуйте. Какие из представленных оттенков помад являются тёплыми?","eleV2ooB00yQAR3Ixw2e","https://www.wildberries.ru/catalog/165488045/detail.aspx?targetUrl=GP"]
[4631164196702,149785563,"Жидкая матовая помада для губ 10 French Rose","26/9/2023","Здравствуйте! У меня была матовая жидкая помада NYX в цвете Toulouse - натуральный розовый цвет, немного тёплый. Подскажите, пожалуйста, какой цвет подобный среди этих помад? 03 пробовала - слишком бледный","N1ba0IoB00yQAR3IKG9M","https://www.wildberries.ru/catalog/170057513/detail.aspx?targetUrl=GP"]
[4631164196719,149785562,"Жидкая матовая помада для губ 09 Bubbly","11/11/2023","Добрый день! Когда 12 оттенок (Трюфель) появится?","WIlGwIsBliAoiwUemGfu","https://www.wildberries.ru/catalog/170054370/detail.aspx?targetUrl=GP"]
[4631164196719,149785562,"Жидкая матовая помада для губ 09 Bubbly","9/11/2023","Здравствуйте,будет ли еще в продаже оттенок bubbly?","pYjWtIsBliAoiwUeoX0_","https://www.wildberries.ru/catalog/149875697/detail.aspx?targetUrl=GP"]
[4631164196719,149785562,"Жидкая матовая помада для губ 09 Bubbly","31/10/2023","Написала хороший отзыв, 5 звезд, фото прикрепила и его не напечатали… Но про всякую «мертвечину» активно пропускают.  Да с такими отзывами и за километр к вашей продукции не подойдут.  Это вообще можно как- то фильтровать. Реально неприятно.","IGQhhYsBseHJVfIh6lDZ","https://www.wildberries.ru/catalog/171348650/detail.aspx?targetUrl=GP"]
[4631164196719,149785562,"Жидкая матовая помада для губ 09 Bubbly","7/10/2023","Здравствуйте. 09 оттенок вернётся в продажу? Уже давно жду поступления","Z1qsCIsBYpYA1RfT-cr-","https://www.wildberries.ru/catalog/170019079/detail.aspx?targetUrl=GP"]
[4631164289206,150407907,"Гель-тинт для бровей для шатенок суперфиксация ","18/10/2023","Добрый день подскажите пожалуйста есть ли в составе феноксиэтанол?","wl5QQosBYpYA1RfTpEBB","https://www.wildberries.ru/catalog/152435007/detail.aspx?targetUrl=GP"]
[4631164289206,150407907,"Гель-тинт для бровей для шатенок суперфиксация ","27/9/2023","Здравствуйте) подскажите пожалуйста,  если сопоставить с карандашом оттенок Дарк,  какой будет из тинтов ближе всего к цвету карандаша ДАРК ? Благодарю за ответ.","MFad1YoB00yQAR3IEr0z","https://www.wildberries.ru/catalog/178065430/detail.aspx?targetUrl=GP"]
[4631165358246,149893903,"Скульптор для лица кремовый контуринг для блондинок ","1/10/2023","Уточните, пожалуйста, сколько срок годности у скульптора","JXv07IoBliAoiwUenh7u","https://www.wildberries.ru/catalog/169856314/detail.aspx?targetUrl=GP"]
[4631165358260,158055823,"Крем-тон для тела бронзирующий","16/11/2023","Когда будет в наличии, подскажите, пожалуйста","n2hv14sB00yQAR3IIYz3","https://www.wildberries.ru/catalog/150253388/detail.aspx?targetUrl=GP"]
[4631165358277,158056797,"Хайлайтер жидкий для лица и тела","10/11/2023","Здравствуйте Подскажите пожалуйста когда появится в продаже?","PE6BuosBtm_3_oXdbI6I","https://www.wildberries.ru/catalog/150359473/detail.aspx?targetUrl=GP"]
[4631165358277,158056797,"Хайлайтер жидкий для лица и тела","24/10/2023","Здравствуйте! Подскажите, когда будет в наличии?","FoINYIsBliAoiwUeEhgx","https://www.wildberries.ru/catalog/150224094/detail.aspx?targetUrl=GP"]
[4631165358277,158056797,"Хайлайтер жидкий для лица и тела","28/9/2023","Добрый день. Подскажите, пожалуйста, а в промо ролике на сайте у модели в видео какие продукты на губах?","mqIh2ooBHA76Ev-cIJNR","https://www.wildberries.ru/catalog/170034468/detail.aspx?targetUrl=GP"]
[4631165358277,158056797,"Хайлайтер жидкий для лица и тела","27/9/2023","Здравствуйте, дайте, пожалуйста, артикул на тон для тела","H1kp2IoBseHJVfIhJJCS","https://www.wildberries.ru/catalog/170038304/detail.aspx?targetUrl=GP"]
[4631165358277,158056797,"Хайлайтер жидкий для лица и тела","27/9/2023","Добрый день. Подскажите, пожалуйста, а что у модели на губах видео?","uVkG1YoBseHJVfIhFkft","https://www.wildberries.ru/catalog/171348650/detail.aspx?targetUrl=GP"]
[4631165598338,154505350,"Кисть-дуофибра для тона жидкого скульптора N.SHIK №03","19/11/2023","Здравствуйте, подойдет ли кисть #3 для нанесения жидкого скульптора от вашей фирмы ?","Qrfj6IsBHA76Ev-clEOs","https://www.wildberries.ru/catalog/150224090/detail.aspx?targetUrl=GP"]
[4631165598642,149875695,"Тональный крем с матовым финишем 0.5","17/11/2023","здравствуйте, когда появится оттенок 0.5 ?","bYwS3osBliAoiwUez3nb","https://www.wildberries.ru/catalog/154519014/detail.aspx?targetUrl=GP"]
[4631165598642,149875695,"Тональный крем с матовым финишем 0.5","11/11/2023","Привет, 0,5 в каком число есть в наличи ?","uk6cv4sBtm_3_oXd3vcy","https://www.wildberries.ru/catalog/170019079/detail.aspx?targetUrl=GP"]
[4631165598642,149875695,"Тональный крем с матовым финишем 0.5","27/10/2023","1.5 все так и нет?","SmLacIsBseHJVfIhj9yB","https://www.wildberries.ru/catalog/177634182/detail.aspx?targetUrl=GP"]
[4631165598642,149875695,"Тональный крем с матовым финишем 0.5","18/10/2023","Здравствуйте! Какой цвет самый светлый?","Ql7DQ4sBYpYA1RfT9mFX","https://www.wildberries.ru/catalog/150367969/detail.aspx?targetUrl=GP"]
[4631165598642,149875695,"Тональный крем с матовым финишем 0.5","6/10/2023","Добрый день. Тон 0,5 есть в наличи?","I3zQA4sBliAoiwUe9F8j","https://www.wildberries.ru/catalog/150382778/detail.aspx?targetUrl=GP"]
[4631165598642,149875695,"Тональный крем с матовым финишем 0.5","28/9/2023","Здравствуйте, а когда появиться 0.5 оттенок?","jj9l24oBtm_3_oXdmMP1","https://www.wildberries.ru/catalog/149881386/detail.aspx?targetUrl=GP"]
[4631165598659,149875696,"Тональный крем с матовым финишем 1.5","14/11/2023","Здравствуйте. В какие числа ноября ожидается поступление 1.5 тона?","mIovzIsBliAoiwUev0oR","https://www.wildberries.ru/catalog/170052788/detail.aspx?targetUrl=GP"]
[4631165598659,149875696,"Тональный крем с матовым финишем 1.5","31/10/2023","Здравствуйте. Тон 1,5 отсутствует с лета,то неизвестно когда появится,то ноябрь,теперь декабрь,что за издевательство? Чем краситься тем ,кто пользуется тоном 1,5?! Проще сменить производителя уже тонального крема ,чем ждать непонятно чего! Что я пожалуй и сделаю.","dq17hosBHA76Ev-cUXsF","https://www.wildberries.ru/catalog/149875693/detail.aspx?targetUrl=GP"]
[4631165598659,149875696,"Тональный крем с матовым финишем 1.5","31/10/2023","Здравствуйте. Когда будет в наличии 1,5 тон?","RGa1hIsBEfQyvY3WzxR_","https://www.wildberries.ru/catalog/170010057/detail.aspx?targetUrl=GP"]
[4631165598659,149875696,"Тональный крем с матовым финишем 1.5","22/10/2023","Тональный крем комедогенный?","uKmdVosBHA76Ev-csvUg","https://www.wildberries.ru/catalog/167722752/detail.aspx?targetUrl=GP"]
[4631165598659,149875696,"Тональный крем с матовым финишем 1.5","28/9/2023","Здравствуйте,как заказать оттенок 1.5 вне валдберис?","26KQ2YoBHA76Ev-cJI7s","https://www.wildberries.ru/catalog/173057614/detail.aspx?targetUrl=GP"]
[4631165598666,149875697,"Тональный крем с матовым финишем 2.5","8/11/2023","Здравствуйте,оттенок 2.5 будет в наличии?","7U1nsIsBtm_3_oXdUM2Z","https://www.wildberries.ru/catalog/150359775/detail.aspx?targetUrl=GP"]
[4631165598666,149875697,"Тональный крем с матовым финишем 2.5","11/10/2023","Здравствуйте! Скажите, пожалуйста, какой лучше кистью из вашего же бренда наносить данную тональную основу, чтобы она легка невесомой вуалью, естественно?","OF0qIIsBseHJVfIhWqnV","https://www.wildberries.ru/catalog/150367969/detail.aspx?targetUrl=GP"]
[4631165598666,149875697,"Тональный крем с матовым финишем 2.5","2/10/2023","Умоляю пустите в продажу","algM8ooB00yQAR3I_V3u","https://www.wildberries.ru/catalog/149875693/detail.aspx?targetUrl=GP"]
[4631165598666,149875697,"Тональный крем с матовым финишем 2.5","28/9/2023","Здравствуйте! Появится ли в продаже тон 2,5?","0lmo24oBseHJVfIh9rmJ","https://www.wildberries.ru/catalog/150224091/detail.aspx?targetUrl=GP"]
[4631165598666,149875697,"Тональный крем с матовым финишем 2.5","23/9/2023","Помогите подобрать оттенок. Из линейки double wear подходит 2n2 buff. Какой в линейке Шик соответствует ему?","faBewYoBHA76Ev-c6P3m","https://www.wildberries.ru/catalog/170032186/detail.aspx?targetUrl=GP"]
[4631165598666,149875697,"Тональный крем с матовым финишем 2.5","21/9/2023","Добрый день, тон 2.5 еще будет в наличии?","lj2-uYoBtm_3_oXdPqqN","https://www.wildberries.ru/catalog/170019079/detail.aspx?targetUrl=GP"]
[4631165598673,165488045,"Тональный крем для лица с матовым финишем 3.5","16/10/2023","Когда будет 0.5 и  01?","-H9aOYsBliAoiwUewpAb","https://www.wildberries.ru/catalog/170033635/detail.aspx?targetUrl=GP"]
[4631165598673,165488045,"Тональный крем для лица с матовым финишем 3.5","12/10/2023","Здравствуйте! Когда тон 2,5 ждать ?","CkO8JIsBtm_3_oXdkf0l","https://www.wildberries.ru/catalog/150382777/detail.aspx?targetUrl=GP"]
[4631165598673,165488045,"Тональный крем для лица с матовым финишем 3.5","7/10/2023","01 есть на продаже","o6UfC4sBHA76Ev-cZVYR","https://www.wildberries.ru/catalog/150382776/detail.aspx?targetUrl=GP"]
[4631165598673,165488045,"Тональный крем для лица с матовым финишем 3.5","24/9/2023","Здравствуйте, тон 03 для жёлтого или розового подтона кожи? и когда он появится в наличии?","r1bSxYoBYpYA1RfTH-F4","https://www.wildberries.ru/catalog/150382776/detail.aspx?targetUrl=GP"]
[4631165610597,154551573,"Силиконовый футляр контейнер-кейс для хранения спонжа","26/10/2023","Здравствуйте. А когда будет в наличии 154551573?","q6tAbYsBHA76Ev-c9akG","https://www.wildberries.ru/catalog/170034468/detail.aspx?targetUrl=GP"]
[4631165610597,154551573,"Силиконовый футляр контейнер-кейс для хранения спонжа","27/9/2023","Здравствуйте! Розового кейса больше не будет в продаже?","6aKY1ooBHA76Ev-cvmOB","https://www.wildberries.ru/catalog/170012781/detail.aspx?targetUrl=GP"]
[4631165610597,154551573,"Силиконовый футляр контейнер-кейс для хранения спонжа","23/9/2023","Здравствуйте , когда появятся в наличии кейс для  спонжа ?","haB1wYoBHA76Ev-c0v_T","https://www.wildberries.ru/catalog/149877369/detail.aspx?targetUrl=GP"]
[4631165610603,150382776,"Тени-спарклы для глаз с блестками ","16/11/2023","Здравствуйте когда будет в наличии оттенок Капелла?","kLQw2IsBHA76Ev-cIVIV","https://www.wildberries.ru/catalog/170057513/detail.aspx?targetUrl=GP"]
[4631165610603,150382776,"Тени-спарклы для глаз с блестками ","7/11/2023","Здравствуйте, а оттенок vega будет в наличии?)","Vk1-q4sBtm_3_oXdkWzf","https://www.wildberries.ru/catalog/150382777/detail.aspx?targetUrl=GP"]
[4631165610603,150382776,"Тени-спарклы для глаз с блестками ","30/10/2023","Здравствуйте, а оттенок capella будет в наличии?","8GSjgYsBseHJVfIh5xhZ","https://www.wildberries.ru/catalog/170624107/detail.aspx?targetUrl=GP"]
[4631165610603,150382776,"Тени-спарклы для глаз с блестками ","30/10/2023","Здравствуй, жду оттенок polis , когда 🩵🩵🩵🫶🏻","5WP3fYsBseHJVfIhz8rb","https://www.wildberries.ru/catalog/150378847/detail.aspx?targetUrl=GP"]
[4631165610603,150382776,"Тени-спарклы для глаз с блестками ","28/10/2023","Здравствуйте. Подскажите пожалуйста, какую кисть выбрать для растушевки этих теней?","k2NfdYsBseHJVfIhbySD","https://www.wildberries.ru/catalog/170012781/detail.aspx?targetUrl=GP"]
[4631165610603,150382776,"Тени-спарклы для глаз с блестками ","27/10/2023","Здравствуйте, тени пришли разбитые почему вы упаковываете хотя бы в пупырку?","gmAXcosB00yQAR3Ig2Qw","https://www.wildberries.ru/catalog/170624107/detail.aspx?targetUrl=GP"]
[4631165610603,150382776,"Тени-спарклы для глаз с блестками ","26/10/2023","Я заказала тени 14 октября и оплатила сразу, почему до сих не доставили? Уже 27 октябрь Пол месяца на складе одни тени собираете чтоли. Сделайте доставку они мне нужны. Будьте ответственнее плиз","YYPibYsBliAoiwUeSysN","https://www.wildberries.ru/catalog/170032186/detail.aspx?targetUrl=GP"]
[4631165610603,150382776,"Тени-спарклы для глаз с блестками ","21/10/2023","Пришли разбитые, ещё и за возврат сняли деньги. Почему так сложно упаковать Руки бы оторвать.","aGJUU4sBEfQyvY3WRJe3","https://www.wildberries.ru/catalog/170033635/detail.aspx?targetUrl=GP"]
[4631165610603,150382776,"Тени-спарклы для глаз с блестками ","21/10/2023","Пришли разбитые уже третий раз. Почему так сложно хорошо упаковать?","k2AOU4sBseHJVfIh-cDw","https://www.wildberries.ru/catalog/170032186/detail.aspx?targetUrl=GP"]
[4631165610603,150382776,"Тени-спарклы для глаз с блестками ","17/10/2023","Здравствуйте, вега  ожидается?","I1-EP4sBseHJVfIhb3_U","https://www.wildberries.ru/catalog/149893904/detail.aspx?targetUrl=GP"]
[4631165610603,150382776,"Тени-спарклы для глаз с блестками ","17/10/2023","Здравствуйте когда будет оттенок Вега?","P1wHPosB00yQAR3I2cnZ","https://www.wildberries.ru/catalog/154541669/detail.aspx?targetUrl=GP"]
[4631165610603,150382776,"Тени-спарклы для глаз с блестками ","13/10/2023","Здравствуйте подскажите когда появится оттенок vega?","eFu3KosB00yQAR3I6qeO","https://www.wildberries.ru/catalog/176944508/detail.aspx?targetUrl=GP"]
[4631165610603,150382776,"Тени-спарклы для глаз с блестками ","9/10/2023","Отмените заказ","DqVAFIsBHA76Ev-cNN4c","https://www.wildberries.ru/catalog/165488045/detail.aspx?targetUrl=GP"]
[4631165610603,150382776,"Тени-спарклы для глаз с блестками ","9/10/2023","Здравствуйте! Отмените мне пожалуйста заказ 🙏🏻на вб какой-то глюк, добавляла в корзину , а потом смотрю тени в заказах и деньги списали . Пожалуйста отмените","kl45FIsBEfQyvY3Wia98","https://www.wildberries.ru/catalog/150382776/detail.aspx?targetUrl=GP"]
[4631165610603,150382776,"Тени-спарклы для глаз с блестками ","7/10/2023","Здравствуйте, тени в оттенке Cappella пришли разбитые, прошу вас вернуть удержанную сумму за возврат, т. к в причине(порче товара) нет моей вины!","d6X1CosBHA76Ev-cslNP","https://www.wildberries.ru/catalog/170038304/detail.aspx?targetUrl=GP"]
[4631165610603,150382776,"Тени-спарклы для глаз с блестками ","5/10/2023","Заказывала три разных оттенка. Одни пришли разбиты в крошку. Два оттенка одинаковые. Пришлось вернуть два спаркла. Сняли деньги за возврат товара, за что? Это ведь не моя прихоть. А теперь ещё и цена на них подорожала👎🏻","UFowAIsBYpYA1RfTvln2","https://www.wildberries.ru/catalog/176944508/detail.aspx?targetUrl=GP"]
[4631165610603,150382776,"Тени-спарклы для глаз с блестками ","4/10/2023","Здравствуйте. Нельзя как то решить проблему , что тени не приходили разбитыми почти все отзывы с разбитыми тенями , что даже заказывать не хочется","okGG-YoBtm_3_oXd2Gh-","https://www.wildberries.ru/catalog/149785562/detail.aspx?targetUrl=GP"]
[4631165610603,150382776,"Тени-спарклы для глаз с блестками ","2/10/2023","Здравствуйте, когда будет vega????","vVy88YoBEfQyvY3WQb22","https://www.wildberries.ru/catalog/152273218/detail.aspx?targetUrl=GP"]
[4631165610603,150382776,"Тени-спарклы для глаз с блестками ","2/10/2023","Здравствуйте! Скажите, а ожидается вообще поступление снова других спарклов ( полис и тд) или их уже не ждать ?","inuT8YoBliAoiwUeWWCp","https://www.wildberries.ru/catalog/153319561/detail.aspx?targetUrl=GP"]
[4631165610603,150382776,"Тени-спарклы для глаз с блестками ","26/9/2023","Были разбиты, заново закажу новые. Прошу не списывать деньги за отказ","Z1Z30ooB00yQAR3IIpS7","https://www.wildberries.ru/catalog/170624107/detail.aspx?targetUrl=GP"]
[4631165610603,150382776,"Тени-спарклы для глаз с блестками ","23/9/2023","Здравствуйте. Когда будет в наличии Вега ?","cVhIw4oBseHJVfIhci54","https://www.wildberries.ru/catalog/152466867/detail.aspx?targetUrl=GP"]
[4631165610603,150382776,"Тени-спарклы для глаз с блестками ","21/9/2023","Здравствуйте. На какую базу нужно сажать тени?","A1feuYoBseHJVfIhLpsj","https://www.wildberries.ru/catalog/152239045/detail.aspx?targetUrl=GP"]
[4631165610603,150382776,"Тени-спарклы для глаз с блестками ","21/9/2023","Здравствуйте, подскажите пожалуйста, как правильно наносить тени ( оттенок VEGA) чтобы получить эффект влажного финиша как на фото, а не крупные блестки. Спасибо!","plT_t4oB00yQAR3IgeXn","https://www.wildberries.ru/catalog/150382779/detail.aspx?targetUrl=GP"]
[4631165610610,150382779,"Тени-спарклы для глаз с блестками ","8/11/2023","очень жду vega","urCTrosBHA76Ev-cA4dP","https://www.wildberries.ru/catalog/150382779/detail.aspx?targetUrl=GP"]
[4631165610610,150382779,"Тени-спарклы для глаз с блестками ","2/11/2023","Здравствуйте, когда оттенок vega будет в наличии?","ZWJLkIsB00yQAR3IjqBH","https://www.wildberries.ru/catalog/150234701/detail.aspx?targetUrl=GP"]
[4631165610610,150382779,"Тени-спарклы для глаз с блестками ","1/11/2023","здравствуйте, ещё появится в наличие оттенок Sun  и Vega?","WGZ7jIsBEfQyvY3Wh8QN","https://www.wildberries.ru/catalog/149875695/detail.aspx?targetUrl=GP"]
[4631165610610,150382779,"Тени-спарклы для глаз с блестками ","30/10/2023","здравствуйте, когда появился Vega?","92WKgYsBEfQyvY3WdOVm","https://www.wildberries.ru/catalog/150374021/detail.aspx?targetUrl=GP"]
[4631165610610,150382779,"Тени-спарклы для глаз с блестками ","25/10/2023","Здравствуйте. Подскажите пожалуйста когда поступит оттенок Vega??? Очень хочу его!!!","fauPZosBHA76Ev-c7SHg","https://www.wildberries.ru/catalog/154541672/detail.aspx?targetUrl=GP"]
[4631165610610,150382779,"Тени-спарклы для глаз с блестками ","24/10/2023","Ждём оттенок ВЕГА)))🫶🏼","GEccYYsBtm_3_oXdcNCd","https://www.wildberries.ru/catalog/176944508/detail.aspx?targetUrl=GP"]
[4631165610610,150382779,"Тени-спарклы для глаз с блестками ","14/10/2023","Здравствуйте) когда появится тени в оттенке Vega?","V6eQLYsBHA76Ev-cvFli","https://www.wildberries.ru/catalog/154541673/detail.aspx?targetUrl=GP"]
[4631165610610,150382779,"Тени-спарклы для глаз с блестками ","14/10/2023","Здравствуйте! Когда ждать оттенок sun?","y6dALIsBHA76Ev-ckEYR","https://www.wildberries.ru/catalog/149910037/detail.aspx?targetUrl=GP"]
[4631165610610,150382779,"Тени-спарклы для глаз с блестками ","13/10/2023","Добрый день, под номером 150382779 планируется поступление?","Yn4mKYsBliAoiwUe4pwv","https://www.wildberries.ru/catalog/176944508/detail.aspx?targetUrl=GP"]
[4631165610610,150382779,"Тени-спарклы для глаз с блестками ","6/10/2023","Здравствуйте когда появится оттенок бронзовый?","06QJBYsBHA76Ev-c_Pop","https://www.wildberries.ru/catalog/170035133/detail.aspx?targetUrl=GP"]
[4631165610610,150382779,"Тени-спарклы для глаз с блестками ","6/10/2023","Здравствуйте, вега ожидается?","DF3pBIsBEfQyvY3Wg83e","https://www.wildberries.ru/catalog/170038304/detail.aspx?targetUrl=GP"]
[4631165610610,150382779,"Тени-спарклы для глаз с блестками ","2/10/2023","Купила тени в оттенке vega- на ПВЗ не было времени проверить, оказалось что внутри 3 комочка теней и они разбитые. Что делать? Служба поддержки не помогла. Как теперь вернуть товар и деньги?","zFjn7ooB00yQAR3IQh79","https://www.wildberries.ru/catalog/154502205/detail.aspx?targetUrl=GP"]
[4631165610610,150382779,"Тени-спарклы для глаз с блестками ","29/9/2023","Здравствуйте, заказала Спаркл (в оттенке  Вега)(150382779),на ПВЗ обнаружила,что пигмент подменили на вообще другие тени.Сотрудники ПВЗ мне сказали оставить заявку на проверку товара в личном кабинете.Заявку оставила,всё доказательства предоставила и мне одобрили .Далее возвращаю тени на ПВЗ у меня их приняли, и уже почти две недели как стоит \"Принят к возврату на ПВЗ 19.09.23\" . Деньги тоже до сих пор не вернули,что мне делать в данной ситуации?","aVdi4YoB00yQAR3Iq3LI","https://www.wildberries.ru/catalog/150382776/detail.aspx?targetUrl=GP"]
[4631165610610,150382779,"Тени-спарклы для глаз с блестками ","28/9/2023","150382779 когда будет в наличии?","6qLy2ooBHA76Ev-ciKL9","https://www.wildberries.ru/catalog/170032186/detail.aspx?targetUrl=GP"]
[4631165610610,150382779,"Тени-спарклы для глаз с блестками ","24/9/2023","Здравствуйте, vega оттенок когда появится? А","o1qrx4oBEfQyvY3Wrj5f","https://www.wildberries.ru/catalog/149881387/detail.aspx?targetUrl=GP"]
[4631165610627,150382778,"Тени-спарклы для глаз с блестками ","15/11/2023","Ожидается ли поступление арт 150382778?","arNm0osBHA76Ev-cZ5Jw","https://www.wildberries.ru/catalog/149753546/detail.aspx?targetUrl=GP"]
[4631165610627,150382778,"Тени-спарклы для глаз с блестками ","13/11/2023","здравствуйте , как скоро появится? 150382778","LWu9yYsBEfQyvY3WbX7v","https://www.wildberries.ru/catalog/154665882/detail.aspx?targetUrl=GP"]
[4631165610627,150382778,"Тени-спарклы для глаз с блестками ","5/11/2023","Здравствуйте, какой кистью лучше наносить тени?","AEz8nosBtm_3_oXdTmBe","https://www.wildberries.ru/catalog/170019079/detail.aspx?targetUrl=GP"]
[4631165610627,150382778,"Тени-спарклы для глаз с блестками ","4/11/2023","здравствуйте , на что лучше наносить тени, чтобы были яркими?","VGMHmosB00yQAR3It1fy","https://www.wildberries.ru/catalog/149753550/detail.aspx?targetUrl=GP"]
[4631165610627,150382778,"Тени-спарклы для глаз с блестками ","30/10/2023","Когда появится оттенок sun?","LGF-gosB00yQAR3Ifpb3","https://www.wildberries.ru/catalog/150359774/detail.aspx?targetUrl=GP"]
[4631165610627,150382778,"Тени-спарклы для глаз с блестками ","30/10/2023","Здравствуйте! А Sun будет ещё в наличии?","AEorgYsBtm_3_oXdeSUI","https://www.wildberries.ru/catalog/171348914/detail.aspx?targetUrl=GP"]
[4631165610627,150382778,"Тени-спарклы для глаз с блестками ","29/10/2023","Здравствуйте, когда будет в наличии? 150382778 , какой кистью лучше наносить?","3GPMfIsBseHJVfIh6b2N","https://www.wildberries.ru/catalog/169845972/detail.aspx?targetUrl=GP"]
[4631165610627,150382778,"Тени-спарклы для глаз с блестками ","29/10/2023","Здравствуйте. Тех оттенков которых сейчас нет в наличии, будет их поступление, и когда?","hqzGfIsBHA76Ev-c08Ch","https://www.wildberries.ru/catalog/171349477/detail.aspx?targetUrl=GP"]
[4631165610627,150382778,"Тени-спарклы для глаз с блестками ","20/10/2023","Здравствуйте! Когда появятся тени фиолетовые золотистые тени? Очень жду","Gl3cTYsB00yQAR3Ic88K","https://www.wildberries.ru/catalog/177634182/detail.aspx?targetUrl=GP"]
[4631165610627,150382778,"Тени-спарклы для глаз с блестками ","10/10/2023","Здравствуйте, когда появится в наличии? 150382778","9V2VGosBseHJVfIh6FG4","https://www.wildberries.ru/catalog/154519013/detail.aspx?targetUrl=GP"]
[4631165610627,150382778,"Тени-спарклы для глаз с блестками ","4/10/2023","Почему вы не упаковали продукт и отправили мне разбитую хуйню ????","iVvk-YoBseHJVfIhbV1J","https://www.wildberries.ru/catalog/153504119/detail.aspx?targetUrl=GP"]
[4631165610627,150382778,"Тени-спарклы для глаз с блестками ","3/10/2023","Здравствуйте, когда появится в наличии цвет sun?","71um9ooBseHJVfIhKTeD","https://www.wildberries.ru/catalog/150367969/detail.aspx?targetUrl=GP"]
[4631165610627,150382778,"Тени-спарклы для глаз с блестками ","29/9/2023","Здравствуйте,Sun когда будут в наличии?","wFs04YoBEfQyvY3WutKk","https://www.wildberries.ru/catalog/170034468/detail.aspx?targetUrl=GP"]
[4631165610627,150382778,"Тени-спарклы для глаз с блестками ","25/9/2023","Здравствуйте! А “Capella” будут в наличии?","Kz7pzIoBtm_3_oXdFNsM","https://www.wildberries.ru/catalog/152467037/detail.aspx?targetUrl=GP"]
[4631165610627,150382778,"Тени-спарклы для глаз с блестками ","24/9/2023","Здравствуйте а оттенок \"Sun\" относится к постоянной коллекции?","-aG7xYoBHA76Ev-cnztF","https://www.wildberries.ru/catalog/150382778/detail.aspx?targetUrl=GP"]
[4631165610627,150382778,"Тени-спарклы для глаз с блестками ","22/9/2023","Добрый вечер, а другие оттенки когда появится в наличии в наличии?","olcPv4oBseHJVfIhKOpc","https://www.wildberries.ru/catalog/150382776/detail.aspx?targetUrl=GP"]
[4631165610634,150382777,"Тени-спарклы для глаз с блестками ","13/11/2023","Здравствуйте! На какую базу лучше наносить спарклы ?","UmvkyIsBEfQyvY3WhmQn","https://www.wildberries.ru/catalog/152466867/detail.aspx?targetUrl=GP"]
[4631165610634,150382777,"Тени-спарклы для глаз с блестками ","4/11/2023","Когда будет в наличии sun???????","RmeVmYsBEfQyvY3WerBP","https://www.wildberries.ru/catalog/152466867/detail.aspx?targetUrl=GP"]
[4631165610634,150382777,"Тени-спарклы для глаз с блестками ","30/10/2023","Здравствуйте, можно узнать, у меня показывает, что товара нет в наличии,  а смотришь в комментариях, люди заказывают и им приходят эти цвета   Как так получается?","l2TMgYsBseHJVfIhER2h","https://www.wildberries.ru/catalog/150382778/detail.aspx?targetUrl=GP"]
[4631165610634,150382777,"Тени-спарклы для глаз с блестками ","30/10/2023","Добрый день. Когда появится оттенок Sun?","PmH_gIsB00yQAR3IUHD8","https://www.wildberries.ru/catalog/177634182/detail.aspx?targetUrl=GP"]
[4631165610634,150382777,"Тени-спарклы для глаз с блестками ","30/10/2023","где можно посмотреть документы на товар","VmWff4sBEfQyvY3W37Ct","https://www.wildberries.ru/catalog/170018021/detail.aspx?targetUrl=GP"]
[4631165610634,150382777,"Тени-спарклы для глаз с блестками ","27/10/2023","Здравствуйте, когда будет поступление тени vegan?)","WEmEcYsBtm_3_oXd9wVS","https://www.wildberries.ru/catalog/150224091/detail.aspx?targetUrl=GP"]
[4631165610634,150382777,"Тени-спарклы для глаз с блестками ","15/10/2023","Почему отправляете разбитые тени? Заказывала Marsic и тени пришли в ужасном состоянии. И разбились они явно не при транспортировке, поскольку вся внешняя упаковка и пупырчатая пленка были уже испачканы в тенях!","1mBxMosBEfQyvY3WC2qJ","https://www.wildberries.ru/catalog/149893904/detail.aspx?targetUrl=GP"]
[4631165610634,150382777,"Тени-спарклы для глаз с блестками ","9/10/2023","Подскажите пожалуйста помаду как у модели арт.150382777?","rEJLFIsBtm_3_oXdQPjE","https://www.wildberries.ru/catalog/173057611/detail.aspx?targetUrl=GP"]
[4631165610634,150382777,"Тени-спарклы для глаз с блестками ","8/10/2023","Подскажите пожалуйста помаду у модели арт.150382777?","-0IxEYsBtm_3_oXdvM4X","https://www.wildberries.ru/catalog/170034468/detail.aspx?targetUrl=GP"]
[4631165610634,150382777,"Тени-спарклы для глаз с блестками ","23/9/2023","Здравствуйте, подскажите пожалуйста что на губах у модели оттенка Вега?","jlYxwooBYpYA1RfT_7PY","https://www.wildberries.ru/catalog/156370631/detail.aspx?targetUrl=GP"]
[4631166029466,170053220,"Набор для домашнего окрашивания бровей для блондинок SHIK","5/11/2023","Здравствуйте! Подскажите, когда появится в наличии набор для блондинок?","NK8yoYsBHA76Ev-cPIum","https://www.wildberries.ru/catalog/154502205/detail.aspx?targetUrl=GP"]
[4631166029473,170049335,"Набор для домашнего окрашивания бровей для рыжих SHIK","5/11/2023","здравствуйте. закрасит тёмные брови?","_kzWnosBtm_3_oXdr1sZ","https://www.wildberries.ru/catalog/152435007/detail.aspx?targetUrl=GP"]
[4631166029473,170049335,"Набор для домашнего окрашивания бровей для рыжих SHIK","24/10/2023","У краски и оксида обьем в мл какой ?","K0c8YYsBtm_3_oXdFtOC","https://www.wildberries.ru/catalog/170018021/detail.aspx?targetUrl=GP"]
[4631166029480,170051454,"Набор для домашнего окрашивания бровей для шатенок SHIK","21/10/2023","Добрый день, подскажите пожалуйста как часто можно проводить процедуру окрашивания ? Раз в неделю, в две недели, три или более что бы не навредить волоскам и коже ?)","E2LkUIsBEfQyvY3W7Vte","https://www.wildberries.ru/catalog/170052788/detail.aspx?targetUrl=GP"]
[4631166029497,170050928,"Набор для домашнего окрашивания бровей для брюнеток SHIK","28/10/2023","Здравствуйте, в ближайшее время будет в наличии набор краски «для брюнеток»?","BawNeIsBHA76Ev-ce2mf","https://www.wildberries.ru/catalog/150224089/detail.aspx?targetUrl=GP"]
[4631166029503,170052788,"Набор для домашнего окрашивания бровей для русых SHIK","31/10/2023","здравствуйте. скажите для русых не даёт рыжий оттенок?","3Ga3hosBEfQyvY3WPUyc","https://www.wildberries.ru/catalog/149875697/detail.aspx?targetUrl=GP"]
[4631166029503,170052788,"Набор для домашнего окрашивания бровей для русых SHIK","19/10/2023","Здравствуйте. Будет ли поступление набора для русых?","d4DwSYsBliAoiwUeYJxf","https://www.wildberries.ru/catalog/150382776/detail.aspx?targetUrl=GP"]
[4631166029503,170052788,"Набор для домашнего окрашивания бровей для русых SHIK","10/10/2023","Добой день. Подскажите, пожалуйста, какой срок годности у набора? После вскрытия и до вскрытия","AV-2GYsBEfQyvY3WRQkw","https://www.wildberries.ru/catalog/150382776/detail.aspx?targetUrl=GP"]
[4631166029503,170052788,"Набор для домашнего окрашивания бровей для русых SHIK","2/10/2023","Добрый день! Планируется ли поставка оттенка для русых?","nUFJ8ooBtm_3_oXdiQjT","https://www.wildberries.ru/catalog/149875693/detail.aspx?targetUrl=GP"]
[4631166029503,170052788,"Набор для домашнего окрашивания бровей для русых SHIK","25/9/2023","Подскажите пожалуйста по арт 170052788 для русых будет ли набор в продаже, если да, то примерно когда?😌","eT6WzIoBtm_3_oXdRtNn","https://www.wildberries.ru/catalog/150367969/detail.aspx?targetUrl=GP"]
[4631166898314,154551575,"Набор - силиконовый футляр-кейс для спонжа и спонж черный","19/11/2023","Здравствуйте, ожидается ли скоро поставка спонжика в футляре? Спасибо.","XI7h5osBliAoiwUeNU44","https://www.wildberries.ru/catalog/170012781/detail.aspx?targetUrl=GP"]
[4631166898314,154551575,"Набор - силиконовый футляр-кейс для спонжа и спонж черный","6/11/2023","Здравствуйте, а кейс или набор со спонжем будет в черном или белом цвете ?","EkwqpIsBtm_3_oXdtMdU","https://www.wildberries.ru/catalog/149910040/detail.aspx?targetUrl=GP"]
[4631166898314,154551575,"Набор - силиконовый футляр-кейс для спонжа и спонж черный","31/10/2023","Здравствуйте. Подскажите пожалуйста, когда будет в наличии 154551575 набор, и будет ли вообще?","Fq0eg4sBHA76Ev-cZjSM","https://www.wildberries.ru/catalog/150382779/detail.aspx?targetUrl=GP"]
[4631166898314,154551575,"Набор - силиконовый футляр-кейс для спонжа и спонж черный","29/10/2023","Добрый день, 154551575 планируется в наличии?","dUl9fIsBtm_3_oXdm88S","https://www.wildberries.ru/catalog/150359774/detail.aspx?targetUrl=GP"]
[4631166898314,154551575,"Набор - силиконовый футляр-кейс для спонжа и спонж черный","26/9/2023","Здравствуйте! Появится ли розовый кейс в ближайшее время?","Vnlbz4oBliAoiwUeIl3_","https://www.wildberries.ru/catalog/149893903/detail.aspx?targetUrl=GP"]
[4631166898321,170010057,"Воск для коррекции бровей и шпатели","28/10/2023","Здравствуйте.Можно ли растопить этот воск в  домашних условиях и как?","RGOXdYsBseHJVfIhuCp7","https://www.wildberries.ru/catalog/150367969/detail.aspx?targetUrl=GP"]
[4631166898321,170010057,"Воск для коррекции бровей и шпатели","19/10/2023","Здравствуйте, воск можно плавить повторно? Или его надо плавить по чуть-чуть, как это вообще правильно работает ? 😅","DoAQSYsBliAoiwUeII8s","https://www.wildberries.ru/catalog/170018021/detail.aspx?targetUrl=GP"]
[4631166898321,170010057,"Воск для коррекции бровей и шпатели","19/10/2023","Добрый день,  а подскажите пожалуйста сколько грамм надо на одну процедуру ?","k15kR4sBYpYA1RfTZZFp","https://www.wildberries.ru/catalog/150367969/detail.aspx?targetUrl=GP"]
[4631166898321,170010057,"Воск для коррекции бровей и шпатели","10/10/2023","Здравствуйте, в наборе 2 пачки по 100 гр или в двух пачках вместе 100гр","MVtWGYsBYpYA1RfTedI0","https://www.wildberries.ru/catalog/154519016/detail.aspx?targetUrl=GP"]
[4631166898321,170010057,"Воск для коррекции бровей и шпатели","1/10/2023","Добрый день. Недавно делала заказ. Забрал муж , не знал сколько и чего именно должно быть. Из набора был только 1 пакетик с воском..( упаковка странная, даже никак не замотана скотчем , возможно вскрыта была кем-то до получения или при доставке… Но так жаль. Оформила возврат по браку, если это возможно вернуть и заказать заново, можно даже видео с камер посмотреть, потому что я так ждала набор и товар не возвратный. Очень надеюсь на ваше понимание! Спасибо заранее.","Wnrw6ooBliAoiwUebvcb","https://www.wildberries.ru/catalog/153506236/detail.aspx?targetUrl=GP"]
[4631167251040,173584008,"Подарочный набор - тушь для ресниц и матовая помада","4/11/2023","Здравствуйте! Скажите пожалуйста оттенок помады пастельно-розовый подойдёт для женщины с тёмными волосами карими глазами и она не выбеливает можно считать этот оттенок универсальным?","9oapmYsBliAoiwUeCVpT","https://www.wildberries.ru/catalog/150367356/detail.aspx?targetUrl=GP"]
[4631167695097,152438768,"Набор для умывания - пенка для лица и 3 спонжа","21/10/2023","Здравствуйте подойдёт ли плёнка для возрастной сухой и чувствительной кожи?","U2AwUIsBseHJVfIhZoGf","https://www.wildberries.ru/catalog/170010057/detail.aspx?targetUrl=GP"]
[4631167769330,153506236,"Увлажняющая база под макияж с сияющим финишем","15/11/2023","Добрый день подскажите у базы имеется цвет? или при нанесении цвета не будет видно?","-2or04sBseHJVfIhHKc2","https://www.wildberries.ru/catalog/150367969/detail.aspx?targetUrl=GP"]
[4631167769330,153506236,"Увлажняющая база под макияж с сияющим финишем","29/10/2023","Сколько мл?","52PCeosBseHJVfIhPoXN","https://www.wildberries.ru/catalog/169321983/detail.aspx?targetUrl=GP"]
[4631167769330,153506236,"Увлажняющая база под макияж с сияющим финишем","21/10/2023","Здравствуйте он подчеркивает морщины","P6kmU4sBHA76Ev-cHsXO","https://www.wildberries.ru/catalog/170057513/detail.aspx?targetUrl=GP"]
[4631167769330,153506236,"Увлажняющая база под макияж с сияющим финишем","14/10/2023","Добрый день. Если вы официальный магазин то почему такое отношение к покупателю. Упаковка никакая. Отсутсвие защиты даже обычной пупырки. Но а качество вообще трэш. Вы что продаете неликвид. Упаковка товара с браком, продукт банально вытек или выдавлен. Просто позор... От такой фирмы такого отношения к покупателям просто не ожидала.","mVxyLIsBYpYA1RfTL-hy","https://www.wildberries.ru/catalog/170035745/detail.aspx?targetUrl=GP"]
[4631167769330,153506236,"Увлажняющая база под макияж с сияющим финишем","1/10/2023","Здравствуйте, какие отличия этого праймера от праймера с спф?)","6FdG64oB00yQAR3IJfJs","https://www.wildberries.ru/catalog/150253394/detail.aspx?targetUrl=GP"]
[4631167769330,153506236,"Увлажняющая база под макияж с сияющим финишем","29/9/2023","Оформлен 20 сентября и на этом тишина. Почему такая долгая доставка? Сколько можно ждать????","tFsL34oBEfQyvY3WJ630","https://www.wildberries.ru/catalog/169851850/detail.aspx?targetUrl=GP"]
[4631167769330,153506236,"Увлажняющая база под макияж с сияющим финишем","21/9/2023","здравствуйте, для комбинированной кожи подойдет? и спасает ли от жирного блеска?","uFZjt4oBYpYA1RfTeQk3","https://www.wildberries.ru/catalog/171348650/detail.aspx?targetUrl=GP"]
[4631168304608,170624592,"Тушь для ресниц сине-фиолетовая","18/11/2023","Здравствуйте! Будет ли ещё продаваться коричневая тушь?","eGoO5IsB00yQAR3IgsLw","https://www.wildberries.ru/catalog/170035133/detail.aspx?targetUrl=GP"]
[4631168304608,170624592,"Тушь для ресниц сине-фиолетовая","17/11/2023","Здравствуйте! Когда появится в наличии коричневая термо тушь?","Uozw3IsBliAoiwUeSkiN","https://www.wildberries.ru/catalog/170033635/detail.aspx?targetUrl=GP"]
[4631168304608,170624592,"Тушь для ресниц сине-фиолетовая","24/10/2023","Здравствуйте! У сине-фиолетовой туши, цвет ближе к фиолетовому или синему?","8IKoYosBliAoiwUeSlhm","https://www.wildberries.ru/catalog/150257806/detail.aspx?targetUrl=GP"]
[4631168304608,170624592,"Тушь для ресниц сине-фиолетовая","25/9/2023","Скажите, заказала синюю тушь, прислали фиолетовую, это ошибка или синяя тушь -это и есть фиолетовая ?","ClquzYoBEfQyvY3W5qvx","https://www.wildberries.ru/catalog/170012781/detail.aspx?targetUrl=GP"]
[4631168304608,170624592,"Тушь для ресниц сине-фиолетовая","25/9/2023","Здравствуйте! Вопрос про синюю тушь. На фото где представлен дерзкий образ использовался фиолетовый кайал для глаз?","7D5dy4oBtm_3_oXdnrSw","https://www.wildberries.ru/catalog/150228142/detail.aspx?targetUrl=GP"]
[4631168304615,170624107,"Коричневая тушь для ресниц","18/11/2023","Здравствуйте! Скажите пожалуйста будет ли в продаже тушь в коричневом цвете? Заранее спасибо за ваш ответ.","KFOT5IsBtm_3_oXdZpe8","https://www.wildberries.ru/catalog/150367969/detail.aspx?targetUrl=GP"]
[4631168304615,170624107,"Коричневая тушь для ресниц","12/11/2023","Здравствуйте!  Когда коричневая?","02kCw4sBseHJVfIhUBQj","https://www.wildberries.ru/catalog/150224090/detail.aspx?targetUrl=GP"]
[4631168304615,170624107,"Коричневая тушь для ресниц","6/11/2023","когда будет в наличие корчневая","xodcposBliAoiwUeH2U-","https://www.wildberries.ru/catalog/149877367/detail.aspx?targetUrl=GP"]
[4631168304615,170624107,"Коричневая тушь для ресниц","6/11/2023","Здравствуйте. Подскажите, пожалуйста, когда будет коричневая тушь в наличии?","J2h9pIsBEfQyvY3W8IcY","https://www.wildberries.ru/catalog/170018021/detail.aspx?targetUrl=GP"]
[4631168304615,170624107,"Коричневая тушь для ресниц","5/11/2023","Когда появится в продаже коричневая тушь?","8IYhoIsBliAoiwUeS9-S","https://www.wildberries.ru/catalog/170039822/detail.aspx?targetUrl=GP"]
[4631168304615,170624107,"Коричневая тушь для ресниц","5/11/2023","Здравствуйте, когда в наличии будет коричневая тушь?","mWbSnosBseHJVfIhFUKs","https://www.wildberries.ru/catalog/150382779/detail.aspx?targetUrl=GP"]
[4631168304615,170624107,"Коричневая тушь для ресниц","8/10/2023","Здравствуйте, подскажите пожалуйста коричневая тушь упакована в слюду(защиту от вскрытия)как черная или нет? Заранее спасибо","k1yPEIsBseHJVfIhRLSH","https://www.wildberries.ru/catalog/150382778/detail.aspx?targetUrl=GP"]
[4631168304615,170624107,"Коричневая тушь для ресниц","8/10/2023","Почему коричневая тушь дороже чёрной?","DF5oD4sBEfQyvY3WjWba","https://www.wildberries.ru/catalog/154502205/detail.aspx?targetUrl=GP"]
[4631168304615,170624107,"Коричневая тушь для ресниц","6/10/2023","Здравствуйте! Подскажите, пожалуйста, почему у косметических средств вашего бренда нет защитной пленки?","MVy8BosBseHJVfIhNiKC","https://www.wildberries.ru/catalog/153506236/detail.aspx?targetUrl=GP"]
[4631168304615,170624107,"Коричневая тушь для ресниц","24/9/2023","Скажите, тушь подкручивает ресницы или нет?","aFeNx4oBYpYA1RfTKwl5","https://www.wildberries.ru/catalog/154541664/detail.aspx?targetUrl=GP"]
[4631168621026,150222646,"Мицеллярная вода для снятия макияжа 100 мл + 300 мл","27/9/2023","Добрый День ,подскажите, я поставила в холодильник ,и у меня получился осадок из кристалликов ,можно ли им дальше пользоваться?","ulYn1ooB00yQAR3Isco8","https://www.wildberries.ru/catalog/177634182/detail.aspx?targetUrl=GP"]
[4631168923700,178065430,"Контейнер-кейс для спонжей в черном цвете без спонжа","23/10/2023","Здравствуйте, а где можно приобрести косметичку на фото?очень понравилась👏","pF4iXIsB00yQAR3IwMgO","https://www.wildberries.ru/catalog/170057513/detail.aspx?targetUrl=GP"]
[4631168923700,178065430,"Контейнер-кейс для спонжей в черном цвете без спонжа","20/10/2023","Здравствуйте! Чёрный и белый спонжи как-то отличаются между собой по характеристикам или только цветом?","AYCBS4sBliAoiwUef6lR","https://www.wildberries.ru/catalog/154505355/detail.aspx?targetUrl=GP"]
[4631168923700,178065430,"Контейнер-кейс для спонжей в черном цвете без спонжа","20/10/2023","Когда цена упадет а то 399 рублей жалко для спонжа","K4DGSosBliAoiwUe2KGS","https://www.wildberries.ru/catalog/170057513/detail.aspx?targetUrl=GP"]
[4631168923700,178065430,"Контейнер-кейс для спонжей в черном цвете без спонжа","11/10/2023","Здравствуйте, в кейс идет спонжик? Или сам кейс только","fVoAH4sB00yQAR3IbfWM","https://www.wildberries.ru/catalog/152285903/detail.aspx?targetUrl=GP"]
[4631168923700,178065430,"Контейнер-кейс для спонжей в черном цвете без спонжа","27/9/2023","Здравствуйте, а контейнер для спонжа арт: 178065430 идёт со спонжем в комплекте или отдельно?","Gz_K1YoBtm_3_oXdCWgq","https://www.wildberries.ru/catalog/149875697/detail.aspx?targetUrl=GP"]
[4631168923700,178065430,"Контейнер-кейс для спонжей в черном цвете без спонжа","26/9/2023","Здравствуйте! Розовые кейсы не появятся ? Их сняли с производства ? Подскажите?","qD8u04oBtm_3_oXdt0pl","https://www.wildberries.ru/catalog/177634182/detail.aspx?targetUrl=GP"]
[4631168923724,171070905,"Пленка для ламинирования бровей и ресниц","17/11/2023","Почему вы до сих пор не решаете в упаковкой? Пришла порванная коробка","jmsr3YsBseHJVfIhGtYA","https://www.wildberries.ru/catalog/150224091/detail.aspx?targetUrl=GP"]
[4631168923731,176944508,"Матовая помада для губ кофейного цвета 12","18/11/2023","Добрый вечер , когда ожидается помада в оттенке 12?","xG3W44sBseHJVfIhQEg-","https://www.wildberries.ru/catalog/149875695/detail.aspx?targetUrl=GP"]
[4631168923731,176944508,"Матовая помада для губ кофейного цвета 12","29/10/2023","Здравствуйте, будет в наличии ещё оттенок трюфель?","vWUDfIsBEfQyvY3WvHeF","https://www.wildberries.ru/catalog/153319561/detail.aspx?targetUrl=GP"]
[4631168923731,176944508,"Матовая помада для губ кофейного цвета 12","28/10/2023","Здравствуйте, когда оттенок 12 появится в наличии?","3GUbeIsBEfQyvY3W8TWc","https://www.wildberries.ru/catalog/170057513/detail.aspx?targetUrl=GP"]
[4631168923731,176944508,"Матовая помада для губ кофейного цвета 12","24/10/2023","176944508 будет ли в наличии?","LF9VYosB00yQAR3I2kJn","https://www.wildberries.ru/catalog/170035133/detail.aspx?targetUrl=GP"]
[4631168923731,176944508,"Матовая помада для губ кофейного цвета 12","7/10/2023","Дд,вы можете сделать норм коричневый продукт теплый а не это серо коричневое подобие называемое трбфель,трюфель чтобы вы знали это шоколад а не эта мертвичина,серо коричневая","mqXXC4sBHA76Ev-c9mIf","https://www.wildberries.ru/catalog/150382779/detail.aspx?targetUrl=GP"]
[4631168923731,176944508,"Матовая помада для губ кофейного цвета 12","7/10/2023","Здравствуйте, а к помаде Truffle какой карандаш лучше подобрать? Или её можно без карандаша использовать?","_l50CYsBEfQyvY3WZAi2","https://www.wildberries.ru/catalog/170035745/detail.aspx?targetUrl=GP"]
[4631168923731,176944508,"Матовая помада для губ кофейного цвета 12","5/10/2023","здравствуйте,подскажите пожалуйста,будет ли еще помада в оттенке трюфель и когда?","QVvZAYsBseHJVfIhSNnO","https://www.wildberries.ru/catalog/149785563/detail.aspx?targetUrl=GP"]
[4631168923731,176944508,"Матовая помада для губ кофейного цвета 12","5/10/2023","здравствуйте. когда 12 оттенок будет в наличии?","KlsRAYsBseHJVfIh78_a","https://www.wildberries.ru/catalog/150367969/detail.aspx?targetUrl=GP"]
[4631168923731,176944508,"Матовая помада для губ кофейного цвета 12","25/9/2023","Добрый день! На этом Маркет плейсе цены дешевле офиц магазина. На качество товаров это не влияет?","tD6tzooBtm_3_oXdgvcI","https://www.wildberries.ru/catalog/158056797/detail.aspx?targetUrl=GP"]
[4631169128692,164536201,"Хайлайтер для лица с деликатным свечением","13/11/2023","Здравствуйте. Подскажите стоит ожидать запеченный хайлайтер?","EGskyosBEfQyvY3Wl4oy","https://www.wildberries.ru/catalog/170023318/detail.aspx?targetUrl=GP"]
[4631169128692,164536201,"Хайлайтер для лица с деликатным свечением","21/9/2023","Здравствуйте! Заказывала этот хайлайтер и пудру. И такая ситуация- сами продукты целы, но отклеены от металлического контейнера ( надеюсь вы понимаете о чем я😊) . Чем можно приклеить их?","JlSutooB00yQAR3I2sfK","https://www.wildberries.ru/catalog/149875696/detail.aspx?targetUrl=GP"]
[4631169140151,167277331,"Салфетки для снятия макияжа очищающие","24/10/2023","Здравствуйте. Подскажите, пожалуйста, можно ли в поездке использовать салфетки для отшелушивания кожи тела, как лёгкий пилинг , или процент кислот слишком мал?","K6pFYIsBHA76Ev-ctqbv","https://www.wildberries.ru/catalog/149875692/detail.aspx?targetUrl=GP"]
[4631169198992,171348650,"Тени-спарклы для глаз с блестками ","11/10/2023","Когда появится Mira подскажите пожалуйста","O6YjIIsBHA76Ev-cYaSX","https://www.wildberries.ru/catalog/170054370/detail.aspx?targetUrl=GP"]
[4631169198992,171348650,"Тени-спарклы для глаз с блестками ","11/10/2023","Здравствуйте, а самостоятельно, без какой либо подложки тени не наносятся?","Yl11HYsBseHJVfIh2XHp","https://www.wildberries.ru/catalog/158056797/detail.aspx?targetUrl=GP"]
[4631169198992,171348650,"Тени-спарклы для глаз с блестками ","30/9/2023","Здравствуйте! При заказе, спаркл (mira) был в наличии, оформила заказ, деньги списали. Через минуту пришёл отказ заказа магазином и ошибка оформления заказа, но деньги обратно на карту, не пришли. Когда произведут возврат денежных средств. Спасибо!","vaP65YoBHA76Ev-ckjoH","https://www.wildberries.ru/catalog/149753547/detail.aspx?targetUrl=GP"]
[4631169199005,171348914,"Тени-спарклы для глаз с блестками ","24/10/2023","Добрый день, пошла забирать тени, они были плотностью поломанные, прошу не снимать деньги за возврат","ekdoYosBtm_3_oXd5PKI","https://www.wildberries.ru/catalog/156370631/detail.aspx?targetUrl=GP"]
[4631169199005,171348914,"Тени-спарклы для глаз с блестками ","22/10/2023","Здравствуйте, когда появится, фиолетовый, зелёный, голубой? Полгода жду.","GEf7WIsBtm_3_oXdskps","https://www.wildberries.ru/catalog/152239045/detail.aspx?targetUrl=GP"]
[4631169199005,171348914,"Тени-спарклы для глаз с блестками ","17/10/2023","Здравствуйте! Оттенок Polis можно ли ожидать в ближайшее время?","Fn_APosBliAoiwUewuqZ","https://www.wildberries.ru/catalog/150378847/detail.aspx?targetUrl=GP"]
[4631169199005,171348914,"Тени-спарклы для глаз с блестками ","4/10/2023","Здравствуйте,какие тени будут идеальны для серо голубых глаз ? Какой оттенок выбрать ?","51te_IoBseHJVfIhW41M","https://www.wildberries.ru/catalog/150367969/detail.aspx?targetUrl=GP"]
[4631169199005,171348914,"Тени-спарклы для глаз с блестками ","22/9/2023","Почему плохо упаковываем товар?вы же видите столько отзывов о плохом качестве транспортировки☹️заказываешь ждёшь и такое отношение к покупателям 🫤как попало 😏","7VUCvooB00yQAR3IzEf7","https://www.wildberries.ru/catalog/154551573/detail.aspx?targetUrl=GP"]
[4631169199012,171349477,"Тени-спарклы для глаз с блестками ","28/10/2023","А будет ли 171349477 ?","AqyOdosBHA76Ev-cIUau","https://www.wildberries.ru/catalog/159485555/detail.aspx?targetUrl=GP"]
[4631169199012,171349477,"Тени-спарклы для глаз с блестками ","4/10/2023","Здравствуйте, когда будет в наличии коралловый?","SVsF_IoBseHJVfIh6YgC","https://www.wildberries.ru/catalog/150222646/detail.aspx?targetUrl=GP"]
[4631169199012,171349477,"Тени-спарклы для глаз с блестками ","22/9/2023","Marsis когда будет в наличии?","4laUu4oBYpYA1RfTsEUJ","https://www.wildberries.ru/catalog/178065430/detail.aspx?targetUrl=GP"]
[4631169242619,169321983,"Лайнер для бровей коричневый","30/9/2023","Здравствуйте. Подскажите пожалуйста, можно ли нанести фиксирующий гель для бровей после нанесения лайнера? Лайнер не смажется?","4Fpi54oBseHJVfIhFlsS","https://www.wildberries.ru/catalog/150407907/detail.aspx?targetUrl=GP"]
[4631169509507,184006229,"Сияющие тени-спарклы для век DIADEM","17/11/2023","Здравствуйте когда будет оттенок Капелла?","ObQY3IsBHA76Ev-cDbg0","https://www.wildberries.ru/catalog/171671002/detail.aspx?targetUrl=GP"]
[4631169509507,184006229,"Сияющие тени-спарклы для век DIADEM","13/11/2023","Здравствуйте. Когда будут с наличие оттенок вега и капелла? Пожалуйста упаковывайте пожалуйста прочнее, заказывала 2 оттенка мимоза и капелла, капелла пришли разбитые, а мимоза шикарны, весь день держатся","87LVyosBHA76Ev-c_c92","https://www.wildberries.ru/catalog/149785553/detail.aspx?targetUrl=GP"]
[4631169509507,184006229,"Сияющие тени-спарклы для век DIADEM","2/11/2023","Добрый день,а новый оттенок спаркла диадем подойдет для голубых глаз?или он больше для карих?спасибо","LGK-j4sB00yQAR3IT5FJ","https://www.wildberries.ru/catalog/158056797/detail.aspx?targetUrl=GP"]
[4631169509507,184006229,"Сияющие тени-спарклы для век DIADEM","31/10/2023","Здравствуйте. Когда будет в наличии оттенок Вега?","32S3hIsBseHJVfIhT0Qm","https://www.wildberries.ru/catalog/170035133/detail.aspx?targetUrl=GP"]
[4631169509507,184006229,"Сияющие тени-спарклы для век DIADEM","25/10/2023","Добрый день! Когда diadem появится в продаже?","mYJfZYsBliAoiwUeqHrs","https://www.wildberries.ru/catalog/150359775/detail.aspx?targetUrl=GP"]
[4631169540302,183214415,"Механический карандаш для бровей DARK","15/11/2023","Добрый день! помогите, пожалуйста, подобрать оттенок: я брюнетка с карими глазами и жёлтым подтоном кожи, теплая внешность. какой оттенок карандаша мне больше пойдет, я сомневаюсь между dark и medium, спасибо!","Mook0osBliAoiwUeoflu","https://www.wildberries.ru/catalog/177634182/detail.aspx?targetUrl=GP"]
[4631169543242,188070253,"Прозрачный гель для бровей с суперфиксацией","13/11/2023","Как работать с этим гелем , уложить волоски невозможно , на кисточку набирает много продукта , как вода. Не фиксирует. Как таковой укладки гелем произвести невозможно. Хотя написано ,что суперфиксирующий. Да. Он застывает через время , но не укладывает.  Что с этим делать  ? В нем нет вязкости ...","MU-XyYsBtm_3_oXdTMen","https://www.wildberries.ru/catalog/170033635/detail.aspx?targetUrl=GP"]
[4631169607319,171093063,"Блеск-плампер для увеличения губ сияющий увлажняющий","19/10/2023","Здравствуйте, будет ли ещё 171093063?","5oAkSIsBliAoiwUeV3rb","https://www.wildberries.ru/catalog/178065430/detail.aspx?targetUrl=GP"]
[4631169622077,173057616,"Жидкие тени для век с сиянием 18 Litchi ","25/9/2023","Как хайлайтер белый можно использовать или он сильно яркий и высыхает быстро, не успею равномерно растушевать?","Dj7VyooBtm_3_oXd76mO","https://www.wildberries.ru/catalog/150382776/detail.aspx?targetUrl=GP"]
[4631169622084,173057614,"Жидкие тени для век с сиянием 19 Lemon","10/10/2023","Добрый день. А у вас есть жидкие или кремовые чёрные тени?","3Vo2GIsB00yQAR3IuIOE","https://www.wildberries.ru/catalog/150227241/detail.aspx?targetUrl=GP"]
[4631169622107,173057611,"Жидкие тени для век с сиянием 21 Guava","15/11/2023","какой срок годности у кремовых теней гуава розовых ?","4lB304sBtm_3_oXd1s-8","https://www.wildberries.ru/catalog/159485555/detail.aspx?targetUrl=GP"]
[4631169622107,173057611,"Жидкие тени для век с сиянием 21 Guava","9/11/2023","скажите какой срок годности у теней розовых Гавана ?до какого срока они ?","kYgAtYsBliAoiwUeR4Iz","https://www.wildberries.ru/catalog/170012781/detail.aspx?targetUrl=GP"]
[4631169622107,173057611,"Жидкие тени для век с сиянием 21 Guava","3/10/2023","Могу узнать почему доставка так сильно задерживается?","4FlP9YoBYpYA1RfTlrZO","https://www.wildberries.ru/catalog/170011402/detail.aspx?targetUrl=GP"]
[4631169630546,177634488,"Набор - саше для ламинирования бровей 5 штук","18/11/2023","Если саше открыто с остатком содержимого, через месяц его свойства сохраняются ?","rW2e5IsBseHJVfIh5XuC","https://www.wildberries.ru/catalog/149875693/detail.aspx?targetUrl=GP"]
[4631169630546,177634488,"Набор - саше для ламинирования бровей 5 штук","4/11/2023","Подскажите, можно ли делать ламинирование сразу же после окрашивания в домашних условиях на краске shik ?","eWckmosBEfQyvY3WY78k","https://www.wildberries.ru/catalog/170034468/detail.aspx?targetUrl=GP"]
[4631169630546,177634488,"Набор - саше для ламинирования бровей 5 штук","22/9/2023","Здравствуйте! продаётся 3-ий состав отдельно?","LFWFvIoB00yQAR3InimS","https://www.wildberries.ru/catalog/170057513/detail.aspx?targetUrl=GP"]
[4631169700751,176944509,"Матовая помада для губ вишнево-красного цвета 13","26/10/2023","Здравствуйте!подскажите пожалуйста,когда появится оттенок 12?","amJWbYsBseHJVfIhwqkt","https://www.wildberries.ru/catalog/170057513/detail.aspx?targetUrl=GP"]
[4631169700768,177634182,"Набор - саше для ламинирования бровей 3 набора (9 шт.)  ","18/11/2023","Здравствуйте. Подскажите окрашивание бровей одновременно с ламинированием Вашими составами возможно? У других марок возможно после 2ого шага. А с данным наборчиком?","p2xE4YsBseHJVfIhd37y","https://www.wildberries.ru/catalog/149785563/detail.aspx?targetUrl=GP"]
[4631169700768,177634182,"Набор - саше для ламинирования бровей 3 набора (9 шт.)  ","10/10/2023","Добрый день! Можно ли ламинировать брови данным набором во вовремя лактации?","IltWG4sBYpYA1RfTufsg","https://www.wildberries.ru/catalog/154551575/detail.aspx?targetUrl=GP"]
[4631169700768,177634182,"Набор - саше для ламинирования бровей 3 набора (9 шт.)  ","4/10/2023","Здравствуйте, какой срок после вскрытия? Какое время выдержки для ресниц!","d1rg-4oBYpYA1RfTqCFI","https://www.wildberries.ru/catalog/170011402/detail.aspx?targetUrl=GP"]
[4631169700768,177634182,"Набор - саше для ламинирования бровей 3 набора (9 шт.)  ","3/10/2023","Здравствуйте, подскажите пожалуйста, данные составы подходят для ламинирования ресниц?","jXuU9ooBliAoiwUeo6lh","https://www.wildberries.ru/catalog/176944508/detail.aspx?targetUrl=GP"]
[4631169700768,177634182,"Набор - саше для ламинирования бровей 3 набора (9 шт.)  ","29/9/2023","Добрый день, хотела бы уточнить , в наборе 3 Саше или 9?","Pj_H3ooBtm_3_oXdDu-A","https://www.wildberries.ru/catalog/152438767/detail.aspx?targetUrl=GP"]
[4631169700768,177634182,"Набор - саше для ламинирования бровей 3 набора (9 шт.)  ","28/9/2023","Здравствуйте, указана цена за набор, или за комплект из трёх наборов. Имеется ввиду каждого состава по 3 саше ? Или всего 3 саше -1,2,3 состав?","2aKg24oBHA76Ev-cSa8d","https://www.wildberries.ru/catalog/170624592/detail.aspx?targetUrl=GP"]
[4631169700768,177634182,"Набор - саше для ламинирования бровей 3 набора (9 шт.)  ","26/9/2023","Сколка штук есть на каробке","3j9p04oBtm_3_oXd4kz5","https://www.wildberries.ru/catalog/149881384/detail.aspx?targetUrl=GP"]
[4631169700768,177634182,"Набор - саше для ламинирования бровей 3 набора (9 шт.)  ","23/9/2023","Здравствуйте! Что ещё необходимо докупить, чтобы сделать ламинирование в домашних условиях?","sz4FwooBtm_3_oXd8SPF","https://www.wildberries.ru/catalog/150378847/detail.aspx?targetUrl=GP"]
[4631169700768,177634182,"Набор - саше для ламинирования бровей 3 набора (9 шт.)  ","21/9/2023","Здравствуйте) Можно ли  ламинирование наносить сразу после окрашивания?","KVnMt4oBEfQyvY3Wcke3","https://www.wildberries.ru/catalog/150367969/detail.aspx?targetUrl=GP"]
[4631169700775,177635010,"Крем для восстановления и роста бровей 10 шт","25/9/2023","Здраствуйте, как часто можно использовать данный крем для ухода за бровями в домашних условиях?","d1YHzIoB00yQAR3Irx-b","https://www.wildberries.ru/catalog/149875693/detail.aspx?targetUrl=GP"]
[4631169700775,177635010,"Крем для восстановления и роста бровей 10 шт","23/9/2023","Что лучше приобрести этот крем для укрепления бровей или масло для бровей и ресниц shik? Действие у них одинаковое?","z1kUwooBEfQyvY3WHePa","https://www.wildberries.ru/catalog/170032186/detail.aspx?targetUrl=GP"]
[4631169700775,177635010,"Крем для восстановления и роста бровей 10 шт","22/9/2023","Здраствуйте. Как часто можно пользоваться данным кремом? Можно ли его использовать каждый день?","UXjHvIoBliAoiwUeMje_","https://www.wildberries.ru/catalog/150382778/detail.aspx?targetUrl=GP"]
[4631169700782,183214414,"Механический карандаш для бровей BLONDE","14/11/2023","Здравствуйте . Не нашла вес продукта","_1C9zosBtm_3_oXdzUQs","https://www.wildberries.ru/catalog/150224092/detail.aspx?targetUrl=GP"]
[4631169829230,182309289,"Вельветовый тональный крем с увлажняющим эффектом 101 COTTON","14/11/2023","Здравствуйте)\nПользуюсь тоном Shik 1,5 и консилером 01\nПодскажите, какой оттенок этого тона подойдёт лучше 101 или 102?","RmeBzIsB00yQAR3I2kAq","https://www.wildberries.ru/catalog/169851850/detail.aspx?targetUrl=GP"]
[4631169829230,182309289,"Вельветовый тональный крем с увлажняющим эффектом 101 COTTON","9/11/2023","здравствуйте,подскажите какая степень покрытия?более или менее укрывистый чем тот что был в бренде?","GmjMtYsBseHJVfIhhx2K","https://www.wildberries.ru/catalog/170052788/detail.aspx?targetUrl=GP"]
[4631169829230,182309289,"Вельветовый тональный крем с увлажняющим эффектом 101 COTTON","7/11/2023","Здравствуйте. Этот тон похож по цвету на тональное средство (оттенок 1,5)? И какой из представленных оттенков максимально близок к вашему тональному средству с оттенок 1,5 (которого уже с лета нет в наличии). Заранее спасибо за ответ!","GGcHqosBseHJVfIhWilD","https://www.wildberries.ru/catalog/150224090/detail.aspx?targetUrl=GP"]
[4631169829230,182309289,"Вельветовый тональный крем с увлажняющим эффектом 101 COTTON","29/10/2023","Здравствуйте, извините за такой вопрос. Не планируются ли скидки на черную пятницу на сайте и маркетплейсах? 🥰","nWFge4sB00yQAR3IbAAO","https://www.wildberries.ru/catalog/154541670/detail.aspx?targetUrl=GP"]
[4631169829230,182309289,"Вельветовый тональный крем с увлажняющим эффектом 101 COTTON","27/10/2023","Здравствуйте!Кожа склонна к жирности, но в этот период обезвожена, матирующий тон даёт ощущение стянутости, подойдёт ли в таком случае новый увлажняющий тональный от Shik?И если у меня кожа очень светлая с нейтральным подтоном (у Диор оттенок ON), у Shik 1 подойдёт?","_qufb4sBHA76Ev-cfsFx","https://www.wildberries.ru/catalog/177635010/detail.aspx?targetUrl=GP"]
[4631169829230,182309289,"Вельветовый тональный крем с увлажняющим эффектом 101 COTTON","26/10/2023","Здравствуйте, для возрастной кожи какой тональный крем лучше подойдёт?","IoJ3aosBliAoiwUeM9nt","https://www.wildberries.ru/catalog/150234702/detail.aspx?targetUrl=GP"]
[4631169829230,182309289,"Вельветовый тональный крем с увлажняющим эффектом 101 COTTON","26/10/2023","Если пользуюсь пудрой Шик , самой светлой, то лучше взять 101 оттенок? Не окисляется ли? Не выбеливает?","qoLIaYsBliAoiwUe89GU","https://www.wildberries.ru/catalog/150359774/detail.aspx?targetUrl=GP"]
[4631169829230,182309289,"Вельветовый тональный крем с увлажняющим эффектом 101 COTTON","23/10/2023","Здравствуйте. Кожа светлая, возрастная, жирная, склонная к покраснениям. Нужен крем не слишком плотный, без эффекта маски, но и не растворяющийся на коже, чтобы перекрывал розовый цвет и не давал жирного блеска хотя бы несколько часов. В общем задача не из лёгких))) Какой тональный крем лучше подойдёт? Этот или белый? И посоветуйте оттенок сразу, пожалуйста","0WMSXYsBEfQyvY3WQUTS","https://www.wildberries.ru/catalog/170039822/detail.aspx?targetUrl=GP"]
[4631169829230,182309289,"Вельветовый тональный крем с увлажняющим эффектом 101 COTTON","21/10/2023","Здравствуйте! Подскажите пожалуйста оттенок 101 темнее или такой же как 0,5?","EKlNU4sBHA76Ev-cIMng","https://www.wildberries.ru/catalog/170624592/detail.aspx?targetUrl=GP"]
[4631169829230,182309289,"Вельветовый тональный крем с увлажняющим эффектом 101 COTTON","20/10/2023","Какая степень покрытия в сравнении с тональным кремом в белоу упоковке???","w6l8TosBHA76Ev-cFnYe","https://www.wildberries.ru/catalog/150359774/detail.aspx?targetUrl=GP"]
[4631169829230,182309289,"Вельветовый тональный крем с увлажняющим эффектом 101 COTTON","20/10/2023","Можно ли наносить пальцами если он жидкий","_qnqTYsBHA76Ev-cDmi3","https://www.wildberries.ru/catalog/170035745/detail.aspx?targetUrl=GP"]
[4631169829230,182309289,"Вельветовый тональный крем с увлажняющим эффектом 101 COTTON","20/10/2023","А что взять  кожа светлая но с желтоватым подтоном какой брать? Ваш 02 тот тональный мне был темноват и уходил в финише в розоватый Я так понимаю у меня светлая оливковая","qkZCS4sBtm_3_oXdz0PD","https://www.wildberries.ru/catalog/150359774/detail.aspx?targetUrl=GP"]
[4631169829230,182309289,"Вельветовый тональный крем с увлажняющим эффектом 101 COTTON","19/10/2023","Здравствуйте.  Чем отличается  этот тональный крем от того что в белом тюбике?","kF5SSIsBYpYA1RfTYqXt","https://www.wildberries.ru/catalog/173057616/detail.aspx?targetUrl=GP"]
[4631169829230,182309289,"Вельветовый тональный крем с увлажняющим эффектом 101 COTTON","19/10/2023","Здравствуйте, какой оттенок подойдёт для светлой  комби кожи с розовым подтоном? Или лучше предыдущую линейку взять?","a6jYRosBHA76Ev-crede","https://www.wildberries.ru/catalog/170054370/detail.aspx?targetUrl=GP"]
[4631169829230,182309289,"Вельветовый тональный крем с увлажняющим эффектом 101 COTTON","17/10/2023","Здравствуйте. Подойдет для сухой кожи?","H19pP4sBseHJVfIho34M","https://www.wildberries.ru/catalog/150224091/detail.aspx?targetUrl=GP"]
[4631169829230,182309289,"Вельветовый тональный крем с увлажняющим эффектом 101 COTTON","17/10/2023","Здравствуйте, есть ли в составе масла?","r6hYPYsBHA76Ev-cQlSl","https://www.wildberries.ru/catalog/150224092/detail.aspx?targetUrl=GP"]
[4631169829247,182309290,"Вельветовый тональный крем с увлажняющим эффектом 102 MILK","20/11/2023","Здравствуйте. Пользуюсь вашим тональным в длинном флаконе 2 номер, но мне он чуть чуть на полтона темноват. Скажите, какой брать номер из новой линейки?","plTz7IsBtm_3_oXdn-i6","https://www.wildberries.ru/catalog/149910040/detail.aspx?targetUrl=GP"]
[4631169829247,182309290,"Вельветовый тональный крем с увлажняющим эффектом 102 MILK","30/10/2023","Спасибо отзыву за сегодня от 30к октября ! Так и знала что 102 на розовой базе! Вот вижу же по свотчам розовит, что раз в телеге Натальи спросила,нет, упёрлись оливковый , нет там никакой оливки , не буду брать","Wq2cgIsBHA76Ev-cPAAK","https://www.wildberries.ru/catalog/150224091/detail.aspx?targetUrl=GP"]
[4631169829247,182309290,"Вельветовый тональный крем с увлажняющим эффектом 102 MILK","28/10/2023","Добрый день! Подскажите пожалуйста подойдет ли данный тональный крем для возрастной кожи?","7GD_dIsB00yQAR3IgoXI","https://www.wildberries.ru/catalog/150382779/detail.aspx?targetUrl=GP"]
[4631169829247,182309290,"Вельветовый тональный крем с увлажняющим эффектом 102 MILK","28/10/2023","Добрый день! Подскажите пожалуй","KGP8dIsBseHJVfIhpBwf","https://www.wildberries.ru/catalog/170624107/detail.aspx?targetUrl=GP"]
[4631169829247,182309290,"Вельветовый тональный крем с увлажняющим эффектом 102 MILK","25/10/2023","Скажите написано страна производства китай это имеется в виду сам продукт?или упаковка?","IoILZ4sBliAoiwUeQKS_","https://www.wildberries.ru/catalog/170057513/detail.aspx?targetUrl=GP"]
[4631169829247,182309290,"Вельветовый тональный крем с увлажняющим эффектом 102 MILK","23/10/2023","Крем не забивает поры? Не комедоген?","z6pAXYsBHA76Ev-cyXy8","https://www.wildberries.ru/catalog/152273218/detail.aspx?targetUrl=GP"]
[4631169829247,182309290,"Вельветовый тональный крем с увлажняющим эффектом 102 MILK","19/10/2023","Здравствуйте не совсем поняла ваши предыдущие ответы про жирную кожу. Получается для комби и сухой. А какой тогда стоит рассмотреть тон для жирной кожи из вашего бренда?","oGFQSIsBEfQyvY3WrtNy","https://www.wildberries.ru/catalog/150359774/detail.aspx?targetUrl=GP"]
[4631169829247,182309290,"Вельветовый тональный крем с увлажняющим эффектом 102 MILK","18/10/2023","Здравствуйте а для жирной кожи подходит ?","1YCXQYsBliAoiwUeLwlF","https://www.wildberries.ru/catalog/165488045/detail.aspx?targetUrl=GP"]
[4631169829254,182309291,"Вельветовый тональный крем увлажняющий эффект 103 VANILLA","24/10/2023","Здравствуйте. Мне очень подходят по цвету Вв крем от limoni( в зеленой упаковке)  и erborian в цвете nude. Какой из ваших тональных мне больше подойдет ? Если возможно то посоветуйте тон из обоих ваших линеек тональных средств. Консиллер от shik у меня номер 2. Пудра light medium, а цвет medium использую как легкий бронзер, при этом я не светлокожая, но не понимаю какой лучше взять. Erborian цвет dore для меня слишком рыжий уже , а вот nude идеально","XarYYIsBHA76Ev-cbbPq","https://www.wildberries.ru/catalog/150382778/detail.aspx?targetUrl=GP"]
[4631169829254,182309291,"Вельветовый тональный крем увлажняющий эффект 103 VANILLA","22/10/2023","Здравствуйте скажите в 102 оттенке серый под тон?","4GCDVosBseHJVfIh1PBY","https://www.wildberries.ru/catalog/149785561/detail.aspx?targetUrl=GP"]
[4631170306058,171670601,"Набор - тени-спарклы и блеск-плампер для увеличения губ","25/10/2023","А где вопросы ? Я писала его нет","rYJCZ4sBliAoiwUeUqlv","https://www.wildberries.ru/catalog/150382776/detail.aspx?targetUrl=GP"]
[4631170306058,171670601,"Набор - тени-спарклы и блеск-плампер для увеличения губ","25/10/2023","Пришли тени ( ощущение что это работницы  вб пользуются а потом типа разбились ) там разбиваться не чему ) даже все собрав сломоное половины не вышло .Следы заметают .Я роняла румяна ламала знаю как это выглядит ( тут тупо работницы )","yGO_ZosBEfQyvY3WcvFS","https://www.wildberries.ru/catalog/154541667/detail.aspx?targetUrl=GP"]
[4631170306065,171671002,"Набор - тени-спарклы и блеск-плампер для увеличения губ","27/9/2023","Здравствуйте! Заказалa, открыла в пвз, пришел 1 блеск. Работник оформил брак, но за доставку списалось. Моей вины нет! И не хочу 1 звезду ставить, как быть?","GVZa1YoB00yQAR3I-rfS","https://www.wildberries.ru/catalog/150382777/detail.aspx?targetUrl=GP"]
[4631170449656,183217053,"Плотный консилер для лица для среднего оттенка кожи 1.5","20/11/2023","здравствуйте! подскажите пожалуйста  теплый цвет лица, и блонд волосы, какой выбрать консилер?","PnCf7YsBEfQyvY3W7r2O","https://www.wildberries.ru/catalog/177635010/detail.aspx?targetUrl=GP"]
[4631170449656,183217053,"Плотный консилер для лица для среднего оттенка кожи 1.5","18/11/2023","Здравствуйте, для смуглой кожи с желтым полотном какой лучше подойдет?","OG4144sBEfQyvY3WUOf-","https://www.wildberries.ru/catalog/177634182/detail.aspx?targetUrl=GP"]
[4631170449656,183217053,"Плотный консилер для лица для среднего оттенка кожи 1.5","6/11/2023","Здравствуйте какой оттенок перекроет синеву под глазами?","7oeyo4sBliAoiwUeYhgv","https://www.wildberries.ru/catalog/149785561/detail.aspx?targetUrl=GP"]
[4810156048858,150367969,"Тушь для ресниц черная белорусская удлинение и объем","20/11/2023","Здравствуйте, тушь оригинал или подделка ?","YWzq7YsB00yQAR3I92lv","https://www.wildberries.ru/catalog/149881390/detail.aspx?targetUrl=GP"]
[4810156048858,150367969,"Тушь для ресниц черная белорусская удлинение и объем","20/11/2023","Что делать если вместо туша мне отправили подводку? Я узнал об этом только дома так как заказ забирал сестра","wFWt7YsBtm_3_oXdMw-H","https://www.wildberries.ru/catalog/154551573/detail.aspx?targetUrl=GP"]
[4810156048858,150367969,"Тушь для ресниц черная белорусская удлинение и объем","20/11/2023","что делать если вместо туша мне принесли подводку? Толька дома узнала об этом","IVWq7YsBtm_3_oXdsg8g","https://www.wildberries.ru/catalog/149875697/detail.aspx?targetUrl=GP"]
[4810156048858,150367969,"Тушь для ресниц черная белорусская удлинение и объем","17/11/2023","Пользовалась данной тушью давно, прослужила мне долго. Сначала конечно густая была, а потом    подсушила ее и прекрасно стала красить.","GrW43osBHA76Ev-cTzBf","https://www.wildberries.ru/catalog/170057513/detail.aspx?targetUrl=GP"]
[4810156048858,150367969,"Тушь для ресниц черная белорусская удлинение и объем","17/11/2023","здравствуйте,  очень нравится тушь по эффективности и как смывается, но почему то на нижних веках остаётся панда, через часа 2","1m1Y3YsBEfQyvY3WXKvI","https://www.wildberries.ru/catalog/154541663/detail.aspx?targetUrl=GP"]
[4810156048858,150367969,"Тушь для ресниц черная белорусская удлинение и объем","14/11/2023","Интересно вы сами пользовались своей отвратительной тушью ?!?! Хуже у меня ещё не было !!! Однозначно отзывы накручены !!!","N2u5zYsBEfQyvY3WHso7","https://www.wildberries.ru/catalog/156370631/detail.aspx?targetUrl=GP"]
[4810156048858,150367969,"Тушь для ресниц черная белорусская удлинение и объем","14/11/2023","когда получила тушь сразу поставила 5 звезд из за упаковки но на следующий день стала краситься и полностью разочаровалась тушь сухая чтобы накраситься нужно приложить не мало усилий вообще не удлиняет сыпится значит срок годности не соответствует зря повилась на отзывы пишу сюда потому что второй раз отзыв оставить нельзя.","O2n0y4sBseHJVfIh6cxQ","https://www.wildberries.ru/catalog/150382778/detail.aspx?targetUrl=GP"]
[4810156048858,150367969,"Тушь для ресниц черная белорусская удлинение и объем","12/11/2023","Здравствуйте , можно полный состав туши ?","Z7Iow4sBHA76Ev-cRSPf","https://www.wildberries.ru/catalog/152238229/detail.aspx?targetUrl=GP"]
[4810156048858,150367969,"Тушь для ресниц черная белорусская удлинение и объем","5/11/2023","а куда нужно написать , чтоб магазина упаковал все продукты в фирменный пакет или коробку?","0WMroYsB00yQAR3ImeyP","https://www.wildberries.ru/catalog/170038304/detail.aspx?targetUrl=GP"]
[4810156048858,150367969,"Тушь для ресниц черная белорусская удлинение и объем","30/10/2023","Здравствуйте. Почему у вас стоит производство Беларусь, если фирма Россия?","lGFbgIsB00yQAR3IBF5_","https://www.wildberries.ru/catalog/171348914/detail.aspx?targetUrl=GP"]
[4810156048858,150367969,"Тушь для ресниц черная белорусская удлинение и объем","29/10/2023","пришел пустой","KmDaeosB00yQAR3IvfIe","https://www.wildberries.ru/catalog/150359474/detail.aspx?targetUrl=GP"]
[4810156048858,150367969,"Тушь для ресниц черная белорусская удлинение и объем","27/10/2023","Здравствуйте, а тушь водостойкая?","dkgMcIsBtm_3_oXdv-HJ","https://www.wildberries.ru/catalog/149881386/detail.aspx?targetUrl=GP"]
[4810156048858,150367969,"Тушь для ресниц черная белорусская удлинение и объем","27/10/2023","Здравствуйте, подскажите пожалуйста, черная тушь термостойкая? Смывается без эффекта панды?","BUgHcIsBtm_3_oXd4eEz","https://www.wildberries.ru/catalog/177635010/detail.aspx?targetUrl=GP"]
[4810156048858,150367969,"Тушь для ресниц черная белорусская удлинение и объем","26/10/2023","Здравствуйте, чем рекомендуете смывать вашу тушь?","ZUh1bIsBtm_3_oXdlKpM","https://www.wildberries.ru/catalog/177634488/detail.aspx?targetUrl=GP"]
[4810156048858,150367969,"Тушь для ресниц черная белорусская удлинение и объем","21/10/2023","Здравствуйте.  Тюбик обернут слюдой? Не хотелось бы получить сухую тушь","4UarUYsBtm_3_oXd2rRD","https://www.wildberries.ru/catalog/159485555/detail.aspx?targetUrl=GP"]
[4810156048858,150367969,"Тушь для ресниц черная белорусская удлинение и объем","18/10/2023","Почему так долго идёт с расти Ито быстрей приехала","E0WWQYsBtm_3_oXddqh5","https://www.wildberries.ru/catalog/170054370/detail.aspx?targetUrl=GP"]
[4810156048858,150367969,"Тушь для ресниц черная белорусская удлинение и объем","18/10/2023","Здравствуйте, почему производитель туши указана Беларусь? Если chik производится в России?","moCUQYsBliAoiwUeYwlp","https://www.wildberries.ru/catalog/171349477/detail.aspx?targetUrl=GP"]
[4810156048858,150367969,"Тушь для ресниц черная белорусская удлинение и объем","13/10/2023","тушь гипоаллергенная?","IF-OKYsBEfQyvY3Wvfr_","https://www.wildberries.ru/catalog/150224092/detail.aspx?targetUrl=GP"]
[4810156048858,150367969,"Тушь для ресниц черная белорусская удлинение и объем","10/10/2023","Здравствуйте, а эта тушь подходит для ламинированных ресниц?","xVpTG4sB00yQAR3Ih8NJ","https://www.wildberries.ru/catalog/150382776/detail.aspx?targetUrl=GP"]
[4810156048858,150367969,"Тушь для ресниц черная белорусская удлинение и объем","9/10/2023","Чёрная тушь водостойкая?","plr3FYsB00yQAR3Iq29G","https://www.wildberries.ru/catalog/149875697/detail.aspx?targetUrl=GP"]
[4810156048858,150367969,"Тушь для ресниц черная белорусская удлинение и объем","4/10/2023","Добрый день! Это термо тушь? Смывается водой \"чулочками\"?","caT4-ooBHA76Ev-cpWsf","https://www.wildberries.ru/catalog/150227243/detail.aspx?targetUrl=GP"]
[4810156048858,150367969,"Тушь для ресниц черная белорусская удлинение и объем","2/10/2023","Воск натуральный в составе?","3HtD8YoBliAoiwUejVlV","https://www.wildberries.ru/catalog/149875694/detail.aspx?targetUrl=GP"]
[4810156048858,150367969,"Тушь для ресниц черная белорусская удлинение и объем","1/10/2023","Воск натуральный?","UHui7IoBliAoiwUeRBnS","https://www.wildberries.ru/catalog/152466867/detail.aspx?targetUrl=GP"]
[4810156048858,150367969,"Тушь для ресниц черная белорусская удлинение и объем","1/10/2023","в туши есть консерванты ?","x6No7IoBHA76Ev-cjppx","https://www.wildberries.ru/catalog/150367969/detail.aspx?targetUrl=GP"]
[4810156048858,150367969,"Тушь для ресниц черная белорусская удлинение и объем","1/10/2023","Производитель Беларусь?","Nlng6YoBYpYA1RfTQAvD","https://www.wildberries.ru/catalog/150382776/detail.aspx?targetUrl=GP"]
[4810156048858,150367969,"Тушь для ресниц черная белорусская удлинение и объем","30/9/2023","оригинал ???","GFj_5IoBYpYA1RfTxMzu","https://www.wildberries.ru/catalog/177634182/detail.aspx?targetUrl=GP"]
[4810156048858,150367969,"Тушь для ресниц черная белорусская удлинение и объем","28/9/2023","Здравствуйте, оригинал?","EqKQ2ooBHA76Ev-ck5tT","https://www.wildberries.ru/catalog/170033635/detail.aspx?targetUrl=GP"]
[4810156048858,150367969,"Тушь для ресниц черная белорусская удлинение и объем","27/9/2023","Сколько мл во флаконе черной туши?","EFlH14oBseHJVfIhfH0L","https://www.wildberries.ru/catalog/153506236/detail.aspx?targetUrl=GP"]
[4810156048858,150367969,"Тушь для ресниц черная белорусская удлинение и объем","25/9/2023","Водостойкая ???","yVpKzYoBEfQyvY3WJaH4","https://www.wildberries.ru/catalog/150378847/detail.aspx?targetUrl=GP"]
[4810156048858,150367969,"Тушь для ресниц черная белорусская удлинение и объем","21/9/2023","Добрый день. Мне пришла сухая тушь, как будто ее вскрыли три месяца назад (но это не так, упаковано было надежно), возможно это произошло из-за неправильного хранения при транспортировке. Как поступить в данной ситуации? Жаль потраченных денег.","ZD1_uIoBtm_3_oXdPJVL","https://www.wildberries.ru/catalog/164536201/detail.aspx?targetUrl=GP"]

{"sheet":"Лист5","index":1,"n_rows":50,"n_cols":18,"rows_kept":50,"cut":false,"hidden":false,"merged":[]}
[4603739551117,{"$f":"IFERROR(INDEX(вопросы!$E$2:$E$800,MATCH($A1&\"\"&(COLUMN()-COLUMN($B1)+1),$R$1:$R$800, 0)),\"\")","v":"Я уже это сделала, куда дальше? Товар отвезли в пункт где я брала? Уже столько дней прошло долго отвечаете написала сразу же а вы отвечаете спустя столько дней"},{"$f":"IFERROR(INDEX(вопросы!$E$2:$E$800,MATCH($A1&\"\"&(COLUMN()-COLUMN($B1)+1),$R$1:$R$800, 0)),\"\")","v":"Куда теперь делать возврат? Я писала но конкретного ответа нет, писала о возврате уже, куда мне отвезти товар?"},{"$f":"IFERROR(INDEX(вопросы!$E$2:$E$800,MATCH($A1&\"\"&(COLUMN()-COLUMN($B1)+1),$R$1:$R$800, 0)),\"\")","v":"Почему мне никто не отвечает? Хочу сделать возврат, вообще другой товар отправили на жалобы не отвечаете"},{"$f":"IFERROR(INDEX(вопросы!$E$2:$E$800,MATCH($A1&\"\"&(COLUMN()-COLUMN($B1)+1),$R$1:$R$800, 0)),\"\")","v":""},{"$f":"IFERROR(INDEX(вопросы!$E$2:$E$800,MATCH($A1&\"\"&(COLUMN()-COLUMN($B1)+1),$R$1:$R$800, 0)),\"\")","v":""},{"$f":"IFERROR(INDEX(вопросы!$E$2:$E$800,MATCH($A1&\"\"&(COLUMN()-COLUMN($B1)+1),$R$1:$R$800, 0)),\"\")","v":""},{"$f":"IFERROR(INDEX(вопросы!$E$2:$E$800,MATCH($A1&\"\"&(COLUMN()-COLUMN($B1)+1),$R$1:$R$800, 0)),\"\")","v":""},null,null,null,null,null,null,null,null,null,{"$f":"вопросы!A2&\"\"&COUNTIF(вопросы!$A$2:A2,вопросы!A2 )","v":"46037395511171"}]
["4631136904687",{"$f":"IFERROR(INDEX(вопросы!$E$2:$E$800,MATCH($A2&\"\"&(COLUMN()-COLUMN($B2)+1),$R$1:$R$800, 0)),\"\")","v":"Здравствуйте, на фото кисть номер 11, что за тени, можно артикул?"},{"$f":"IFERROR(INDEX(вопросы!$E$2:$E$800,MATCH($A2&\"\"&(COLUMN()-COLUMN($B2)+1),$R$1:$R$800, 0)),\"\")","v":"Здравствуйте, мне нужна кисть для нанесения и растушовки сухих теней. Подскажите арт."},{"$f":"IFERROR(INDEX(вопросы!$E$2:$E$800,MATCH($A2&\"\"&(COLUMN()-COLUMN($B2)+1),$R$1:$R$800, 0)),\"\")","v":""},{"$f":"IFERROR(INDEX(вопросы!$E$2:$E$800,MATCH($A2&\"\"&(COLUMN()-COLUMN($B2)+1),$R$1:$R$800, 0)),\"\")","v":""},{"$f":"IFERROR(INDEX(вопросы!$E$2:$E$800,MATCH($A2&\"\"&(COLUMN()-COLUMN($B2)+1),$R$1:$R$800, 0)),\"\")","v":""},{"$f":"IFERROR(INDEX(вопросы!$E$2:$E$800,MATCH($A2&\"\"&(COLUMN()-COLUMN($B2)+1),$R$1:$R$800, 0)),\"\")","v":""},{"$f":"IFERROR(INDEX(вопросы!$E$2:$E$800,MATCH($A2&\"\"&(COLUMN()-COLUMN($B2)+1),$R$1:$R$800, 0)),\"\")","v":""},null,null,null,null,null,null,null,null,null,{"$f":"вопросы!A3&\"\"&COUNTIF(вопросы!$A$2:A3,вопросы!A3 )","v":"46037395511172"}]
[4631136904700,{"$f":"IFERROR(INDEX(вопросы!$E$2:$E$800,MATCH($A3&\"\"&(COLUMN()-COLUMN($B3)+1),$R$1:$R$800, 0)),\"\")","v":"Здравствуйте. Какая кисть лучше подходит для жидких и кремовых теней? Благодарю за ответ."},{"$f":"IFERROR(INDEX(вопросы!$E$2:$E$800,MATCH($A3&\"\"&(COLUMN()-COLUMN($B3)+1),$R$1:$R$800, 0)),\"\")","v":"Здравствуйте! Подскажите, кисть 10 ранее называлась 26к?"},{"$f":"IFERROR(INDEX(вопросы!$E$2:$E$800,MATCH($A3&\"\"&(COLUMN()-COLUMN($B3)+1),$R$1:$R$800, 0)),\"\")","v":""},{"$f":"IFERROR(INDEX(вопросы!$E$2:$E$800,MATCH($A3&\"\"&(COLUMN()-COLUMN($B3)+1),$R$1:$R$800, 0)),\"\")","v":""},{"$f":"IFERROR(INDEX(вопросы!$E$2:$E$800,MATCH($A3&\"\"&(COLUMN()-COLUMN($B3)+1),$R$1:$R$800, 0)),\"\")","v":""},{"$f":"IFERROR(INDEX(вопросы!$E$2:$E$800,MATCH($A3&\"\"&(COLUMN()-COLUMN($B3)+1),$R$1:$R$800, 0)),\"\")","v":""},{"$f":"IFERROR(INDEX(вопросы!$E$2:$E$800,MATCH($A3&\"\"&(COLUMN()-COLUMN($B3)+1),$R$1:$R$800, 0)),\"\")","v":""},null,null,null,null,null,null,null,null,null,{"$f":"вопросы!A4&\"\"&COUNTIF(вопросы!$A$2:A4,вопросы!A4 )","v":"46037395511173"}]
[null,{"$f":"IFERROR(INDEX(вопросы!$E$2:$E$800,MATCH($A4&\"\"&(COLUMN()-COLUMN($B4)+1),$R$1:$R$800, 0)),\"\")","v":""},{"$f":"IFERROR(INDEX(вопросы!$E$2:$E$800,MATCH($A4&\"\"&(COLUMN()-COLUMN($B4)+1),$R$1:$R$800, 0)),\"\")","v":""},{"$f":"IFERROR(INDEX(вопросы!$E$2:$E$800,MATCH($A4&\"\"&(COLUMN()-COLUMN($B4)+1),$R$1:$R$800, 0)),\"\")","v":""},{"$f":"IFERROR(INDEX(вопросы!$E$2:$E$800,MATCH($A4&\"\"&(COLUMN()-COLUMN($B4)+1),$R$1:$R$800, 0)),\"\")","v":""},{"$f":"IFERROR(INDEX(вопросы!$E$2:$E$800,MATCH($A4&\"\"&(COLUMN()-COLUMN($B4)+1),$R$1:$R$800, 0)),\"\")","v":""},{"$f":"IFERROR(INDEX(вопросы!$E$2:$E$800,MATCH($A4&\"\"&(COLUMN()-COLUMN($B4)+1),$R$1:$R$800, 0)),\"\")","v":""},{"$f":"IFERROR(INDEX(вопросы!$E$2:$E$800,MATCH($A4&\"\"&(COLUMN()-COLUMN($B4)+1),$R$1:$R$800, 0)),\"\")","v":""},null,null,null,null,null,null,null,null,null,{"$f":"вопросы!A5&\"\"&COUNTIF(вопросы!$A$2:A5,вопросы!A5 )","v":"46311369046871"}]
[null,{"$f":"IFERROR(INDEX(вопросы!$E$2:$E$800,MATCH($A5&\"\"&(COLUMN()-COLUMN($B5)+1),$R$1:$R$800, 0)),\"\")","v":""},{"$f":"IFERROR(INDEX(вопросы!$E$2:$E$800,MATCH($A5&\"\"&(COLUMN()-COLUMN($B5)+1),$R$1:$R$800, 0)),\"\")","v":""},{"$f":"IFERROR(INDEX(вопросы!$E$2:$E$800,MATCH($A5&\"\"&(COLUMN()-COLUMN($B5)+1),$R$1:$R$800, 0)),\"\")","v":""},{"$f":"IFERROR(INDEX(вопросы!$E$2:$E$800,MATCH($A5&\"\"&(COLUMN()-COLUMN($B5)+1),$R$1:$R$800, 0)),\"\")","v":""},{"$f":"IFERROR(INDEX(вопросы!$E$2:$E$800,MATCH($A5&\"\"&(COLUMN()-COLUMN($B5)+1),$R$1:$R$800, 0)),\"\")","v":""},{"$f":"IFERROR(INDEX(вопросы!$E$2:$E$800,MATCH($A5&\"\"&(COLUMN()-COLUMN($B5)+1),$R$1:$R$800, 0)),\"\")","v":""},{"$f":"IFERROR(INDEX(вопросы!$E$2:$E$800,MATCH($A5&\"\"&(COLUMN()-COLUMN($B5)+1),$R$1:$R$800, 0)),\"\")","v":""},null,null,null,null,null,null,null,null,null,{"$f":"вопросы!A6&\"\"&COUNTIF(вопросы!$A$2:A6,вопросы!A6 )","v":"46311369046872"}]
[null,{"$f":"IFERROR(INDEX(вопросы!$E$2:$E$800,MATCH($A6&\"\"&(COLUMN()-COLUMN($B6)+1),$R$1:$R$800, 0)),\"\")","v":""},{"$f":"IFERROR(INDEX(вопросы!$E$2:$E$800,MATCH($A6&\"\"&(COLUMN()-COLUMN($B6)+1),$R$1:$R$800, 0)),\"\")","v":""},{"$f":"IFERROR(INDEX(вопросы!$E$2:$E$800,MATCH($A6&\"\"&(COLUMN()-COLUMN($B6)+1),$R$1:$R$800, 0)),\"\")","v":""},{"$f":"IFERROR(INDEX(вопросы!$E$2:$E$800,MATCH($A6&\"\"&(COLUMN()-COLUMN($B6)+1),$R$1:$R$800, 0)),\"\")","v":""},{"$f":"IFERROR(INDEX(вопросы!$E$2:$E$800,MATCH($A6&\"\"&(COLUMN()-COLUMN($B6)+1),$R$1:$R$800, 0)),\"\")","v":""},{"$f":"IFERROR(INDEX(вопросы!$E$2:$E$800,MATCH($A6&\"\"&(COLUMN()-COLUMN($B6)+1),$R$1:$R$800, 0)),\"\")","v":""},{"$f":"IFERROR(INDEX(вопросы!$E$2:$E$800,MATCH($A6&\"\"&(COLUMN()-COLUMN($B6)+1),$R$1:$R$800, 0)),\"\")","v":""},null,null,null,null,null,null,null,null,null,{"$f":"вопросы!A7&\"\"&COUNTIF(вопросы!$A$2:A7,вопросы!A7 )","v":"46311369047001"}]
[null,{"$f":"IFERROR(INDEX(вопросы!$E$2:$E$800,MATCH($A7&\"\"&(COLUMN()-COLUMN($B7)+1),$R$1:$R$800, 0)),\"\")","v":""},{"$f":"IFERROR(INDEX(вопросы!$E$2:$E$800,MATCH($A7&\"\"&(COLUMN()-COLUMN($B7)+1),$R$1:$R$800, 0)),\"\")","v":""},{"$f":"IFERROR(INDEX(вопросы!$E$2:$E$800,MATCH($A7&\"\"&(COLUMN()-COLUMN($B7)+1),$R$1:$R$800, 0)),\"\")","v":""},{"$f":"IFERROR(INDEX(вопросы!$E$2:$E$800,MATCH($A7&\"\"&(COLUMN()-COLUMN($B7)+1),$R$1:$R$800, 0)),\"\")","v":""},{"$f":"IFERROR(INDEX(вопросы!$E$2:$E$800,MATCH($A7&\"\"&(COLUMN()-COLUMN($B7)+1),$R$1:$R$800, 0)),\"\")","v":""},{"$f":"IFERROR(INDEX(вопросы!$E$2:$E$800,MATCH($A7&\"\"&(COLUMN()-COLUMN($B7)+1),$R$1:$R$800, 0)),\"\")","v":""},{"$f":"IFERROR(INDEX(вопросы!$E$2:$E$800,MATCH($A7&\"\"&(COLUMN()-COLUMN($B7)+1),$R$1:$R$800, 0)),\"\")","v":""},null,null,null,null,null,null,null,null,null,{"$f":"вопросы!A8&\"\"&COUNTIF(вопросы!$A$2:A8,вопросы!A8 )","v":"46311369047002"}]
[null,null,null,null,null,null,null,null,null,null,null,null,null,null,null,null,null,{"$f":"вопросы!A9&\"\"&COUNTIF(вопросы!$A$2:A9,вопросы!A9 )","v":"46311369047171"}]
[null,null,null,null,null,null,null,null,null,null,null,null,null,null,null,null,null,{"$f":"вопросы!A10&\"\"&COUNTIF(вопросы!$A$2:A10,вопросы!A10 )","v":"46311369048161"}]
[null,null,null,null,null,null,null,null,null,null,null,null,null,null,null,null,null,{"$f":"вопросы!A11&\"\"&COUNTIF(вопросы!$A$2:A11,вопросы!A11 )","v":"46311369048921"}]
[null,null,null,null,null,null,null,null,null,null,null,null,null,null,null,null,null,{"$f":"вопросы!A12&\"\"&COUNTIF(вопросы!$A$2:A12,вопросы!A12 )","v":"46311369049461"}]
[null,null,null,null,null,null,null,null,null,null,null,null,null,null,null,null,null,{"$f":"вопросы!A13&\"\"&COUNTIF(вопросы!$A$2:A13,вопросы!A13 )","v":"46311369049601"}]
[null,null,null,null,null,null,null,null,null,null,null,null,null,null,null,null,null,{"$f":"вопросы!A14&\"\"&COUNTIF(вопросы!$A$2:A14,вопросы!A14 )","v":"46311373610521"}]
[null,null,null,null,null,null,null,null,null,null,null,null,null,null,null,null,null,{"$f":"вопросы!A15&\"\"&COUNTIF(вопросы!$A$2:A15,вопросы!A15 )","v":"46311373610522"}]
[null,null,null,null,null,null,null,null,null,null,null,null,null,null,null,null,null,{"$f":"вопросы!A16&\"\"&COUNTIF(вопросы!$A$2:A16,вопросы!A16 )","v":"46311373610523"}]
[null,null,null,null,null,null,null,null,null,null,null,null,null,null,null,null,null,{"$f":"вопросы!A17&\"\"&COUNTIF(вопросы!$A$2:A17,вопросы!A17 )","v":"46311373610524"}]
[null,null,null,null,null,null,null,null,null,null,null,null,null,null,null,null,null,{"$f":"вопросы!A18&\"\"&COUNTIF(вопросы!$A$2:A18,вопросы!A18 )","v":"46311373610525"}]
[null,null,null,null,null,null,null,null,null,null,null,null,null,null,null,null,null,{"$f":"вопросы!A19&\"\"&COUNTIF(вопросы!$A$2:A19,вопросы!A19 )","v":"46311373610526"}]
[null,null,null,null,null,null,null,null,null,null,null,null,null,null,null,null,null,{"$f":"вопросы!A20&\"\"&COUNTIF(вопросы!$A$2:A20,вопросы!A20 )","v":"46311373610527"}]
[null,null,null,null,null,null,null,null,null,null,null,null,null,null,null,null,null,{"$f":"вопросы!A21&\"\"&COUNTIF(вопросы!$A$2:A21,вопросы!A21 )","v":"46311373610691"}]
[null,null,null,null,null,null,null,null,null,null,null,null,null,null,null,null,null,{"$f":"вопросы!A22&\"\"&COUNTIF(вопросы!$A$2:A22,вопросы!A22 )","v":"46311373610692"}]
[null,null,null,null,null,null,null,null,null,null,null,null,null,null,null,null,null,{"$f":"вопросы!A23&\"\"&COUNTIF(вопросы!$A$2:A23,вопросы!A23 )","v":"46311373610693"}]
[null,null,null,null,null,null,null,null,null,null,null,null,null,null,null,null,null,{"$f":"вопросы!A24&\"\"&COUNTIF(вопросы!$A$2:A24,вопросы!A24 )","v":"46311373610694"}]
[null,null,null,null,null,null,null,null,null,null,null,null,null,null,null,null,null,{"$f":"вопросы!A25&\"\"&COUNTIF(вопросы!$A$2:A25,вопросы!A25 )","v":"46311373610695"}]
[null,null,null,null,null,null,null,null,null,null,null,null,null,null,null,null,null,{"$f":"вопросы!A26&\"\"&COUNTIF(вопросы!$A$2:A26,вопросы!A26 )","v":"46311373610696"}]
[null,null,null,null,null,null,null,null,null,null,null,null,null,null,null,null,null,{"$f":"вопросы!A27&\"\"&COUNTIF(вопросы!$A$2:A27,вопросы!A27 )","v":"46311373610697"}]
[null,null,null,null,null,null,null,null,null,null,null,null,null,null,null,null,null,{"$f":"вопросы!A28&\"\"&COUNTIF(вопросы!$A$2:A28,вопросы!A28 )","v":"46311373610698"}]
[null,null,null,null,null,null,null,null,null,null,null,null,null,null,null,null,null,{"$f":"вопросы!A29&\"\"&COUNTIF(вопросы!$A$2:A29,вопросы!A29 )","v":"46311373610699"}]
[null,null,null,null,null,null,null,null,null,null,null,null,null,null,null,null,null,{"$f":"вопросы!A30&\"\"&COUNTIF(вопросы!$A$2:A30,вопросы!A30 )","v":"463113736106910"}]
[null,null,null,null,null,null,null,null,null,null,null,null,null,null,null,null,null,{"$f":"вопросы!A31&\"\"&COUNTIF(вопросы!$A$2:A31,вопросы!A31 )","v":"463113736106911"}]
[null,null,null,null,null,null,null,null,null,null,null,null,null,null,null,null,null,{"$f":"вопросы!A32&\"\"&COUNTIF(вопросы!$A$2:A32,вопросы!A32 )","v":"463113736106912"}]
[null,null,null,null,null,null,null,null,null,null,null,null,null,null,null,null,null,{"$f":"вопросы!A33&\"\"&COUNTIF(вопросы!$A$2:A33,вопросы!A33 )","v":"463113736106913"}]
[null,null,null,null,null,null,null,null,null,null,null,null,null,null,null,null,null,{"$f":"вопросы!A34&\"\"&COUNTIF(вопросы!$A$2:A34,вопросы!A34 )","v":"463113736106914"}]
[null,null,null,null,null,null,null,null,null,null,null,null,null,null,null,null,null,{"$f":"вопросы!A35&\"\"&COUNTIF(вопросы!$A$2:A35,вопросы!A35 )","v":"463113736106915"}]
[null,null,null,null,null,null,null,null,null,null,null,null,null,null,null,null,null,{"$f":"вопросы!A36&\"\"&COUNTIF(вопросы!$A$2:A36,вопросы!A36 )","v":"463113736106916"}]
[null,null,null,null,null,null,null,null,null,null,null,null,null,null,null,null,null,{"$f":"вопросы!A37&\"\"&COUNTIF(вопросы!$A$2:A37,вопросы!A37 )","v":"463113736106917"}]
[null,null,null,null,null,null,null,null,null,null,null,null,null,null,null,null,null,{"$f":"вопросы!A38&\"\"&COUNTIF(вопросы!$A$2:A38,вопросы!A38 )","v":"463113736106918"}]
[null,null,null,null,null,null,null,null,null,null,null,null,null,null,null,null,null,{"$f":"вопросы!A39&\"\"&COUNTIF(вопросы!$A$2:A39,вопросы!A39 )","v":"46311373610761"}]
[null,null,null,null,null,null,null,null,null,null,null,null,null,null,null,null,null,{"$f":"вопросы!A40&\"\"&COUNTIF(вопросы!$A$2:A40,вопросы!A40 )","v":"46311373610762"}]
[null,null,null,null,null,null,null,null,null,null,null,null,null,null,null,null,null,{"$f":"вопросы!A41&\"\"&COUNTIF(вопросы!$A$2:A41,вопросы!A41 )","v":"46311373610763"}]
[null,null,null,null,null,null,null,null,null,null,null,null,null,null,null,null,null,{"$f":"вопросы!A42&\"\"&COUNTIF(вопросы!$A$2:A42,вопросы!A42 )","v":"46311373610764"}]
[null,null,null,null,null,null,null,null,null,null,null,null,null,null,null,null,null,{"$f":"вопросы!A43&\"\"&COUNTIF(вопросы!$A$2:A43,вопросы!A43 )","v":"46311373610765"}]
[null,null,null,null,null,null,null,null,null,null,null,null,null,null,null,null,null,{"$f":"вопросы!A44&\"\"&COUNTIF(вопросы!$A$2:A44,вопросы!A44 )","v":"46311373610766"}]
[null,null,null,null,null,null,null,null,null,null,null,null,null,null,null,null,null,{"$f":"вопросы!A45&\"\"&COUNTIF(вопросы!$A$2:A45,вопросы!A45 )","v":"46311373610767"}]
[null,null,null,null,null,null,null,null,null,null,null,null,null,null,null,null,null,{"$f":"вопросы!A46&\"\"&COUNTIF(вопросы!$A$2:A46,вопросы!A46 )","v":"46311373610768"}]
[null,null,null,null,null,null,null,null,null,null,null,null,null,null,null,null,null,{"$f":"вопросы!A47&\"\"&COUNTIF(вопросы!$A$2:A47,вопросы!A47 )","v":"46311373610769"}]
[null,null,null,null,null,null,null,null,null,null,null,null,null,null,null,null,null,{"$f":"вопросы!A48&\"\"&COUNTIF(вопросы!$A$2:A48,вопросы!A48 )","v":"463113736107610"}]
[null,null,null,null,null,null,null,null,null,null,null,null,null,null,null,null,null,{"$f":"вопросы!A49&\"\"&COUNTIF(вопросы!$A$2:A49,вопросы!A49 )","v":"46311373610831"}]
[null,null,null,null,null,null,null,null,null,null,null,null,null,null,null,null,null,{"$f":"вопросы!A50&\"\"&COUNTIF(вопросы!$A$2:A50,вопросы!A50 )","v":"46311373610832"}]
[null,null,null,null,null,null,null,null,null,null,null,null,null,null,null,null,null,{"$f":"вопросы!A51&\"\"&COUNTIF(вопросы!$A$2:A51,вопросы!A51 )","v":"46311373610833"}]

{"sheet":"Лист3","index":2,"n_rows":185,"n_cols":1,"rows_kept":185,"cut":false,"hidden":false,"merged":[]}
["Артикул"]
[4631137361069]
[4810156048858]
[4631160726330]
[4631170449656]
[4631146855382]
[4631162062047]
[4631169829247]
[4631158692203]
[4631150553519]
[4631143190530]
[4631137361076]
[4631165598338]
[4631161461285]
[4631159369791]
[4631162210677]
[4631159949269]
[4631150553533]
[4631166898314]
[4631161519870]
[4631164195231]
[4631169630546]
[4631168304615]
[4631168304608]
[4631168923731]
[4631136904717]
[4631140601794]
[4631164178982]
[4631149768849]
[4631161668561]
[4631169700768]
[4631151795994]
[4631161519849]
[4631149768832]
[4631165598642]
[4631160503771]
[4631137361083]
[4631161987266]
[4631168923724]
[4631159949276]
[4631137444083]
[4631169509507]
[4631161987273]
[4631140951820]
[4631154965769]
[4631161668608]
[4631165610603]
[4631161519924]
[4631165358260]
[4631163849104]
[4631161668578]
[4631149768825]
[4631157248500]
[4631169622107]
[4631167769330]
[4631165610627]
[4631169540302]
[4631140901139]
[4631143916093]
[4631137361052]
[4631141139142]
[4631144732517]
[4631169700782]
[4631169829230]
[4631165598659]
[4631144732500]
[4631164178951]
[4631157221152]
[4631169128692]
[4631162991590]
[4631169543242]
[4631154965790]
[4631161971463]
[4631161461292]
[4631165610634]
[4631154965752]
[4631140037623]
[4631163960625]
[4631153570797]
[4631146855351]
[4631161461308]
[4631154965783]
[4631142790830]
[4631164196719]
[4631136904687]
[4631161987334]
[4631164178944]
[4631161939432]
[4631161668585]
[4631143190547]
[4631165358277]
[4631140647174]
[4631161519894]
[4631159369807]
[4631157221176]
[4631148599604]
[4631147998248]
[4631136904960]
[4631165598666]
[4631153570780]
[4631139749209]
[4631165610610]
[4631154060563]
[4631161939449]
[4631159369784]
[4631145061982]
[4631141935607]
[4631166029466]
[4631166029473]
[4631164196696]
[4631161519917]
[4631160726347]
[4631164196689]
[4631161939456]
[4631167251040]
[4631152454531]
[4631160503740]
[4631149716024]
[4631161668554]
[4631166029503]
[4631143916086]
[4631149927413]
[4631164195187]
[4631155148758]
[4631166029497]
[4631164195194]
[4631169199012]
[4631166898321]
[4631157019322]
[4631139765438]
[4631161987259]
[4631169700751]
[4631165610597]
[4631142040140]
[4631170306058]
[4631169199005]
[4631136904700]
[4631169829254]
[4631161987341]
[4631169140151]
[4631161519856]
[4631142040157]
[4631168923700]
[4631142040133]
[4631166029480]
[4631161115508]
[4631167695097]
[4631161519887]
[4631169607319]
[4631164289206]
[4631165598673]
[4631144646654]
[4631144646616]
[4631136904816]
[4631141139173]
[4631164195224]
[4631164196702]
[4631169198992]
[4631163960632]
[4631144646623]
[4631160166198]
[4631162328808]
[4631169622084]
[4631160503733]
[4631136904946]
[4631162151741]
[4631157221169]
[4631141139159]
[4631162062054]
[4631165358246]
[4631169242619]
[4631144646661]
[4631157019339]
[4631154965776]
[4631152123246]
[4631162151734]
[4603739551117]
[4631168621026]
[4631170306065]
[4631152123253]
[4631169700775]
[4631140037630]
[4631169622077]
[4631136904892]
[4631160166204]

{"sheet":"СВОД","index":3,"n_rows":1154,"n_cols":1,"rows_kept":1154,"cut":false,"hidden":false,"merged":[]}
["Названия строк"]
[4603739551117]
["Салфетки для очищения кистей антибактериальные 100 шт"]
["Куда теперь делать возврат? Я писала но конкретного ответа нет, писала о возврате уже, куда мне отвезти товар?"]
["Почему мне никто не отвечает? Хочу сделать возврат, вообще другой товар отправили на жалобы не отвечаете"]
["Я уже это сделала, куда дальше? Товар отвезли в пункт где я брала? Уже столько дней прошло долго отвечаете написала сразу же а вы отвечаете спустя столько дней"]
[4631136904687]
["Кисть для теней №11"]
["Здравствуйте, мне нужна кисть для нанесения и растушовки сухих теней. Подскажите арт."]
["Здравствуйте, на фото кисть номер 11, что за тени, можно артикул?"]
[4631136904700]
["Кисть-факел для растушевки теней №10"]
["Здравствуйте! Подскажите, кисть 10 ранее называлась 26к?"]
["Здравствуйте. Какая кисть лучше подходит для жидких и кремовых теней? Благодарю за ответ."]
[4631136904717]
["Кисть для растушевки карандаша и теней №12"]
["foundation а этой кисти нет в Вашей карточке товара?"]
[4631136904816]
["Кисть скошенная для стрелок, карандаша и подводки №13"]
["Добрый день! А когда планируется поступление кисти 13? Очень жду"]
[4631136904892]
["Кисть для макияжа для тонального крема №03"]
["Добрый день. Можно узнать размеры кисти #3? Спасибо."]
[4631136904946]
["Кисть для растушевки теней и карандаша №7"]
["Добрый день! Подскажите, пожалуйста, для растушевки карандаша для глаз и проработки тенями ресничной зоны какие лучше кисти подойдут?"]
[4631136904960]
["Масло для роста и укрепления ресниц и бровей"]
["Почему печёт глаза это ср-во?"]
[4631137361052]
["Краска для бровей и ресниц Графит Graphite"]
["Добрый день ,подскажите номер лосьона которым смывать краску?"]
["здравствуйте! как покрасить брови в холодный оттенок, например, графит, так чтобы кожа тоже окрасилась максимально?"]
["Здравствуйте! Какой цвет купить что осветлить черные брови до светло коричневого ?"]
["Здравствуйте, подскажите пожалуйста, иссиня черная краска для ресниц ее с оксидом 1,8 % разбавлять в какой пропорции и какое время выдержки на ресницах?"]
["Здравствуйте? Идет без оксиданта? Без него тоже можно окрашивать?"]
["Подскажите подойдет ли оксид 1,8 от другой марки?"]
["Я думала придёт чёрный краситель,но пришёл белый что то ,я не понимаю для чего это?"]
[4631137361069]
["Краска для бровей и ресниц в цвете Коричневый Brown"]
["А оксид можно применять другой фирмы. ?"]
["В какой пропорции разводить графит и Окислительй 3%?"]
["Добрый день! Какой оксид подойдёт к коричневой и темно-коричневой краске? Спасибо."]
["Добрый день. Подскажите, сколько краска примерно держится на коже и на волосках?"]
["доставка задерживается, а сейчас у меня в доставках появился новый заказ этой же краски и как это понять?"]
["Здравствуйте какой срок годности после вскрытия?"]
["Здравствуйте какой срок годности у краски после вскрытия?"]
["здравствуйте! как красить брови, чтобы кожа тоже окрасилась?"]
["Здравствуйте! На сколько процедур хватает красителя?"]
["Здравствуйте! Подскажите какой цвет подобрать, если я блондинка со светлой кожей? Хотелось бы получить русый оттенок."]
["Здравствуйте! Срок годности проверите,а то сегодня пришлось сдать тк осталось 4 месяца."]
["Здравствуйте, какой купить окислитель для вашей краски ?"]
["Здравствуйте, оксид входит в комплект?"]
["Здравствуйте, подскажите пожалуйста под каким артикулом можно заказать оттенок Тауп"]
["здравствуйте,можно состав почитать ?"]
["Какая краска прокрашивает кожу? Я светлая, темно-русая"]
["Мне так и не выдали его что делать"]
["Он затерялся на складе"]
[4631137361076]
["Краска для бровей и ресниц Светло-коричневый Light brown"]
["здравствуйте я хочу заказать вашем магазине разные товары с курерской доставкой вы будете все сложит вместе? или будете отправлять по отделности"]
["Здравствуйте! Заказала светло коричневую краску, но на моих волосках после покраски она выглядит темно коричневой. Можно ли что-то сделать?например добавить ваш разбавитель?или нужно перезаказывать оттенок светлее?"]
["Здравствуйте!срок годности проверите?"]
["Здравствуйте,  подскажите срок годности краски после вскрытия. Спасибо"]
["Здравствуйте, нужен коричневый теплый , свои волосы рыжеватые .Какой тон взять ?"]
["Здравствуйте. Как подобрать правильно тон краски и оксид?"]
["Здравствуйте. Купила светло-коричневую краску, делала несколько окрашиваний с разными оксидами шик (1,8% и 3%) и щиплет кожу - это нормальная реакция?"]
["Здравствуйте. Помоги пожалуйста подобрать краску и оксид. Свои брови достаточно тёмные,  волосы на голове окрашены в блонд ( аэр тач) кожа  с холодным поддтоном. Хочется чтобы брови были не светло коричневого цвета и не чёрные."]
["Объясните пожалуйста почему по одному и тому же оттенку светло-коричневому тут рекомендуется оксид 0.9% или 1.8%, а по арт 142942855  с таким же оттенком оксид 3%?"]
["Подскажите, пожалуйста, какое время выдержки коричневой краски с оксидом %3 ? Я держу достаточно долго, но оттенок отдает в зелень!  Чтобы сразу стало коричневым нужно держать долго. Это может навредить волоскам?"]
[4631137361083]
["Краска для бровей и ресниц Иссиня-чёрный Blue black"]
["Где на краске указана дата изготовления? На торце коробки и краски указано 29IE1220. Получается краска изготовлена в 20м году и ей 3 года?!"]
["Добрый вечер.Оксидант прилагается? Если нет,где можно приобрести?"]
["Добрый день, в вашей линейке есть краситель для бровей и ресниц чисто черного цвета?"]
["здравствуйте"]
["Здравствуйте Скажите пожалуйста,это самостоятельное средство или ещё что-то нужно докупать? Что бы покрасить ресницы"]
["Здравствуйте! Подскажите срок годности после вскрытия и дату изготовления партии на вб?"]
["Здравствуйте, где смотреть угт ?"]
["Здравствуйте, какой срок изготовления придет если я захожу сегодня, мне нужно для домашнего использования а не салонного  а я дома использую не так часто?"]
["Здравствуйте, краска не красит кожу и двшат ли волоски"]
["Здравствуйте, подскажите пожалуйста, оксидант 3%подойдет при окрашивании  темно - коричневым красителем?"]
["Здравствуйте. Второй раз заказываю данную краску и Вы отправляете старую пригодности краску. Срок использования 5 лет. Краску, которую Вы отправляете уже 3 года!"]
["Здравствуйте. Для окрашивания ресниц взять иссиня-чёрный или чёрный цвет?"]
["Здравствуйте. Какая дата изготовления краски иссиня-черный?"]
["Какой срок после вскрытия у графита и иссиня-черного?"]
["Можно красить ресницы? И на каком оксиде?"]
["Чтобы окрасить брови в чёрный цвет, но при этом не окрасить кожу, какой оксид  выбрать? Подскажите, пожалуйста"]
["щиплет ли краска в процессе окрашивания ресниц?"]
[4631137444083]
["Оксид для краски для бровей 1,8%"]
["Если для окрашивания ресниц взять 3% он не ярко окрасит?"]
["Здравствуйте! Срок годности хочу узнать!"]
["Здравствуйте, как получить сертификат соответствия и качества товара ?"]
["подскажите пожалуйста, для осветления бровей на 1-2 тона подойдёт окислитель 1,8 или только 3% ?"]
["Хочу заказать оксид 1.8Но у вас дата с 21 года,  нужен свежий товар,  так как начинающий мастер и расход будет маленький и товар будет просрочен Когда будет свежее поступление?"]
[4631139749209]
["Точилка для косметических карандашей с двумя отверстиями"]
["А как открыть вторую сторону ? Уже все испробовала.. может есть какой-то способ?"]
["Добрый день! Невозможно открыть точилку с задней стороны. Судя по вопросам я не одна такая. Пожалуйста, загрузите видео как это сделать"]
["Здравствуйте! А точилка открывается с обеих сторон?"]
["Здравствуйте,  точилка  остро точит? А то многие точилки мягко точат. Нужны для ваших же карандашей для губ"]
["Я так и не смогла открыть с двух сторон! Точно открывается вторая сторона, а то сломаю!"]
[4631139765438]
["Прозрачный гель-фиксатор для бровей для укладки и роста"]
["Здравствуйте. Есть ли отдушка?"]
[4631140037623]
["Карандаш для бровей пудровый с щеточкой"]
["Добрый день! Подскажите какой цвет карандаша взять Браун или медиум  не могу определиться я теплая а брови черные, есть  старый татуаж ?"]
["Какая долгая доставка, ужас"]
[4631140037630]
["Карандаш для бровей пудровый с щеточкой"]
["Добрый день Подскажите пожалуйста,карандаш автоматический?"]
[4631140601794]
["Краска осветляющая для окрашивания бровей Тауп Taupe"]
["8 дней прошло с момента возврата брака, когда статус поменяют на «возврат» и отдадут деньги?!"]
["Без оксида волоски не станут светлей?"]
["без оксида краска не будет работать?"]
["Возвращала товар через обращение, после одобрения сдала по браку (21.09). На момент написания этого вопроса (28.09) деньги не вернули до сих пор. Платформа на вопросы по этому поводу не отвечает. Как получить свои деньги обратно?"]
["Добрый день!\nМожно использовать оксид другой фирмы?"]
["Добрый день, после осветления бровей , нужно будет что то использовать после краски ?"]
["Здравствуйте! Скажите пожалуйста, с чем связано, что у этого артикула 170035133 указано до 50 применений и цена выше, если объем у данного осветлителя такой же, но цена ниже и написано до 25 применений?"]
["Здравствуйте) Подскажите, пожалуйста, лучше окрасить брови и потом делать ламинирование бровей? Или же наоборот?"]
["Здравствуйте, а можно его использовать без окислителя ????"]
["Здравствуйте, можно смешивать с другим оксидом ?"]
["здравствуйте, не скажите срок годности?"]
["Здравствуйте, подскажите пожалуйста с любым оксидом работает? От бронсан подойдёт?"]
["Здравствуйте, подскажите пожалуйста, у меня брови чёрным цветом от природы , хочу осветлить ,какой лучше цвет брать краски? И номер океслителя ?"]
["Здравствуйте,с оксидантом 1,8%работает?"]
["Здравствуйте. Нанесла осветлитель без оксида. Держала 15мин. Не работает! Взяла оксид 3% из набора вашего бренда Brow set for hom. Держала 10 мин. результата 0! В чем причина???"]
["Здравствуйте. Через сколько можно повторить осветление?"]
["подскажите пожалуйста, окислитель идёт в комплекте? не совсем понимаю как с ним работать"]
["Подскажите пожалуйста, серо-коричневый цвет краки сможет осветлить черные брови ?"]
["После осветление что нужно использовать? Стабилизатор цвета или ничего не нужно наносить"]
["Пришел просроченный товар, отдала по браку, прошло больше 5 дней, а деньги так и не вернули. Вб на вопрос не отвечает, может, вы ответите? Товар обратно на склад не поступил до сих пор или что может быть?"]
[4631140647174]
["Спонж для макияжа тонального крема румян и консилера"]
["Здравствуйте, почему нельзя сделать возврат? Спонж по размеру маленький пришел, думала побольше."]
["Здравствуйте,уже долгое время жду свой спонж,можете разобраться в чем проблема? Показывает что с распределительного центра товар уже несколько дней не двигается"]
["Отказ где?"]
["Отказ от доставки где у Вас?"]
["Отказ от товара где писать?"]
["Отказ от товара где у Вас ?"]
[4631140901139]
["Оксид для краски кремовый для бровей 3%"]
["для ресниц какой процент оксида подойт?"]
["Добрый день! Какой срок годности у оксида? И ещё по крышечкам. Ниже увидела нарекания клиентов по ним. Это действительно правда. На оксидах, гелях для бровей, крышки разваливаются на второй неделе использования. У других брендов, даже более дешевых, такой проблемы нет. Я бровист, знаю о чем говорю."]
["Добрый день.У меня густые черные брови,Я хотела бы холодно-светло коричневый краской покрасить,чтоб добиться такого оттенка.Мне обязательно надо сперва обесцветить их и пото нанести краску ?или же смогу и так добиться светло-коричневого оттенка ??"]
["Есть объем меньше? В наборах нет подходящего цвета краски , но там оксид в мини формате для домашнего использования. Он есть отдельно в продаже?"]
["Здравствуйте, пользуюсь вашей линейкой достаточно давно, но все время расстраивают крышки, очень быстро ломаются. Вы как-то можете выслать кружечку или дополнительную класть при покупке?"]
["Какой месяц и год выпуска? Есть свежая партия?"]
["Какой оксид для покраски ресниц, подскажите"]
["Почему не возможно вернуть товар?"]
[4631140951820]
["Пинцет для бровей профессиональный скошенный"]
["Здравствуйте! Для этого пинцета предусмотрен какой-то футляр  или коробочка для хранения? В какой упаковке его доставляют?"]
[4631141139142]
["Матовый карандаш для губ ягодный COMO"]
["Добрый день!Когда будет цвет COMO в наличии?"]
["Здравствуйте! Когда ожидаются поставки карандаша в оттенке como?"]
["Здравствуйте! Когда появится цвет Como?"]
["Здравствуйте! Оттенок карандаша COMO снят с производства, тогда какой оттенок подойдет к блеску для губ BLACKBERRY арт 149881390 ?"]
["здравствуйте, когда появиться карандаш оттенок come? скажите пожалуйста"]
["Пожалуйста, верните в производство Como🙏 роскошный оттенок"]
[4631141139159]
["Матовый карандаш для губ персиковый BELLAGIO"]
["Какой номер карандаша подойдет для блеска под номером 03 этой же фирмы?"]
[4631141139173]
["Матовый карандаш для губ розовый MONZA"]
["Здравствуйте! Подскажите пожалуста, карандаш в оттенке монза правда имеет такой оттенок как на модели, кажеться красно- коричневый тёплый или же на самом деле он ягодный?"]
["Подскажите, какой оттенок ближе к цвету «пыльная Роза»?"]
[4631141935607]
["Воск для коррекции бровей"]
["Добрый день! Подскажите, пожалуйста, подходит ли этот воск для удаления волос в носогубной зоне??"]
["Здравствуйте! Можно использовать тальк вместо  масла перед депиляцией?"]
["Здравствуйте, а можно расколоть воск, если воскоплав силиконовый?"]
["Здравствуйте, нужно ли перед применением обрабатывать кожу маслом или тальком для депиляции?"]
["Здравствуйте. Подскажите, пожалуйста, как топить этот воск? Модно ли его ставить непосредственно в фольгированной стаканчике в воскоплав? На какую температуру выставлять таймер и сколько по времени ждать готовности воска?"]
["Здравствуйте. Скажите, можно ли этот воск использовать в минивоскоплаве?"]
["Объем 125г. Вес товара с упаковкой 120г. Вес товара без упаковки 2г. Это как понять? ( данные в карточке)"]
["Скажите пожалуйста можно ли расплавлять воск микроволновке или на газу? У меня нет воскоплава("]
["Скажите пожалуйста, в карточке продукта показано как вся порция воска в упаковке плавится для использования, при этом можно будет использовать воск повторно ? Или лучше заранее расколоть и использовать по кусочно?"]
["У меня минивоскоплав другой фирмы на 120 мл., могу ли я в нём использовать воск \"шик\"? Если да, то каким образом?"]
[4631142040133]
["Лосьон для бровей до окрашивания отшелушивающий"]
["Здравствуйте, нужно ли смывать №2 лосьон перед окрашиванием бровей или №1 лосьона достаточно?"]
[4631142040140]
["Масло перед оформлением коррекцией бровей воском для бровей"]
["Здравствуйте подскажите 3 состав перед депиляцией нанести на кожу а потом нужно ватным диском убирать масло?"]
["Здравствуйте подскажите дату изготовления лосьона номер 3"]
["Здравствуйте! Подойдет при использовании мягкого воска GIGI?"]
["Здравствуйте. Масло для депиляции мы наносим на кожу, чтобы ее сберечь- тут понятно, ноо не будет ли жирная пленка не волосе препятствовать сцеплению с воском? Как убирается пушковый и более толстый волос? Беспроблемно? Или нужно дополнительно использовать тальк?"]
["Здравствуйте. Получила масло перед воском для бровей. Оно без распылителя. Просто крышка. Так должно быть?"]
[4631142040157]
["Успокаивающий крем после коррекции бровей "]
["Здравствуйте. В креме #4 после эпиляции - есть SPF защита?"]
[4631142790830]
["Воскоплав для депиляции"]
["Здравствуйте, хочу приобрести воскоплав в рамках соц контракта, скажите цена остаётся прежней, если мне нужны будут чеки о покупке?"]
["Почему тут дороже чем на озоне ?"]
[4631143190530]
["Система для оформления бровей, шпатели и воск"]
["Добрый день,напишите пожалуйста алгоритм действий поэтапно по этой системе🙏.Не совсем понимаю ,когда использовать 1 и 2 этап.Если подряд ,то получается второй этап тут же сотрет первый…Все-таки когда можно использовать 1 и 2?"]
["Здравствуйте! Подскажите, какая упаковка данного товара?"]
[4631143190547]
["Ножницы для бровей из нержавеющей стали"]
["Здравствуйте, а для чего вы продаете ножницы для стрижки бровей, если даже в обучении от Натальи Шик говориться о том, что брови стричь нельзя? Да в любом адекватном обучении скажут - что брови нельзя стричь. Так для чего же?"]
[4631143916086]
["Лосьон для бровей перед окрашиванием очищающий охлаждающий "]
["170018021 почему то вылез повторный заказ, можно отменить его? Мне пока нужен только один бутылек, почему он два раза оформился не знаю"]
["Добрый вечер! В рекомендации к красителю у вас в описании идёт 1 состав для удаления краски, после окрашивания? Не снизит ли это интенсивность окрашивания? Необходимо ли затем состав 1 смывать водой?"]
["Добрый вечер! Вы мне на вопрос полностью не ответили. В описании к красителю, как рекомендация идёт снятие краски, после окрашивания, составом номер 1. Не снизит ли это интенсивность цвета?"]
["Здравствуйте ! Где посмотреть срок годности лосьона? Внизу банки написано 2011"]
["Здравствуйте! Купила лосьон шик 1. Срок если я правильно понимаю написан внизу банки. Там 2011 год указан??? Это как?"]
["Здравствуйте, а перед ламинированием для очищения подходит средство?"]
["Здравствуйте, когда появится в наличии 0 состав антисептик ?)"]
["Лосьон 1 применяется непосредственно перед окрашиванием краской как обезжириватель?"]
[4631143916093]
["Очищающий концентрат для обезжиривания бровей"]
["Добрый день, сколько хранится готовый раствор?"]
["Здравствуйте! Действует ли средство как ремувер краски с кожи (после процедуры окрашивания и полного снятия красителя)?"]
["Здравствуйте! Для ресниц подходит?"]
["Какой срок годности у готового раствора?"]
["Можно ли использовать как ремувер после окрашивания, чтобы стереть краску с кожи?"]
["Можно состав, пожалуйста"]
[4631144646616]
["Карандаш каял для глаз черный  для слизистой и стрелок 01"]
["Здравствуйте. А как он точится?"]
[4631144646623]
["Карандаш каял для глаз для слизистой и стрелок 02"]
["Здравствуйте,оттенок \"Твинкл\"с перламутром идёт?"]
[4631144646654]
["Карандаш каял для глаз для слизистой и стрелок 05"]
["Здравствуйте, карандаши точатся?"]
["Здравствуйте. Оттенок 05 матовый или перламутровый?"]
[4631144646661]
["Карандаш каял для глаз для слизистой и стрелок 06"]
["Здравствуйте,оттенок морокко будет в наличии?"]
[4631144732500]
["Матовый карандаш для губ розовый FLORENCE"]
["Добрый вечер! Карандаш Гарда есть в наличии? Не могу найти в карточке товара."]
["Здравствуйте! Есть ли оттенок карандаша с лилово-серым подтоном? И какой самый холодный тон у Shik?"]
["Здравствуйте! Подскажите пожалуйста, у каких арт. карандашей для губ холодный подтон? А то, мне совершенно не идёт теплота, боюсь ошибиться."]
["Здравствуйте!я не получила свой заказ,на пункт выдачи мне сказали продавец не отправил деньги тоже не вернули как это ?"]
["Здравствуйте, карандаш губы не сушит?"]
["Какой артикул у цвета Флоренс?"]
["Просто бомбой мне понравилось"]
["Скажите, пожалуйста, карандаш Como, когда будет в наличии?"]
[4631144732517]
["Матовый карандаш для губ коричневый GARDA"]
["03.11.2023 оформляла возрат, было одобрено, деньги не вернули, в чем дело?"]
["Добрый день. Мне пришла пустая коробочка., без карандаша для губ. Упаковка сбоку была аккуратно надрезана."]
["Долго жду карандаш,уже наверное недели две почти,очень давно висит, что собран на складе,но что-то движения больше нет,можно как-то узнать его судьбу,как скоро будет он?"]
["Здравствуйте скажите пожалуйста до какого года карандаш годен"]
["Здравствуйте! Когда появится карандаш Garda??😊"]
["здравствуйте, когда появится оттенок garda?"]
["Здравствуйте, подскажите, оттенки Garda, Verona, Florence , каких цветов? Какой из них более нюдовый?"]
["Здравствуйте. Будет ли поступление цвета Garda и если будет то когда? Заранее благодарна."]
["Здравствуйте. Когда появится карандаш garden?"]
["Здравствуйте? Куда пропал карандаш Urania?"]
["Почему сняли с производства como, если он пользуется спросом?"]
["Скажите пожалуйста коричневый цвет карандаша не уходит в рыжий цвет?"]
[4631145061982]
["Кисть для тона, румян и скульптора любых текстур №05"]
["Добрый вечер. Когда появится кисть #5? И появится ли вообще?"]
["Какая кисть лучше всего подойдёт для тона, скульптора, румян,все для кремовой коррекции 2,3 или 5 ???"]
[4631146855351]
["Крем для лица корейский увлажняющий гиалуроновый"]
["Добрый вечер, возникло сомнение насчет подлинности данного крема ваш пахнет травянисто, но сегодня зашла в золотое яблоко и попробовала там данный крем запах отсутствует ноль отдушки"]
["Добрый день, у вас был крем в баночке в сотрудничестве с Ксенией Вебер. Не смогла найти его карточку ни на сайте, ни здесь;( он больше не выпускается?"]
["Здравствуйте. Подскажите, пожалуйста,можно ли наносить на ночь ?"]
["Совсем что-ли кто покупает эту херню? Че по цене?"]
[4631146855382]
["Бальзам для губ увлажняющий питающий восстанавливающий"]
["Добрый день! Штрих код на упаковке не найден при  проверке на оригинальность . Вы продаёте подделку значит!!!"]
["здравствуйте! подскажите, когда появится в наличии?"]
["Здравствуйте! Почему так долго отправляете заказ?"]
["Здравствуйте!Извините,не знаю куда писать..В общем, я очень хочу что бы ваш бренд создал косметички, очень жду этого!!!Но не знаю сколько ждать и есть ли это вообще у вас в планах?Но в любом случае ооочень прошу передайте мою просьбу к руководству .Очень люблю ваш бренд и с не терпением буду ждать ответа!🙏🙏🤍"]
["извините , а можно ли узнать , куда обратится чтоб товар упаковали в фирменный пакет или коробку ?"]
["Подскажите пожалуйста, почему изменилась отдушка? Была такая ванильная и отличающая бальзам от всех других, а стала обычная фруктовая. Вы отвечали, что от партии отдушка отличается, разве такое может быть? У одного и того же продукта ведь всегда один аромат, я так расстроена что отдушка изменилась"]
[4631147998248]
["Крем для рук увлажняющий восстанавливающий для сухой кожи"]
["Здравствуйте,антисептика спрея»0»больше не будет ?"]
["Здравствуйте. Отдушка с каким запахом?"]
[4631148599604]
["Пилинг-диски пэды для лица очищающие корейские кислотные"]
["Добрый день! А какой объем баночки, подскажите, пожалуйста)нужно в самолет в ручную кладь не более 100 мл объем"]
["Здравствуйте! Нужно ли смывать после нанесения?"]
["здравствуйте,  подскажите сколько штук"]
["Здравствуйте, какое, примерное, количество дисков находится в данном продукте?"]
["Здравствуйте, можно ли применять диски при куперозе?"]
["Здравствуйте. Была отмена магазином, но деньги не вернули"]
["Здравствуйте. Скажите, пожалуйста, при беременности можно их использовать?"]
["Здравствуйте.На дне банке указана дата изготовления или срок годности?"]
["Какой ph средства?"]
["Почему мой комментарий не был опубликован?  Или вы показываете только положительные отзывы???"]
[4631149716024]
["Краска для бровей и ресниц Теплый коричневый Soft brown"]
["Добрый день, какой срок годности у партии ? У коричневого, светло-коричневого, графита?"]
["Здравствуйте.Подскажите срок годности после вскрытия"]
["Скажите, пожалуйста, седые брови коричневый цвет закрасит? Спасибо!"]
[4631149768825]
["Краска осветляющая для окрашивания бровей Медовый блонд "]
["Для меня светло-коричневый тон оказался тёмным, купила медовый блонд. Оксид купила 3%.Подскажите в каких пропорциях их смешать, чтобы получился цвет на тон светлее светло-коричневого. Спасибо."]
["Добрый день! После осветления нужно ли наносить шампунь-нейтрализатор для избавления от нежелательного оттенка?"]
["здравствуйте! будет ли понижение цены?"]
["Здравствуйте! Как часто можно осветлять брови осветлителем \"медовый блонд\", чтобы не навредить бровкам?"]
["Здравствуйте! Подскажите, пожалуйста, а если у меня оксид для бровей 6% можно с ним осветлить брови вашим товаром?"]
["Здравствуйте,  подскажите на сколько именно задерживается товар, может имеет смысл заказать заново?"]
["Здравствуйте, если цвет волос темный русый,а брови черные,то лучше taupe осветлять? И каким окислителем?"]
["Здравствуйте, крашенные брови в темный цвет осветлил он?"]
["Здравствуйте, мне нужно осветлить брови на 2-3 тона, брови сами тёмные. Подскажите какой Осветлитель выбрать, и какую к нему ещё краску надо из это серий?"]
["Здравствуйте, осветлила брови. Теперь не знаю что делать, получились сликшом светлые ещё и рыжие какие-то. Скажите пожалуйста как мне теперь исправить эту ситуацию, я не знаю что делать. Мой цвет волос холодный блонд, хотела просто более светлые брови((как вернуться в холодный оттенок и при этом слегка  затемнить?"]
["Здравствуйте, подскажите, пожалуйста, будет ли работать осветлитель медовый блонд с оксидом 1,8% или результат будет слабоватым?"]
["Здравствуйте, сколько нужно держать краску чтобы брови стали прям белые?"]
["Здравствуйте. Брови черные,хочу приобрести оксид 3% и Краситель Медовый блонд,чтобы осветлить на 2 тона.Скажите,пожалуйста, с каждым последующим применением волоски будут светлее или будет тот же тон,как в первый раз после применения??"]
["здравствуйте. можно им ресницы осветлить? (для цветного окрашивания нужно)"]
["Здравствуйте.Где указан срок годности ?"]
["Купила оксид 3% и светло-коричневый тон,после окрашивания(1:1),получилось темновато для меня. Подскажите, если добавить медовый блонд, можно ли получить посветлее оттенок? Если да, то в каких пропорциях? спасибо."]
["На блон нужно 5% краски и 1 % окислителя?"]
["Оксид идет в комплекте?"]
["Скажите пожалуйста, будет ли какая то скидка? А то дороговато"]
[4631149768832]
["Краска для окрашивания бровей Холодный светло-коричневый "]
["Добрый день! У меня светлые брови, отдают в рыжину(после осветления медовым блондом)темнее брови не хочу, нужен тот же тон примерно. Скажите пожалуйста, если я возьму краску холодный светло-коричневый какая будет разница в эффекте оксидов 0,9% и 1,8% с ней? И не станут ли они сильно темнее с ней? Уберет ли краска рыжину?"]
["Здравствуйте! В наборе только краска ? Или комплект краска и оксид"]
["Здравствуйте! какой краситель подождёт к светло рыжим волосам при использовании 3% оксида: холодный светло-коричневый или просто светло коричневый?"]
["Здравствуйте! Решена проблема с краской ? Я брала последний раз, она комками собирается, не входит в реакцию с окислителем, при нанесении быстро затемняется волос а на коже почти не оставляет отпечаток. Я работаю на данной краске давно, и такого не было !"]
["Здравствуйте!Чем отличается эффект от использования 3%, 1,8%, 0,9% оксидов?"]
["Здравствуйте, заказала краску светло-коричневого цвета повторно, но к сожалению снова пришла темная, при смешении с другими цветами, графит.. совсем не проявляется (((что можно сделать, как обменять или вернуть товар, если он не соответствует качеству?"]
["Здравствуйте,можно ли сделать отказ от товара не оплатив его?Заказала набор,поэтому краска не понадобится"]
["Здравствуйте. С чем связано снижение цены? Почему на других онлайн-площадках и официальном сайте товар дороже?"]
["Скажите пожалуйста, в чем отличие этих 170057513 красок?"]
["У вас есть на складе иссиня черный со свежем годом изготовления ? Не 2020"]
[4631149768849]
["Краска для бровей и ресниц Холодный темно-коричневый"]
["Где брать оксид?"]
["Добрый вечер. У меня 2 вопросы, буду признательна за ваш ответ. 1. Для осветления 3 % оксид + taupe пропорции 1:1 ? || 2. Можно ли сделать окрашивание с краской темно-коричневой и оксидом 3%? Если нет другого оксида для темных волос? Спасибо за ответ !)"]
["Добрый день! Подскажите каким образом работает цвет Taup?  Что именно он осветляет? По представленным свотчам получается, что он темнее, чем «холодный светло-коричневый»?"]
["Здравствуйте краска водонепроницаемая, напишите пожалуйста состав краски"]
["Здравствуйте! Какой срок годности на  краске холодный темно-коричневый?"]
["Здравствуйте, где я могу посмотреть сертификат соответствия"]
["Здравствуйте, если после окрашивания наносить масла оно будет действовать , и какой оксидан можно купить халяльный"]
["Здравствуйте, краска красит кожу и можно ли делать омоаение"]
["Здравствуйте, краска красить кожу?"]
["Здравствуйте, краска не красит кожу и двшат ли в нем волоски, омоаение проходит?"]
["Здравствуйте. Какого цвет красит не только волоски, но и кожу? И сколько будет держаться на коже? Я брюнетка, а брови холодные практически серого оттенка"]
["Здравствуйте. У красок есть номера? Как отличить один от другого? Постоянно обращаться к упаковке?"]
["Можете принять возврат заказа до его поступления? Я заказала набор, поэтому эта краска не понадобится"]
["На упаковке написано смешать краску с оксидантом....в упаковке только тюбик с краской"]
["Что  входит в комплекте"]
[4631149927413]
["Коричневый карандаш для глаз и слизистой PALERMO"]
["Добрый день! Подскажите, карандаш легко смывается?"]
["Карандаш стоит 771 рубль а сняли у меня 991 рубль можно узнать причину?"]
[4631150553519]
["Карандаш каял для глаз для слизистой и стрелок 07"]
["Здравствуйте, пришел карандаш до 02.2024( за 1198 руб.!). как вернуть? и ошибочно забрала бальзам для губ, тоже хочу вернуть. На пункте выдачи сказали косметику вернуть можно только через личный кабинет."]
[4631150553533]
["Карандаш каял для глаз для слизистой и стрелок 15"]
["подходит ли этот карандаш для слизистой глаза, как он держится?"]
[4631151795994]
["Тени для век жидкие №05 блестящие темно-коричневые"]
["Добрый день! Оттенок 5 сатиновый, шиммерный или глиттерный? Спасибо!"]
["Добрый день, это оригинальная продукция? Цены дешевле чем на сайте"]
[4631152123246]
["Кисть для пудры, румян и скульптора №04"]
["Добрый день ! Уже больше 15 дней прошло со дня возврата по браку товара , деньги до сих пор не вернулись на карту, неоднократно писала в поддержку вб, толку 0, сейчас уже перестали даже отвечать . Вы можете как то повлиять на этот вопрос в возвращении моих денег?  Один из ответов был, что пока товар не вернется на склад деньги не придут , но с 14 сентября уже явно оно бы успело дойти ! Пожалуйста помогите !"]
[4631152123253]
["Кисть для растушевки кайала и теней любых текстур №08"]
["Добрый день, подскажите Арт:  154541670- на главной фотографии кисть чуть вытянутая на кончике, на видео та же кисть с округлым кончиком. Какая кисть на самом деле?"]
[4631152454531]
["Тени для век жидкие №02 блестящие коричневые"]
["Здравствуйте,до какого срок годности теней в оттенке 02?"]
[4631153570780]
["Прозрачный разбавитель краски для бровей и ресниц"]
["Здравствуйте! подскажите пожалуйста , можно ли использовать разбавитель с красками других производителей?"]
["Здравствуйте, для чего разбавитель?"]
["Здравствуйте. У меня больше половины бровей и ресниц седые , цвет кожи очень белый . Можете подсказать как окрасить и в какой цвет будет лучше ,пожалуйста"]
[4631153570797]
["Оксид для краски для бровей 0,9%"]
["Заказывала два раза и пришел оксид 1.8, есть 0,9????"]
["Здравствуйте, какой оксидан подойдёт к холодно темно коричневому чтоб не красилась кожа"]
["Здравствуйте, какой процент окислителя нужен для оттенка графит"]
["Здравствуйте, оксидан халяльный?"]
["Здравствуйте, я заказала оксид 1,8 а мне оформили как 0.9 ладно.\n\nНо Он стоит 346 рублей , а меня сейчас списали деньги 546 рублей что это такое ?"]
[4631154060563]
["Очищающий гель для лица с увлажняющим эффектом"]
["Здравствуйте. У вас этот товар есть в наличии? Мне в листе ожидания пишут что есть, а когда хочу оформить заказ пишут и добавляю в корзину пишут что нет в наличии"]
[4631154965752]
["Пудра для лица компактная сияющая для светлой кожи"]
["Добрый день. Пудру заказывала 3 раза. Приходила разбитая. Вопрос, почему такое отношение к  товару?"]
["Здравствуйте! А у вас есть отдельные рефилы пудры или нужно целую заново покупать? Если есть, то пришлите артикул, пожалуйста."]
["Здравствуйте, подойдет пудра для сухой кожи?"]
["Здравствуйте, это самый светлый оттенок?"]
["Здравствуйте. Подскажите пожалуйста подойдёт ли данная пудра возрастной, жирной коже с расширенными порами? Пудра оригинал?"]
["Какая пудра подойдёт на тональный крем 1,5?"]
[4631154965769]
["Пудра для лица компактная сияющая для смуглой кожи"]
["Доброй ночи! А на загорелую кожу есть темный оттенок?"]
["Добрый вечер! Подскажите, пудру Медиум (она же самая темная сейчас?) можно использовать для светлой кожи как легкий скульптор? Или в этом нет смысла и она нанесется вуально?"]
[4631154965776]
["Румяна для лица персиковые сияющие с шиммером "]
["Румяна пришли разбитые, ужас полный, как вернуть деньги и товар????"]
[4631154965783]
["Консилер для лица и под глаза для светлой кожи 01"]
["Для какой кожи ? Сухой или дирной?"]
["Здравствуйте! Продукт уже более дня в позиции «собрано продавцом». Почему так долго ?"]
["Здравствуйте, заказала повторно консилер в оттенке 01, пришел и на тюбике написано 1, почему у вас на картинке 01 (в моем предыдущем 01), а мне пришел 1? это подделка?"]
["Здравствуйте, какой самый светлый оттенок?"]
[4631154965790]
["Консилер для лица и под глаза для смуглой кожи 02"]
["Здравствуйте, подскажите пожалуйста, если брать ваш тональный крем оттенок 2.5(зеленовато бежевый) какого оттенка взять лучше консилер?"]
["Чо так дорого?"]
[4631155148758]
["Черный спонж для тонального крема и консилера"]
["Здравствуйте!Как долго будет доставка товара?заказ был оформлен 6 сентября"]
["Здравствуйте, пользуюсь черным спонжиком меньше месяца, мою хоз мыла +- после каждого нанесения, он стал ближе к кончику светлее и как будто жестче чем «попка». Скажите почему так? И немного хуже стал наносить тональный крем, не так как был новый(("]
["Такой спонж за эту высокую цену стрёмно покупать потому что наборы из четырёх спонжиков стоит 150 руб"]
[4631157019322]
["Матовый карандаш для губ темно-бежевый VERONA"]
["Здравствуйте.Какой оттенок матовой помады подойдет под карандаш Верона?"]
[4631157019339]
["Многофункциональный карандаш-корректор бежевый для лица"]
["Здравствуйте,карандаш деревянный или в пластике?) Точить любой косметической или только точилкой одноименного бренда?"]
[4631157221152]
["Кисть для жидких текстур FOUNDATION"]
["Добрый день! Подскажите, когда появится в продаже кисть Foundation?"]
["Скажите она подойдет для нанесения бб? Она из искусственного ворса?"]
[4631157221169]
["Кисть для кремовых текстур CONCEALER"]
["Добрый день. Скажите пожалуйста сколько стоит 3 кисти вместе, и отдельно кисть консилер?"]
[4631157221176]
["Кисть для макияжа лица MODELING"]
["Добрый день! Когда кисть Foundation появится в продаже?"]
["добрый день! появится ли кисть для консилера?"]
["Добрый день! Уже ноябрь, скажите, когда кисти поступят в продажу или можно не ждать?"]
["Здравствуйте . Скажите , а как так оказалось , что мне пришла кисть вместо Shik , пришла кисть Nikk molle??"]
[4631157248500]
["Набор кистей для макияжа"]
["Здравствуйте когда появиться в наличии набор"]
["Здравствуйте! Набор из 3 кистей когда будет в наличии? Хотелось бы заказать в качестве подарка"]
["Здравствуйте? Будут ли в наличии 3 кисти 😻?"]
[4631158692203]
["Скульптор для лица сухой запеченный матовый "]
["Добрый день! Какой это тон 01 или 02?"]
["Добрый день!!! Подскажите, к новогодним праздникам скидка ожидается?!"]
["Добрый день, получила скульптор и там очень мало коричневого цвета, в основном светлый... ниже слой будет таким же или может быть темнее? а то получается не скульптор, а хайлайтер...("]
["Добрый день. Купила сухой запеченный скульптор и румяна. Кисти у меня Annbeauty s22 для скульптора и A3 для румян. Кисти премиальные ,японские. Ворс натуральный. Продукты набираются очень плохо. Не могу понять в чем дело. Подскажите пожалуйста это такая скудная пигментация или есть какой-то верхний слой у этих продуктов,какая-то особенность в начале использования?Очень их ждала и очень расстроена."]
["Здравствуйте! заказывала запечённый скульптор два раза и  раза приходила пудра!!! в чем дело??? только не надо говорить, что сотрудники маркетплейса допустили ошибку оба раза!!!"]
["Здравствуйте! Напишите, пожалуйста, полный состав"]
["Здравствуйте, зачем вы мне отправили пудру вместо скульптора? Почему я теперь за отказ платить должна? Я перезаказала пусть положат СКУЛЬПТОР!!!!"]
["Здравствуйте, коричневый оттенок какой # оттенка? Нигде не нашла."]
["Здравствуйте, подскажите какой срок годности после вскрытия?"]
["Здравствуйте, подскажите пожалуйста,это оригинал?"]
["Пишу второй раз!!! Валдберис не публикует. Я приобрела зареченнвй скульптор и румяна. Продукты очень плохо набираются на кисть и плохо переносятся. Кисти у меня Annbeauty s22 и A3. Это премиального качества японские  кисти из натурального ворса. Подскажите пожалуйста может есть какой-то верхний слой у продуктов,который затрудняет передачу пигмента или это такая слабая пигментация?Очень ждала их и очень разочарована!"]
["Этот скульптор тон 01?"]
[4631159369784]
["Кремовые румяна 01"]
["В отзывах есть цвет оранжевый. Это какой номер?"]
["Здравствуйте. Почему вчера у вас была другая цена, сегодня другая?. Аж на 1000 тенге больше."]
[4631159369791]
["Кремовые румяна 02"]
["150378854 имеет холодный или тёплый подтон?"]
["здравствуйте скажите пожалуйста коралловый цвет какой в живую?"]
["здравствуйте. заказала у вас румяна, а доставили бальзам для губ. прошу вернуть мне деньги! ужасно разочарована сервисом и  магазином"]
["Оригинал?"]
[4631159369807]
["Кремовые румяна 04"]
["а какой объем??"]
["Здравствуйте. Почему доставка задерживается ?"]
["Здравствуйте. Уже два дня статус-со рано продавцом. Отправьте мой заказ, пожалуйста!"]
["Здраствуйте,а какой запах у продукта?(отдушка)"]
["Какой цвет подойдет на светлую кожу?"]
["Они оригиналы"]
["Почему при использовании какие то катышки появляются. Как песок. Разминала перед использованием"]
["пошли румяна с запаянным, загнутым в сторону носиком.Из-за этого очень плохо закручивается крышка.Как решить вопрос?"]
["Что делать если посылка должна идти 3 дня а идёт уже  5"]
[4631159949269]
["Жидкий кремовый скульптор 01"]
["а есть ли у вас тон 02?"]
["Девочки !!!! Крайне не советую ,в принципе брать этот товар !!! Почитала отзывы у девчонок ,пишут ,что приходит полупустой !!! Я купила в золотом яблоке!!! Тоже ПОЛУПУСТОЙ! РУМЯНА ЖИДКИЕ - прекрасные ,а скульптор нет!!!! Такое ощущение ,что это заводской брак ,а производитель его не решает ! Точно, не к продавцу вопросы!!!!!!!"]
["Добрый день! На сколько применений примерно хватает?"]
["Добрый день! Почему товар приходит пустой? Это правда?"]
["Здравствуйте! Я хотела уточнить когда будет мой заказ? С 6 сентября я жду!"]
["Здравствуйте, какой оттенок подойдёт для светлой кожи с тёплым, оливковым подтоном?"]
["Здравствуйте. Почему не возвращаете деньги за возврат? Оформляла возврат 28.09 до сих пор не вернули деньги"]
["Какой оттенок подходит для не очень светлой и не смуглой кожи лица?"]
["Посмотрите он пришёл пустой, верните деньги, не заказывайте у них, запакован был, значит это магазин мне такой отправили, деньги верните, ужас"]
["Почему задерживают заказ?  Должен был прийти ещё 2 недели назад"]
["Пришел совсем пустой,как Вам не стыдно!"]
["товар оригинал?"]
["Это ужас, мало того что он просроченный, так ещё и полупустой.... Верните деньги товар пришлю обратно."]
[4631159949276]
["Жидкий кремовый скульптор 02"]
["Здравствуйте, какой оттенок выбрать для светлой кожи?"]
["Здравствуйте, какой оттенок холодный?"]
["Здравствуйте. Можно ли вернуть товар, если упаковка не вскрывалась? Он так и есть в пупырчатой пленке."]
["Здравствуйте. Подскажите оттенок 02 жидкого скульптора и 02 кремового скульптора совпадают??они одинаковые или разные???"]
["подскажите что за помада на модели?"]
["ПОЧЕМУ ПРИХОДИТ ПОЛУПУСТОЙ???"]
["Почему товар пустой ?"]
["Сделала возврат,через сколько поступят деньги ?"]
["товар задерживается на 2 месяца, когда прийдет?"]
["Хочу попробовать данный контуринг, но не могу определиться с цветом... Я довольно таки бледная 🤣 какой лучше?"]
[4631160166198]
["Стойкие матовые тени-карандаш для глаз в стике CHAMOISEE"]
["Здравствуйте,если на слизистую в качестве кайала нанести,то дадут они держатся?"]
[4631160166204]
["Стойкие матовые тени-карандаш для глаз в стике RUST"]
["Теплый коричневый уходит в рыжеватый? На картинке уходит уточните пожалуйста"]
[4631160503733]
["Скульптор для лица кремовый контуринг для светлой кожи"]
["Здравствуйте. Для кожи с холодным тоном, какой оттенок подойдёт"]
["Как оформить возврат если прислали не тот заказ??? Прислали рефил за 600 рублей вместо нормального за 1200"]
[4631160503740]
["Скульптор для лица кремовый контуринг для смуглой кожи"]
["Здравствуйте! Какой самый тёмный оттенок скульптора в рефиле( для тёмной кожи)?"]
["Сколько грамм продукта?"]
[4631160503771]
["Кисть для растушевки теней N.SHIK №8"]
["Добрый вечер. Интересует кисть к23 аналог мас 217. Не могу найти у Вас?"]
["Скажите, а будет ещё выпускаться такая серия??? Очень красивые, но нужные номера уже раскупили("]
[4631160726330]
["Серо-коричневый карандаш для глаз и слизистой GENOVA"]
["Здравствуйте, а есть ли просто в черном цвете?"]
[4631160726347]
["Матовый карандаш для губ красный MILANO"]
["Добрый день, вы убрали помаду из каталога? Исчезла из корзины. Или подскажите код. Там, где был новый оттенок \"трюфель\""]
["Подскажите,пожалуйста, какой оттенок карандаша лучше подойдёт к помаде Cherry?"]
[4631161115508]
["Система для окрашивания бровей"]
["Где у краски и оксидов срок годности или производств стоит вообще ?"]
["Добрый день, скажите пожалуйста, больше суток уже заказ собран продавцом, а продавец планирует вообще отправку товара? Должен прийти завтра,но он ещё даже не отгружен, соответственно доставка задержится на неизвестное количество времени"]
["Добрый день,срок годности открыто тюбиков какой ?краски оксидов осветлителей"]
[4631161461285]
["Тональный крем с матовым финишем 01"]
["Здравствуйте новое поступление тонального крема будет в новой упаковке?"]
["Здравствуйте, это оригинал?"]
["когда будет оттенок 0.5?"]
["скажите пожалуйста для светлой кожи подойдёт 01 тон ? у меня светлая кожа , на холоде щеки розовеют"]
["Скажите пожалуйста, тональный крем придёт запечатанный ? Очень не хотелось бы получить полупустой тюбик после кого-либо"]
[4631161461292]
["Тональный крем с матовым финишем 02"]
["Добрый день ! Какой подтон  у 1.5 оттенка и оттенка 02? Спасибо"]
["Добрый день! Оттенок 02 с каким подтоном?"]
["Добрый день!Для сухой кожи подойдет?"]
["Добрый день. Очень долгая доставка! Зачем из Новосибирска в Омск отправлять через Екатеринбург?🙈"]
["Здравствуйте 1,5 будет оттенок в ноябре???"]
["Здравствуйте! Я люблю легкое сияющее покрытие, подскажите подойдет ли мне этот тон?"]
["Здравствуйте, когда будет тоналка шик в оттенке 1"]
["Здравствуйте,скажите пожалуйста,для жирной кожи подойдёт?"]
["Здравствуйте. Для сухой кожи подходит? Не Подчеркнет шелушения? Даже если мега супер увлажнить есть тоны которые могут забиться в мелкие морщинки. Насколько он пластичен для сухой кожи?"]
["К сожалению тональный крем не герметичен. Был вскрыт покупателем до меня. Я не стала выкупать. И не смогла оценить сам продукт."]
["Как менять адрес?"]
["Очень ждём  оттенок 1,5"]
[4631161461308]
["Тональный крем с матовым финишем 03"]
["Добрый вечер!Подскажите пожалуйста какой тон будет похож на Velvet cover 102 milk?"]
["Здравствуйте,будет ли поступление  0.5 и 3.0"]
["Здравствуйте,подскажите,какой лучше взять оттенок для умерено загорелой кожи,не для светлой"]
[4631161519849]
["Жидкая матовая помада для губ 01 Sand Pink"]
["Здравствуйте! Подскажите пожалуйста, 13 оттенок холодный красный или теплый красный и подойдет ли к ней карандаш в оттенке Milano?"]
["Почему фото и видео отличаются по цвету??? Не понимаю на что ориентироваться?! На фото холодный оттенок, а на видео совсем другой"]
[4631161519856]
["Жидкая матовая помада для губ 02 Petal"]
["Здравствуйте! 02 Petal холодный оттенок?"]
["Здравствуйте!мне пришла в пакете помада,пришла домой,открыла,там гель для ногтей-возможно поменять?"]
["Мне прислали гель для ногтей вместо помады,возможен возврат ?знала бы лучше в магазине купила бы"]
[4631161519870]
["Жидкая матовая помада для губ 04 Caramel"]
["12 номер сняли с производства? почему его нигде нет в наличии?"]
["Здравствуйте! Мне как то не понятно???? Это что я получила? Вообще-то я заказала себе жидкую помаду ! Коробочка очень хорошо запакована , а внутри как то что то не понятно ! Бальзам , да еще открытый и просроченный ! Это что за поставки ????? Как мне быть ?"]
["Здравствуйте, у вас оригинальная продукция Shik?"]
[4631161519887]
["Жидкая матовая помада для губ 05 Rosewood"]
["Цвет не понравился. Можно вернуть помаду?"]
[4631161519894]
["Жидкая матовая помада для губ 06 Berry"]
["был 07 тон, который нравился, а сейчас это под каким названием?"]
["Добрый день . Когда будет 12 оттенок"]
["Здравствуйте, 6 оттенок berry холодный или теплый"]
[4631161519917]
["Консилер для лица и под глаза для белоснежной кожи 0.5"]
["Добрый день! По ошибке заказала оттенок 0,5. Возможно ли совершить возврат, заказ забирала не сама. Заказываю у вас уже 3 раз оттенок 2.  Упаковка не вскрыта."]
["Консилер в стекле или пластике?"]
[4631161519924]
["Пудра для лица компактная сияющая для средней кожи"]
["Добрый вечер! Заказала пудру, дома уже обнаружила что не тот оттенок, пудра целая, не трогала, защитная пленка целая. возможно ли сдать заказ?"]
["Добрый день, прилагается ли к пудре спонж для ее нанесения на лицо?"]
["здравствуйте , комедогенная пудра?"]
["Здравствуйте! Пудра приходит в коробочке?"]
["здравствуйте! у пудры есть spf?"]
[4631161668554]
["Блеск для губ нежно-розовый увлажняющий"]
["Здравствуйте, тон 2 для меня холодный, тон 1 будет теплее?"]
["почему цена так взлетела, были же по 500"]
[4631161668561]
["Блеск для губ розовый увлажняющий"]
["Для чего торговать тухлой продукцией"]
["Добрый день. Скажите пожалуйста когда будет оттенок 02?"]
["Здравствуйте оригинал"]
["Здравствуйте! Посоветуйте подходящий карандаш  для блеска в 02 оттенке."]
["Здравствуйте!03 ожидается?"]
["здравствуйте, подскажите пожалуйста когда блеск в оттенке 02 появится?"]
["Здравствуйте. Испытывается ли косметика на животных?"]
["Как будем решать вопрос пришел тухлый блеск"]
["когда в наличие 02 будет подскажите прошу вас ^^"]
[4631161668578]
["Блеск для губ бежевый увлажняющий"]
["03 это какой цвет? непонятно только нащвания указаны"]
["Арт. 149881387 когда в наличии будет? Никак не могу заказать. Которую неделю жду поставку"]
["Добрый день!  Заказывала блеск тон 03,пришел 02. Возврат, прошу не снимать 100 руб"]
["Здравствуйте, когда в наличии будет оттенок 03?"]
["Здравствуйте, когда появился оттенок 03?"]
["Здравствуйте, подскажите какой срок годности после вскрытия?"]
["Здравствуйте, подскажите когда появиться блеск в оттенке 03"]
["Здравствуйте. Будет ли еще поступление 02 оттенка?"]
["Когда будет в наличии блеск 03"]
["Подскажите пожалуйста, когда будет 03 оттенок ?"]
[4631161668585]
["Блеск для губ персиковый увлажняющий"]
["Здравствуйте ! Подскажите , пожалуйста, какие оттенки являются холодными ?"]
["Здравствуйте! Когда появится защитка на продукции? Для продажи на маркетплейсах она необходима. Не все же покупатели добросовестные. Не хочется пользоваться блеском после кого-то."]
[4631161668608]
["Блеск для губ винный увлажняющий"]
["Добрый вечер . Сколько срок годности блесков для губ?"]
["Желтит ли зубы винный оттенок?"]
["Здравствуйте! Приобрела блеск в оттенке 06. Цвет очень нравится. Актуален для наступающего сезона. Является ли блеск \"плампером\", т.к. при нанесении ощущается покалывание на губах. Благодарю за ответ."]
["какой объем у блеска?"]
[4631161939432]
["Эмульсия для лица корейская увлажняющая гиалуроновая"]
["Здравствуйте,подскажите пожалуйста нужно ли смывать?"]
["Здравствуйте. Подскажите  пожалуйста, можно ли использовать эмульсию на ночь?Тестировала в магазине, эмульсия очень понравилась, но довольно силиконстая, не будет ли забивать поры при использовании в вечернем уходе?"]
["мне пришла коробка пустая без самого флакона ,как быть ?"]
["надо ли смывать ? или можно просто протереть ватным диском?"]
[4631161939449]
["Мицеллярная вода для снятия макияжа"]
["Здравствуйте, подскажите пожалуйста, подходит ли данный продукт для нарощенных ресничек?"]
["Когда появится в наличии"]
["Хотела узнать состав товара ,нигде ничего не написано"]
[4631161939456]
["Пенка для умывания очищающая"]
["Заказала пенку 100 мл от шик, но отдушка совсем другая пришла недели в оригинале , что я брала до этого  (была  с легким цветочным ароматом)и сушит кожу. У меня вопрос :была изменена отдушка или мне пришла подделка?"]
["Здравствуйте. Как часто можно использовать пенку? Утром и вечером ежедневно?"]
[4631161971463]
["Увлажняющая база под макияж с SPF15 и сияющим финишем"]
["вот вы повесили фотку с табличкой sale, а в чем этот sale заключается? уже давно жду скидок на базу, а цена всегда одна +/-, о чем говорит график изменения цены. так что по скидке, уважаемые?"]
["Данный товар отличается упаковкой от 50 мл,на колпачке не выпуско а наклейка наклейка"]
["Здравствуйте ! Это 01 номер ? Вижу что есть на сайте номер 2 , подскажите это номер 1? Или можно артикул на номер 01"]
["Здравствуйте! Подскажите пожалуйста, в течении какого (примерно) времени держит макияж? У меня проблема с тем, что кожа жирная и уже через пару часов, любой тон потихоньку скатывается."]
["Здравствуйте)помешает ли использование дневного крема нежирного перед нанесением базы?"]
["здравствуйте, подскажите пожалуйста, какой номер?"]
[4631161987259]
["Антисептик спрей санитайзер для рук дезинфицирующий 2 шт"]
["Жду поступления антисептиков , на когда ждать ? В городах снова сезон простуд и вирусов )"]
[4631161987266]
["Антисептик-гель для рук дезинфицирующий санитайзер 2 шт"]
["Здравствуйте! когда появится в наличии?"]
["Здравствуйте!Скоро ли будет антисептик в наличии?"]
["Когда будет в наличии?"]
[4631161987273]
["Шпатели для воска узкие для бровей деревянные 300 штук"]
["Вместо 300 шт, пришло 100 шт, из-за этого отказ! Просьба разобраться! Сейчас сделаю повторный заказ, надеюсь придёт полностью все."]
["Где мой товар!? Жду уже 2 недели !"]
["Заказала шпатели, вместо 300 штук пришло 100штук, к сожалению онаружила только в студии при вскрытии, тк на пупырке написано 300шт"]
[4631161987334]
["Тени для век жидкие №08 блестящие бежевые"]
["Вместо теней пришел Хайлайтер другой фирмы!!!! отказ от вашего товара платный 100 руб. хотя от остальных товаров бесплатно. сотрудник пункта выдачи сделала отмену и ее оштрафуют. как мне заказать тени? чтобы пришел товар тот что заказывала? кто отвечает за отправку и кто несет ответвенность в случае если пришел не тот товар!?"]
[4631161987341]
["Тени для век жидкие №09 блестящие золотые"]
["Здравствуйте! Как сопоставить названия оттенков в описании и нумерацию с фото #5? Мне нужен оттенок #8 с фото, но как узнать его название?"]
[4631162062047]
["Скульптор для лица кремовый  рефил"]
["Здравствуйте, а чем отличается от 150359774? Только упаковкой?"]
["Здравствуйте, подскажите какой оттенок румян подойдёт с скульптору в оттенке 01"]
["Здравствуйте, подскажите какой срок годности после вскрытия?"]
["Здравствуйте.Подскажите срок годности партии."]
["Чем закреплять его?Выпадает"]
[4631162062054]
["Скульптор для лица кремовый  рефил"]
["Здравствуйте ! Сменный рефил можно приобрести отдельно ?"]
["Здравствуйте, какой вес товара без упаковки?"]
[4631162151734]
["Тени для век жидкие №12 блестящие голубые"]
["Здравствуйте. Планируются поставки 12 оттенка? Очень давно его нет в наличии."]
[4631162151741]
["Набор - кисти для макияжа, спонж и косметичка"]
["Добрый день! Почему у вас такие цены? На сайте esse.store такой набор стоит 6825"]
[4631162210677]
["Крем для рук увлажняющий питательный набор 2 шт"]
["Время шло а крем так и приходил 1 шт вместо 2-х!!!! Думаю легко валить все на маркетплейс, а у меня на упаковке продавца  было написано 2 шт а запаковали один, просто на дурака, люди заказывают за 250 р 2 шт а по факту приходит один крем за 250 р. По-моему попахивает просто мошенничеством , мало кто будет обратно отправлять товар как брак что бы вернуть 250 р когда за его возврат возьмут 100!!!! А у продавца один ответ на этот вопрос, как робот, моя хата с краю называется! Магазин данный не рекомендую , просто пролистывайте …"]
["Добрый день, пришел один крем вместо двух !"]
["Здравствуйте! Заказывала набор с кремом (2 шт). Из двух пришёл один тюбик крема! Как возможно получить второй тюбик? Либо осуществить возврат и вернуть деньги?"]
["Здравствуйте! Пришёл один тюбик с кремом, вместо двух, как написано в описании!!! Как мне получить второй тюбик крема из набора?"]
["Здравствуйте. Отдушка с каким запахом?"]
["скажите пожалуйста вы что издеваетесь над людьми, почему всё время вместо двух кремов приходит один, я вот люблю косметику  Shik, но после такого отношения желание что либо заказывать пропадает, уже как-то ничего от вас не нужно"]
["Этот лохатрон где мой второй крем? Верните мне деньги"]
[4631162328808]
["Набор - тонер, эмульсия, крем"]
["Здравствуйте, подойдёт ли ваш уход комбинированной коже склонной к покраснениям? Покраснения после ухода не возобновятся?"]
[4631162991590]
["Солнцезащитный крем для лица и тела SPF30+"]
["Здравствуйте, когда будет в наличии?"]
["Здравствуйте, когда будет поступление?"]
["Здравствуйте,этот крем можно использовать как ежедневный увлажняющий солнцезащитный зимой?"]
["Здравствуйте. Возрастные ограничения какие?"]
["Можно использовать крем круглогодично, не только летом в солнечный день?"]
[4631163849104]
["Профессиональный набор для ламинирования и укладки бровей"]
["Здравствуйте , составы халяль? Девочки мусульманки спрашивают"]
["Здравствуйте! Подходят ли краски других фирм для окрашивания после ламинирования?"]
["Здравствуйте, возможно ли заказать отдельно 1 состав ?"]
["Здравствуйте, возникают шелушения по всей брови после использования данных составов, выдержка 5-6 мин на волос средней жесткости. Как избежать этих шелушений ?"]
["Здравствуйте, какой срок годности после вскрытия тюбика ?"]
["Здравствуйте, на каком этапе ламинирования можно окрашивать брови?"]
["Здравствуйте, подскажите объём (мл) каждого тюбика?"]
["Здравствуйте. Когда будет в наличии?"]
["Здраствуйте, как часто можно делать себе ламинирование бровей? 1 раз в месяц? На сколько процедур рассчитан набор? Сколько срок годности после вскрытия?"]
["Люблю косметику декоративную вашего бренда. Захотелось, как бровисту, попробовать ваши продукты и для бровей. Исправьте описание товара. На карточке товара написано до 30 процедур, в описании до 45 процедур, а в ответах на вопросы к товару до 20 процедур. Стоит найти общий знаменатель"]
["Можно ли после составов ламинирования SHIK окрашивать брови краской другого бренда?"]
["Цена в прикол? С какого перепугу так задрали ценник, золотые составы что ли"]
["Я дико извиняюсь. Доставка затянула нереально… просто никакой информации больше по доставке. Последний раз 4 числа была."]
[4631163960625]
["Гель для душа увлажняющий парфюмированный без парабенов"]
["здравствуйте, зачем вы удалили мой отзыв?"]
[4631163960632]
["Крем для тела увлажняющий парфюмированнный с пребиотиками"]
["В составе ниациномид. Сколько раз в день можно пользоваться? Можно использовать для ухода на постоянной основе? Спасибо)"]
["Здравствуйте. Почему этот товар у вас есть в наличии, а когда кладёшь в корзину пишут что его нет в наличии"]
[4631164178944]
["Маска для лица тканевая корейская увлажняющая 3 шт"]
["здравствуйте! shik это российская косметика, производится  в том числе и в Корее?"]
["Почему товар так долго задерживается ?"]
[4631164178951]
["Маска для лица тканевая корейская омолаживающая 3 шт"]
["Здравствуйте ! А можно ли тканевые омолаживающие маски для беременных?"]
["здравствуйте, какая кислота входит в состав омолаживающей маски?"]
[4631164178982]
["Корейская тканевая маска для лица омолаживающая набор 3 шт"]
["Добрый день, скажите как ей пользоваться, нужно ли смывать"]
["здравствуйте, состав омолаживающей маски в персиковой упаковке?"]
[4631164195187]
["Карандаш для бровей с щеточкой"]
["Здравствуйте. Мне нужен карандаш medium. Какой это цвет из представленных по названию"]
[4631164195194]
["Карандаш для бровей с щеточкой"]
["здравствуйте, какая граммовка у грифеля?"]
[4631164195224]
["Тени для век жидкие №15 блестящие серебряные"]
["Добрый, когда будут тени серебро?"]
["Здравствуйте, планируется ли поставка теней 15 оттенка в ближайшее время?"]
[4631164195231]
["Тени для век жидкие №16 блестящие зеленые"]
["Здравствуйте, а когда в наличии появятся тени в 16 оттенке?"]
[4631164196689]
["Жидкая матовая помада для губ 08 Purple Haze"]
["Sand Pink оттенок.  скажите пожалуйста этот оттенок можно считать универсальным? подойдёт ли он женщине с рыжими волосами карими глазами?"]
["Здравствуйте. Сегодня написано на товаре что не оплачено! Хотя я оплатила! Есть все чеки. Что за беспредел? Т всегда статус был оплачен!!!!!!"]
["Я выписала помаду жидкую пришла другая просто помада а деньги взяли как за житную 08"]
[4631164196696]
["Жидкая матовая помада для губ 11 Cremant"]
["Доброго вечера ! 11 номер Cremant на фото с девушкой какой карандаш оттенок нанесён???? Скажитееее"]
["Добрый вечер)) Подскажите пожалуйста, оттенок помады 11, по цвету нюдовый или розовый, на каждом фото отзыве, этот цвет смотрится поразному."]
["Здравствуйте, под карандаш garda какую взять помаду? Смуглая кожа с зелёными глазами"]
[4631164196702]
["Жидкая матовая помада для губ 10 French Rose"]
["Здравствуйте! У меня была матовая жидкая помада NYX в цвете Toulouse - натуральный розовый цвет, немного тёплый. Подскажите, пожалуйста, какой цвет подобный среди этих помад? 03 пробовала - слишком бледный"]
["Здравствуйте. Какие из представленных оттенков помад являются тёплыми?"]
["Здравствуйте. Почему оттенок трюфель самый дорогой???"]
[4631164196719]
["Жидкая матовая помада для губ 09 Bubbly"]
["Добрый день! Когда 12 оттенок (Трюфель) появится?"]
["Здравствуйте,будет ли еще в продаже оттенок bubbly?"]
["Здравствуйте. 09 оттенок вернётся в продажу? Уже давно жду поступления"]
["Написала хороший отзыв, 5 звезд, фото прикрепила и его не напечатали… Но про всякую «мертвечину» активно пропускают.  Да с такими отзывами и за километр к вашей продукции не подойдут.  Это вообще можно как- то фильтровать. Реально неприятно."]
[4631164289206]
["Гель-тинт для бровей для шатенок суперфиксация "]
["Добрый день подскажите пожалуйста есть ли в составе феноксиэтанол?"]
["Здравствуйте) подскажите пожалуйста,  если сопоставить с карандашом оттенок Дарк,  какой будет из тинтов ближе всего к цвету карандаша ДАРК ? Благодарю за ответ."]
[4631165358246]
["Скульптор для лица кремовый контуринг для блондинок "]
["Уточните, пожалуйста, сколько срок годности у скульптора"]
[4631165358260]
["Крем-тон для тела бронзирующий"]
["Когда будет в наличии, подскажите, пожалуйста"]
[4631165358277]
["Хайлайтер жидкий для лица и тела"]
["Добрый день. Подскажите, пожалуйста, а в промо ролике на сайте у модели в видео какие продукты на губах?"]
["Добрый день. Подскажите, пожалуйста, а что у модели на губах видео?"]
["Здравствуйте Подскажите пожалуйста когда появится в продаже?"]
["Здравствуйте! Подскажите, когда будет в наличии?"]
["Здравствуйте, дайте, пожалуйста, артикул на тон для тела"]
[4631165598338]
["Кисть-дуофибра для тона жидкого скульптора N.SHIK №03"]
["Здравствуйте, подойдет ли кисть #3 для нанесения жидкого скульптора от вашей фирмы ?"]
[4631165598642]
["Тональный крем с матовым финишем 0.5"]
["1.5 все так и нет?"]
["Добрый день. Тон 0,5 есть в наличи?"]
["Здравствуйте! Какой цвет самый светлый?"]
["Здравствуйте, а когда появиться 0.5 оттенок?"]
["здравствуйте, когда появится оттенок 0.5 ?"]
["Привет, 0,5 в каком число есть в наличи ?"]
[4631165598659]
["Тональный крем с матовым финишем 1.5"]
["Здравствуйте,как заказать оттенок 1.5 вне валдберис?"]
["Здравствуйте. В какие числа ноября ожидается поступление 1.5 тона?"]
["Здравствуйте. Когда будет в наличии 1,5 тон?"]
["Здравствуйте. Тон 1,5 отсутствует с лета,то неизвестно когда появится,то ноябрь,теперь декабрь,что за издевательство? Чем краситься тем ,кто пользуется тоном 1,5?! Проще сменить производителя уже тонального крема ,чем ждать непонятно чего! Что я пожалуй и сделаю."]
["Тональный крем комедогенный?"]
[4631165598666]
["Тональный крем с матовым финишем 2.5"]
["Добрый день, тон 2.5 еще будет в наличии?"]
["Здравствуйте! Появится ли в продаже тон 2,5?"]
["Здравствуйте! Скажите, пожалуйста, какой лучше кистью из вашего же бренда наносить данную тональную основу, чтобы она легка невесомой вуалью, естественно?"]
["Здравствуйте,оттенок 2.5 будет в наличии?"]
["Помогите подобрать оттенок. Из линейки double wear подходит 2n2 buff. Какой в линейке Шик соответствует ему?"]
["Умоляю пустите в продажу"]
[4631165598673]
["Тональный крем для лица с матовым финишем 3.5"]
["01 есть на продаже"]
["Здравствуйте! Когда тон 2,5 ждать ?"]
["Здравствуйте, тон 03 для жёлтого или розового подтона кожи? и когда он появится в наличии?"]
["Когда будет 0.5 и  01?"]
[4631165610597]
["Силиконовый футляр контейнер-кейс для хранения спонжа"]
["Здравствуйте , когда появятся в наличии кейс для  спонжа ?"]
["Здравствуйте! Розового кейса больше не будет в продаже?"]
["Здравствуйте. А когда будет в наличии 154551573?"]
[4631165610603]
["Тени-спарклы для глаз с блестками "]
["Были разбиты, заново закажу новые. Прошу не списывать деньги за отказ"]
["Заказывала три разных оттенка. Одни пришли разбиты в крошку. Два оттенка одинаковые. Пришлось вернуть два спаркла. Сняли деньги за возврат товара, за что? Это ведь не моя прихоть. А теперь ещё и цена на них подорожала👎🏻"]
["Здравствуй, жду оттенок polis , когда 🩵🩵🩵🫶🏻"]
["Здравствуйте когда будет в наличии оттенок Капелла?"]
["Здравствуйте когда будет оттенок Вега?"]
["Здравствуйте подскажите когда появится оттенок vega?"]
["Здравствуйте! Отмените мне пожалуйста заказ 🙏🏻на вб какой-то глюк, добавляла в корзину , а потом смотрю тени в заказах и деньги списали . Пожалуйста отмените"]
["Здравствуйте! Скажите, а ожидается вообще поступление снова других спарклов ( полис и тд) или их уже не ждать ?"]
["Здравствуйте, а оттенок capella будет в наличии?"]
["Здравствуйте, а оттенок vega будет в наличии?)"]
["Здравствуйте, вега  ожидается?"]
["Здравствуйте, когда будет vega????"]
["Здравствуйте, подскажите пожалуйста, как правильно наносить тени ( оттенок VEGA) чтобы получить эффект влажного финиша как на фото, а не крупные блестки. Спасибо!"]
["Здравствуйте, тени в оттенке Cappella пришли разбитые, прошу вас вернуть удержанную сумму за возврат, т. к в причине(порче товара) нет моей вины!"]
["Здравствуйте, тени пришли разбитые почему вы упаковываете хотя бы в пупырку?"]
["Здравствуйте. Когда будет в наличии Вега ?"]
["Здравствуйте. На какую базу нужно сажать тени?"]
["Здравствуйте. Нельзя как то решить проблему , что тени не приходили разбитыми почти все отзывы с разбитыми тенями , что даже заказывать не хочется"]
["Здравствуйте. Подскажите пожалуйста, какую кисть выбрать для растушевки этих теней?"]
["Отмените заказ"]
["Пришли разбитые уже третий раз. Почему так сложно хорошо упаковать?"]
["Пришли разбитые, ещё и за возврат сняли деньги. Почему так сложно упаковать Руки бы оторвать."]
["Я заказала тени 14 октября и оплатила сразу, почему до сих не доставили? Уже 27 октябрь Пол месяца на складе одни тени собираете чтоли. Сделайте доставку они мне нужны. Будьте ответственнее плиз"]
[4631165610610]
["Тени-спарклы для глаз с блестками "]
["150382779 когда будет в наличии?"]
["Добрый день, под номером 150382779 планируется поступление?"]
["Ждём оттенок ВЕГА)))🫶🏼"]
["Здравствуйте когда появится оттенок бронзовый?"]
["Здравствуйте! Когда ждать оттенок sun?"]
["Здравствуйте) когда появится тени в оттенке Vega?"]
["Здравствуйте, vega оттенок когда появится? А"]
["Здравствуйте, вега ожидается?"]
["здравствуйте, ещё появится в наличие оттенок Sun  и Vega?"]
["Здравствуйте, заказала Спаркл (в оттенке  Вега)(150382779),на ПВЗ обнаружила,что пигмент подменили на вообще другие тени.Сотрудники ПВЗ мне сказали оставить заявку на проверку товара в личном кабинете.Заявку оставила,всё доказательства предоставила и мне одобрили .Далее возвращаю тени на ПВЗ у меня их приняли, и уже почти две недели как стоит \"Принят к возврату на ПВЗ 19.09.23\" . Деньги тоже до сих пор не вернули,что мне делать в данной ситуации?"]
["Здравствуйте, когда оттенок vega будет в наличии?"]
["здравствуйте, когда появился Vega?"]
["Здравствуйте. Подскажите пожалуйста когда поступит оттенок Vega??? Очень хочу его!!!"]
["Купила тени в оттенке vega- на ПВЗ не было времени проверить, оказалось что внутри 3 комочка теней и они разбитые. Что делать? Служба поддержки не помогла. Как теперь вернуть товар и деньги?"]
["очень жду vega"]
[4631165610627]
["Тени-спарклы для глаз с блестками "]
["Добрый вечер, а другие оттенки когда появится в наличии в наличии?"]
["здравствуйте , как скоро появится? 150382778"]
["здравствуйте , на что лучше наносить тени, чтобы были яркими?"]
["Здравствуйте а оттенок \"Sun\" относится к постоянной коллекции?"]
["Здравствуйте! А “Capella” будут в наличии?"]
["Здравствуйте! А Sun будет ещё в наличии?"]
["Здравствуйте! Когда появятся тени фиолетовые золотистые тени? Очень жду"]
["Здравствуйте, какой кистью лучше наносить тени?"]
["Здравствуйте, когда будет в наличии? 150382778 , какой кистью лучше наносить?"]
["Здравствуйте, когда появится в наличии цвет sun?"]
["Здравствуйте, когда появится в наличии? 150382778"]
["Здравствуйте,Sun когда будут в наличии?"]
["Здравствуйте. Тех оттенков которых сейчас нет в наличии, будет их поступление, и когда?"]
["Когда появится оттенок sun?"]
["Ожидается ли поступление арт 150382778?"]
["Почему вы не упаковали продукт и отправили мне разбитую хуйню ????"]
[4631165610634]
["Тени-спарклы для глаз с блестками "]
["где можно посмотреть документы на товар"]
["Добрый день. Когда появится оттенок Sun?"]
["Здравствуйте! На какую базу лучше наносить спарклы ?"]
["Здравствуйте, когда будет поступление тени vegan?)"]
["Здравствуйте, можно узнать, у меня показывает, что товара нет в наличии,  а смотришь в комментариях, люди заказывают и им приходят эти цвета   Как так получается?"]
["Здравствуйте, подскажите пожалуйста что на губах у модели оттенка Вега?"]
["Когда будет в наличии sun???????"]
["Подскажите пожалуйста помаду как у модели арт.150382777?"]
["Подскажите пожалуйста помаду у модели арт.150382777?"]
["Почему отправляете разбитые тени? Заказывала Marsic и тени пришли в ужасном состоянии. И разбились они явно не при транспортировке, поскольку вся внешняя упаковка и пупырчатая пленка были уже испачканы в тенях!"]
[4631166029466]
["Набор для домашнего окрашивания бровей для блондинок SHIK"]
["Здравствуйте! Подскажите, когда появится в наличии набор для блондинок?"]
[4631166029473]
["Набор для домашнего окрашивания бровей для рыжих SHIK"]
["здравствуйте. закрасит тёмные брови?"]
["У краски и оксида обьем в мл какой ?"]
[4631166029480]
["Набор для домашнего окрашивания бровей для шатенок SHIK"]
["Добрый день, подскажите пожалуйста как часто можно проводить процедуру окрашивания ? Раз в неделю, в две недели, три или более что бы не навредить волоскам и коже ?)"]
[4631166029497]
["Набор для домашнего окрашивания бровей для брюнеток SHIK"]
["Здравствуйте, в ближайшее время будет в наличии набор краски «для брюнеток»?"]
[4631166029503]
["Набор для домашнего окрашивания бровей для русых SHIK"]
["Добой день. Подскажите, пожалуйста, какой срок годности у набора? После вскрытия и до вскрытия"]
["Добрый день! Планируется ли поставка оттенка для русых?"]
["Здравствуйте. Будет ли поступление набора для русых?"]
["здравствуйте. скажите для русых не даёт рыжий оттенок?"]
["Подскажите пожалуйста по арт 170052788 для русых будет ли набор в продаже, если да, то примерно когда?😌"]
[4631166898314]
["Набор - силиконовый футляр-кейс для спонжа и спонж черный"]
["Добрый день, 154551575 планируется в наличии?"]
["Здравствуйте! Появится ли розовый кейс в ближайшее время?"]
["Здравствуйте, а кейс или набор со спонжем будет в черном или белом цвете ?"]
["Здравствуйте, ожидается ли скоро поставка спонжика в футляре? Спасибо."]
["Здравствуйте. Подскажите пожалуйста, когда будет в наличии 154551575 набор, и будет ли вообще?"]
[4631166898321]
["Воск для коррекции бровей и шпатели"]
["Добрый день,  а подскажите пожалуйста сколько грамм надо на одну процедуру ?"]
["Добрый день. Недавно делала заказ. Забрал муж , не знал сколько и чего именно должно быть. Из набора был только 1 пакетик с воском..( упаковка странная, даже никак не замотана скотчем , возможно вскрыта была кем-то до получения или при доставке… Но так жаль. Оформила возврат по браку, если это возможно вернуть и заказать заново, можно даже видео с камер посмотреть, потому что я так ждала набор и товар не возвратный. Очень надеюсь на ваше понимание! Спасибо заранее."]
["Здравствуйте, в наборе 2 пачки по 100 гр или в двух пачках вместе 100гр"]
["Здравствуйте, воск можно плавить повторно? Или его надо плавить по чуть-чуть, как это вообще правильно работает ? 😅"]
["Здравствуйте.Можно ли растопить этот воск в  домашних условиях и как?"]
[4631167251040]
["Подарочный набор - тушь для ресниц и матовая помада"]
["Здравствуйте! Скажите пожалуйста оттенок помады пастельно-розовый подойдёт для женщины с тёмными волосами карими глазами и она не выбеливает можно считать этот оттенок универсальным?"]
[4631167695097]
["Набор для умывания - пенка для лица и 3 спонжа"]
["Здравствуйте подойдёт ли плёнка для возрастной сухой и чувствительной кожи?"]
[4631167769330]
["Увлажняющая база под макияж с сияющим финишем"]
["Добрый день подскажите у базы имеется цвет? или при нанесении цвета не будет видно?"]
["Добрый день. Если вы официальный магазин то почему такое отношение к покупателю. Упаковка никакая. Отсутсвие защиты даже обычной пупырки. Но а качество вообще трэш. Вы что продаете неликвид. Упаковка товара с браком, продукт банально вытек или выдавлен. Просто позор... От такой фирмы такого отношения к покупателям просто не ожидала."]
["Здравствуйте он подчеркивает морщины"]
["здравствуйте, для комбинированной кожи подойдет? и спасает ли от жирного блеска?"]
["Здравствуйте, какие отличия этого праймера от праймера с спф?)"]
["Оформлен 20 сентября и на этом тишина. Почему такая долгая доставка? Сколько можно ждать????"]
["Сколько мл?"]
[4631168304608]
["Тушь для ресниц сине-фиолетовая"]
["Здравствуйте! Будет ли ещё продаваться коричневая тушь?"]
["Здравствуйте! Вопрос про синюю тушь. На фото где представлен дерзкий образ использовался фиолетовый кайал для глаз?"]
["Здравствуйте! Когда появится в наличии коричневая термо тушь?"]
["Здравствуйте! У сине-фиолетовой туши, цвет ближе к фиолетовому или синему?"]
["Скажите, заказала синюю тушь, прислали фиолетовую, это ошибка или синяя тушь -это и есть фиолетовая ?"]
[4631168304615]
["Коричневая тушь для ресниц"]
["Здравствуйте!  Когда коричневая?"]
["Здравствуйте! Подскажите, пожалуйста, почему у косметических средств вашего бренда нет защитной пленки?"]
["Здравствуйте! Скажите пожалуйста будет ли в продаже тушь в коричневом цвете? Заранее спасибо за ваш ответ."]
["Здравствуйте, когда в наличии будет коричневая тушь?"]
["Здравствуйте, подскажите пожалуйста коричневая тушь упакована в слюду(защиту от вскрытия)как черная или нет? Заранее спасибо"]
["Здравствуйте. Подскажите, пожалуйста, когда будет коричневая тушь в наличии?"]
["когда будет в наличие корчневая"]
["Когда появится в продаже коричневая тушь?"]
["Почему коричневая тушь дороже чёрной?"]
["Скажите, тушь подкручивает ресницы или нет?"]
[4631168621026]
["Мицеллярная вода для снятия макияжа 100 мл + 300 мл"]
["Добрый День ,подскажите, я поставила в холодильник ,и у меня получился осадок из кристалликов ,можно ли им дальше пользоваться?"]
[4631168923700]
["Контейнер-кейс для спонжей в черном цвете без спонжа"]
["Здравствуйте! Розовые кейсы не появятся ? Их сняли с производства ? Подскажите?"]
["Здравствуйте! Чёрный и белый спонжи как-то отличаются между собой по характеристикам или только цветом?"]
["Здравствуйте, а где можно приобрести косметичку на фото?очень понравилась👏"]
["Здравствуйте, а контейнер для спонжа арт: 178065430 идёт со спонжем в комплекте или отдельно?"]
["Здравствуйте, в кейс идет спонжик? Или сам кейс только"]
["Когда цена упадет а то 399 рублей жалко для спонжа"]
[4631168923724]
["Пленка для ламинирования бровей и ресниц"]
["Почему вы до сих пор не решаете в упаковкой? Пришла порванная коробка"]
[4631168923731]
["Матовая помада для губ кофейного цвета 12"]
["176944508 будет ли в наличии?"]
["Дд,вы можете сделать норм коричневый продукт теплый а не это серо коричневое подобие называемое трбфель,трюфель чтобы вы знали это шоколад а не эта мертвичина,серо коричневая"]
["Добрый вечер , когда ожидается помада в оттенке 12?"]
["Добрый день! На этом Маркет плейсе цены дешевле офиц магазина. На качество товаров это не влияет?"]
["Здравствуйте, а к помаде Truffle какой карандаш лучше подобрать? Или её можно без карандаша использовать?"]
["Здравствуйте, будет в наличии ещё оттенок трюфель?"]
["Здравствуйте, когда оттенок 12 появится в наличии?"]
["здравствуйте,подскажите пожалуйста,будет ли еще помада в оттенке трюфель и когда?"]
["здравствуйте. когда 12 оттенок будет в наличии?"]
[4631169128692]
["Хайлайтер для лица с деликатным свечением"]
["Здравствуйте! Заказывала этот хайлайтер и пудру. И такая ситуация- сами продукты целы, но отклеены от металлического контейнера ( надеюсь вы понимаете о чем я😊) . Чем можно приклеить их?"]
["Здравствуйте. Подскажите стоит ожидать запеченный хайлайтер?"]
[4631169140151]
["Салфетки для снятия макияжа очищающие"]
["Здравствуйте. Подскажите, пожалуйста, можно ли в поездке использовать салфетки для отшелушивания кожи тела, как лёгкий пилинг , или процент кислот слишком мал?"]
[4631169198992]
["Тени-спарклы для глаз с блестками "]
["Здравствуйте! При заказе, спаркл (mira) был в наличии, оформила заказ, деньги списали. Через минуту пришёл отказ заказа магазином и ошибка оформления заказа, но деньги обратно на карту, не пришли. Когда произведут возврат денежных средств. Спасибо!"]
["Здравствуйте, а самостоятельно, без какой либо подложки тени не наносятся?"]
["Когда появится Mira подскажите пожалуйста"]
[4631169199005]
["Тени-спарклы для глаз с блестками "]
["Добрый день, пошла забирать тени, они были плотностью поломанные, прошу не снимать деньги за возврат"]
["Здравствуйте! Оттенок Polis можно ли ожидать в ближайшее время?"]
["Здравствуйте, когда появится, фиолетовый, зелёный, голубой? Полгода жду."]
["Здравствуйте,какие тени будут идеальны для серо голубых глаз ? Какой оттенок выбрать ?"]
["Почему плохо упаковываем товар?вы же видите столько отзывов о плохом качестве транспортировки☹️заказываешь ждёшь и такое отношение к покупателям 🫤как попало 😏"]
[4631169199012]
["Тени-спарклы для глаз с блестками "]
["Marsis когда будет в наличии?"]
["А будет ли 171349477 ?"]
["Здравствуйте, когда будет в наличии коралловый?"]
[4631169242619]
["Лайнер для бровей коричневый"]
["Здравствуйте. Подскажите пожалуйста, можно ли нанести фиксирующий гель для бровей после нанесения лайнера? Лайнер не смажется?"]
[4631169509507]
["Сияющие тени-спарклы для век DIADEM"]
["Добрый день! Когда diadem появится в продаже?"]
["Добрый день,а новый оттенок спаркла диадем подойдет для голубых глаз?или он больше для карих?спасибо"]
["Здравствуйте когда будет оттенок Капелла?"]
["Здравствуйте. Когда будет в наличии оттенок Вега?"]
["Здравствуйте. Когда будут с наличие оттенок вега и капелла? Пожалуйста упаковывайте пожалуйста прочнее, заказывала 2 оттенка мимоза и капелла, капелла пришли разбитые, а мимоза шикарны, весь день держатся"]
[4631169540302]
["Механический карандаш для бровей DARK"]
["Добрый день! помогите, пожалуйста, подобрать оттенок: я брюнетка с карими глазами и жёлтым подтоном кожи, теплая внешность. какой оттенок карандаша мне больше пойдет, я сомневаюсь между dark и medium, спасибо!"]
[4631169543242]
["Прозрачный гель для бровей с суперфиксацией"]
["Как работать с этим гелем , уложить волоски невозможно , на кисточку набирает много продукта , как вода. Не фиксирует. Как таковой укладки гелем произвести невозможно. Хотя написано ,что суперфиксирующий. Да. Он застывает через время , но не укладывает.  Что с этим делать  ? В нем нет вязкости ..."]
[4631169607319]
["Блеск-плампер для увеличения губ сияющий увлажняющий"]
["Здравствуйте, будет ли ещё 171093063?"]
[4631169622077]
["Жидкие тени для век с сиянием 18 Litchi "]
["Как хайлайтер белый можно использовать или он сильно яркий и высыхает быстро, не успею равномерно растушевать?"]
[4631169622084]
["Жидкие тени для век с сиянием 19 Lemon"]
["Добрый день. А у вас есть жидкие или кремовые чёрные тени?"]
[4631169622107]
["Жидкие тени для век с сиянием 21 Guava"]
["какой срок годности у кремовых теней гуава розовых ?"]
["Могу узнать почему доставка так сильно задерживается?"]
["скажите какой срок годности у теней розовых Гавана ?до какого срока они ?"]
[4631169630546]
["Набор - саше для ламинирования бровей 5 штук"]
["Если саше открыто с остатком содержимого, через месяц его свойства сохраняются ?"]
["Здравствуйте! продаётся 3-ий состав отдельно?"]
["Подскажите, можно ли делать ламинирование сразу же после окрашивания в домашних условиях на краске shik ?"]
[4631169700751]
["Матовая помада для губ вишнево-красного цвета 13"]
["Здравствуйте!подскажите пожалуйста,когда появится оттенок 12?"]
[4631169700768]
["Набор - саше для ламинирования бровей 3 набора (9 шт.)  "]
["Добрый день! Можно ли ламинировать брови данным набором во вовремя лактации?"]
["Добрый день, хотела бы уточнить , в наборе 3 Саше или 9?"]
["Здравствуйте! Что ещё необходимо докупить, чтобы сделать ламинирование в домашних условиях?"]
["Здравствуйте) Можно ли  ламинирование наносить сразу после окрашивания?"]
["Здравствуйте, какой срок после вскрытия? Какое время выдержки для ресниц!"]
["Здравствуйте, подскажите пожалуйста, данные составы подходят для ламинирования ресниц?"]
["Здравствуйте, указана цена за набор, или за комплект из трёх наборов. Имеется ввиду каждого состава по 3 саше ? Или всего 3 саше -1,2,3 состав?"]
["Здравствуйте. Подскажите окрашивание бровей одновременно с ламинированием Вашими составами возможно? У других марок возможно после 2ого шага. А с данным наборчиком?"]
["Сколка штук есть на каробке"]
[4631169700775]
["Крем для восстановления и роста бровей 10 шт"]
["Здраствуйте, как часто можно использовать данный крем для ухода за бровями в домашних условиях?"]
["Здраствуйте. Как часто можно пользоваться данным кремом? Можно ли его использовать каждый день?"]
["Что лучше приобрести этот крем для укрепления бровей или масло для бровей и ресниц shik? Действие у них одинаковое?"]
[4631169700782]
["Механический карандаш для бровей BLONDE"]
["Здравствуйте . Не нашла вес продукта"]
[4631169829230]
["Вельветовый тональный крем с увлажняющим эффектом 101 COTTON"]
["А что взять  кожа светлая но с желтоватым подтоном какой брать? Ваш 02 тот тональный мне был темноват и уходил в финише в розоватый Я так понимаю у меня светлая оливковая"]
["Если пользуюсь пудрой Шик , самой светлой, то лучше взять 101 оттенок? Не окисляется ли? Не выбеливает?"]
["Здравствуйте! Подскажите пожалуйста оттенок 101 темнее или такой же как 0,5?"]
["Здравствуйте!Кожа склонна к жирности, но в этот период обезвожена, матирующий тон даёт ощущение стянутости, подойдёт ли в таком случае новый увлажняющий тональный от Shik?И если у меня кожа очень светлая с нейтральным подтоном (у Диор оттенок ON), у Shik 1 подойдёт?"]
["Здравствуйте)\nПользуюсь тоном Shik 1,5 и консилером 01\nПодскажите, какой оттенок этого тона подойдёт лучше 101 или 102?"]
["Здравствуйте, для возрастной кожи какой тональный крем лучше подойдёт?"]
["Здравствуйте, есть ли в составе масла?"]
["Здравствуйте, извините за такой вопрос. Не планируются ли скидки на черную пятницу на сайте и маркетплейсах? 🥰"]
["Здравствуйте, какой оттенок подойдёт для светлой  комби кожи с розовым подтоном? Или лучше предыдущую линейку взять?"]
["здравствуйте,подскажите какая степень покрытия?более или менее укрывистый чем тот что был в бренде?"]
["Здравствуйте.  Чем отличается  этот тональный крем от того что в белом тюбике?"]
["Здравствуйте. Кожа светлая, возрастная, жирная, склонная к покраснениям. Нужен крем не слишком плотный, без эффекта маски, но и не растворяющийся на коже, чтобы перекрывал розовый цвет и не давал жирного блеска хотя бы несколько часов. В общем задача не из лёгких))) Какой тональный крем лучше подойдёт? Этот или белый? И посоветуйте оттенок сразу, пожалуйста"]
["Здравствуйте. Подойдет для сухой кожи?"]
["Здравствуйте. Этот тон похож по цвету на тональное средство (оттенок 1,5)? И какой из представленных оттенков максимально близок к вашему тональному средству с оттенок 1,5 (которого уже с лета нет в наличии). Заранее спасибо за ответ!"]
["Какая степень покрытия в сравнении с тональным кремом в белоу упоковке???"]
["Можно ли наносить пальцами если он жидкий"]
[4631169829247]
["Вельветовый тональный крем с увлажняющим эффектом 102 MILK"]
["Добрый день! Подскажите пожалуй"]
["Добрый день! Подскажите пожалуйста подойдет ли данный тональный крем для возрастной кожи?"]
["Здравствуйте а для жирной кожи подходит ?"]
["Здравствуйте не совсем поняла ваши предыдущие ответы про жирную кожу. Получается для комби и сухой. А какой тогда стоит рассмотреть тон для жирной кожи из вашего бренда?"]
["Здравствуйте. Пользуюсь вашим тональным в длинном флаконе 2 номер, но мне он чуть чуть на полтона темноват. Скажите, какой брать номер из новой линейки?"]
["Крем не забивает поры? Не комедоген?"]
["Скажите написано страна производства китай это имеется в виду сам продукт?или упаковка?"]
["Спасибо отзыву за сегодня от 30к октября ! Так и знала что 102 на розовой базе! Вот вижу же по свотчам розовит, что раз в телеге Натальи спросила,нет, упёрлись оливковый , нет там никакой оливки , не буду брать"]
[4631169829254]
["Вельветовый тональный крем увлажняющий эффект 103 VANILLA"]
["Здравствуйте скажите в 102 оттенке серый под тон?"]
["Здравствуйте. Мне очень подходят по цвету Вв крем от limoni( в зеленой упаковке)  и erborian в цвете nude. Какой из ваших тональных мне больше подойдет ? Если возможно то посоветуйте тон из обоих ваших линеек тональных средств. Консиллер от shik у меня номер 2. Пудра light medium, а цвет medium использую как легкий бронзер, при этом я не светлокожая, но не понимаю какой лучше взять. Erborian цвет dore для меня слишком рыжий уже , а вот nude идеально"]
[4631170306058]
["Набор - тени-спарклы и блеск-плампер для увеличения губ"]
["А где вопросы ? Я писала его нет"]
["Пришли тени ( ощущение что это работницы  вб пользуются а потом типа разбились ) там разбиваться не чему ) даже все собрав сломоное половины не вышло .Следы заметают .Я роняла румяна ламала знаю как это выглядит ( тут тупо работницы )"]
[4631170306065]
["Набор - тени-спарклы и блеск-плампер для увеличения губ"]
["Здравствуйте! Заказалa, открыла в пвз, пришел 1 блеск. Работник оформил брак, но за доставку списалось. Моей вины нет! И не хочу 1 звезду ставить, как быть?"]
[4631170449656]
["Плотный консилер для лица для среднего оттенка кожи 1.5"]
["Здравствуйте какой оттенок перекроет синеву под глазами?"]
["здравствуйте! подскажите пожалуйста  теплый цвет лица, и блонд волосы, какой выбрать консилер?"]
["Здравствуйте, для смуглой кожи с желтым полотном какой лучше подойдет?"]
[4810156048858]
["Тушь для ресниц черная белорусская удлинение и объем"]
["а куда нужно написать , чтоб магазина упаковал все продукты в фирменный пакет или коробку?"]
["в туши есть консерванты ?"]
["Водостойкая ???"]
["Воск натуральный в составе?"]
["Воск натуральный?"]
["Добрый день! Это термо тушь? Смывается водой \"чулочками\"?"]
["Добрый день. Мне пришла сухая тушь, как будто ее вскрыли три месяца назад (но это не так, упаковано было надежно), возможно это произошло из-за неправильного хранения при транспортировке. Как поступить в данной ситуации? Жаль потраченных денег."]
["Здравствуйте , можно полный состав туши ?"]
["здравствуйте,  очень нравится тушь по эффективности и как смывается, но почему то на нижних веках остаётся панда, через часа 2"]
["Здравствуйте, а тушь водостойкая?"]
["Здравствуйте, а эта тушь подходит для ламинированных ресниц?"]
["Здравствуйте, оригинал?"]
["Здравствуйте, подскажите пожалуйста, черная тушь термостойкая? Смывается без эффекта панды?"]
["Здравствуйте, почему производитель туши указана Беларусь? Если chik производится в России?"]
["Здравствуйте, тушь оригинал или подделка ?"]
["Здравствуйте, чем рекомендуете смывать вашу тушь?"]
["Здравствуйте.  Тюбик обернут слюдой? Не хотелось бы получить сухую тушь"]
["Здравствуйте. Почему у вас стоит производство Беларусь, если фирма Россия?"]
["Интересно вы сами пользовались своей отвратительной тушью ?!?! Хуже у меня ещё не было !!! Однозначно отзывы накручены !!!"]
["когда получила тушь сразу поставила 5 звезд из за упаковки но на следующий день стала краситься и полностью разочаровалась тушь сухая чтобы накраситься нужно приложить не мало усилий вообще не удлиняет сыпится значит срок годности не соответствует зря повилась на отзывы пишу сюда потому что второй раз отзыв оставить нельзя."]
["оригинал ???"]
["Пользовалась данной тушью давно, прослужила мне долго. Сначала конечно густая была, а потом    подсушила ее и прекрасно стала красить."]
["Почему так долго идёт с расти Ито быстрей приехала"]
["пришел пустой"]
["Производитель Беларусь?"]
["Сколько мл во флаконе черной туши?"]
["тушь гипоаллергенная?"]
["Чёрная тушь водостойкая?"]
["Что делать если вместо туша мне отправили подводку? Я узнал об этом только дома так как заказ забирал сестра"]
["что делать если вместо туша мне принесли подводку? Толька дома узнала об этом"]
["Общий итог"]

{"sheet":"сссылки","index":4,"n_rows":231,"n_cols":7,"rows_kept":231,"cut":false,"hidden":false,"merged":[]}
["Артикул","Артикул WB"]
[4631137361069,170034468,4631137361069,{"$f":"CONCATENATE($E$2,B2,$G$2)","v":"https://www.wildberries.ru/catalog/170034468/detail.aspx?targetUrl=GP"},"https://www.wildberries.ru/catalog/",null,"/detail.aspx?targetUrl=GP"]
[4810156048858,150367969,4810156048858,{"$f":"CONCATENATE($E$2,B3,$G$2)","v":"https://www.wildberries.ru/catalog/150367969/detail.aspx?targetUrl=GP"}]
[4631160726330,150374019,4631160726330,"https://www.wildberries.ru/catalog/150374019/detail.aspx?targetUrl=GP"]
[4631170449656,183217053,4631170449656,"https://www.wildberries.ru/catalog/183217053/detail.aspx?targetUrl=GP"]
[4631146855382,152273218,4631146855382,"https://www.wildberries.ru/catalog/152273218/detail.aspx?targetUrl=GP"]
[4631162062047,149910037,4631162062047,"https://www.wildberries.ru/catalog/149910037/detail.aspx?targetUrl=GP"]
[4631169829247,182309290,4631169829247,"https://www.wildberries.ru/catalog/182309290/detail.aspx?targetUrl=GP"]
[4631158692203,150367356,4631158692203,"https://www.wildberries.ru/catalog/150367356/detail.aspx?targetUrl=GP"]
[4631150553519,150253399,4631150553519,"https://www.wildberries.ru/catalog/150253399/detail.aspx?targetUrl=GP"]
[4631143190530,169879422,4631143190530,"https://www.wildberries.ru/catalog/169879422/detail.aspx?targetUrl=GP"]
[4631137361076,170035745,4631137361076,"https://www.wildberries.ru/catalog/170035745/detail.aspx?targetUrl=GP"]
[4631165598338,154505350,4631165598338,"https://www.wildberries.ru/catalog/154505350/detail.aspx?targetUrl=GP"]
[4631161461285,149875692,4631161461285,"https://www.wildberries.ru/catalog/149875692/detail.aspx?targetUrl=GP"]
[4631159369791,150378854,4631159369791,"https://www.wildberries.ru/catalog/150378854/detail.aspx?targetUrl=GP"]
[4631162210677,152281086,4631162210677,"https://www.wildberries.ru/catalog/152281086/detail.aspx?targetUrl=GP"]
[4631159949269,150359774,4631159949269,"https://www.wildberries.ru/catalog/150359774/detail.aspx?targetUrl=GP"]
[4631150553533,150253407,4631150553533,"https://www.wildberries.ru/catalog/150253407/detail.aspx?targetUrl=GP"]
[4631166898314,154551575,4631166898314,"https://www.wildberries.ru/catalog/154551575/detail.aspx?targetUrl=GP"]
[4631161519870,149785556,4631161519870,"https://www.wildberries.ru/catalog/149785556/detail.aspx?targetUrl=GP"]
[4631164195231,149753552,4631164195231,"https://www.wildberries.ru/catalog/149753552/detail.aspx?targetUrl=GP"]
[4631169630546,177634488,4631169630546,"https://www.wildberries.ru/catalog/177634488/detail.aspx?targetUrl=GP"]
[4631168304615,170624107,4631168304615,"https://www.wildberries.ru/catalog/170624107/detail.aspx?targetUrl=GP"]
[4631168304608,170624592,4631168304608,"https://www.wildberries.ru/catalog/170624592/detail.aspx?targetUrl=GP"]
[4631168923731,176944508,4631168923731,"https://www.wildberries.ru/catalog/176944508/detail.aspx?targetUrl=GP"]
[4631136904717,154541674,4631136904717,"https://www.wildberries.ru/catalog/154541674/detail.aspx?targetUrl=GP"]
[4631140601794,170057513,4631140601794,"https://www.wildberries.ru/catalog/170057513/detail.aspx?targetUrl=GP"]
[4631164178982,152467043,4631164178982,"https://www.wildberries.ru/catalog/152467043/detail.aspx?targetUrl=GP"]
[4631149768849,170032186,4631149768849,"https://www.wildberries.ru/catalog/170032186/detail.aspx?targetUrl=GP"]
[4631161668561,149881386,4631161668561,"https://www.wildberries.ru/catalog/149881386/detail.aspx?targetUrl=GP"]
[4631169700768,177634182,4631169700768,"https://www.wildberries.ru/catalog/177634182/detail.aspx?targetUrl=GP"]
[4631151795994,149753546,4631151795994,"https://www.wildberries.ru/catalog/149753546/detail.aspx?targetUrl=GP"]
[4631161519849,149785552,4631161519849,"https://www.wildberries.ru/catalog/149785552/detail.aspx?targetUrl=GP"]
[4631149768832,170035133,4631149768832,"https://www.wildberries.ru/catalog/170035133/detail.aspx?targetUrl=GP"]
[4631165598642,149875695,4631165598642,"https://www.wildberries.ru/catalog/149875695/detail.aspx?targetUrl=GP"]
[4631160503771,154505355,4631160503771,"https://www.wildberries.ru/catalog/154505355/detail.aspx?targetUrl=GP"]
[4631137361083,170038304,4631137361083,"https://www.wildberries.ru/catalog/170038304/detail.aspx?targetUrl=GP"]
[4631161987266,152235502,4631161987266,"https://www.wildberries.ru/catalog/152235502/detail.aspx?targetUrl=GP"]
[4631168923724,171070905,4631168923724,"https://www.wildberries.ru/catalog/171070905/detail.aspx?targetUrl=GP"]
[4631159949276,150359775,4631159949276,"https://www.wildberries.ru/catalog/150359775/detail.aspx?targetUrl=GP"]
[4631137444083,169845972,4631137444083,"https://www.wildberries.ru/catalog/169845972/detail.aspx?targetUrl=GP"]
[4631169509507,184006229,4631169509507,"https://www.wildberries.ru/catalog/184006229/detail.aspx?targetUrl=GP"]
[4631161987273,170012407,4631161987273,"https://www.wildberries.ru/catalog/170012407/detail.aspx?targetUrl=GP"]
[4631140951820,169862257,4631140951820,"https://www.wildberries.ru/catalog/169862257/detail.aspx?targetUrl=GP"]
[4631154965769,150227242,4631154965769,"https://www.wildberries.ru/catalog/150227242/detail.aspx?targetUrl=GP"]
[4631161668608,149881390,4631161668608,"https://www.wildberries.ru/catalog/149881390/detail.aspx?targetUrl=GP"]
[4631165610603,150382776,4631165610603,"https://www.wildberries.ru/catalog/150382776/detail.aspx?targetUrl=GP"]
[4631161519924,150227243,4631161519924,"https://www.wildberries.ru/catalog/150227243/detail.aspx?targetUrl=GP"]
[4631165358260,158055823,4631165358260,"https://www.wildberries.ru/catalog/158055823/detail.aspx?targetUrl=GP"]
[4631163849104,170054370,4631163849104,"https://www.wildberries.ru/catalog/170054370/detail.aspx?targetUrl=GP"]
[4631161668578,149881387,4631161668578,"https://www.wildberries.ru/catalog/149881387/detail.aspx?targetUrl=GP"]
[4631149768825,170033635,4631149768825,"https://www.wildberries.ru/catalog/170033635/detail.aspx?targetUrl=GP"]
[4631157248500,154519016,4631157248500,"https://www.wildberries.ru/catalog/154519016/detail.aspx?targetUrl=GP"]
[4631169622107,173057611,4631169622107,"https://www.wildberries.ru/catalog/173057611/detail.aspx?targetUrl=GP"]
[4631167769330,153506236,4631167769330,"https://www.wildberries.ru/catalog/153506236/detail.aspx?targetUrl=GP"]
[4631165610627,150382778,4631165610627,"https://www.wildberries.ru/catalog/150382778/detail.aspx?targetUrl=GP"]
[4631169540302,183214415,4631169540302,"https://www.wildberries.ru/catalog/183214415/detail.aspx?targetUrl=GP"]
[4631140901139,169851850,4631140901139,"https://www.wildberries.ru/catalog/169851850/detail.aspx?targetUrl=GP"]
[4631143916093,170011402,4631143916093,"https://www.wildberries.ru/catalog/170011402/detail.aspx?targetUrl=GP"]
[4631137361052,170039822,4631137361052,"https://www.wildberries.ru/catalog/170039822/detail.aspx?targetUrl=GP"]
[4631141139142,150224090,4631141139142,"https://www.wildberries.ru/catalog/150224090/detail.aspx?targetUrl=GP"]
[4631144732517,150224092,4631144732517,"https://www.wildberries.ru/catalog/150224092/detail.aspx?targetUrl=GP"]
[4631169700782,183214414,4631169700782,"https://www.wildberries.ru/catalog/183214414/detail.aspx?targetUrl=GP"]
[4631169829230,182309289,4631169829230,"https://www.wildberries.ru/catalog/182309289/detail.aspx?targetUrl=GP"]
[4631165598659,149875696,4631165598659,"https://www.wildberries.ru/catalog/149875696/detail.aspx?targetUrl=GP"]
[4631144732500,150224091,4631144732500,"https://www.wildberries.ru/catalog/150224091/detail.aspx?targetUrl=GP"]
[4631164178951,152467037,4631164178951,{"$f":"CONCATENATE($E$2,B67,$G$2)","v":"https://www.wildberries.ru/catalog/152467037/detail.aspx?targetUrl=GP"}]
[4631157221152,154519014,4631157221152,"https://www.wildberries.ru/catalog/154519014/detail.aspx?targetUrl=GP"]
[4631169128692,164536201,4631169128692,"https://www.wildberries.ru/catalog/164536201/detail.aspx?targetUrl=GP"]
[4631162991590,153319561,4631162991590,"https://www.wildberries.ru/catalog/153319561/detail.aspx?targetUrl=GP"]
[4631169543242,188070253,4631169543242,"https://www.wildberries.ru/catalog/188070253/detail.aspx?targetUrl=GP"]
[4631154965790,149877368,4631154965790,"https://www.wildberries.ru/catalog/149877368/detail.aspx?targetUrl=GP"]
[4631161971463,156370631,4631161971463,"https://www.wildberries.ru/catalog/156370631/detail.aspx?targetUrl=GP"]
[4631161461292,149875693,4631161461292,"https://www.wildberries.ru/catalog/149875693/detail.aspx?targetUrl=GP"]
[4631165610634,150382777,4631165610634,"https://www.wildberries.ru/catalog/150382777/detail.aspx?targetUrl=GP"]
[4631154965752,150227241,4631154965752,"https://www.wildberries.ru/catalog/150227241/detail.aspx?targetUrl=GP"]
[4631140037623,150234701,4631140037623,"https://www.wildberries.ru/catalog/150234701/detail.aspx?targetUrl=GP"]
[4631163960625,152434737,4631163960625,"https://www.wildberries.ru/catalog/152434737/detail.aspx?targetUrl=GP"]
[4631153570797,169856314,4631153570797,"https://www.wildberries.ru/catalog/169856314/detail.aspx?targetUrl=GP"]
[4631146855351,152239045,4631146855351,"https://www.wildberries.ru/catalog/152239045/detail.aspx?targetUrl=GP"]
[4631161461308,149875694,4631161461308,"https://www.wildberries.ru/catalog/149875694/detail.aspx?targetUrl=GP"]
[4631154965783,149877367,4631154965783,"https://www.wildberries.ru/catalog/149877367/detail.aspx?targetUrl=GP"]
[4631142790830,170123398,4631142790830,"https://www.wildberries.ru/catalog/170123398/detail.aspx?targetUrl=GP"]
[4631164196719,149785562,4631164196719,"https://www.wildberries.ru/catalog/149785562/detail.aspx?targetUrl=GP"]
[4631136904687,154541673,4631136904687,"https://www.wildberries.ru/catalog/154541673/detail.aspx?targetUrl=GP"]
[4631161987334,149753553,4631161987334,"https://www.wildberries.ru/catalog/149753553/detail.aspx?targetUrl=GP"]
[4631164178944,152467036,4631164178944,"https://www.wildberries.ru/catalog/152467036/detail.aspx?targetUrl=GP"]
[4631161939432,152238229,4631161939432,"https://www.wildberries.ru/catalog/152238229/detail.aspx?targetUrl=GP"]
[4631161668585,149881388,4631161668585,"https://www.wildberries.ru/catalog/149881388/detail.aspx?targetUrl=GP"]
[4631143190547,169875687,4631143190547,"https://www.wildberries.ru/catalog/169875687/detail.aspx?targetUrl=GP"]
[4631165358277,158056797,4631165358277,"https://www.wildberries.ru/catalog/158056797/detail.aspx?targetUrl=GP"]
[4631140647174,153504118,4631140647174,"https://www.wildberries.ru/catalog/153504118/detail.aspx?targetUrl=GP"]
[4631161519894,149785559,4631161519894,"https://www.wildberries.ru/catalog/149785559/detail.aspx?targetUrl=GP"]
[4631159369807,150378847,4631159369807,"https://www.wildberries.ru/catalog/150378847/detail.aspx?targetUrl=GP"]
[4631157221176,154519015,4631157221176,"https://www.wildberries.ru/catalog/154519015/detail.aspx?targetUrl=GP"]
[4631148599604,152466867,4631148599604,"https://www.wildberries.ru/catalog/152466867/detail.aspx?targetUrl=GP"]
[4631147998248,152285903,4631147998248,"https://www.wildberries.ru/catalog/152285903/detail.aspx?targetUrl=GP"]
[4631136904960,169865364,4631136904960,"https://www.wildberries.ru/catalog/169865364/detail.aspx?targetUrl=GP"]
[4631165598666,149875697,4631165598666,"https://www.wildberries.ru/catalog/149875697/detail.aspx?targetUrl=GP"]
[4631153570780,170041072,4631153570780,"https://www.wildberries.ru/catalog/170041072/detail.aspx?targetUrl=GP"]
[4631139749209,154502205,4631139749209,"https://www.wildberries.ru/catalog/154502205/detail.aspx?targetUrl=GP"]
[4631165610610,150382779,4631165610610,"https://www.wildberries.ru/catalog/150382779/detail.aspx?targetUrl=GP"]
[4631154060563,152241850,4631154060563,"https://www.wildberries.ru/catalog/152241850/detail.aspx?targetUrl=GP"]
[4631161939449,150224370,4631161939449,"https://www.wildberries.ru/catalog/150224370/detail.aspx?targetUrl=GP"]
[4631159369784,150378852,4631159369784,"https://www.wildberries.ru/catalog/150378852/detail.aspx?targetUrl=GP"]
[4631145061982,154541667,4631145061982,"https://www.wildberries.ru/catalog/154541667/detail.aspx?targetUrl=GP"]
[4631141935607,170012781,4631141935607,"https://www.wildberries.ru/catalog/170012781/detail.aspx?targetUrl=GP"]
[4631166029466,170053220,4631166029466,"https://www.wildberries.ru/catalog/170053220/detail.aspx?targetUrl=GP"]
[4631166029473,170049335,4631166029473,"https://www.wildberries.ru/catalog/170049335/detail.aspx?targetUrl=GP"]
[4631164196696,149785553,4631164196696,"https://www.wildberries.ru/catalog/149785553/detail.aspx?targetUrl=GP"]
[4631161519917,149877369,4631161519917,"https://www.wildberries.ru/catalog/149877369/detail.aspx?targetUrl=GP"]
[4631160726347,150224093,4631160726347,"https://www.wildberries.ru/catalog/150224093/detail.aspx?targetUrl=GP"]
[4631164196689,149785561,4631164196689,"https://www.wildberries.ru/catalog/149785561/detail.aspx?targetUrl=GP"]
[4631161939456,152438767,4631161939456,"https://www.wildberries.ru/catalog/152438767/detail.aspx?targetUrl=GP"]
[4631167251040,173584008,4631167251040,"https://www.wildberries.ru/catalog/173584008/detail.aspx?targetUrl=GP"]
[4631152454531,149753536,4631152454531,"https://www.wildberries.ru/catalog/149753536/detail.aspx?targetUrl=GP"]
[4631160503740,149893901,4631160503740,"https://www.wildberries.ru/catalog/149893901/detail.aspx?targetUrl=GP"]
[4631149716024,170023318,4631149716024,"https://www.wildberries.ru/catalog/170023318/detail.aspx?targetUrl=GP"]
[4631161668554,149881384,4631161668554,"https://www.wildberries.ru/catalog/149881384/detail.aspx?targetUrl=GP"]
[4631166029503,170052788,4631166029503,"https://www.wildberries.ru/catalog/170052788/detail.aspx?targetUrl=GP"]
[4631143916086,170018021,4631143916086,"https://www.wildberries.ru/catalog/170018021/detail.aspx?targetUrl=GP"]
[4631149927413,150374021,4631149927413,"https://www.wildberries.ru/catalog/150374021/detail.aspx?targetUrl=GP"]
[4631164195187,170056466,4631164195187,"https://www.wildberries.ru/catalog/170056466/detail.aspx?targetUrl=GP"]
[4631155148758,153504119,4631155148758,"https://www.wildberries.ru/catalog/153504119/detail.aspx?targetUrl=GP"]
[4631166029497,170050928,4631166029497,"https://www.wildberries.ru/catalog/170050928/detail.aspx?targetUrl=GP"]
[4631164195194,170057041,4631164195194,"https://www.wildberries.ru/catalog/170057041/detail.aspx?targetUrl=GP"]
[4631169199012,171349477,4631169199012,"https://www.wildberries.ru/catalog/171349477/detail.aspx?targetUrl=GP"]
[4631166898321,170010057,4631166898321,"https://www.wildberries.ru/catalog/170010057/detail.aspx?targetUrl=GP"]
[4631157019322,150224096,4631157019322,"https://www.wildberries.ru/catalog/150224096/detail.aspx?targetUrl=GP"]
[4631139765438,150368587,4631139765438,"https://www.wildberries.ru/catalog/150368587/detail.aspx?targetUrl=GP"]
[4631161987259,152236971,4631161987259,{"$f":"CONCATENATE($E$2,B131,$G$2)","v":"https://www.wildberries.ru/catalog/152236971/detail.aspx?targetUrl=GP"}]
[4631169700751,176944509,4631169700751,"https://www.wildberries.ru/catalog/176944509/detail.aspx?targetUrl=GP"]
[4631165610597,154551573,4631165610597,"https://www.wildberries.ru/catalog/154551573/detail.aspx?targetUrl=GP"]
[4631142040140,170019079,4631142040140,"https://www.wildberries.ru/catalog/170019079/detail.aspx?targetUrl=GP"]
[4631170306058,171670601,4631170306058,"https://www.wildberries.ru/catalog/171670601/detail.aspx?targetUrl=GP"]
[4631169199005,171348914,4631169199005,"https://www.wildberries.ru/catalog/171348914/detail.aspx?targetUrl=GP"]
[4631136904700,154541672,4631136904700,"https://www.wildberries.ru/catalog/154541672/detail.aspx?targetUrl=GP"]
[4631169829254,182309291,4631169829254,"https://www.wildberries.ru/catalog/182309291/detail.aspx?targetUrl=GP"]
[4631161987341,149753555,4631161987341,"https://www.wildberries.ru/catalog/149753555/detail.aspx?targetUrl=GP"]
[4631169140151,167277331,4631169140151,"https://www.wildberries.ru/catalog/167277331/detail.aspx?targetUrl=GP"]
[4631161519856,149785554,4631161519856,"https://www.wildberries.ru/catalog/149785554/detail.aspx?targetUrl=GP"]
[4631142040157,169847082,4631142040157,"https://www.wildberries.ru/catalog/169847082/detail.aspx?targetUrl=GP"]
[4631168923700,178065430,4631168923700,"https://www.wildberries.ru/catalog/178065430/detail.aspx?targetUrl=GP"]
[4631142040133,170018567,4631142040133,"https://www.wildberries.ru/catalog/170018567/detail.aspx?targetUrl=GP"]
[4631166029480,170051454,4631166029480,"https://www.wildberries.ru/catalog/170051454/detail.aspx?targetUrl=GP"]
[4631161115508,170055381,4631161115508,"https://www.wildberries.ru/catalog/170055381/detail.aspx?targetUrl=GP"]
[4631167695097,152438768,4631167695097,"https://www.wildberries.ru/catalog/152438768/detail.aspx?targetUrl=GP"]
[4631161519887,149785558,4631161519887,"https://www.wildberries.ru/catalog/149785558/detail.aspx?targetUrl=GP"]
[4631169607319,171093063,4631169607319,"https://www.wildberries.ru/catalog/171093063/detail.aspx?targetUrl=GP"]
[4631164289206,150407907,4631164289206,"https://www.wildberries.ru/catalog/150407907/detail.aspx?targetUrl=GP"]
[4631165598673,165488045,4631165598673,"https://www.wildberries.ru/catalog/165488045/detail.aspx?targetUrl=GP"]
[4631144646654,180860978,4631144646654,"https://www.wildberries.ru/catalog/180860978/detail.aspx?targetUrl=GP"]
[4631144646616,150253408,4631144646616,"https://www.wildberries.ru/catalog/150253408/detail.aspx?targetUrl=GP"]
[4631136904816,154541675,4631136904816,"https://www.wildberries.ru/catalog/154541675/detail.aspx?targetUrl=GP"]
[4631141139173,150224094,4631141139173,"https://www.wildberries.ru/catalog/150224094/detail.aspx?targetUrl=GP"]
[4631164195224,149753550,4631164195224,"https://www.wildberries.ru/catalog/149753550/detail.aspx?targetUrl=GP"]
[4631164196702,149785563,4631164196702,"https://www.wildberries.ru/catalog/149785563/detail.aspx?targetUrl=GP"]
[4631169198992,171348650,4631169198992,"https://www.wildberries.ru/catalog/171348650/detail.aspx?targetUrl=GP"]
[4631163960632,152435007,4631163960632,"https://www.wildberries.ru/catalog/152435007/detail.aspx?targetUrl=GP"]
[4631144646623,150253388,4631144646623,"https://www.wildberries.ru/catalog/150253388/detail.aspx?targetUrl=GP"]
[4631160166198,150359473,4631160166198,"https://www.wildberries.ru/catalog/150359473/detail.aspx?targetUrl=GP"]
[4631162328808,167722752,4631162328808,"https://www.wildberries.ru/catalog/167722752/detail.aspx?targetUrl=GP"]
[4631169622084,173057614,4631169622084,"https://www.wildberries.ru/catalog/173057614/detail.aspx?targetUrl=GP"]
[4631160503733,149893904,4631160503733,"https://www.wildberries.ru/catalog/149893904/detail.aspx?targetUrl=GP"]
[4631136904946,154541669,4631136904946,"https://www.wildberries.ru/catalog/154541669/detail.aspx?targetUrl=GP"]
[4631162151741,154665882,4631162151741,"https://www.wildberries.ru/catalog/154665882/detail.aspx?targetUrl=GP"]
[4631157221169,154519013,4631157221169,"https://www.wildberries.ru/catalog/154519013/detail.aspx?targetUrl=GP"]
[4631141139159,150224089,4631141139159,"https://www.wildberries.ru/catalog/150224089/detail.aspx?targetUrl=GP"]
[4631162062054,149910040,4631162062054,"https://www.wildberries.ru/catalog/149910040/detail.aspx?targetUrl=GP"]
[4631165358246,149893903,4631165358246,"https://www.wildberries.ru/catalog/149893903/detail.aspx?targetUrl=GP"]
[4631169242619,169321983,4631169242619,"https://www.wildberries.ru/catalog/169321983/detail.aspx?targetUrl=GP"]
[4631144646661,150253394,4631144646661,"https://www.wildberries.ru/catalog/150253394/detail.aspx?targetUrl=GP"]
[4631157019339,150257806,4631157019339,"https://www.wildberries.ru/catalog/150257806/detail.aspx?targetUrl=GP"]
[4631154965776,150228142,4631154965776,"https://www.wildberries.ru/catalog/150228142/detail.aspx?targetUrl=GP"]
[4631152123246,154541664,4631152123246,"https://www.wildberries.ru/catalog/154541664/detail.aspx?targetUrl=GP"]
[4631162151734,149753547,4631162151734,"https://www.wildberries.ru/catalog/149753547/detail.aspx?targetUrl=GP"]
[4603739551117,159485555,4603739551117,"https://www.wildberries.ru/catalog/159485555/detail.aspx?targetUrl=GP"]
[4631168621026,150222646,4631168621026,"https://www.wildberries.ru/catalog/150222646/detail.aspx?targetUrl=GP"]
[4631170306065,171671002,4631170306065,"https://www.wildberries.ru/catalog/171671002/detail.aspx?targetUrl=GP"]
[4631152123253,154541670,4631152123253,"https://www.wildberries.ru/catalog/154541670/detail.aspx?targetUrl=GP"]
[4631169700775,177635010,4631169700775,"https://www.wildberries.ru/catalog/177635010/detail.aspx?targetUrl=GP"]
[4631140037630,150234702,4631140037630,"https://www.wildberries.ru/catalog/150234702/detail.aspx?targetUrl=GP"]
[4631169622077,173057616,4631169622077,"https://www.wildberries.ru/catalog/173057616/detail.aspx?targetUrl=GP"]
[4631136904892,154541663,4631136904892,"https://www.wildberries.ru/catalog/154541663/detail.aspx?targetUrl=GP"]
[4631160166204,150359474,4631160166204,"https://www.wildberries.ru/catalog/150359474/detail.aspx?targetUrl=GP"]
[{"$error":"#N/A"},151138233,{"$error":"#N/A"},"https://www.wildberries.ru/catalog/151138233/detail.aspx?targetUrl=GP"]
[{"$error":"#N/A"},154505348,{"$error":"#N/A"},"https://www.wildberries.ru/catalog/154505348/detail.aspx?targetUrl=GP"]
[{"$error":"#N/A"},154541662,{"$error":"#N/A"},"https://www.wildberries.ru/catalog/154541662/detail.aspx?targetUrl=GP"]
[{"$error":"#N/A"},163160442,{"$error":"#N/A"},"https://www.wildberries.ru/catalog/163160442/detail.aspx?targetUrl=GP"]
[{"$error":"#N/A"},170060230,{"$error":"#N/A"},"https://www.wildberries.ru/catalog/170060230/detail.aspx?targetUrl=GP"]
[{"$error":"#N/A"},171091927,{"$error":"#N/A"},"https://www.wildberries.ru/catalog/171091927/detail.aspx?targetUrl=GP"]
[{"$error":"#N/A"},150359471,{"$error":"#N/A"},"https://www.wildberries.ru/catalog/150359471/detail.aspx?targetUrl=GP"]
[{"$error":"#N/A"},173057613,{"$error":"#N/A"},"https://www.wildberries.ru/catalog/173057613/detail.aspx?targetUrl=GP"]
[{"$error":"#N/A"},150228143,{"$error":"#N/A"},"https://www.wildberries.ru/catalog/150228143/detail.aspx?targetUrl=GP"]
[{"$error":"#N/A"},150234700,{"$error":"#N/A"},{"$f":"CONCATENATE($E$2,B195,$G$2)","v":"https://www.wildberries.ru/catalog/150234700/detail.aspx?targetUrl=GP"}]
[{"$error":"#N/A"},170021738,{"$error":"#N/A"},"https://www.wildberries.ru/catalog/170021738/detail.aspx?targetUrl=GP"]
[{"$error":"#N/A"},152254625,{"$error":"#N/A"},"https://www.wildberries.ru/catalog/152254625/detail.aspx?targetUrl=GP"]
[{"$error":"#N/A"},149753556,{"$error":"#N/A"},"https://www.wildberries.ru/catalog/149753556/detail.aspx?targetUrl=GP"]
[{"$error":"#N/A"},150359472,{"$error":"#N/A"},"https://www.wildberries.ru/catalog/150359472/detail.aspx?targetUrl=GP"]
[{"$error":"#N/A"},149910044,{"$error":"#N/A"},"https://www.wildberries.ru/catalog/149910044/detail.aspx?targetUrl=GP"]
[{"$error":"#N/A"},149785555,{"$error":"#N/A"},"https://www.wildberries.ru/catalog/149785555/detail.aspx?targetUrl=GP"]
[{"$error":"#N/A"},171671994,{"$error":"#N/A"},"https://www.wildberries.ru/catalog/171671994/detail.aspx?targetUrl=GP"]
[{"$error":"#N/A"},154505353,{"$error":"#N/A"},"https://www.wildberries.ru/catalog/154505353/detail.aspx?targetUrl=GP"]
[{"$error":"#N/A"},154541661,{"$error":"#N/A"},"https://www.wildberries.ru/catalog/154541661/detail.aspx?targetUrl=GP"]
[{"$error":"#N/A"},149753551,{"$error":"#N/A"},"https://www.wildberries.ru/catalog/149753551/detail.aspx?targetUrl=GP"]
[{"$error":"#N/A"},149910043,{"$error":"#N/A"},"https://www.wildberries.ru/catalog/149910043/detail.aspx?targetUrl=GP"]
[{"$error":"#N/A"},150223716,{"$error":"#N/A"},"https://www.wildberries.ru/catalog/150223716/detail.aspx?targetUrl=GP"]
[{"$error":"#N/A"},150407908,{"$error":"#N/A"},"https://www.wildberries.ru/catalog/150407908/detail.aspx?targetUrl=GP"]
[{"$error":"#N/A"},173057610,{"$error":"#N/A"},"https://www.wildberries.ru/catalog/173057610/detail.aspx?targetUrl=GP"]
[{"$error":"#N/A"},154505358,{"$error":"#N/A"},"https://www.wildberries.ru/catalog/154505358/detail.aspx?targetUrl=GP"]
[{"$error":"#N/A"},171089133,{"$error":"#N/A"},"https://www.wildberries.ru/catalog/171089133/detail.aspx?targetUrl=GP"]
[{"$error":"#N/A"},150407905,{"$error":"#N/A"},"https://www.wildberries.ru/catalog/150407905/detail.aspx?targetUrl=GP"]
[{"$error":"#N/A"},154505357,{"$error":"#N/A"},"https://www.wildberries.ru/catalog/154505357/detail.aspx?targetUrl=GP"]
[{"$error":"#N/A"},154666470,{"$error":"#N/A"},"https://www.wildberries.ru/catalog/154666470/detail.aspx?targetUrl=GP"]
[{"$error":"#N/A"},149753554,{"$error":"#N/A"},"https://www.wildberries.ru/catalog/149753554/detail.aspx?targetUrl=GP"]
[{"$error":"#N/A"},162490166,{"$error":"#N/A"},"https://www.wildberries.ru/catalog/162490166/detail.aspx?targetUrl=GP"]
[{"$error":"#N/A"},149753543,{"$error":"#N/A"},"https://www.wildberries.ru/catalog/149753543/detail.aspx?targetUrl=GP"]
[{"$error":"#N/A"},150253392,{"$error":"#N/A"},"https://www.wildberries.ru/catalog/150253392/detail.aspx?targetUrl=GP"]
[{"$error":"#N/A"},150253409,{"$error":"#N/A"},"https://www.wildberries.ru/catalog/150253409/detail.aspx?targetUrl=GP"]
[{"$error":"#N/A"},149753541,{"$error":"#N/A"},"https://www.wildberries.ru/catalog/149753541/detail.aspx?targetUrl=GP"]
[{"$error":"#N/A"},152237381,{"$error":"#N/A"},"https://www.wildberries.ru/catalog/152237381/detail.aspx?targetUrl=GP"]
[{"$error":"#N/A"},154666469,{"$error":"#N/A"},"https://www.wildberries.ru/catalog/154666469/detail.aspx?targetUrl=GP"]
[{"$error":"#N/A"},149753544,{"$error":"#N/A"},"https://www.wildberries.ru/catalog/149753544/detail.aspx?targetUrl=GP"]
[{"$error":"#N/A"},152467040,{"$error":"#N/A"},"https://www.wildberries.ru/catalog/152467040/detail.aspx?targetUrl=GP"]
[{"$error":"#N/A"},149881389,{"$error":"#N/A"},"https://www.wildberries.ru/catalog/149881389/detail.aspx?targetUrl=GP"]
[{"$error":"#N/A"},150374018,{"$error":"#N/A"},"https://www.wildberries.ru/catalog/150374018/detail.aspx?targetUrl=GP"]
[{"$error":"#N/A"},150253390,{"$error":"#N/A"},"https://www.wildberries.ru/catalog/150253390/detail.aspx?targetUrl=GP"]
[{"$error":"#N/A"},150234703,{"$error":"#N/A"},"https://www.wildberries.ru/catalog/150234703/detail.aspx?targetUrl=GP"]
[{"$error":"#N/A"},152296710,{"$error":"#N/A"},"https://www.wildberries.ru/catalog/152296710/detail.aspx?targetUrl=GP"]
[{"$error":"#N/A"},149785560,{"$error":"#N/A"},"https://www.wildberries.ru/catalog/149785560/detail.aspx?targetUrl=GP"]
[{"$error":"#N/A"},149519188,{"$error":"#N/A"},"https://www.wildberries.ru/catalog/149519188/detail.aspx?targetUrl=GP"]